Workbook

Sheet Total Program Inputs
A1: MONTANA-DAKOTA UTILITIES CO.
A2: GAS UTILITY - SOUTH DAKOTA
A3: DSM SUMMARY
A4: 2021 ACTUAL
A6: Incentive Year: | C6: 2021
I8: Incentive | K8: Admin | M8: Admin | O8: Total
E9: Participants | G9: Dk Savings | I9: Expense | K9: Allocation | M9: Expense 1/ | O9: Expense | Q9: Incentive | S9: dk/part.
A10: Residential
A11: High Efficiency Furnace - 95%+ (new) | E11: 176 | G11: 774 | I11: 26400 | K11: =+ROUND(I11/$I$27,4) -> 0.2094 | M11: =+ROUND(K11*$E$32,0)+1 -> 3434 | O11: =+I11+M11 -> 29834 | Q11: 150 | S11: =ROUND(+G11/E11,1) -> 4.4
A12: High Efficiency Furnace - 95%+ (replacement) | E12: 238 | G12: 4401 | I12: 71400 | K12: =+ROUND(I12/$I$27,4) -> 0.5662 | M12: =+ROUND(K12*$E$32,0) -> 9283 | O12: =+I12+M12 -> 80683 | Q12: 300 | S12: =ROUND(+G12/E12,1) -> 18.5
A13: Programmable Thermostats - Tier 1 | E13: 58 | G13: 133 | I13: 870 | K13: =+ROUND(I13/$I$27,4) -> 0.0069 | M13: =+ROUND(K13*$E$32,0) -> 113 | O13: =+I13+M13 -> 983 | Q13: 15 | S13: 2.3
A14: Programmable Thermostats - Tier 2 | E14: 168 | G14: 1150 | I14: 10080 | K14: =+ROUND(I14/$I$27,4) -> 0.0799 | M14: =+ROUND(K14*$E$32,0) -> 1310 | O14: =+I14+M14 -> 11390 | Q14: 60 | S14: =ROUND(+G14/E14,1) -> 6.8
A15: Total Residential | E15: =SUM(E11:E14) -> 640 | G15: =SUM(G11:G14) -> 6458 | I15: =SUM(I11:I14) -> 108750 | K15: =SUM(K11:K14) -> 0.8624 | M15: =SUM(M11:M14) -> 14140 | O15: =SUM(O11:O14) -> 122890
A17: Commmercial & Industrial
A18: High Efficiency Furnace - 95%+ (new) | E18: 4 | G18: 32 | I18: 600 | K18: =+ROUND(I18/$I$27,4) -> 0.0048 | M18: =+ROUNDDOWN(K18*$E$32,0) -> 78 | O18: =+I18+M18 -> 678 | Q18: 150 | S18: =ROUND(+G18/E18,1) -> 8
A19: High Efficiency Furnace - 95%+ (replacement) | E19: 16 | G19: 426 | I19: 4800 | K19: =+ROUND(I19/$I$27,4) -> 0.0381 | M19: =+ROUND(K19*$E$32,0) -> 625 | O19: =+I19+M19 -> 5425 | Q19: 300 | S19: =ROUND(+G19/E19,1) -> 26.6
A20: Custom | E20: 1 | G20: 1991 | I20: 11944 | K20: 0.0947 | M20: =+ROUND(K20*$E$32,0) -> 1553 | O20: =+I20+M20 -> 13497 | Q20: =+I20 -> 11944 | S20: =ROUND(+G20/E20,1) -> 1991
A21: Total Commercial and Industrial | E21: =SUM(E18:E20) -> 21 | G21: =SUM(G18:G20) -> 2449 | I21: =SUM(I18:I20) -> 17344 | K21: =SUM(K18:K20) -> 0.1376 | M21: =SUM(M18:M20) -> 2256 | O21: =SUM(O18:O20) -> 19600
A23: Subtotal | E23: =+E21+E15 -> 661 | G23: =+G21+G15 -> 8907 | I23: =+I21+I15 -> 126094 | K23: =+K21+K15 -> 1 | M23: =+M21+M15 -> 16396 | O23: =+O21+O15 -> 142490
A25: Energy Audits | E25: 0 | G25: 0 | I25: 0 | K25: =+ROUND(I25/$I$27,4) -> 0 | M25: =+ROUND(K25*$E$32,0) -> 0 | O25: =+I25+M25 -> 0
A27: Total South Dakota | E27: =+E25+E23 -> 661 | G27: =+G25+G23 -> 8907 | I27: =+I25+I23 -> 126094 | K27: =+K25+K23 -> 1 | M27: =+M25+M23 -> 16396 | O27: =+O25+O23 -> 142490
A30: 1/ Administration expense allocated on incentive and program costs.
A32: Admin costs | E32: 16396

Sheet Database Inputs
A1: South Dakota Natural Gas DSM Programs
A2: Technical Assumptions
I3: Cost Assumptions
H5: Average | M5: Year 1 | N5: Total
C6: # of | F6: Average | G6: Average | H6: Non-Energy | L6: Avg | M6: Total | N6: Operating/ | O6: Admin &
B7: Customer | C7: Particip | D7: Project | E7: Baseline | F7: High | G7: dk Saved | H7: Benefits | I7: Cost | J7: Cost High | K7: Increm | L7: Incentive | M7: Admin | N7: Marketing | O7: Promo | R7: Total | S7: Total | T7: Total
A8: 2021 - 2023 Program Years | B8: Class | C8: =+'Total Program Inputs'!C6 -> 2021 | D8: Life | E8: Efficiency | F8: Efficiency | G8: / part | H8: / Part | I8: Std Equip | J8: Eff Equip | K8: Cost | L8: / Part | M8: Costs | N8: Costs | O8: Cost Yr. 1 | P8: Technical Notes | Q8: Participation Notes | R8: Incentives | S8: Incentives | T8: Incentives
A9: Residential | R9: Year 1 | S9: Year 2 | T9: Year 3
A10: Furnace Tier 2 - 95%+ AFUE - New | B10: Res | C10: =+'Total Program Inputs'!E11 -> 176 | D10: 20 | E10: 90 | F10: 95 | G10: =+'Total Program Inputs'!S11 -> 4.4 | H10: 0 | I10: 1380 | J10: 2000 | K10: 165 | L10: 150 | M10: =+'Res .95+% Res Furnace - NEW'!$F$11 -> 3434 | N10: 0 | O10: =+'Total Program Inputs'!M11 -> 3434 | P10: 75,000 btuh Average | Q10: Past program History | R10: =ROUND(L10*C10,0) -> 26400 | S10: =ROUND(#REF!*L10,0) ->  | T10: =ROUND(L10*#REF!,0) ->  | V10: Updated incremental costs to the 2020 MN TRM
A11: Furnace Tier 2 - 95%+ AFUE - Replacement | B11: Res | C11: =+'Total Program Inputs'!E12 -> 238 | D11: 20 | E11: 80 | F11: 95 | G11: =+'Total Program Inputs'!S12 -> 18.5 | H11: 720 | I11: 880 | J11: 2000 | K11: 736 | L11: 300 | M11: =+'Res .95+% Res Furnace - Replace'!$F$11 -> 9283 | N11: 0 | O11: =+'Total Program Inputs'!M12 -> 9283 | P11: 75,000 btuh Average | Q11: Past program History | R11: =ROUND(L11*C11,0) -> 71400 | S11: =ROUND(#REF!*L11,0) ->  | T11: =ROUND(L11*#REF!,0) ->  | V11: Updated incremental costs to the 2020 MN TRM
A12: Programmable Thermostats - Tier 1 | B12: Res | C12: =+'Total Program Inputs'!E13 -> 58 | D12: 10 | E12: NA | F12: NA | G12: =+'Total Program Inputs'!S13 -> 2.3 | H12: 0 | I12: NA | J12: NA | K12: 30 | L12: 15 | M12: ='Programmable Tstats - Tier 1'!$F$11 -> 113 | N12: 0 | O12: =+'Total Program Inputs'!M13 -> 113 | P12: 1 showerhead, 1kitchen, 2 faucet | Q12: assume 50% app rate | R12: =ROUND(L12*C12,0) -> 870 | S12: =ROUND(#REF!*L12,0) ->  | T12: =ROUND(L12*#REF!,0) -> 
A13: Programmable Thermostats - Tier 2 | B13: Res | C13: =+'Total Program Inputs'!E14 -> 168 | D13: 10 | E13: NA | F13: NA | G13: =+'Total Program Inputs'!S14 -> 6.8 | H13: 41 | K13: =0.35*91+0.65*189 -> 154.7 | L13: 60 | O13: =+'Total Program Inputs'!M14 -> 1310 | S13: =ROUND(#REF!*L13,0) ->  | V13: 35% Tier 2, 65% Tier 3 per the table in the TRM
A14: Residential Energy Assessments | B14: Res | C14: 0 | D14: 0 | E14: 0 | F14: 0 | G14: 0 | H14: 0 | K14: 0 | L14: 0 | O14: 0 | S14: =ROUND(#REF!*L14,0) -> 
A15: Commercial
A16: Furnace Tier 2 - 95%+ AFUE - New | B16: Comm | C16: =+'Total Program Inputs'!E18 -> 4 | D16: 20 | E16: 90 | F16: 95 | G16: =+'Total Program Inputs'!S18 -> 8 | H16: 0 | I16: 880 | J16: 2000 | K16: 165 | L16: 150 | M16: =+'Comm 95+% Furnace - NEW'!$F$11 -> 78 | N16: 0 | O16: =+'Total Program Inputs'!M18 -> 78 | P16: 75,000 btuh Average | Q16: Market Information | R16: =ROUND(L16*C16,0) -> 600 | S16: =ROUND(#REF!*L16,0) ->  | T16: =ROUND(L16*#REF!,0) ->  | V16: Updated incremental costs to the 2020 MN TRM, used the costs of Residental furnaces for commercial due to rebate amount at 120,000 dkt or less (essentially residential)
A17: Furnace Tier 2 - 95%+ AFUE - Replacement | B17: Comm | C17: =+'Total Program Inputs'!E19 -> 16 | D17: 20 | E17: 80 | F17: 95 | G17: =+'Total Program Inputs'!S19 -> 26.6 | H17: 720 | I17: 880 | J17: 2000 | K17: 736 | L17: 300 | M17: =+'Comm 95+% Furnace - Replace'!$F$11 -> 625 | N17: 0 | O17: =+'Total Program Inputs'!M19 -> 625 | P17: 75,000 btuh Average | Q17: Market Information | R17: =ROUND(L17*C17,0) -> 4800 | S17: =ROUND(#REF!*L17,0) ->  | T17: =ROUND(L17*#REF!,0) ->  | V17: Updated incremental costs to the 2020 MN TRM, used the costs of Residental furnaces for commercial due to rebate amount at 120,000 dkt or less (essentially residential)
A18: Custom Efficiency | B18: Comm | C18: =+'Total Program Inputs'!E20 -> 1 | D18: 20 | E18: NA | F18: NA | G18: 0 | H18: 0 | I18: NA | J18: NA | K18: 15000 | L18: 3000 | M18: =+'Comm Custom'!F11 -> 1553 | N18: 0 | O18: =+'Total Program Inputs'!M20 -> 1553 | R18: =ROUND(L18*C18,0) -> 3000 | S18: =ROUND(#REF!*L18,0) ->  | T18: =ROUND(L18*#REF!,0) -> 
A19: Totals | B19: =SUM(C19:C19) -> 661 | C19: =SUM(C10:C18) -> 661 | Q19: Total Incentives
Q20: Customer Education/info

Sheet Gas Input Table Summary
A1: Montana-Dakota Utilities Co.
A2: 2021 Input Data Summary
A3: South Dakota Natural Gas Conservation Model
A6: Input No. | B6: Input Data Description | C6: Information Source | D6: SD Res. | E6: SD Comm.
A7: 1 | B7: Retail Rate ($/dk) | C7: Projected average 2022 Cost of Gas plus February 2021 Distribution Delivery Charge. | D7: =+'Gas Costs'!C11 -> 6.909 | E7: =+'Gas Costs'!E11 -> 6.003
B8: Escalation Rate | D8: 0.03 | E8: 0.03
A9: 2 | B9: Non-Gas Fuel Retail ($/fuel/unit) | C9: Average retail cost of non gas fuel if measures also saves kWh, gallons of water, etc. (for analysis purposes, used electric as Non-Gas Fuel Retail Rate) | D9: =+'Gas Costs'!G39 -> 0.12648 | E9: =+'Gas Costs'!G52 -> 0.12194
B10: Escalation Rate | D10: 0.03 | E10: 0.03
B11: Non-Gas Fuel Units (ie. kWh, Gallons, etc) | D11: Kwh | E11: Kwh
A12: 3 | B12: Commodity Cost ($/dk) | C12: Estimated gas costs using projected 2022 winter gas costs February 2022 pipeline commodity | D12: =+'Gas Costs'!E16 -> 3.279 | E12: =+D12 -> 3.279
B13: Escalation Rate | D13: 0.03 | E13: 0.03
A14: 4 | B14: Demand Cost ($/dk/Yr) | C14: Annual cost of firm capacity on pipeline | D14: =+'Gas Costs'!C23 -> 148.48 | E14: =+D14 -> 148.48
B15: Escalation Rate | D15: 0.01 | E15: 0.01
A16: 5 | B16: Peak Reduction Factor | C16: Estimated average peak day reduction factor caused by implementing the measure (s) | D16: 0.01 | E16: 0.01
A17: 6 | B17: Variable O&M ($/dk) | C17: Estimated variable O&M that will be avoided due the implementing the measure | D17: 0 | E17: 0
B18: Escalation Rate | D18: 0 | E18: 0
A19: 7 | B19: Non-Gas Fuel Cost ($/Fuel Unit) | C19: Average commodity cost of non gas fuel if measures also saves kWh, gallons of water, etc. (for analysis purposes, used electric as Non-Gas Fuel Cost) | D19: =+'Gas Costs'!C55 -> 0.02891 | E19: =+D19 -> 0.02891
B20: Escalation Rate | D20: 0.03 | E20: 0.03
A21: 8 | B21: Non-Gas Fuel Loss Factor | C21: Non-Gas fuel loss factor (for analysis purposes, used Montana-Dakota Utilities 12 month average ending November 2019 line loss factor) | D21: 0.073 | E21: 0.073
A22: 9 | B22: Gas Environmental Damage Factor | C22: Per Minnesota CIP triennium 2021-2023 | D22: 2.07 | E22: 2.07
B23: Escalation Rate | D23: 0.023 | E23: 0.023
A24: 10 | B24: Non Gas Fuel Environmental Damage Factor | C24: Not Applicable | D24: 0 | E24: 0
B25: Escalation Rate | D25: 0 | E25: 0
A26: 11 | B26: Participant Discount Rate | C26: Federal Reserve Consumer Credit Interest Rate 12 Months ended December 31, 2019 | D26: 0.1032 | E26: =+D26 -> 0.1032
A27: 12 | B27: Utility Discount Rate | C27: Montana-Dakota's authorized average cost of capital | D27: 0.07216 | E27: 0.07216
A28: 13 | B28: Societal Discount Rate | C28: Equal to the 30 year T-Bill rate average for Twelve Months Ending December 31, 2021 | D28: ='T bill'!B70/100 -> 0.0229 | E28: =D28 -> 0.0229
A29: 14 | B29: General Input Data Year = | C29: Year data was input | D29: =+'Total Program Inputs'!C6 -> 2021 | E29: =+D29 -> 2021
A30: 15 | B30: Project Analysis Year | C30: Year(s) program will be implemented | D30: ='Total Program Inputs'!C6 -> 2021 | E30: =+D30 -> 2021
D31: =D30+1 -> 2022 | E31: =+D31 -> 2022
D32: 2023 | E32: =+D32 -> 2023
A33: 16 | B33: Utility Project Costs | C33: Total direct cost to the utility caused by implementing the program(s)
A34: 17 | B34: Direct Participant Costs ($/Part.) | C34: Direct costs that the participant would have to participate in the program
A35: 18 | B35: Participant Non-Energy Costs (Annual $/Part.) Yr. 1 | C35: Annual participant non-energy costs if applicable caused by implementing the measure (Not Applicable) | D35: 0 | E35: 0
B36: Yr. 2 | D36: 0 | E36: 0
B37: Yr. 3 | D37: 0 | E37: 0
B38: Escalation Rate Yr. 1 | D38: 0 | E38: 0
B39: Escalation Rate Yr. 2 | D39: 0 | E39: 0
B40: Escalation Rate Yr. 3 | D40: 0 | E40: 0
A41: 19 | B41: Participant Non-Energy Savings (Annual $/Part) Yr. 1 | C41: Participant non energy savings if applicable caused by implementing the measure (Not Applicable) | D41: 0 | E41: 0
B42: Yr. 2 | D42: 0 | E42: 0
B43: Yr. 3 | D43: 0 | E43: 0
B44: Escalation Rate Yr. 1 | D44: 0 | E44: 0
B45: Escalation Rate Yr. 2 | D45: 0 | E45: 0
B46: Escalation Rate Yr. 3 | D46: 0 | E46: 0
A47: 20 | B47: Project Life (Years) | C47: Based on the estimated useful life of the energy saving equipment (20 years maximum)
A48: 21 | B48: Avg. Dk/Part. Saved | C48: Avg energy reduction (Dk) caused by the program(s)
A49: 22 | B49: Avg Non-Gas Fuel Units/Part. Saved Yr. 1 | C49: Average non-gas fuel units saved or added due to implementing the measure (for analysis purposes, used Kwh)
B50: Yr. 2 | D50: 0 | E50: 0
B51: Yr. 3 | D51: 0 | E51: 0
A52: 22a | B52: Avg Additional Non-Gas Fuel Units/ Part. Used Yr. 1 | D52: 0 | E52: 0
B53: Yr. 2 | D53: 0 | E53: 0
B54: Yr. 3 | D54: 0 | E54: 0
A55: 23 | B55: Number of Participants | C55: Total number of expected participants is the program(s)
A56: 24 | B56: Total Annual Dk Saved | C56: Total Dk saved from the program in the year implemented
A57: 25 | B57: Incentive/Participant | C57: Incentive provided to the participant
A58: 26 | B58: Distribution Delivery Charge | C58: Weighted Average of Montana-Dakota's Distribution Delivery Charge | D58: =+'Gas Costs'!C10 -> 1.836 | E58: =+'Gas Costs'!E10 -> 0.93
A59: 27 | B59: Effective Fed & State Income Tax Rate | C59: Montana-Dakota's effective tax rate | D59: 0.21 | E59: 0.21

Sheet Gas Costs
A1: MONTANA-DAKOTA UTILITIES CO.
A2: GAS UTILITY - SOUTH DAKOTA
A3: PROJECTED COST OF GAS - 2022
C6: South Dakota
C7: Residential | E7: Firm General
A8: Retail Rate
A9: Average cost of gas 1/ | C9: 5.073 | E9: =+C9 -> 5.073
A10: Margin | C10: 1.836 | E10: 0.93 | F10: 2/
A11: Total Retail Rate | C11: =SUM(C9:C10) -> 6.909 | E11: =SUM(E9:E10) -> 6.003
A14: Gas Commodity | C14: 22127084
A15: Non-gas commodity | C15: 937950
A16: Total | C16: =SUM(C14:C15) -> 23065034 | E16: =ROUND(+C16/C18/0.99,3) -> 3.279 | F16: per dk adj. for losses
A18: Dk deliveries | C18: 7105679
A20: Demand Cost (Avoided Capacity) ($/dk/yr)
A21: Total Demand Charges (February 2022 PGA) | C21: 12425214
A22: Capacity requirements 3/ | C22: 83685
A23: Demand Costs | C23: =+ROUND(C21/C22,2) -> 148.48
A26: 1/ Based on February 2022 PGA adjusted to reflect the projected annual 2022 gas commodity cost.
A27: 2/ Meters rated < 500 cubic feet.
A28: 3/ FT-1, FT-1 negotiated contract and T-FTG-1 capacity.
A31: Electric - Black Hills Power
A32: Residential
A33: Base Rate | B33: 2020-01-01 | C33: 12 | E33: 12 | G33: 0 | H33: 4/
A34: Energy Charge
A35: All Kwh | C35: 12000 | E35: 0.08827 | G35: =C35*E35 -> 1059.24
A36: Cost Adjustment | C36: 12000 | E36: 0.03821 | G36: =C36*E36 -> 458.52
A37: Total Bill | G37: =SUM(G33:G36) -> 1517.76
A39: Average Realization | G39: =ROUND(G37/C35,5) -> 0.12648
A41: Commercial (Small general service)
A42: Base Rate | C42: 12 | E42: 15 | G42: 0 | H42: 4/
A43: Energy Charge
A44: First 3000 Kwh | C44: 3000 | E44: 0.077 | G44: =C44*E44 -> 231
A45: Over 3,000 Kwh | C45: 69000 | E45: 0.06026 | G45: =C45*E45 -> 4157.94
A46: Cost Adjustment | C46: =SUM(C44:C45) -> 72000 | E46: 0.03941 | G46: =C46*E46 -> 2837.52
A47: Demand Charge
A48: First 50 KW | C48: 50 | E48: 8 | G48: =C48*E48 -> 400
A49: Over 50 KW | C49: 150 | E49: 7.69 | G49: =C49*E49 -> 1153.5
A50: Total Bill | G50: =SUM(G42:G49) -> 8779.96
A52: Average Realization | G52: =ROUND(G50/C46,5) -> 0.12194
A54: Cost of Fuel
A55: Base | C55: 0.02891
A57: 4/ Base charge not included for conservation calculations as it has no relation to savings
A58: on consumption.

Sheet T bill
A2: Website Hyperlink: | B2: https://www.federalreserve.gov/datadownload/Choose.aspx?rel=H15
A4: Then follow instructions to "build your package"
A6: Download Page | B6: H.15 Selected Interest Rates for Nov 09, 2016
A7: Series Description | B7: 3-month Treasury bill secondary market rate discount basis
A8: Unit: | B8: Percent:_Per_Year
A9: Multiplier: | B9: 1
A10: Currency: | B10: NA
A11: Unique Identifier: | B11: H15/H15/RIFSGFSM03_N.A
A12: Time Period | B12: RIFSGFSM03_N.A
A13: 1966 | B13: 4.86
A14: 1967 | B14: 4.29
A15: 1968 | B15: 5.34
A16: 1969 | B16: 6.67
A17: 1970 | B17: 6.39
A18: 1971 | B18: 4.33
A19: 1972 | B19: 4.06
A20: 1973 | B20: 7.04
A21: 1974 | B21: 7.85
A22: 1975 | B22: 5.79
A23: 1976 | B23: 4.98
A24: 1977 | B24: 5.26
A25: 1978 | B25: 7.18
A26: 1979 | B26: 10.05
A27: 1980 | B27: 11.39
A28: 1981 | B28: 14.04
A29: 1982 | B29: 10.6
A30: 1983 | B30: 8.62
A31: 1984 | B31: 9.54
A32: 1985 | B32: 7.47
A33: 1986 | B33: 5.97
A34: 1987 | B34: 5.78
A35: 1988 | B35: 6.67
A36: 1989 | B36: 8.11
A37: 1990 | B37: 7.5
A38: 1991 | B38: 5.38
A39: 1992 | B39: 3.43
A40: 1993 | B40: 3
A41: 1994 | B41: 4.25
A42: 1995 | B42: 5.49
A43: 1996 | B43: 5.01
A44: 1997 | B44: 5.06
A45: 1998 | B45: 4.78
A46: 1999 | B46: 4.64
A47: 2000 | B47: 5.82
A48: 2001 | B48: 3.4
A49: 2002 | B49: 1.61
A50: 2003 | B50: 1.01
A51: 2004 | B51: 1.37
A52: 2005 | B52: 3.15
A53: 2006 | B53: 4.73
A54: 2007 | B54: 4.36
A55: 2008 | B55: 1.37
A56: 2009 | B56: 0.15
A57: 2010 | B57: 0.14
A58: 2011 | B58: 0.05
A59: 2012 | B59: 0.09
A60: 2013 | B60: 0.06
A61: 2014 | B61: 0.03
A62: 2015 | B62: 0.05
A63: 2016 | B63: 0.32
A64: 2017 | B64: 0.93
A65: 2018 | B65: 1.94
A66: 2019 | B66: 2.06
A67: 2020 | B67: 0.37
A68: 2021 | B68: 0.04
A70: 30 Year Average | B70: =ROUND(AVERAGE(B39:B68),2) -> 2.29

Sheet Summary of Ratios
A1: Montana-Dakota Utilities Co.
A2: South Dakota Gas DSM Program Summary
B6: Customer | G6: Total Resource
A7: Program | B7: Class | C7: RIM | D7: Utility | E7: Societal | F7: Participant | G7: Cost
A8: Total Portfolio | C8: ='Total Program'!G42 -> 1.86 | D8: ='Total Program'!G43 -> 3.77 | E8: ='Total Program'!G44 -> 4.58 | F8: ='Total Program'!G45 -> 3.955979401 | G8: ='Total Program'!G46 -> 2.24
A10: Education and Outreach
A12: Furnace (92-94%) | B12: Residential | C12: =#REF! ->  | D12: =#REF! ->  | E12: =#REF! ->  | F12: =#REF! ->  | G12: =#REF! -> 
A13: Furnace (95+%) - New | B13: Residential | C13: ='Res .95+% Res Furnace - NEW'!G42 -> 1.08 | D13: ='Res .95+% Res Furnace - NEW'!G43 -> 1.65 | E13: ='Res .95+% Res Furnace - NEW'!G44 -> 3.28 | F13: ='Res .95+% Res Furnace - NEW'!G45 -> 2.98 | G13: ='Res .95+% Res Furnace - NEW'!G46 -> 1.52
A14: Furnace (95+%) - Replacement | B14: Residential | C14: ='Res .95+% Res Furnace - Replace'!G42 -> 1.65 | D14: ='Res .95+% Res Furnace - Replace'!G43 -> 3.48 | E14: ='Res .95+% Res Furnace - Replace'!G44 -> 3.91 | F14: ='Res .95+% Res Furnace - Replace'!G45 -> 3.75 | G14: ='Res .95+% Res Furnace - Replace'!G46 -> 1.93
A15: Boiler (85%) | B15: Residential | C15: =#REF! ->  | D15: =#REF! ->  | E15: =#REF! ->  | F15: =#REF! ->  | G15: =#REF! -> 
A16: Boiler (90%) | B16: Residential
A17: Furnace Tune-Up | B17: Residential | C17: =#REF! ->  | D17: =#REF! ->  | E17: =#REF! ->  | F17: =#REF! ->  | G17: =#REF! -> 
A18: Water Heating (.62 EF) | B18: Residential | C18: =#REF! ->  | D18: =#REF! ->  | E18: =#REF! ->  | F18: =#REF! ->  | G18: =#REF! -> 
A19: Water Heating (.67 EF) | B19: Residential | C19: =#REF! ->  | D19: =#REF! ->  | E19: =#REF! ->  | F19: =#REF! ->  | G19: =#REF! -> 
A20: Attic Insulation | B20: Residential
A21: Retrofit Bundle | B21: Residential | C21: =#REF! ->  | D21: =#REF! ->  | E21: =#REF! ->  | F21: =#REF! ->  | G21: =#REF! -> 
A22: New Home Bundle | B22: Residential
A23: ='Database Inputs'!#REF! ->  | B23: Residential | C23: =#REF! ->  | D23: =+#REF! ->  | E23: =#REF! ->  | F23: =#REF! ->  | G23: =#REF! -> 
A24: ='Database Inputs'!A12 -> Programmable Thermostats - Tier 1 | B24: Residential | C24: ='Programmable Tstats - Tier 1'!G42 -> 1.98 | D24: =+'Programmable Tstats - Tier 1'!AG42 -> 5.25 | E24: ='Programmable Tstats - Tier 1'!G44 -> 4.9 | F24: ='Programmable Tstats - Tier 1'!G45 -> 4.45 | G24: ='Programmable Tstats - Tier 1'!G46 -> 2.79
A25: ='Database Inputs'!A13 -> Programmable Thermostats - Tier 2 | B25: Residential | C25: ='Programmable Tstats - Tier 2'!G42 -> 1.77 | D25: ='Programmable Tstats - Tier 2'!G43 -> 3.94 | E25: ='Programmable Tstats - Tier 2'!G44 -> 2.96 | F25: ='Programmable Tstats - Tier 2'!G45 -> 2.92 | G25: ='Programmable Tstats - Tier 2'!G46 -> 1.71
A26: ='Database Inputs'!A14 -> Residential Energy Assessments | B26: Residential | C26: ='Residential Energy Assessments'!G42 ->  | D26: ='Residential Energy Assessments'!G43 ->  | E26: ='Residential Energy Assessments'!G44 ->  | F26: ='Residential Energy Assessments'!G45 ->  | G26: ='Residential Energy Assessments'!G46 -> 
A27: ='Database Inputs'!#REF! ->  | B27: Residential | C27: =#REF! ->  | D27: =#REF! ->  | E27: =#REF! ->  | F27: =#REF! ->  | G27: =#REF! -> 
A29: Furnace (92-94%) | B29: Commercial | C29: =#REF! ->  | D29: =#REF! ->  | E29: =#REF! ->  | F29: =#REF! ->  | G29: =#REF! -> 
A30: Furnace (95+%) - New | B30: Commercial | C30: ='Comm 95+% Furnace - NEW'!G42 -> 1.99 | D30: ='Comm 95+% Furnace - NEW'!G43 -> 2.96 | E30: ='Comm 95+% Furnace - NEW'!G44 -> 5.91 | F30: ='Comm 95+% Furnace - NEW'!G45 -> 4.18 | G30: ='Comm 95+% Furnace - NEW'!G46 -> 2.72
A31: Furnace (95+%) - Replacement | B31: Commercial | C31: ='Comm 95+% Furnace - Replace'!G42 -> 2.78 | D31: ='Comm 95+% Furnace - Replace'!G43 -> 5.03 | E31: ='Comm 95+% Furnace - Replace'!G44 -> 5.37 | F31: ='Comm 95+% Furnace - Replace'!G45 -> 4.19 | G31: ='Comm 95+% Furnace - Replace'!G46 -> 2.61
A32: Hot Water Boiler (85%)
A33: ='Database Inputs'!#REF! ->  | B33: Commercial | C33: =#REF! ->  | D33: =#REF! ->  | E33: =#REF! ->  | F33: =#REF! ->  | G33: =#REF! -> 
A34: ='Database Inputs'!#REF! ->  | B34: Commercial | C34: =#REF! ->  | D34: =#REF! ->  | E34: =#REF! ->  | F34: =#REF! ->  | G34: =#REF! -> 
A35: ='Database Inputs'!#REF! ->  | B35: Commercial | C35: =#REF! ->  | D35: =+#REF! ->  | E35: =#REF! ->  | F35: =#REF! ->  | G35: =#REF! -> 
A36: Hot Water Boiler (90%)
A37: ='Database Inputs'!#REF! ->  | B37: Commercial | C37: =#REF! ->  | D37: =#REF! ->  | E37: =#REF! ->  | F37: =#REF! ->  | G37: =#REF! -> 
A38: ='Database Inputs'!#REF! ->  | B38: Commercial | C38: =#REF! ->  | D38: =#REF! ->  | E38: =#REF! ->  | F38: =#REF! ->  | G38: =#REF! -> 
A39: ='Database Inputs'!#REF! ->  | B39: Commercial | C39: =#REF! ->  | D39: =#REF! ->  | E39: =#REF! ->  | F39: =#REF! ->  | G39: =#REF! -> 
A40: LP & HP Steam Boilers
A41: ='Database Inputs'!#REF! ->  | B41: Commercial | C41: =#REF! ->  | D41: =#REF! ->  | E41: =#REF! ->  | F41: =#REF! ->  | G41: =#REF! -> 
A42: ='Database Inputs'!#REF! ->  | B42: Commercial | C42: =#REF! ->  | D42: =#REF! ->  | E42: =#REF! ->  | F42: =#REF! ->  | G42: =#REF! -> 
A43: ='Database Inputs'!#REF! ->  | B43: Commercial | C43: =#REF! ->  | D43: =#REF! ->  | E43: =#REF! ->  | F43: =#REF! ->  | G43: =#REF! -> 
A44: Water Heating (.64EF) | B44: Commercial | C44: =#REF! ->  | D44: =#REF! ->  | E44: =#REF! ->  | F44: =#REF! ->  | G44: =#REF! -> 
A45: Water Heating (Storage 88% Cond) | B45: Commercial | C45: =#REF! ->  | D45: =#REF! ->  | E45: =#REF! ->  | F45: =#REF! ->  | G45: =#REF! -> 
A46: ='Database Inputs'!#REF! ->  | B46: Commercial | C46: =#REF! ->  | D46: =#REF! ->  | E46: =#REF! ->  | F46: =#REF! ->  | G46: =#REF! -> 
A47: ='Database Inputs'!#REF! ->  | B47: Commercial | C47: =#REF! ->  | D47: =#REF! ->  | E47: =#REF! ->  | F47: =#REF! ->  | G47: =#REF! -> 
A48: ='Database Inputs'!#REF! ->  | B48: Commercial | C48: =#REF! ->  | D48: =#REF! ->  | E48: =#REF! ->  | F48: =#REF! ->  | G48: =#REF! -> 
A49: ='Database Inputs'!#REF! ->  | B49: Commercial | C49: =#REF! ->  | D49: =#REF! ->  | E49: =#REF! ->  | F49: =#REF! ->  | G49: =#REF! -> 
A50: ='Database Inputs'!#REF! ->  | B50: Commercial | C50: =#REF! ->  | D50: =#REF! ->  | E50: =#REF! ->  | F50: =#REF! ->  | G50: =#REF! -> 
A51: Custom Efficiency | B51: Commercial | C51: ='Comm Custom'!G42 -> 3.74 | D51: ='Comm Custom'!G43 -> 9.42 | E51: ='Comm Custom'!G44 -> 16.59 | F51: ='Comm Custom'!G45 -> 9.76 | G51: ='Comm Custom'!G46 -> 7.68

Sheet Total Program
A1: NATURAL GAS CONSERVATION PROGRAMS/DEMAND-SIDE MANAGEMENT | K1: Table 1 | AD1: Table 2 | AP1: Table 3 | BG1: Table 4 | BV1: Table 5
A2: BEN/COST ANALYSIS FOR GAS CONSERVATION | K2: Ratepayer Impact Measure Test | AD2: Utility Cost Test | AP2: Societal Test | BG2: Participant Test | BV2: Total Resource Cost Test
A4: Company: | B4: Montana-Dakota Utilities Co. | K4: Company: | M4: =B4 -> Montana-Dakota Utilities Co. | AD4: Company: | AF4: =B4 -> Montana-Dakota Utilities Co. | AP4: Company: | AR4: =AF4 -> Montana-Dakota Utilities Co. | BH4: Company: | BI4: =AR4 -> Montana-Dakota Utilities Co. | BW4: Company: | BX4: =BI4 -> Montana-Dakota Utilities Co.
A5: Project: | B5: Total South Dakota Program | K5: Project: | M5: =$B$5 -> Total South Dakota Program | AD5: Project: | AF5: =$B$5 -> Total South Dakota Program | AP5: Project: | AR5: =$B$5 -> Total South Dakota Program | BH5: Project: | BI5: =$B$5 -> Total South Dakota Program | BW5: Project: | BX5: =$B$5 -> Total South Dakota Program
A6: Program Years: | B6: =+'Total Program Inputs'!C6 -> 2021
N7: Benefits | X7: Costs | AF7: Benefits | AJ7: Costs | AR7: Benefits | BB7: Costs | BI7: Benefits | BR7: Costs | BX7: Benefits | CC7: Costs
A8: Input Data | F8: =+'Total Program Inputs'!C6 -> 2021 | AB8: Annual | AN8: Annual | AT8: Non-Gas | BE8: Annual | BT8: Annual | CG8: Annual
M9: Total | N9: Gas | O9: Gas | P9: Variable | Q9: Variable | R9: Total | S9: Peak Dk | T9: Dmd | U9: Total | W9: Distribution | Y9: Program | AA9: Total | AB9: Benefits | AF9: Total | AG9: Total | AH9: Annual | AJ9: Program | AL9: Utility | AN9: Benefits | AR9: Total | AS9: Total | AT9: Energy | AU9: Non-Gas | AV9: Environmental | AW9: Environmental | AZ9: Annual | BB9: Utility | BC9: Participants' | BD9: Annual | BE9: Benefits | BJ9: Total | BL9: Gas | BM9: Non-Gas | BN9: Non-Gas | BP9: Total | BR9: Direct | BT9: Benefits | BX9: Total | BY9: Total | BZ9: Non-Gas | CA9: Total | CC9: Utility | CD9: Participants' | CG9: Benefits
A10: 1) Retail Rate ($/Dk) = | E10: 16) Utility Project Costs | M10: Energy | N10: Commodity | O10: Commodity | P10: O & M | Q10: O & M | R10: Energy | S10: Demand | T10: Savings | U10: Demand | V10: Total | W10: Delivery | X10: Lost | Y10: Admin | Z10: Incentive | AA10: Program | AB10: Less | AF10: Energy | AG10: Demand | AH10: Total | AJ10: Admin | AK10: Incentive | AL10: Program | AN10: Less | AR10: Energy | AS10: Demand | AT10: Savings | AU10: Energy | AV10: Damage | AW10: Damage | AZ10: Total | BB10: Program | BC10: Costs Net | BD10: Total | BE10: Less | BI10: Incentives | BJ10: Energy | BK10: Retail | BL10: Bill | BM10: Fuel | BN10: Energy | BP10: Annual | BR10: Participant | BT10: Less | BX10: Energy | BY10: Demand | BZ10: Energy | CA10: Annual | CC10: Program | CD10: Costs Net | CE10: Total | CG10: Less
A11: Escalation Rate = | E11: 16a) Administrative & Operating Costs = 1/ | F11: =+'Res .95+% Res Furnace - NEW'!F11+'Res .95+% Res Furnace - Replace'!F11+'Programmable Tstats - Tier 1'!F11+'Programmable Tstats - Tier 2'!F11+'Residential Energy Assessments'!F11+'Comm 95+% Furnace - NEW'!F11+'Comm 95+% Furnace - Replace'!F11+'Comm Custom'!F11 -> 16396 | J11: t | M11: Reduction | N11: Cost/Dk | O11: Savings | P11: Cost/Dk | Q11: Savings | R11: Savings | S11: Reduction | T11: '/ Unit | U11: Savings | V11: Savings | W11: Charge | X11: Margin | Y11: Costs | Z11: Costs | AA11: Costs | AB11: Costs | AF11: Savings | AG11: Savings | AH11: Savings | AJ11: Costs | AK11: Costs | AL11: Costs | AN11: Costs | AR11: Savings | AS11: Savings | AT11: ($/Part.) | AU11: Savings | AV11: Savings/Dk | AW11: Savings | AZ11: Savings | BB11: Costs | BC11: of Rebate | BD11: Costs | BE11: Costs | BI11: Received | BJ11: Reduction | BK11: Rate | BL11: Savings | BM11: Retail Rate | BN11: Savings | BP11: Benefits | BR11: Costs | BT11: Costs | BX11: Savings | BY11: Savings | BZ11: Savings | CA11: Benefits | CC11: Costs | CD11: of Rebate | CE11: Costs | CG11: Costs
E12: 16b) Incentive Costs = | F12: =+'Res .95+% Res Furnace - NEW'!F12+'Res .95+% Res Furnace - Replace'!F12+'Programmable Tstats - Tier 1'!F12+'Programmable Tstats - Tier 2'!F12+'Residential Energy Assessments'!F12+'Comm 95+% Furnace - NEW'!F12+'Comm 95+% Furnace - Replace'!F12+'Comm Custom'!F12 -> 126094 | L12: Year | M12: (A) | N12: (B) | O12: (C) | P12: (D) | Q12: (E) | R12: (F) | S12: (G) | T12: (H) | U12: (I) | V12: (J) | W12: (K) | X12: (L) | Y12: (M) | Z12: (N) | AA12: (O) | AB12: (P) | AE12: Year | AF12: (A) | AG12: (B) | AH12: (C) | AJ12: (D) | AK12: (E) | AL12: (F) | AN12: (G) | AQ12: Year | AR12: (A) | AS12: (B) | AT12: (C) | AU12: (D) | AV12: (E) | AW12: (F) | AZ12: (G) | BB12: (H) | BC12: (I) | BD12: (J) | BE12: (K) | BH12: Year | BI12: (A) | BJ12: (B) | BK12: (C) | BL12: (D) | BM12: (E) | BN12: (F) | BP12: (G) | BR12: (H) | BT12: (I) | BW12: Year | BX12: (A) | BY12: (B) | BZ12: (C) | CA12: (D) | CC12: (E) | CD12: (F) | CE12: (G) | CG12: (H)
A13: 2) Non-Gas Fuel Retail Rate ($/Fuel Unit) = | E13: 16c) Total Utility Project Costs = | F13: =SUM(F11:F12) -> 142490
A14: Escalation Rate = | J14: =$C$47-$C$45 -> 0 | L14: =$C$47 -> 2021 | M14: =ROUND(+'Res .95+% Res Furnace - NEW'!M14+'Res .95+% Res Furnace - Replace'!M14+'Programmable Tstats - Tier 1'!M14+'Programmable Tstats - Tier 2'!M14+'Residential Energy Assessments'!M14+'Comm 95+% Furnace - NEW'!M14+'Comm 95+% Furnace - Replace'!M14+'Comm Custom'!M14,0) -> 8907 | O14: =ROUND(+'Res .95+% Res Furnace - NEW'!O14+'Res .95+% Res Furnace - Replace'!O14+'Programmable Tstats - Tier 1'!O14+'Programmable Tstats - Tier 2'!O14+'Residential Energy Assessments'!O14+'Comm 95+% Furnace - NEW'!O14+'Comm 95+% Furnace - Replace'!O14+'Comm Custom'!O14,0) -> 29206 | Q14: =ROUND(+'Res .95+% Res Furnace - NEW'!Q14+'Res .95+% Res Furnace - Replace'!Q14+'Programmable Tstats - Tier 1'!Q14+'Programmable Tstats - Tier 2'!Q14+'Residential Energy Assessments'!Q14+'Comm 95+% Furnace - NEW'!Q14+'Comm 95+% Furnace - Replace'!Q14+'Comm Custom'!Q14,0) -> 0 | R14: =ROUND(+'Res .95+% Res Furnace - NEW'!R14+'Res .95+% Res Furnace - Replace'!R14+'Programmable Tstats - Tier 1'!R14+'Programmable Tstats - Tier 2'!R14+'Residential Energy Assessments'!R14+'Comm 95+% Furnace - NEW'!R14+'Comm 95+% Furnace - Replace'!R14+'Comm Custom'!R14,0) -> 29206 | S14: =ROUND(+'Res .95+% Res Furnace - NEW'!S14+'Res .95+% Res Furnace - Replace'!S14+'Programmable Tstats - Tier 1'!S14+'Programmable Tstats - Tier 2'!S14+'Residential Energy Assessments'!S14+'Comm 95+% Furnace - NEW'!S14+'Comm 95+% Furnace - Replace'!S14+'Comm Custom'!S14,0) -> 89 | U14: =ROUND(+'Res .95+% Res Furnace - NEW'!U14+'Res .95+% Res Furnace - Replace'!U14+'Programmable Tstats - Tier 1'!U14+'Programmable Tstats - Tier 2'!U14+'Residential Energy Assessments'!U14+'Comm 95+% Furnace - NEW'!U14+'Comm 95+% Furnace - Replace'!U14+'Comm Custom'!U14,0) -> 13171 | V14: =ROUND(+'Res .95+% Res Furnace - NEW'!V14+'Res .95+% Res Furnace - Replace'!V14+'Programmable Tstats - Tier 1'!V14+'Programmable Tstats - Tier 2'!V14+'Residential Energy Assessments'!V14+'Comm 95+% Furnace - NEW'!V14+'Comm 95+% Furnace - Replace'!V14+'Comm Custom'!V14,0) -> 42377 | X14: =ROUND(+'Res .95+% Res Furnace - NEW'!X14+'Res .95+% Res Furnace - Replace'!X14+'Programmable Tstats - Tier 1'!X14+'Programmable Tstats - Tier 2'!X14+'Residential Energy Assessments'!X14+'Comm 95+% Furnace - NEW'!X14+'Comm 95+% Furnace - Replace'!X14+'Comm Custom'!X14,0) -> 11167 | Y14: =ROUND(+'Res .95+% Res Furnace - NEW'!Y14+'Res .95+% Res Furnace - Replace'!Y14+'Programmable Tstats - Tier 1'!Y14+'Programmable Tstats - Tier 2'!Y14+'Residential Energy Assessments'!Y14+'Comm 95+% Furnace - NEW'!Y14+'Comm 95+% Furnace - Replace'!Y14+'Comm Custom'!Y14,0) -> 16396 | Z14: =ROUND(+'Res .95+% Res Furnace - NEW'!Z14+'Res .95+% Res Furnace - Replace'!Z14+'Programmable Tstats - Tier 1'!Z14+'Programmable Tstats - Tier 2'!Z14+'Residential Energy Assessments'!Z14+'Comm 95+% Furnace - NEW'!Z14+'Comm 95+% Furnace - Replace'!Z14+'Comm Custom'!Z14,0) -> 126094 | AA14: =ROUND(+'Res .95+% Res Furnace - NEW'!AA14+'Res .95+% Res Furnace - Replace'!AA14+'Programmable Tstats - Tier 1'!AA14+'Programmable Tstats - Tier 2'!AA14+'Residential Energy Assessments'!AA14+'Comm 95+% Furnace - NEW'!AA14+'Comm 95+% Furnace - Replace'!AA14+'Comm Custom'!AA14,0) -> 153657 | AB14: =ROUND(+'Res .95+% Res Furnace - NEW'!AB14+'Res .95+% Res Furnace - Replace'!AB14+'Programmable Tstats - Tier 1'!AB14+'Programmable Tstats - Tier 2'!AB14+'Residential Energy Assessments'!AB14+'Comm 95+% Furnace - NEW'!AB14+'Comm 95+% Furnace - Replace'!AB14+'Comm Custom'!AB14,0) -> -111280 | AE14: =$C$47 -> 2021 | AF14: =+R14 -> 29206 | AG14: =+U14 -> 13171 | AH14: =+AG14+AF14 -> 42377 | AJ14: =ROUND(Y14,0) -> 16396 | AK14: =ROUND(Z14,0) -> 126094 | AL14: =SUM(AJ14:AK14) -> 142490 | AN14: =+AH14-AL14 -> -100113 | AQ14: =$C$47 -> 2021 | AR14: =AF14 -> 29206 | AS14: =+AG14 -> 13171 | AU14: =ROUND(+'Res .95+% Res Furnace - NEW'!AU14+'Res .95+% Res Furnace - Replace'!AU14+'Programmable Tstats - Tier 1'!AU14+'Programmable Tstats - Tier 2'!AU14+'Residential Energy Assessments'!AU14+'Comm 95+% Furnace - NEW'!AU14+'Comm 95+% Furnace - Replace'!AU14+'Comm Custom'!AU14,0) -> 5883 | AW14: =ROUND(+'Res .95+% Res Furnace - NEW'!AW14+'Res .95+% Res Furnace - Replace'!AW14+'Programmable Tstats - Tier 1'!AW14+'Programmable Tstats - Tier 2'!AW14+'Residential Energy Assessments'!AW14+'Comm 95+% Furnace - NEW'!AW14+'Comm 95+% Furnace - Replace'!AW14+'Comm Custom'!AW14,0) -> 18437 | AZ14: =ROUND(AR14+AS14+AU14+AW14+AY14,0) -> 66697 | BB14: =ROUND(+'Res .95+% Res Furnace - NEW'!BB14+'Res .95+% Res Furnace - Replace'!BB14+'Programmable Tstats - Tier 1'!BB14+'Programmable Tstats - Tier 2'!BB14+'Residential Energy Assessments'!BB14+'Comm 95+% Furnace - NEW'!BB14+'Comm 95+% Furnace - Replace'!BB14+'Comm Custom'!BB14,0) -> 142490 | BC14: =ROUND(+'Res .95+% Res Furnace - NEW'!BC14+'Res .95+% Res Furnace - Replace'!BC14+'Programmable Tstats - Tier 1'!BC14+'Programmable Tstats - Tier 2'!BC14+'Residential Energy Assessments'!BC14+'Comm 95+% Furnace - NEW'!BC14+'Comm 95+% Furnace - Replace'!BC14+'Comm Custom'!BC14,0) -> 133330 | BD14: =BB14+BC14 -> 275820 | BE14: =AZ14-BD14 -> -209123 | BH14: =$C$47 -> 2021 | BI14: =ROUND(+'Res .95+% Res Furnace - NEW'!BI14+'Res .95+% Res Furnace - Replace'!BI14+'Programmable Tstats - Tier 1'!BI14+'Programmable Tstats - Tier 2'!BI14+'Residential Energy Assessments'!BI14+'Comm 95+% Furnace - NEW'!BI14+'Comm 95+% Furnace - Replace'!BI14+'Comm Custom'!BI14,0) -> 126094 | BJ14: =ROUND(+'Res .95+% Res Furnace - NEW'!BJ14+'Res .95+% Res Furnace - Replace'!BJ14+'Programmable Tstats - Tier 1'!BJ14+'Programmable Tstats - Tier 2'!BJ14+'Residential Energy Assessments'!BJ14+'Comm 95+% Furnace - NEW'!BJ14+'Comm 95+% Furnace - Replace'!BJ14+'Comm Custom'!BJ14,0) -> 8907 | BL14: =ROUND(+'Res .95+% Res Furnace - NEW'!BL14+'Res .95+% Res Furnace - Replace'!BL14+'Programmable Tstats - Tier 1'!BL14+'Programmable Tstats - Tier 2'!BL14+'Residential Energy Assessments'!BL14+'Comm 95+% Furnace - NEW'!BL14+'Comm 95+% Furnace - Replace'!BL14+'Comm Custom'!BL14,0) -> 59320 | BN14: =ROUND(+'Res .95+% Res Furnace - NEW'!BN14+'Res .95+% Res Furnace - Replace'!BN14+'Programmable Tstats - Tier 1'!BN14+'Programmable Tstats - Tier 2'!BN14+'Residential Energy Assessments'!BN14+'Comm 95+% Furnace - NEW'!BN14+'Comm 95+% Furnace - Replace'!BN14+'Comm Custom'!BN14,0) -> 23864 | BP14: =BI14+BL14+BN14+BO14 -> 209278 | BR14: =ROUND(+'Res .95+% Res Furnace - NEW'!BR14+'Res .95+% Res Furnace - Replace'!BR14+'Programmable Tstats - Tier 1'!BR14+'Programmable Tstats - Tier 2'!BR14+'Residential Energy Assessments'!BR14+'Comm 95+% Furnace - NEW'!BR14+'Comm 95+% Furnace - Replace'!BR14+'Comm Custom'!BR14,0) -> 259424 | BT14: =BP14-BR14 -> -50146 | BW14: =$C$47 -> 2021 | BX14: =$R14 -> 29206 | BY14: =U14 -> 13171 | BZ14: =AU14 -> 5883 | CA14: =SUM(BX14:BZ14) -> 48260 | CC14: =BB14 -> 142490 | CD14: =BC14 -> 133330 | CE14: =SUM(CC14:CD14) -> 275820 | CG14: =CA14-CE14 -> -227560
A15: Non-Gas Fuel Units (ie. kWh,Gallons, etc) = | E15: 17) Direct Participant Costs ($/Part.) = | J15: =J14+1 -> 1 | L15: =L14+1 -> 2022 | M15: =ROUND(+'Res .95+% Res Furnace - NEW'!M15+'Res .95+% Res Furnace - Replace'!M15+'Programmable Tstats - Tier 1'!M15+'Programmable Tstats - Tier 2'!M15+'Residential Energy Assessments'!M15+'Comm 95+% Furnace - NEW'!M15+'Comm 95+% Furnace - Replace'!M15+'Comm Custom'!M15,0) -> 8907 | O15: =ROUND(+'Res .95+% Res Furnace - NEW'!O15+'Res .95+% Res Furnace - Replace'!O15+'Programmable Tstats - Tier 1'!O15+'Programmable Tstats - Tier 2'!O15+'Residential Energy Assessments'!O15+'Comm 95+% Furnace - NEW'!O15+'Comm 95+% Furnace - Replace'!O15+'Comm Custom'!O15,0) -> 30080 | Q15: =ROUND(+'Res .95+% Res Furnace - NEW'!Q15+'Res .95+% Res Furnace - Replace'!Q15+'Programmable Tstats - Tier 1'!Q15+'Programmable Tstats - Tier 2'!Q15+'Residential Energy Assessments'!Q15+'Comm 95+% Furnace - NEW'!Q15+'Comm 95+% Furnace - Replace'!Q15+'Comm Custom'!Q15,0) -> 0 | R15: =ROUND(+'Res .95+% Res Furnace - NEW'!R15+'Res .95+% Res Furnace - Replace'!R15+'Programmable Tstats - Tier 1'!R15+'Programmable Tstats - Tier 2'!R15+'Residential Energy Assessments'!R15+'Comm 95+% Furnace - NEW'!R15+'Comm 95+% Furnace - Replace'!R15+'Comm Custom'!R15,0) -> 30080 | S15: =ROUND(+'Res .95+% Res Furnace - NEW'!S15+'Res .95+% Res Furnace - Replace'!S15+'Programmable Tstats - Tier 1'!S15+'Programmable Tstats - Tier 2'!S15+'Residential Energy Assessments'!S15+'Comm 95+% Furnace - NEW'!S15+'Comm 95+% Furnace - Replace'!S15+'Comm Custom'!S15,0) -> 89 | U15: =ROUND(+'Res .95+% Res Furnace - NEW'!U15+'Res .95+% Res Furnace - Replace'!U15+'Programmable Tstats - Tier 1'!U15+'Programmable Tstats - Tier 2'!U15+'Residential Energy Assessments'!U15+'Comm 95+% Furnace - NEW'!U15+'Comm 95+% Furnace - Replace'!U15+'Comm Custom'!U15,0) -> 13350 | V15: =ROUND(+'Res .95+% Res Furnace - NEW'!V15+'Res .95+% Res Furnace - Replace'!V15+'Programmable Tstats - Tier 1'!V15+'Programmable Tstats - Tier 2'!V15+'Residential Energy Assessments'!V15+'Comm 95+% Furnace - NEW'!V15+'Comm 95+% Furnace - Replace'!V15+'Comm Custom'!V15,0) -> 43430 | X15: =ROUND(+'Res .95+% Res Furnace - NEW'!X15+'Res .95+% Res Furnace - Replace'!X15+'Programmable Tstats - Tier 1'!X15+'Programmable Tstats - Tier 2'!X15+'Residential Energy Assessments'!X15+'Comm 95+% Furnace - NEW'!X15+'Comm 95+% Furnace - Replace'!X15+'Comm Custom'!X15,0) -> 11501 | Y15: =ROUND(+'Res .95+% Res Furnace - NEW'!Y15+'Res .95+% Res Furnace - Replace'!Y15+'Programmable Tstats - Tier 1'!Y15+'Programmable Tstats - Tier 2'!Y15+'Residential Energy Assessments'!Y15+'Comm 95+% Furnace - NEW'!Y15+'Comm 95+% Furnace - Replace'!Y15+'Comm Custom'!Y15,0) -> 0 | Z15: =ROUND(+'Res .95+% Res Furnace - NEW'!Z15+'Res .95+% Res Furnace - Replace'!Z15+'Programmable Tstats - Tier 1'!Z15+'Programmable Tstats - Tier 2'!Z15+'Residential Energy Assessments'!Z15+'Comm 95+% Furnace - NEW'!Z15+'Comm 95+% Furnace - Replace'!Z15+'Comm Custom'!Z15,0) -> 0 | AA15: =ROUND(+'Res .95+% Res Furnace - NEW'!AA15+'Res .95+% Res Furnace - Replace'!AA15+'Programmable Tstats - Tier 1'!AA15+'Programmable Tstats - Tier 2'!AA15+'Residential Energy Assessments'!AA15+'Comm 95+% Furnace - NEW'!AA15+'Comm 95+% Furnace - Replace'!AA15+'Comm Custom'!AA15,0) -> 11501 | AB15: =ROUND(+'Res .95+% Res Furnace - NEW'!AB15+'Res .95+% Res Furnace - Replace'!AB15+'Programmable Tstats - Tier 1'!AB15+'Programmable Tstats - Tier 2'!AB15+'Residential Energy Assessments'!AB15+'Comm 95+% Furnace - NEW'!AB15+'Comm 95+% Furnace - Replace'!AB15+'Comm Custom'!AB15,0) -> 31929 | AE15: =AE14+1 -> 2022 | AF15: 30080 | AG15: 13350 | AH15: =+AG15+AF15 -> 43430 | AJ15: =ROUND(Y15,0) -> 0 | AK15: 0 | AL15: 0 | AN15: =+AH15-AL15 -> 43430 | AQ15: =AQ14+1 -> 2022 | AR15: 30080 | AS15: 13350 | AU15: =ROUND(+'Res .95+% Res Furnace - NEW'!AU15+'Res .95+% Res Furnace - Replace'!AU15+'Programmable Tstats - Tier 1'!AU15+'Programmable Tstats - Tier 2'!AU15+'Residential Energy Assessments'!AU15+'Comm 95+% Furnace - NEW'!AU15+'Comm 95+% Furnace - Replace'!AU15+'Comm Custom'!AU15,0) -> 6073 | AW15: =ROUND(+'Res .95+% Res Furnace - NEW'!AW15+'Res .95+% Res Furnace - Replace'!AW15+'Programmable Tstats - Tier 1'!AW15+'Programmable Tstats - Tier 2'!AW15+'Residential Energy Assessments'!AW15+'Comm 95+% Furnace - NEW'!AW15+'Comm 95+% Furnace - Replace'!AW15+'Comm Custom'!AW15,0) -> 18865 | AZ15: =ROUND(AR15+AS15+AU15+AW15+AY15,0) -> 68368 | BB15: =ROUND(+'Res .95+% Res Furnace - NEW'!BB15+'Res .95+% Res Furnace - Replace'!BB15+'Programmable Tstats - Tier 1'!BB15+'Programmable Tstats - Tier 2'!BB15+'Residential Energy Assessments'!BB15+'Comm 95+% Furnace - NEW'!BB15+'Comm 95+% Furnace - Replace'!BB15+'Comm Custom'!BB15,0) -> 0 | BC15: =ROUND(+'Res .95+% Res Furnace - NEW'!BC15+'Res .95+% Res Furnace - Replace'!BC15+'Programmable Tstats - Tier 1'!BC15+'Programmable Tstats - Tier 2'!BC15+'Residential Energy Assessments'!BC15+'Comm 95+% Furnace - NEW'!BC15+'Comm 95+% Furnace - Replace'!BC15+'Comm Custom'!BC15,0) -> 0 | BD15: =BB15+BC15 -> 0 | BE15: 68368 | BH15: =BH14+1 -> 2022 | BI15: =ROUND(+'Res .95+% Res Furnace - NEW'!BI15+'Res .95+% Res Furnace - Replace'!BI15+'Programmable Tstats - Tier 1'!BI15+'Programmable Tstats - Tier 2'!BI15+'Residential Energy Assessments'!BI15+'Comm 95+% Furnace - NEW'!BI15+'Comm 95+% Furnace - Replace'!BI15+'Comm Custom'!BI15,0) -> 0 | BJ15: =ROUND(+'Res .95+% Res Furnace - NEW'!BJ15+'Res .95+% Res Furnace - Replace'!BJ15+'Programmable Tstats - Tier 1'!BJ15+'Programmable Tstats - Tier 2'!BJ15+'Residential Energy Assessments'!BJ15+'Comm 95+% Furnace - NEW'!BJ15+'Comm 95+% Furnace - Replace'!BJ15+'Comm Custom'!BJ15,0) -> 8907 | BL15: =ROUND(+'Res .95+% Res Furnace - NEW'!BL15+'Res .95+% Res Furnace - Replace'!BL15+'Programmable Tstats - Tier 1'!BL15+'Programmable Tstats - Tier 2'!BL15+'Residential Energy Assessments'!BL15+'Comm 95+% Furnace - NEW'!BL15+'Comm 95+% Furnace - Replace'!BL15+'Comm Custom'!BL15,0) -> 61097 | BN15: =ROUND(+'Res .95+% Res Furnace - NEW'!BN15+'Res .95+% Res Furnace - Replace'!BN15+'Programmable Tstats - Tier 1'!BN15+'Programmable Tstats - Tier 2'!BN15+'Residential Energy Assessments'!BN15+'Comm 95+% Furnace - NEW'!BN15+'Comm 95+% Furnace - Replace'!BN15+'Comm Custom'!BN15,0) -> 24624 | BP15: 85721 | BR15: =ROUND(+'Res .95+% Res Furnace - NEW'!BR15+'Res .95+% Res Furnace - Replace'!BR15+'Programmable Tstats - Tier 1'!BR15+'Programmable Tstats - Tier 2'!BR15+'Residential Energy Assessments'!BR15+'Comm 95+% Furnace - NEW'!BR15+'Comm 95+% Furnace - Replace'!BR15+'Comm Custom'!BR15,0) -> 0 | BT15: =BP15-BR15 -> 85721 | BW15: =BW14+1 -> 2022 | BX15: =$R15 -> 30080 | BY15: =U15 -> 13350 | BZ15: =AU15 -> 6073 | CA15: =SUM(BX15:BZ15) -> 49503 | CC15: =BB15 -> 0 | CD15: =BC15 -> 0 | CE15: =SUM(CC15:CD15) -> 0 | CG15: =CA15-CE15 -> 49503
J16: 2 | L16: 2023 | M16: =ROUND(+'Res .95+% Res Furnace - NEW'!M16+'Res .95+% Res Furnace - Replace'!M16+'Programmable Tstats - Tier 1'!M16+'Programmable Tstats - Tier 2'!M16+'Residential Energy Assessments'!M16+'Comm 95+% Furnace - NEW'!M16+'Comm 95+% Furnace - Replace'!M16+'Comm Custom'!M16,0) -> 8907 | O16: =ROUND(+'Res .95+% Res Furnace - NEW'!O16+'Res .95+% Res Furnace - Replace'!O16+'Programmable Tstats - Tier 1'!O16+'Programmable Tstats - Tier 2'!O16+'Residential Energy Assessments'!O16+'Comm 95+% Furnace - NEW'!O16+'Comm 95+% Furnace - Replace'!O16+'Comm Custom'!O16,0) -> 30988 | Q16: =ROUND(+'Res .95+% Res Furnace - NEW'!Q16+'Res .95+% Res Furnace - Replace'!Q16+'Programmable Tstats - Tier 1'!Q16+'Programmable Tstats - Tier 2'!Q16+'Residential Energy Assessments'!Q16+'Comm 95+% Furnace - NEW'!Q16+'Comm 95+% Furnace - Replace'!Q16+'Comm Custom'!Q16,0) -> 0 | R16: =ROUND(+'Res .95+% Res Furnace - NEW'!R16+'Res .95+% Res Furnace - Replace'!R16+'Programmable Tstats - Tier 1'!R16+'Programmable Tstats - Tier 2'!R16+'Residential Energy Assessments'!R16+'Comm 95+% Furnace - NEW'!R16+'Comm 95+% Furnace - Replace'!R16+'Comm Custom'!R16,0) -> 30988 | S16: =ROUND(+'Res .95+% Res Furnace - NEW'!S16+'Res .95+% Res Furnace - Replace'!S16+'Programmable Tstats - Tier 1'!S16+'Programmable Tstats - Tier 2'!S16+'Residential Energy Assessments'!S16+'Comm 95+% Furnace - NEW'!S16+'Comm 95+% Furnace - Replace'!S16+'Comm Custom'!S16,0) -> 89 | U16: =ROUND(+'Res .95+% Res Furnace - NEW'!U16+'Res .95+% Res Furnace - Replace'!U16+'Programmable Tstats - Tier 1'!U16+'Programmable Tstats - Tier 2'!U16+'Residential Energy Assessments'!U16+'Comm 95+% Furnace - NEW'!U16+'Comm 95+% Furnace - Replace'!U16+'Comm Custom'!U16,0) -> 13439 | V16: =ROUND(+'Res .95+% Res Furnace - NEW'!V16+'Res .95+% Res Furnace - Replace'!V16+'Programmable Tstats - Tier 1'!V16+'Programmable Tstats - Tier 2'!V16+'Residential Energy Assessments'!V16+'Comm 95+% Furnace - NEW'!V16+'Comm 95+% Furnace - Replace'!V16+'Comm Custom'!V16,0) -> 44427 | X16: =ROUND(+'Res .95+% Res Furnace - NEW'!X16+'Res .95+% Res Furnace - Replace'!X16+'Programmable Tstats - Tier 1'!X16+'Programmable Tstats - Tier 2'!X16+'Residential Energy Assessments'!X16+'Comm 95+% Furnace - NEW'!X16+'Comm 95+% Furnace - Replace'!X16+'Comm Custom'!X16,0) -> 11848 | Y16: =ROUND(+'Res .95+% Res Furnace - NEW'!Y16+'Res .95+% Res Furnace - Replace'!Y16+'Programmable Tstats - Tier 1'!Y16+'Programmable Tstats - Tier 2'!Y16+'Residential Energy Assessments'!Y16+'Comm 95+% Furnace - NEW'!Y16+'Comm 95+% Furnace - Replace'!Y16+'Comm Custom'!Y16,0) -> 0 | Z16: =ROUND(+'Res .95+% Res Furnace - NEW'!Z16+'Res .95+% Res Furnace - Replace'!Z16+'Programmable Tstats - Tier 1'!Z16+'Programmable Tstats - Tier 2'!Z16+'Residential Energy Assessments'!Z16+'Comm 95+% Furnace - NEW'!Z16+'Comm 95+% Furnace - Replace'!Z16+'Comm Custom'!Z16,0) -> 0 | AA16: =ROUND(+'Res .95+% Res Furnace - NEW'!AA16+'Res .95+% Res Furnace - Replace'!AA16+'Programmable Tstats - Tier 1'!AA16+'Programmable Tstats - Tier 2'!AA16+'Residential Energy Assessments'!AA16+'Comm 95+% Furnace - NEW'!AA16+'Comm 95+% Furnace - Replace'!AA16+'Comm Custom'!AA16,0) -> 11848 | AB16: =ROUND(+'Res .95+% Res Furnace - NEW'!AB16+'Res .95+% Res Furnace - Replace'!AB16+'Programmable Tstats - Tier 1'!AB16+'Programmable Tstats - Tier 2'!AB16+'Residential Energy Assessments'!AB16+'Comm 95+% Furnace - NEW'!AB16+'Comm 95+% Furnace - Replace'!AB16+'Comm Custom'!AB16,0) -> 32579 | AE16: 2023 | AF16: 30988 | AG16: 13439 | AH16: =+AG16+AF16 -> 44427 | AJ16: 0 | AK16: 0 | AL16: 0 | AN16: 44427 | AQ16: 2023 | AR16: 30988 | AS16: 13439 | AU16: =ROUND(+'Res .95+% Res Furnace - NEW'!AU16+'Res .95+% Res Furnace - Replace'!AU16+'Programmable Tstats - Tier 1'!AU16+'Programmable Tstats - Tier 2'!AU16+'Residential Energy Assessments'!AU16+'Comm 95+% Furnace - NEW'!AU16+'Comm 95+% Furnace - Replace'!AU16+'Comm Custom'!AU16,0) -> 6262 | AW16: =ROUND(+'Res .95+% Res Furnace - NEW'!AW16+'Res .95+% Res Furnace - Replace'!AW16+'Programmable Tstats - Tier 1'!AW16+'Programmable Tstats - Tier 2'!AW16+'Residential Energy Assessments'!AW16+'Comm 95+% Furnace - NEW'!AW16+'Comm 95+% Furnace - Replace'!AW16+'Comm Custom'!AW16,0) -> 19293 | AZ16: 69982 | BB16: =ROUND(+'Res .95+% Res Furnace - NEW'!BB16+'Res .95+% Res Furnace - Replace'!BB16+'Programmable Tstats - Tier 1'!BB16+'Programmable Tstats - Tier 2'!BB16+'Residential Energy Assessments'!BB16+'Comm 95+% Furnace - NEW'!BB16+'Comm 95+% Furnace - Replace'!BB16+'Comm Custom'!BB16,0) -> 0 | BC16: =ROUND(+'Res .95+% Res Furnace - NEW'!BC16+'Res .95+% Res Furnace - Replace'!BC16+'Programmable Tstats - Tier 1'!BC16+'Programmable Tstats - Tier 2'!BC16+'Residential Energy Assessments'!BC16+'Comm 95+% Furnace - NEW'!BC16+'Comm 95+% Furnace - Replace'!BC16+'Comm Custom'!BC16,0) -> 0 | BD16: 0 | BE16: 69982 | BH16: 2023 | BI16: =ROUND(+'Res .95+% Res Furnace - NEW'!BI16+'Res .95+% Res Furnace - Replace'!BI16+'Programmable Tstats - Tier 1'!BI16+'Programmable Tstats - Tier 2'!BI16+'Residential Energy Assessments'!BI16+'Comm 95+% Furnace - NEW'!BI16+'Comm 95+% Furnace - Replace'!BI16+'Comm Custom'!BI16,0) -> 0 | BJ16: =ROUND(+'Res .95+% Res Furnace - NEW'!BJ16+'Res .95+% Res Furnace - Replace'!BJ16+'Programmable Tstats - Tier 1'!BJ16+'Programmable Tstats - Tier 2'!BJ16+'Residential Energy Assessments'!BJ16+'Comm 95+% Furnace - NEW'!BJ16+'Comm 95+% Furnace - Replace'!BJ16+'Comm Custom'!BJ16,0) -> 8907 | BL16: =ROUND(+'Res .95+% Res Furnace - NEW'!BL16+'Res .95+% Res Furnace - Replace'!BL16+'Programmable Tstats - Tier 1'!BL16+'Programmable Tstats - Tier 2'!BL16+'Residential Energy Assessments'!BL16+'Comm 95+% Furnace - NEW'!BL16+'Comm 95+% Furnace - Replace'!BL16+'Comm Custom'!BL16,0) -> 62935 | BN16: =ROUND(+'Res .95+% Res Furnace - NEW'!BN16+'Res .95+% Res Furnace - Replace'!BN16+'Programmable Tstats - Tier 1'!BN16+'Programmable Tstats - Tier 2'!BN16+'Residential Energy Assessments'!BN16+'Comm 95+% Furnace - NEW'!BN16+'Comm 95+% Furnace - Replace'!BN16+'Comm Custom'!BN16,0) -> 25371 | BP16: 88306 | BR16: =ROUND(+'Res .95+% Res Furnace - NEW'!BR16+'Res .95+% Res Furnace - Replace'!BR16+'Programmable Tstats - Tier 1'!BR16+'Programmable Tstats - Tier 2'!BR16+'Residential Energy Assessments'!BR16+'Comm 95+% Furnace - NEW'!BR16+'Comm 95+% Furnace - Replace'!BR16+'Comm Custom'!BR16,0) -> 0 | BT16: 88306 | BW16: 2023 | BX16: 30988 | BY16: =U16 -> 13439 | BZ16: 6262 | CA16: 50689 | CC16: =BB16 -> 0 | CD16: 0 | CE16: =SUM(CC16:CD16) -> 0 | CG16: 50689
A17: 3) Commodity Cost ($/Dk) = | E17: 18) Participant Non-Energy Costs (Annual $/Part.) = | J17: 3 | L17: 2024 | M17: =ROUND(+'Res .95+% Res Furnace - NEW'!M17+'Res .95+% Res Furnace - Replace'!M17+'Programmable Tstats - Tier 1'!M17+'Programmable Tstats - Tier 2'!M17+'Residential Energy Assessments'!M17+'Comm 95+% Furnace - NEW'!M17+'Comm 95+% Furnace - Replace'!M17+'Comm Custom'!M17,0) -> 8907 | O17: =ROUND(+'Res .95+% Res Furnace - NEW'!O17+'Res .95+% Res Furnace - Replace'!O17+'Programmable Tstats - Tier 1'!O17+'Programmable Tstats - Tier 2'!O17+'Residential Energy Assessments'!O17+'Comm 95+% Furnace - NEW'!O17+'Comm 95+% Furnace - Replace'!O17+'Comm Custom'!O17,0) -> 31914 | Q17: =ROUND(+'Res .95+% Res Furnace - NEW'!Q17+'Res .95+% Res Furnace - Replace'!Q17+'Programmable Tstats - Tier 1'!Q17+'Programmable Tstats - Tier 2'!Q17+'Residential Energy Assessments'!Q17+'Comm 95+% Furnace - NEW'!Q17+'Comm 95+% Furnace - Replace'!Q17+'Comm Custom'!Q17,0) -> 0 | R17: =ROUND(+'Res .95+% Res Furnace - NEW'!R17+'Res .95+% Res Furnace - Replace'!R17+'Programmable Tstats - Tier 1'!R17+'Programmable Tstats - Tier 2'!R17+'Residential Energy Assessments'!R17+'Comm 95+% Furnace - NEW'!R17+'Comm 95+% Furnace - Replace'!R17+'Comm Custom'!R17,0) -> 31914 | S17: =ROUND(+'Res .95+% Res Furnace - NEW'!S17+'Res .95+% Res Furnace - Replace'!S17+'Programmable Tstats - Tier 1'!S17+'Programmable Tstats - Tier 2'!S17+'Residential Energy Assessments'!S17+'Comm 95+% Furnace - NEW'!S17+'Comm 95+% Furnace - Replace'!S17+'Comm Custom'!S17,0) -> 89 | U17: =ROUND(+'Res .95+% Res Furnace - NEW'!U17+'Res .95+% Res Furnace - Replace'!U17+'Programmable Tstats - Tier 1'!U17+'Programmable Tstats - Tier 2'!U17+'Residential Energy Assessments'!U17+'Comm 95+% Furnace - NEW'!U17+'Comm 95+% Furnace - Replace'!U17+'Comm Custom'!U17,0) -> 13618 | V17: =ROUND(+'Res .95+% Res Furnace - NEW'!V17+'Res .95+% Res Furnace - Replace'!V17+'Programmable Tstats - Tier 1'!V17+'Programmable Tstats - Tier 2'!V17+'Residential Energy Assessments'!V17+'Comm 95+% Furnace - NEW'!V17+'Comm 95+% Furnace - Replace'!V17+'Comm Custom'!V17,0) -> 45532 | X17: =ROUND(+'Res .95+% Res Furnace - NEW'!X17+'Res .95+% Res Furnace - Replace'!X17+'Programmable Tstats - Tier 1'!X17+'Programmable Tstats - Tier 2'!X17+'Residential Energy Assessments'!X17+'Comm 95+% Furnace - NEW'!X17+'Comm 95+% Furnace - Replace'!X17+'Comm Custom'!X17,0) -> 12200 | Y17: =ROUND(+'Res .95+% Res Furnace - NEW'!Y17+'Res .95+% Res Furnace - Replace'!Y17+'Programmable Tstats - Tier 1'!Y17+'Programmable Tstats - Tier 2'!Y17+'Residential Energy Assessments'!Y17+'Comm 95+% Furnace - NEW'!Y17+'Comm 95+% Furnace - Replace'!Y17+'Comm Custom'!Y17,0) -> 0 | Z17: =ROUND(+'Res .95+% Res Furnace - NEW'!Z17+'Res .95+% Res Furnace - Replace'!Z17+'Programmable Tstats - Tier 1'!Z17+'Programmable Tstats - Tier 2'!Z17+'Residential Energy Assessments'!Z17+'Comm 95+% Furnace - NEW'!Z17+'Comm 95+% Furnace - Replace'!Z17+'Comm Custom'!Z17,0) -> 0 | AA17: =ROUND(+'Res .95+% Res Furnace - NEW'!AA17+'Res .95+% Res Furnace - Replace'!AA17+'Programmable Tstats - Tier 1'!AA17+'Programmable Tstats - Tier 2'!AA17+'Residential Energy Assessments'!AA17+'Comm 95+% Furnace - NEW'!AA17+'Comm 95+% Furnace - Replace'!AA17+'Comm Custom'!AA17,0) -> 12200 | AB17: =ROUND(+'Res .95+% Res Furnace - NEW'!AB17+'Res .95+% Res Furnace - Replace'!AB17+'Programmable Tstats - Tier 1'!AB17+'Programmable Tstats - Tier 2'!AB17+'Residential Energy Assessments'!AB17+'Comm 95+% Furnace - NEW'!AB17+'Comm 95+% Furnace - Replace'!AB17+'Comm Custom'!AB17,0) -> 33332 | AE17: 2024 | AF17: 31914 | AG17: 13618 | AH17: 45532 | AJ17: 0 | AK17: 0 | AL17: 0 | AN17: 45532 | AQ17: 2024 | AR17: 31914 | AS17: 13618 | AU17: =ROUND(+'Res .95+% Res Furnace - NEW'!AU17+'Res .95+% Res Furnace - Replace'!AU17+'Programmable Tstats - Tier 1'!AU17+'Programmable Tstats - Tier 2'!AU17+'Residential Energy Assessments'!AU17+'Comm 95+% Furnace - NEW'!AU17+'Comm 95+% Furnace - Replace'!AU17+'Comm Custom'!AU17,0) -> 6452 | AW17: =ROUND(+'Res .95+% Res Furnace - NEW'!AW17+'Res .95+% Res Furnace - Replace'!AW17+'Programmable Tstats - Tier 1'!AW17+'Programmable Tstats - Tier 2'!AW17+'Residential Energy Assessments'!AW17+'Comm 95+% Furnace - NEW'!AW17+'Comm 95+% Furnace - Replace'!AW17+'Comm Custom'!AW17,0) -> 19738 | AZ17: 71722 | BB17: =ROUND(+'Res .95+% Res Furnace - NEW'!BB17+'Res .95+% Res Furnace - Replace'!BB17+'Programmable Tstats - Tier 1'!BB17+'Programmable Tstats - Tier 2'!BB17+'Residential Energy Assessments'!BB17+'Comm 95+% Furnace - NEW'!BB17+'Comm 95+% Furnace - Replace'!BB17+'Comm Custom'!BB17,0) -> 0 | BC17: =ROUND(+'Res .95+% Res Furnace - NEW'!BC17+'Res .95+% Res Furnace - Replace'!BC17+'Programmable Tstats - Tier 1'!BC17+'Programmable Tstats - Tier 2'!BC17+'Residential Energy Assessments'!BC17+'Comm 95+% Furnace - NEW'!BC17+'Comm 95+% Furnace - Replace'!BC17+'Comm Custom'!BC17,0) -> 0 | BD17: 0 | BE17: 71722 | BH17: 2024 | BI17: =ROUND(+'Res .95+% Res Furnace - NEW'!BI17+'Res .95+% Res Furnace - Replace'!BI17+'Programmable Tstats - Tier 1'!BI17+'Programmable Tstats - Tier 2'!BI17+'Residential Energy Assessments'!BI17+'Comm 95+% Furnace - NEW'!BI17+'Comm 95+% Furnace - Replace'!BI17+'Comm Custom'!BI17,0) -> 0 | BJ17: =ROUND(+'Res .95+% Res Furnace - NEW'!BJ17+'Res .95+% Res Furnace - Replace'!BJ17+'Programmable Tstats - Tier 1'!BJ17+'Programmable Tstats - Tier 2'!BJ17+'Residential Energy Assessments'!BJ17+'Comm 95+% Furnace - NEW'!BJ17+'Comm 95+% Furnace - Replace'!BJ17+'Comm Custom'!BJ17,0) -> 8907 | BL17: =ROUND(+'Res .95+% Res Furnace - NEW'!BL17+'Res .95+% Res Furnace - Replace'!BL17+'Programmable Tstats - Tier 1'!BL17+'Programmable Tstats - Tier 2'!BL17+'Residential Energy Assessments'!BL17+'Comm 95+% Furnace - NEW'!BL17+'Comm 95+% Furnace - Replace'!BL17+'Comm Custom'!BL17,0) -> 64825 | BN17: =ROUND(+'Res .95+% Res Furnace - NEW'!BN17+'Res .95+% Res Furnace - Replace'!BN17+'Programmable Tstats - Tier 1'!BN17+'Programmable Tstats - Tier 2'!BN17+'Residential Energy Assessments'!BN17+'Comm 95+% Furnace - NEW'!BN17+'Comm 95+% Furnace - Replace'!BN17+'Comm Custom'!BN17,0) -> 26131 | BP17: 90956 | BR17: =ROUND(+'Res .95+% Res Furnace - NEW'!BR17+'Res .95+% Res Furnace - Replace'!BR17+'Programmable Tstats - Tier 1'!BR17+'Programmable Tstats - Tier 2'!BR17+'Residential Energy Assessments'!BR17+'Comm 95+% Furnace - NEW'!BR17+'Comm 95+% Furnace - Replace'!BR17+'Comm Custom'!BR17,0) -> 0 | BT17: 90956 | BW17: 2024 | BX17: 31914 | BY17: 13618 | BZ17: 6452 | CA17: 51984 | CC17: 0 | CD17: 0 | CE17: =SUM(CC17:CD17) -> 0 | CG17: 51984
A18: Escalation Rate = | E18: Escalation Rate = | J18: 4 | L18: 2025 | M18: =ROUND(+'Res .95+% Res Furnace - NEW'!M18+'Res .95+% Res Furnace - Replace'!M18+'Programmable Tstats - Tier 1'!M18+'Programmable Tstats - Tier 2'!M18+'Residential Energy Assessments'!M18+'Comm 95+% Furnace - NEW'!M18+'Comm 95+% Furnace - Replace'!M18+'Comm Custom'!M18,0) -> 8907 | O18: =ROUND(+'Res .95+% Res Furnace - NEW'!O18+'Res .95+% Res Furnace - Replace'!O18+'Programmable Tstats - Tier 1'!O18+'Programmable Tstats - Tier 2'!O18+'Residential Energy Assessments'!O18+'Comm 95+% Furnace - NEW'!O18+'Comm 95+% Furnace - Replace'!O18+'Comm Custom'!O18,0) -> 32876 | Q18: =ROUND(+'Res .95+% Res Furnace - NEW'!Q18+'Res .95+% Res Furnace - Replace'!Q18+'Programmable Tstats - Tier 1'!Q18+'Programmable Tstats - Tier 2'!Q18+'Residential Energy Assessments'!Q18+'Comm 95+% Furnace - NEW'!Q18+'Comm 95+% Furnace - Replace'!Q18+'Comm Custom'!Q18,0) -> 0 | R18: =ROUND(+'Res .95+% Res Furnace - NEW'!R18+'Res .95+% Res Furnace - Replace'!R18+'Programmable Tstats - Tier 1'!R18+'Programmable Tstats - Tier 2'!R18+'Residential Energy Assessments'!R18+'Comm 95+% Furnace - NEW'!R18+'Comm 95+% Furnace - Replace'!R18+'Comm Custom'!R18,0) -> 32876 | S18: =ROUND(+'Res .95+% Res Furnace - NEW'!S18+'Res .95+% Res Furnace - Replace'!S18+'Programmable Tstats - Tier 1'!S18+'Programmable Tstats - Tier 2'!S18+'Residential Energy Assessments'!S18+'Comm 95+% Furnace - NEW'!S18+'Comm 95+% Furnace - Replace'!S18+'Comm Custom'!S18,0) -> 89 | U18: =ROUND(+'Res .95+% Res Furnace - NEW'!U18+'Res .95+% Res Furnace - Replace'!U18+'Programmable Tstats - Tier 1'!U18+'Programmable Tstats - Tier 2'!U18+'Residential Energy Assessments'!U18+'Comm 95+% Furnace - NEW'!U18+'Comm 95+% Furnace - Replace'!U18+'Comm Custom'!U18,0) -> 13798 | V18: =ROUND(+'Res .95+% Res Furnace - NEW'!V18+'Res .95+% Res Furnace - Replace'!V18+'Programmable Tstats - Tier 1'!V18+'Programmable Tstats - Tier 2'!V18+'Residential Energy Assessments'!V18+'Comm 95+% Furnace - NEW'!V18+'Comm 95+% Furnace - Replace'!V18+'Comm Custom'!V18,0) -> 46674 | X18: =ROUND(+'Res .95+% Res Furnace - NEW'!X18+'Res .95+% Res Furnace - Replace'!X18+'Programmable Tstats - Tier 1'!X18+'Programmable Tstats - Tier 2'!X18+'Residential Energy Assessments'!X18+'Comm 95+% Furnace - NEW'!X18+'Comm 95+% Furnace - Replace'!X18+'Comm Custom'!X18,0) -> 12565 | Y18: =ROUND(+'Res .95+% Res Furnace - NEW'!Y18+'Res .95+% Res Furnace - Replace'!Y18+'Programmable Tstats - Tier 1'!Y18+'Programmable Tstats - Tier 2'!Y18+'Residential Energy Assessments'!Y18+'Comm 95+% Furnace - NEW'!Y18+'Comm 95+% Furnace - Replace'!Y18+'Comm Custom'!Y18,0) -> 0 | Z18: =ROUND(+'Res .95+% Res Furnace - NEW'!Z18+'Res .95+% Res Furnace - Replace'!Z18+'Programmable Tstats - Tier 1'!Z18+'Programmable Tstats - Tier 2'!Z18+'Residential Energy Assessments'!Z18+'Comm 95+% Furnace - NEW'!Z18+'Comm 95+% Furnace - Replace'!Z18+'Comm Custom'!Z18,0) -> 0 | AA18: =ROUND(+'Res .95+% Res Furnace - NEW'!AA18+'Res .95+% Res Furnace - Replace'!AA18+'Programmable Tstats - Tier 1'!AA18+'Programmable Tstats - Tier 2'!AA18+'Residential Energy Assessments'!AA18+'Comm 95+% Furnace - NEW'!AA18+'Comm 95+% Furnace - Replace'!AA18+'Comm Custom'!AA18,0) -> 12565 | AB18: =ROUND(+'Res .95+% Res Furnace - NEW'!AB18+'Res .95+% Res Furnace - Replace'!AB18+'Programmable Tstats - Tier 1'!AB18+'Programmable Tstats - Tier 2'!AB18+'Residential Energy Assessments'!AB18+'Comm 95+% Furnace - NEW'!AB18+'Comm 95+% Furnace - Replace'!AB18+'Comm Custom'!AB18,0) -> 34109 | AE18: 2025 | AF18: 32876 | AG18: 13798 | AH18: 46674 | AJ18: 0 | AK18: 0 | AL18: 0 | AN18: 46674 | AQ18: 2025 | AR18: 32876 | AS18: 13798 | AU18: =ROUND(+'Res .95+% Res Furnace - NEW'!AU18+'Res .95+% Res Furnace - Replace'!AU18+'Programmable Tstats - Tier 1'!AU18+'Programmable Tstats - Tier 2'!AU18+'Residential Energy Assessments'!AU18+'Comm 95+% Furnace - NEW'!AU18+'Comm 95+% Furnace - Replace'!AU18+'Comm Custom'!AU18,0) -> 6642 | AW18: =ROUND(+'Res .95+% Res Furnace - NEW'!AW18+'Res .95+% Res Furnace - Replace'!AW18+'Programmable Tstats - Tier 1'!AW18+'Programmable Tstats - Tier 2'!AW18+'Residential Energy Assessments'!AW18+'Comm 95+% Furnace - NEW'!AW18+'Comm 95+% Furnace - Replace'!AW18+'Comm Custom'!AW18,0) -> 20194 | AZ18: 73510 | BB18: =ROUND(+'Res .95+% Res Furnace - NEW'!BB18+'Res .95+% Res Furnace - Replace'!BB18+'Programmable Tstats - Tier 1'!BB18+'Programmable Tstats - Tier 2'!BB18+'Residential Energy Assessments'!BB18+'Comm 95+% Furnace - NEW'!BB18+'Comm 95+% Furnace - Replace'!BB18+'Comm Custom'!BB18,0) -> 0 | BC18: =ROUND(+'Res .95+% Res Furnace - NEW'!BC18+'Res .95+% Res Furnace - Replace'!BC18+'Programmable Tstats - Tier 1'!BC18+'Programmable Tstats - Tier 2'!BC18+'Residential Energy Assessments'!BC18+'Comm 95+% Furnace - NEW'!BC18+'Comm 95+% Furnace - Replace'!BC18+'Comm Custom'!BC18,0) -> 0 | BD18: 0 | BE18: 73510 | BH18: 2025 | BI18: =ROUND(+'Res .95+% Res Furnace - NEW'!BI18+'Res .95+% Res Furnace - Replace'!BI18+'Programmable Tstats - Tier 1'!BI18+'Programmable Tstats - Tier 2'!BI18+'Residential Energy Assessments'!BI18+'Comm 95+% Furnace - NEW'!BI18+'Comm 95+% Furnace - Replace'!BI18+'Comm Custom'!BI18,0) -> 0 | BJ18: =ROUND(+'Res .95+% Res Furnace - NEW'!BJ18+'Res .95+% Res Furnace - Replace'!BJ18+'Programmable Tstats - Tier 1'!BJ18+'Programmable Tstats - Tier 2'!BJ18+'Residential Energy Assessments'!BJ18+'Comm 95+% Furnace - NEW'!BJ18+'Comm 95+% Furnace - Replace'!BJ18+'Comm Custom'!BJ18,0) -> 8907 | BL18: =ROUND(+'Res .95+% Res Furnace - NEW'!BL18+'Res .95+% Res Furnace - Replace'!BL18+'Programmable Tstats - Tier 1'!BL18+'Programmable Tstats - Tier 2'!BL18+'Residential Energy Assessments'!BL18+'Comm 95+% Furnace - NEW'!BL18+'Comm 95+% Furnace - Replace'!BL18+'Comm Custom'!BL18,0) -> 66762 | BN18: =ROUND(+'Res .95+% Res Furnace - NEW'!BN18+'Res .95+% Res Furnace - Replace'!BN18+'Programmable Tstats - Tier 1'!BN18+'Programmable Tstats - Tier 2'!BN18+'Residential Energy Assessments'!BN18+'Comm 95+% Furnace - NEW'!BN18+'Comm 95+% Furnace - Replace'!BN18+'Comm Custom'!BN18,0) -> 26889 | BP18: 93651 | BR18: =ROUND(+'Res .95+% Res Furnace - NEW'!BR18+'Res .95+% Res Furnace - Replace'!BR18+'Programmable Tstats - Tier 1'!BR18+'Programmable Tstats - Tier 2'!BR18+'Residential Energy Assessments'!BR18+'Comm 95+% Furnace - NEW'!BR18+'Comm 95+% Furnace - Replace'!BR18+'Comm Custom'!BR18,0) -> 0 | BT18: 93651 | BW18: 2025 | BX18: 32876 | BY18: 13798 | BZ18: 6642 | CA18: =SUM(BX18:BZ18) -> 53316 | CC18: 0 | CD18: 0 | CE18: 0 | CG18: 53316
J19: 5 | L19: 2026 | M19: =ROUND(+'Res .95+% Res Furnace - NEW'!M19+'Res .95+% Res Furnace - Replace'!M19+'Programmable Tstats - Tier 1'!M19+'Programmable Tstats - Tier 2'!M19+'Residential Energy Assessments'!M19+'Comm 95+% Furnace - NEW'!M19+'Comm 95+% Furnace - Replace'!M19+'Comm Custom'!M19,0) -> 8907 | O19: =ROUND(+'Res .95+% Res Furnace - NEW'!O19+'Res .95+% Res Furnace - Replace'!O19+'Programmable Tstats - Tier 1'!O19+'Programmable Tstats - Tier 2'!O19+'Residential Energy Assessments'!O19+'Comm 95+% Furnace - NEW'!O19+'Comm 95+% Furnace - Replace'!O19+'Comm Custom'!O19,0) -> 33856 | Q19: =ROUND(+'Res .95+% Res Furnace - NEW'!Q19+'Res .95+% Res Furnace - Replace'!Q19+'Programmable Tstats - Tier 1'!Q19+'Programmable Tstats - Tier 2'!Q19+'Residential Energy Assessments'!Q19+'Comm 95+% Furnace - NEW'!Q19+'Comm 95+% Furnace - Replace'!Q19+'Comm Custom'!Q19,0) -> 0 | R19: =ROUND(+'Res .95+% Res Furnace - NEW'!R19+'Res .95+% Res Furnace - Replace'!R19+'Programmable Tstats - Tier 1'!R19+'Programmable Tstats - Tier 2'!R19+'Residential Energy Assessments'!R19+'Comm 95+% Furnace - NEW'!R19+'Comm 95+% Furnace - Replace'!R19+'Comm Custom'!R19,0) -> 33856 | S19: =ROUND(+'Res .95+% Res Furnace - NEW'!S19+'Res .95+% Res Furnace - Replace'!S19+'Programmable Tstats - Tier 1'!S19+'Programmable Tstats - Tier 2'!S19+'Residential Energy Assessments'!S19+'Comm 95+% Furnace - NEW'!S19+'Comm 95+% Furnace - Replace'!S19+'Comm Custom'!S19,0) -> 89 | U19: =ROUND(+'Res .95+% Res Furnace - NEW'!U19+'Res .95+% Res Furnace - Replace'!U19+'Programmable Tstats - Tier 1'!U19+'Programmable Tstats - Tier 2'!U19+'Residential Energy Assessments'!U19+'Comm 95+% Furnace - NEW'!U19+'Comm 95+% Furnace - Replace'!U19+'Comm Custom'!U19,0) -> 13884 | V19: =ROUND(+'Res .95+% Res Furnace - NEW'!V19+'Res .95+% Res Furnace - Replace'!V19+'Programmable Tstats - Tier 1'!V19+'Programmable Tstats - Tier 2'!V19+'Residential Energy Assessments'!V19+'Comm 95+% Furnace - NEW'!V19+'Comm 95+% Furnace - Replace'!V19+'Comm Custom'!V19,0) -> 47740 | X19: =ROUND(+'Res .95+% Res Furnace - NEW'!X19+'Res .95+% Res Furnace - Replace'!X19+'Programmable Tstats - Tier 1'!X19+'Programmable Tstats - Tier 2'!X19+'Residential Energy Assessments'!X19+'Comm 95+% Furnace - NEW'!X19+'Comm 95+% Furnace - Replace'!X19+'Comm Custom'!X19,0) -> 12943 | Y19: =ROUND(+'Res .95+% Res Furnace - NEW'!Y19+'Res .95+% Res Furnace - Replace'!Y19+'Programmable Tstats - Tier 1'!Y19+'Programmable Tstats - Tier 2'!Y19+'Residential Energy Assessments'!Y19+'Comm 95+% Furnace - NEW'!Y19+'Comm 95+% Furnace - Replace'!Y19+'Comm Custom'!Y19,0) -> 0 | Z19: =ROUND(+'Res .95+% Res Furnace - NEW'!Z19+'Res .95+% Res Furnace - Replace'!Z19+'Programmable Tstats - Tier 1'!Z19+'Programmable Tstats - Tier 2'!Z19+'Residential Energy Assessments'!Z19+'Comm 95+% Furnace - NEW'!Z19+'Comm 95+% Furnace - Replace'!Z19+'Comm Custom'!Z19,0) -> 0 | AA19: =ROUND(+'Res .95+% Res Furnace - NEW'!AA19+'Res .95+% Res Furnace - Replace'!AA19+'Programmable Tstats - Tier 1'!AA19+'Programmable Tstats - Tier 2'!AA19+'Residential Energy Assessments'!AA19+'Comm 95+% Furnace - NEW'!AA19+'Comm 95+% Furnace - Replace'!AA19+'Comm Custom'!AA19,0) -> 12943 | AB19: =ROUND(+'Res .95+% Res Furnace - NEW'!AB19+'Res .95+% Res Furnace - Replace'!AB19+'Programmable Tstats - Tier 1'!AB19+'Programmable Tstats - Tier 2'!AB19+'Residential Energy Assessments'!AB19+'Comm 95+% Furnace - NEW'!AB19+'Comm 95+% Furnace - Replace'!AB19+'Comm Custom'!AB19,0) -> 34797 | AE19: 2026 | AF19: 33856 | AG19: 13884 | AH19: 47740 | AJ19: 0 | AK19: 0 | AL19: 0 | AN19: 47740 | AQ19: 2026 | AR19: 33856 | AS19: 13884 | AU19: =ROUND(+'Res .95+% Res Furnace - NEW'!AU19+'Res .95+% Res Furnace - Replace'!AU19+'Programmable Tstats - Tier 1'!AU19+'Programmable Tstats - Tier 2'!AU19+'Residential Energy Assessments'!AU19+'Comm 95+% Furnace - NEW'!AU19+'Comm 95+% Furnace - Replace'!AU19+'Comm Custom'!AU19,0) -> 6832 | AW19: =ROUND(+'Res .95+% Res Furnace - NEW'!AW19+'Res .95+% Res Furnace - Replace'!AW19+'Programmable Tstats - Tier 1'!AW19+'Programmable Tstats - Tier 2'!AW19+'Residential Energy Assessments'!AW19+'Comm 95+% Furnace - NEW'!AW19+'Comm 95+% Furnace - Replace'!AW19+'Comm Custom'!AW19,0) -> 20655 | AZ19: 75227 | BB19: =ROUND(+'Res .95+% Res Furnace - NEW'!BB19+'Res .95+% Res Furnace - Replace'!BB19+'Programmable Tstats - Tier 1'!BB19+'Programmable Tstats - Tier 2'!BB19+'Residential Energy Assessments'!BB19+'Comm 95+% Furnace - NEW'!BB19+'Comm 95+% Furnace - Replace'!BB19+'Comm Custom'!BB19,0) -> 0 | BC19: =ROUND(+'Res .95+% Res Furnace - NEW'!BC19+'Res .95+% Res Furnace - Replace'!BC19+'Programmable Tstats - Tier 1'!BC19+'Programmable Tstats - Tier 2'!BC19+'Residential Energy Assessments'!BC19+'Comm 95+% Furnace - NEW'!BC19+'Comm 95+% Furnace - Replace'!BC19+'Comm Custom'!BC19,0) -> 0 | BD19: 0 | BE19: 75227 | BH19: 2026 | BI19: =ROUND(+'Res .95+% Res Furnace - NEW'!BI19+'Res .95+% Res Furnace - Replace'!BI19+'Programmable Tstats - Tier 1'!BI19+'Programmable Tstats - Tier 2'!BI19+'Residential Energy Assessments'!BI19+'Comm 95+% Furnace - NEW'!BI19+'Comm 95+% Furnace - Replace'!BI19+'Comm Custom'!BI19,0) -> 0 | BJ19: =ROUND(+'Res .95+% Res Furnace - NEW'!BJ19+'Res .95+% Res Furnace - Replace'!BJ19+'Programmable Tstats - Tier 1'!BJ19+'Programmable Tstats - Tier 2'!BJ19+'Residential Energy Assessments'!BJ19+'Comm 95+% Furnace - NEW'!BJ19+'Comm 95+% Furnace - Replace'!BJ19+'Comm Custom'!BJ19,0) -> 8907 | BL19: =ROUND(+'Res .95+% Res Furnace - NEW'!BL19+'Res .95+% Res Furnace - Replace'!BL19+'Programmable Tstats - Tier 1'!BL19+'Programmable Tstats - Tier 2'!BL19+'Residential Energy Assessments'!BL19+'Comm 95+% Furnace - NEW'!BL19+'Comm 95+% Furnace - Replace'!BL19+'Comm Custom'!BL19,0) -> 68765 | BN19: =ROUND(+'Res .95+% Res Furnace - NEW'!BN19+'Res .95+% Res Furnace - Replace'!BN19+'Programmable Tstats - Tier 1'!BN19+'Programmable Tstats - Tier 2'!BN19+'Residential Energy Assessments'!BN19+'Comm 95+% Furnace - NEW'!BN19+'Comm 95+% Furnace - Replace'!BN19+'Comm Custom'!BN19,0) -> 27827 | BP19: 96592 | BR19: =ROUND(+'Res .95+% Res Furnace - NEW'!BR19+'Res .95+% Res Furnace - Replace'!BR19+'Programmable Tstats - Tier 1'!BR19+'Programmable Tstats - Tier 2'!BR19+'Residential Energy Assessments'!BR19+'Comm 95+% Furnace - NEW'!BR19+'Comm 95+% Furnace - Replace'!BR19+'Comm Custom'!BR19,0) -> 0 | BT19: 96592 | BW19: 2026 | BX19: 33856 | BY19: 13884 | BZ19: 6832 | CA19: 54572 | CC19: 0 | CD19: 0 | CE19: 0 | CG19: 54572
A20: 4) Demand Cost ($/Unit/Yr) = | E20: 19) Participant Non-Energy Savings (Annual $/Part) = | J20: 6 | L20: 2027 | M20: =ROUND(+'Res .95+% Res Furnace - NEW'!M20+'Res .95+% Res Furnace - Replace'!M20+'Programmable Tstats - Tier 1'!M20+'Programmable Tstats - Tier 2'!M20+'Residential Energy Assessments'!M20+'Comm 95+% Furnace - NEW'!M20+'Comm 95+% Furnace - Replace'!M20+'Comm Custom'!M20,0) -> 8907 | O20: =ROUND(+'Res .95+% Res Furnace - NEW'!O20+'Res .95+% Res Furnace - Replace'!O20+'Programmable Tstats - Tier 1'!O20+'Programmable Tstats - Tier 2'!O20+'Residential Energy Assessments'!O20+'Comm 95+% Furnace - NEW'!O20+'Comm 95+% Furnace - Replace'!O20+'Comm Custom'!O20,0) -> 34871 | Q20: =ROUND(+'Res .95+% Res Furnace - NEW'!Q20+'Res .95+% Res Furnace - Replace'!Q20+'Programmable Tstats - Tier 1'!Q20+'Programmable Tstats - Tier 2'!Q20+'Residential Energy Assessments'!Q20+'Comm 95+% Furnace - NEW'!Q20+'Comm 95+% Furnace - Replace'!Q20+'Comm Custom'!Q20,0) -> 0 | R20: =ROUND(+'Res .95+% Res Furnace - NEW'!R20+'Res .95+% Res Furnace - Replace'!R20+'Programmable Tstats - Tier 1'!R20+'Programmable Tstats - Tier 2'!R20+'Residential Energy Assessments'!R20+'Comm 95+% Furnace - NEW'!R20+'Comm 95+% Furnace - Replace'!R20+'Comm Custom'!R20,0) -> 34871 | S20: =ROUND(+'Res .95+% Res Furnace - NEW'!S20+'Res .95+% Res Furnace - Replace'!S20+'Programmable Tstats - Tier 1'!S20+'Programmable Tstats - Tier 2'!S20+'Residential Energy Assessments'!S20+'Comm 95+% Furnace - NEW'!S20+'Comm 95+% Furnace - Replace'!S20+'Comm Custom'!S20,0) -> 89 | U20: =ROUND(+'Res .95+% Res Furnace - NEW'!U20+'Res .95+% Res Furnace - Replace'!U20+'Programmable Tstats - Tier 1'!U20+'Programmable Tstats - Tier 2'!U20+'Residential Energy Assessments'!U20+'Comm 95+% Furnace - NEW'!U20+'Comm 95+% Furnace - Replace'!U20+'Comm Custom'!U20,0) -> 14061 | V20: =ROUND(+'Res .95+% Res Furnace - NEW'!V20+'Res .95+% Res Furnace - Replace'!V20+'Programmable Tstats - Tier 1'!V20+'Programmable Tstats - Tier 2'!V20+'Residential Energy Assessments'!V20+'Comm 95+% Furnace - NEW'!V20+'Comm 95+% Furnace - Replace'!V20+'Comm Custom'!V20,0) -> 48932 | X20: =ROUND(+'Res .95+% Res Furnace - NEW'!X20+'Res .95+% Res Furnace - Replace'!X20+'Programmable Tstats - Tier 1'!X20+'Programmable Tstats - Tier 2'!X20+'Residential Energy Assessments'!X20+'Comm 95+% Furnace - NEW'!X20+'Comm 95+% Furnace - Replace'!X20+'Comm Custom'!X20,0) -> 13330 | Y20: =ROUND(+'Res .95+% Res Furnace - NEW'!Y20+'Res .95+% Res Furnace - Replace'!Y20+'Programmable Tstats - Tier 1'!Y20+'Programmable Tstats - Tier 2'!Y20+'Residential Energy Assessments'!Y20+'Comm 95+% Furnace - NEW'!Y20+'Comm 95+% Furnace - Replace'!Y20+'Comm Custom'!Y20,0) -> 0 | Z20: =ROUND(+'Res .95+% Res Furnace - NEW'!Z20+'Res .95+% Res Furnace - Replace'!Z20+'Programmable Tstats - Tier 1'!Z20+'Programmable Tstats - Tier 2'!Z20+'Residential Energy Assessments'!Z20+'Comm 95+% Furnace - NEW'!Z20+'Comm 95+% Furnace - Replace'!Z20+'Comm Custom'!Z20,0) -> 0 | AA20: =ROUND(+'Res .95+% Res Furnace - NEW'!AA20+'Res .95+% Res Furnace - Replace'!AA20+'Programmable Tstats - Tier 1'!AA20+'Programmable Tstats - Tier 2'!AA20+'Residential Energy Assessments'!AA20+'Comm 95+% Furnace - NEW'!AA20+'Comm 95+% Furnace - Replace'!AA20+'Comm Custom'!AA20,0) -> 13330 | AB20: =ROUND(+'Res .95+% Res Furnace - NEW'!AB20+'Res .95+% Res Furnace - Replace'!AB20+'Programmable Tstats - Tier 1'!AB20+'Programmable Tstats - Tier 2'!AB20+'Residential Energy Assessments'!AB20+'Comm 95+% Furnace - NEW'!AB20+'Comm 95+% Furnace - Replace'!AB20+'Comm Custom'!AB20,0) -> 35602 | AE20: 2027 | AF20: 34871 | AG20: 14061 | AH20: 48932 | AJ20: 0 | AK20: 0 | AL20: 0 | AN20: 48932 | AQ20: 2027 | AR20: 34871 | AS20: 14061 | AU20: =ROUND(+'Res .95+% Res Furnace - NEW'!AU20+'Res .95+% Res Furnace - Replace'!AU20+'Programmable Tstats - Tier 1'!AU20+'Programmable Tstats - Tier 2'!AU20+'Residential Energy Assessments'!AU20+'Comm 95+% Furnace - NEW'!AU20+'Comm 95+% Furnace - Replace'!AU20+'Comm Custom'!AU20,0) -> 7021 | AW20: =ROUND(+'Res .95+% Res Furnace - NEW'!AW20+'Res .95+% Res Furnace - Replace'!AW20+'Programmable Tstats - Tier 1'!AW20+'Programmable Tstats - Tier 2'!AW20+'Residential Energy Assessments'!AW20+'Comm 95+% Furnace - NEW'!AW20+'Comm 95+% Furnace - Replace'!AW20+'Comm Custom'!AW20,0) -> 21138 | AZ20: 77091 | BB20: =ROUND(+'Res .95+% Res Furnace - NEW'!BB20+'Res .95+% Res Furnace - Replace'!BB20+'Programmable Tstats - Tier 1'!BB20+'Programmable Tstats - Tier 2'!BB20+'Residential Energy Assessments'!BB20+'Comm 95+% Furnace - NEW'!BB20+'Comm 95+% Furnace - Replace'!BB20+'Comm Custom'!BB20,0) -> 0 | BC20: =ROUND(+'Res .95+% Res Furnace - NEW'!BC20+'Res .95+% Res Furnace - Replace'!BC20+'Programmable Tstats - Tier 1'!BC20+'Programmable Tstats - Tier 2'!BC20+'Residential Energy Assessments'!BC20+'Comm 95+% Furnace - NEW'!BC20+'Comm 95+% Furnace - Replace'!BC20+'Comm Custom'!BC20,0) -> 0 | BD20: 0 | BE20: 77091 | BH20: 2027 | BI20: =ROUND(+'Res .95+% Res Furnace - NEW'!BI20+'Res .95+% Res Furnace - Replace'!BI20+'Programmable Tstats - Tier 1'!BI20+'Programmable Tstats - Tier 2'!BI20+'Residential Energy Assessments'!BI20+'Comm 95+% Furnace - NEW'!BI20+'Comm 95+% Furnace - Replace'!BI20+'Comm Custom'!BI20,0) -> 0 | BJ20: =ROUND(+'Res .95+% Res Furnace - NEW'!BJ20+'Res .95+% Res Furnace - Replace'!BJ20+'Programmable Tstats - Tier 1'!BJ20+'Programmable Tstats - Tier 2'!BJ20+'Residential Energy Assessments'!BJ20+'Comm 95+% Furnace - NEW'!BJ20+'Comm 95+% Furnace - Replace'!BJ20+'Comm Custom'!BJ20,0) -> 8907 | BL20: =ROUND(+'Res .95+% Res Furnace - NEW'!BL20+'Res .95+% Res Furnace - Replace'!BL20+'Programmable Tstats - Tier 1'!BL20+'Programmable Tstats - Tier 2'!BL20+'Residential Energy Assessments'!BL20+'Comm 95+% Furnace - NEW'!BL20+'Comm 95+% Furnace - Replace'!BL20+'Comm Custom'!BL20,0) -> 70833 | BN20: =ROUND(+'Res .95+% Res Furnace - NEW'!BN20+'Res .95+% Res Furnace - Replace'!BN20+'Programmable Tstats - Tier 1'!BN20+'Programmable Tstats - Tier 2'!BN20+'Residential Energy Assessments'!BN20+'Comm 95+% Furnace - NEW'!BN20+'Comm 95+% Furnace - Replace'!BN20+'Comm Custom'!BN20,0) -> 28597 | BP20: 99430 | BR20: =ROUND(+'Res .95+% Res Furnace - NEW'!BR20+'Res .95+% Res Furnace - Replace'!BR20+'Programmable Tstats - Tier 1'!BR20+'Programmable Tstats - Tier 2'!BR20+'Residential Energy Assessments'!BR20+'Comm 95+% Furnace - NEW'!BR20+'Comm 95+% Furnace - Replace'!BR20+'Comm Custom'!BR20,0) -> 0 | BT20: 99430 | BW20: 2027 | BX20: 34871 | BY20: 14061 | BZ20: 7021 | CA20: 55953 | CC20: 0 | CD20: 0 | CE20: 0 | CG20: 55953
A21: Escalation Rate = | E21: Escalation Rate = | J21: 7 | L21: 2028 | M21: =ROUND(+'Res .95+% Res Furnace - NEW'!M21+'Res .95+% Res Furnace - Replace'!M21+'Programmable Tstats - Tier 1'!M21+'Programmable Tstats - Tier 2'!M21+'Residential Energy Assessments'!M21+'Comm 95+% Furnace - NEW'!M21+'Comm 95+% Furnace - Replace'!M21+'Comm Custom'!M21,0) -> 8907 | O21: =ROUND(+'Res .95+% Res Furnace - NEW'!O21+'Res .95+% Res Furnace - Replace'!O21+'Programmable Tstats - Tier 1'!O21+'Programmable Tstats - Tier 2'!O21+'Residential Energy Assessments'!O21+'Comm 95+% Furnace - NEW'!O21+'Comm 95+% Furnace - Replace'!O21+'Comm Custom'!O21,0) -> 35922 | Q21: =ROUND(+'Res .95+% Res Furnace - NEW'!Q21+'Res .95+% Res Furnace - Replace'!Q21+'Programmable Tstats - Tier 1'!Q21+'Programmable Tstats - Tier 2'!Q21+'Residential Energy Assessments'!Q21+'Comm 95+% Furnace - NEW'!Q21+'Comm 95+% Furnace - Replace'!Q21+'Comm Custom'!Q21,0) -> 0 | R21: =ROUND(+'Res .95+% Res Furnace - NEW'!R21+'Res .95+% Res Furnace - Replace'!R21+'Programmable Tstats - Tier 1'!R21+'Programmable Tstats - Tier 2'!R21+'Residential Energy Assessments'!R21+'Comm 95+% Furnace - NEW'!R21+'Comm 95+% Furnace - Replace'!R21+'Comm Custom'!R21,0) -> 35922 | S21: =ROUND(+'Res .95+% Res Furnace - NEW'!S21+'Res .95+% Res Furnace - Replace'!S21+'Programmable Tstats - Tier 1'!S21+'Programmable Tstats - Tier 2'!S21+'Residential Energy Assessments'!S21+'Comm 95+% Furnace - NEW'!S21+'Comm 95+% Furnace - Replace'!S21+'Comm Custom'!S21,0) -> 89 | U21: =ROUND(+'Res .95+% Res Furnace - NEW'!U21+'Res .95+% Res Furnace - Replace'!U21+'Programmable Tstats - Tier 1'!U21+'Programmable Tstats - Tier 2'!U21+'Residential Energy Assessments'!U21+'Comm 95+% Furnace - NEW'!U21+'Comm 95+% Furnace - Replace'!U21+'Comm Custom'!U21,0) -> 14152 | V21: =ROUND(+'Res .95+% Res Furnace - NEW'!V21+'Res .95+% Res Furnace - Replace'!V21+'Programmable Tstats - Tier 1'!V21+'Programmable Tstats - Tier 2'!V21+'Residential Energy Assessments'!V21+'Comm 95+% Furnace - NEW'!V21+'Comm 95+% Furnace - Replace'!V21+'Comm Custom'!V21,0) -> 50074 | X21: =ROUND(+'Res .95+% Res Furnace - NEW'!X21+'Res .95+% Res Furnace - Replace'!X21+'Programmable Tstats - Tier 1'!X21+'Programmable Tstats - Tier 2'!X21+'Residential Energy Assessments'!X21+'Comm 95+% Furnace - NEW'!X21+'Comm 95+% Furnace - Replace'!X21+'Comm Custom'!X21,0) -> 13733 | Y21: =ROUND(+'Res .95+% Res Furnace - NEW'!Y21+'Res .95+% Res Furnace - Replace'!Y21+'Programmable Tstats - Tier 1'!Y21+'Programmable Tstats - Tier 2'!Y21+'Residential Energy Assessments'!Y21+'Comm 95+% Furnace - NEW'!Y21+'Comm 95+% Furnace - Replace'!Y21+'Comm Custom'!Y21,0) -> 0 | Z21: =ROUND(+'Res .95+% Res Furnace - NEW'!Z21+'Res .95+% Res Furnace - Replace'!Z21+'Programmable Tstats - Tier 1'!Z21+'Programmable Tstats - Tier 2'!Z21+'Residential Energy Assessments'!Z21+'Comm 95+% Furnace - NEW'!Z21+'Comm 95+% Furnace - Replace'!Z21+'Comm Custom'!Z21,0) -> 0 | AA21: =ROUND(+'Res .95+% Res Furnace - NEW'!AA21+'Res .95+% Res Furnace - Replace'!AA21+'Programmable Tstats - Tier 1'!AA21+'Programmable Tstats - Tier 2'!AA21+'Residential Energy Assessments'!AA21+'Comm 95+% Furnace - NEW'!AA21+'Comm 95+% Furnace - Replace'!AA21+'Comm Custom'!AA21,0) -> 13733 | AB21: =ROUND(+'Res .95+% Res Furnace - NEW'!AB21+'Res .95+% Res Furnace - Replace'!AB21+'Programmable Tstats - Tier 1'!AB21+'Programmable Tstats - Tier 2'!AB21+'Residential Energy Assessments'!AB21+'Comm 95+% Furnace - NEW'!AB21+'Comm 95+% Furnace - Replace'!AB21+'Comm Custom'!AB21,0) -> 36341 | AE21: 2028 | AF21: 35922 | AG21: 14152 | AH21: 50074 | AJ21: 0 | AK21: 0 | AL21: 0 | AN21: 50074 | AQ21: 2028 | AR21: 35922 | AS21: 14152 | AU21: =ROUND(+'Res .95+% Res Furnace - NEW'!AU21+'Res .95+% Res Furnace - Replace'!AU21+'Programmable Tstats - Tier 1'!AU21+'Programmable Tstats - Tier 2'!AU21+'Residential Energy Assessments'!AU21+'Comm 95+% Furnace - NEW'!AU21+'Comm 95+% Furnace - Replace'!AU21+'Comm Custom'!AU21,0) -> 7212 | AW21: =ROUND(+'Res .95+% Res Furnace - NEW'!AW21+'Res .95+% Res Furnace - Replace'!AW21+'Programmable Tstats - Tier 1'!AW21+'Programmable Tstats - Tier 2'!AW21+'Residential Energy Assessments'!AW21+'Comm 95+% Furnace - NEW'!AW21+'Comm 95+% Furnace - Replace'!AW21+'Comm Custom'!AW21,0) -> 21617 | AZ21: 78903 | BB21: =ROUND(+'Res .95+% Res Furnace - NEW'!BB21+'Res .95+% Res Furnace - Replace'!BB21+'Programmable Tstats - Tier 1'!BB21+'Programmable Tstats - Tier 2'!BB21+'Residential Energy Assessments'!BB21+'Comm 95+% Furnace - NEW'!BB21+'Comm 95+% Furnace - Replace'!BB21+'Comm Custom'!BB21,0) -> 0 | BC21: =ROUND(+'Res .95+% Res Furnace - NEW'!BC21+'Res .95+% Res Furnace - Replace'!BC21+'Programmable Tstats - Tier 1'!BC21+'Programmable Tstats - Tier 2'!BC21+'Residential Energy Assessments'!BC21+'Comm 95+% Furnace - NEW'!BC21+'Comm 95+% Furnace - Replace'!BC21+'Comm Custom'!BC21,0) -> 0 | BD21: 0 | BE21: 78903 | BH21: 2028 | BI21: =ROUND(+'Res .95+% Res Furnace - NEW'!BI21+'Res .95+% Res Furnace - Replace'!BI21+'Programmable Tstats - Tier 1'!BI21+'Programmable Tstats - Tier 2'!BI21+'Residential Energy Assessments'!BI21+'Comm 95+% Furnace - NEW'!BI21+'Comm 95+% Furnace - Replace'!BI21+'Comm Custom'!BI21,0) -> 0 | BJ21: =ROUND(+'Res .95+% Res Furnace - NEW'!BJ21+'Res .95+% Res Furnace - Replace'!BJ21+'Programmable Tstats - Tier 1'!BJ21+'Programmable Tstats - Tier 2'!BJ21+'Residential Energy Assessments'!BJ21+'Comm 95+% Furnace - NEW'!BJ21+'Comm 95+% Furnace - Replace'!BJ21+'Comm Custom'!BJ21,0) -> 8907 | BL21: =ROUND(+'Res .95+% Res Furnace - NEW'!BL21+'Res .95+% Res Furnace - Replace'!BL21+'Programmable Tstats - Tier 1'!BL21+'Programmable Tstats - Tier 2'!BL21+'Residential Energy Assessments'!BL21+'Comm 95+% Furnace - NEW'!BL21+'Comm 95+% Furnace - Replace'!BL21+'Comm Custom'!BL21,0) -> 72955 | BN21: =ROUND(+'Res .95+% Res Furnace - NEW'!BN21+'Res .95+% Res Furnace - Replace'!BN21+'Programmable Tstats - Tier 1'!BN21+'Programmable Tstats - Tier 2'!BN21+'Residential Energy Assessments'!BN21+'Comm 95+% Furnace - NEW'!BN21+'Comm 95+% Furnace - Replace'!BN21+'Comm Custom'!BN21,0) -> 29535 | BP21: 102490 | BR21: =ROUND(+'Res .95+% Res Furnace - NEW'!BR21+'Res .95+% Res Furnace - Replace'!BR21+'Programmable Tstats - Tier 1'!BR21+'Programmable Tstats - Tier 2'!BR21+'Residential Energy Assessments'!BR21+'Comm 95+% Furnace - NEW'!BR21+'Comm 95+% Furnace - Replace'!BR21+'Comm Custom'!BR21,0) -> 0 | BT21: 102490 | BW21: 2028 | BX21: 35922 | BY21: 14152 | BZ21: 7212 | CA21: 57286 | CC21: 0 | CD21: 0 | CE21: 0 | CG21: 57286
J22: 8 | L22: 2029 | M22: =ROUND(+'Res .95+% Res Furnace - NEW'!M22+'Res .95+% Res Furnace - Replace'!M22+'Programmable Tstats - Tier 1'!M22+'Programmable Tstats - Tier 2'!M22+'Residential Energy Assessments'!M22+'Comm 95+% Furnace - NEW'!M22+'Comm 95+% Furnace - Replace'!M22+'Comm Custom'!M22,0) -> 8907 | O22: =ROUND(+'Res .95+% Res Furnace - NEW'!O22+'Res .95+% Res Furnace - Replace'!O22+'Programmable Tstats - Tier 1'!O22+'Programmable Tstats - Tier 2'!O22+'Residential Energy Assessments'!O22+'Comm 95+% Furnace - NEW'!O22+'Comm 95+% Furnace - Replace'!O22+'Comm Custom'!O22,0) -> 37000 | Q22: =ROUND(+'Res .95+% Res Furnace - NEW'!Q22+'Res .95+% Res Furnace - Replace'!Q22+'Programmable Tstats - Tier 1'!Q22+'Programmable Tstats - Tier 2'!Q22+'Residential Energy Assessments'!Q22+'Comm 95+% Furnace - NEW'!Q22+'Comm 95+% Furnace - Replace'!Q22+'Comm Custom'!Q22,0) -> 0 | R22: =ROUND(+'Res .95+% Res Furnace - NEW'!R22+'Res .95+% Res Furnace - Replace'!R22+'Programmable Tstats - Tier 1'!R22+'Programmable Tstats - Tier 2'!R22+'Residential Energy Assessments'!R22+'Comm 95+% Furnace - NEW'!R22+'Comm 95+% Furnace - Replace'!R22+'Comm Custom'!R22,0) -> 37000 | S22: =ROUND(+'Res .95+% Res Furnace - NEW'!S22+'Res .95+% Res Furnace - Replace'!S22+'Programmable Tstats - Tier 1'!S22+'Programmable Tstats - Tier 2'!S22+'Residential Energy Assessments'!S22+'Comm 95+% Furnace - NEW'!S22+'Comm 95+% Furnace - Replace'!S22+'Comm Custom'!S22,0) -> 89 | U22: =ROUND(+'Res .95+% Res Furnace - NEW'!U22+'Res .95+% Res Furnace - Replace'!U22+'Programmable Tstats - Tier 1'!U22+'Programmable Tstats - Tier 2'!U22+'Residential Energy Assessments'!U22+'Comm 95+% Furnace - NEW'!U22+'Comm 95+% Furnace - Replace'!U22+'Comm Custom'!U22,0) -> 14329 | V22: =ROUND(+'Res .95+% Res Furnace - NEW'!V22+'Res .95+% Res Furnace - Replace'!V22+'Programmable Tstats - Tier 1'!V22+'Programmable Tstats - Tier 2'!V22+'Residential Energy Assessments'!V22+'Comm 95+% Furnace - NEW'!V22+'Comm 95+% Furnace - Replace'!V22+'Comm Custom'!V22,0) -> 51329 | X22: =ROUND(+'Res .95+% Res Furnace - NEW'!X22+'Res .95+% Res Furnace - Replace'!X22+'Programmable Tstats - Tier 1'!X22+'Programmable Tstats - Tier 2'!X22+'Residential Energy Assessments'!X22+'Comm 95+% Furnace - NEW'!X22+'Comm 95+% Furnace - Replace'!X22+'Comm Custom'!X22,0) -> 14145 | Y22: =ROUND(+'Res .95+% Res Furnace - NEW'!Y22+'Res .95+% Res Furnace - Replace'!Y22+'Programmable Tstats - Tier 1'!Y22+'Programmable Tstats - Tier 2'!Y22+'Residential Energy Assessments'!Y22+'Comm 95+% Furnace - NEW'!Y22+'Comm 95+% Furnace - Replace'!Y22+'Comm Custom'!Y22,0) -> 0 | Z22: =ROUND(+'Res .95+% Res Furnace - NEW'!Z22+'Res .95+% Res Furnace - Replace'!Z22+'Programmable Tstats - Tier 1'!Z22+'Programmable Tstats - Tier 2'!Z22+'Residential Energy Assessments'!Z22+'Comm 95+% Furnace - NEW'!Z22+'Comm 95+% Furnace - Replace'!Z22+'Comm Custom'!Z22,0) -> 0 | AA22: =ROUND(+'Res .95+% Res Furnace - NEW'!AA22+'Res .95+% Res Furnace - Replace'!AA22+'Programmable Tstats - Tier 1'!AA22+'Programmable Tstats - Tier 2'!AA22+'Residential Energy Assessments'!AA22+'Comm 95+% Furnace - NEW'!AA22+'Comm 95+% Furnace - Replace'!AA22+'Comm Custom'!AA22,0) -> 14145 | AB22: =ROUND(+'Res .95+% Res Furnace - NEW'!AB22+'Res .95+% Res Furnace - Replace'!AB22+'Programmable Tstats - Tier 1'!AB22+'Programmable Tstats - Tier 2'!AB22+'Residential Energy Assessments'!AB22+'Comm 95+% Furnace - NEW'!AB22+'Comm 95+% Furnace - Replace'!AB22+'Comm Custom'!AB22,0) -> 37184 | AE22: 2029 | AF22: 37000 | AG22: 14329 | AH22: 51329 | AJ22: 0 | AK22: 0 | AL22: 0 | AN22: 51329 | AQ22: 2029 | AR22: 37000 | AS22: 14329 | AU22: =ROUND(+'Res .95+% Res Furnace - NEW'!AU22+'Res .95+% Res Furnace - Replace'!AU22+'Programmable Tstats - Tier 1'!AU22+'Programmable Tstats - Tier 2'!AU22+'Residential Energy Assessments'!AU22+'Comm 95+% Furnace - NEW'!AU22+'Comm 95+% Furnace - Replace'!AU22+'Comm Custom'!AU22,0) -> 7591 | AW22: =ROUND(+'Res .95+% Res Furnace - NEW'!AW22+'Res .95+% Res Furnace - Replace'!AW22+'Programmable Tstats - Tier 1'!AW22+'Programmable Tstats - Tier 2'!AW22+'Residential Energy Assessments'!AW22+'Comm 95+% Furnace - NEW'!AW22+'Comm 95+% Furnace - Replace'!AW22+'Comm Custom'!AW22,0) -> 22116 | AZ22: 81036 | BB22: =ROUND(+'Res .95+% Res Furnace - NEW'!BB22+'Res .95+% Res Furnace - Replace'!BB22+'Programmable Tstats - Tier 1'!BB22+'Programmable Tstats - Tier 2'!BB22+'Residential Energy Assessments'!BB22+'Comm 95+% Furnace - NEW'!BB22+'Comm 95+% Furnace - Replace'!BB22+'Comm Custom'!BB22,0) -> 0 | BC22: =ROUND(+'Res .95+% Res Furnace - NEW'!BC22+'Res .95+% Res Furnace - Replace'!BC22+'Programmable Tstats - Tier 1'!BC22+'Programmable Tstats - Tier 2'!BC22+'Residential Energy Assessments'!BC22+'Comm 95+% Furnace - NEW'!BC22+'Comm 95+% Furnace - Replace'!BC22+'Comm Custom'!BC22,0) -> 0 | BD22: 0 | BE22: 81036 | BH22: 2029 | BI22: =ROUND(+'Res .95+% Res Furnace - NEW'!BI22+'Res .95+% Res Furnace - Replace'!BI22+'Programmable Tstats - Tier 1'!BI22+'Programmable Tstats - Tier 2'!BI22+'Residential Energy Assessments'!BI22+'Comm 95+% Furnace - NEW'!BI22+'Comm 95+% Furnace - Replace'!BI22+'Comm Custom'!BI22,0) -> 0 | BJ22: =ROUND(+'Res .95+% Res Furnace - NEW'!BJ22+'Res .95+% Res Furnace - Replace'!BJ22+'Programmable Tstats - Tier 1'!BJ22+'Programmable Tstats - Tier 2'!BJ22+'Residential Energy Assessments'!BJ22+'Comm 95+% Furnace - NEW'!BJ22+'Comm 95+% Furnace - Replace'!BJ22+'Comm Custom'!BJ22,0) -> 8907 | BL22: =ROUND(+'Res .95+% Res Furnace - NEW'!BL22+'Res .95+% Res Furnace - Replace'!BL22+'Programmable Tstats - Tier 1'!BL22+'Programmable Tstats - Tier 2'!BL22+'Residential Energy Assessments'!BL22+'Comm 95+% Furnace - NEW'!BL22+'Comm 95+% Furnace - Replace'!BL22+'Comm Custom'!BL22,0) -> 75143 | BN22: =ROUND(+'Res .95+% Res Furnace - NEW'!BN22+'Res .95+% Res Furnace - Replace'!BN22+'Programmable Tstats - Tier 1'!BN22+'Programmable Tstats - Tier 2'!BN22+'Residential Energy Assessments'!BN22+'Comm 95+% Furnace - NEW'!BN22+'Comm 95+% Furnace - Replace'!BN22+'Comm Custom'!BN22,0) -> 30294 | BP22: 105437 | BR22: =ROUND(+'Res .95+% Res Furnace - NEW'!BR22+'Res .95+% Res Furnace - Replace'!BR22+'Programmable Tstats - Tier 1'!BR22+'Programmable Tstats - Tier 2'!BR22+'Residential Energy Assessments'!BR22+'Comm 95+% Furnace - NEW'!BR22+'Comm 95+% Furnace - Replace'!BR22+'Comm Custom'!BR22,0) -> 0 | BT22: 105437 | BW22: 2029 | BX22: 37000 | BY22: 14329 | BZ22: 7591 | CA22: 58920 | CC22: 0 | CD22: 0 | CE22: 0 | CG22: 58920
A23: 5) Peak Reduction Factor = | E23: 20) Project Life (Years) = | J23: 9 | L23: 2030 | M23: =ROUND(+'Res .95+% Res Furnace - NEW'!M23+'Res .95+% Res Furnace - Replace'!M23+'Programmable Tstats - Tier 1'!M23+'Programmable Tstats - Tier 2'!M23+'Residential Energy Assessments'!M23+'Comm 95+% Furnace - NEW'!M23+'Comm 95+% Furnace - Replace'!M23+'Comm Custom'!M23,0) -> 8907 | O23: =ROUND(+'Res .95+% Res Furnace - NEW'!O23+'Res .95+% Res Furnace - Replace'!O23+'Programmable Tstats - Tier 1'!O23+'Programmable Tstats - Tier 2'!O23+'Residential Energy Assessments'!O23+'Comm 95+% Furnace - NEW'!O23+'Comm 95+% Furnace - Replace'!O23+'Comm Custom'!O23,0) -> 38103 | Q23: =ROUND(+'Res .95+% Res Furnace - NEW'!Q23+'Res .95+% Res Furnace - Replace'!Q23+'Programmable Tstats - Tier 1'!Q23+'Programmable Tstats - Tier 2'!Q23+'Residential Energy Assessments'!Q23+'Comm 95+% Furnace - NEW'!Q23+'Comm 95+% Furnace - Replace'!Q23+'Comm Custom'!Q23,0) -> 0 | R23: =ROUND(+'Res .95+% Res Furnace - NEW'!R23+'Res .95+% Res Furnace - Replace'!R23+'Programmable Tstats - Tier 1'!R23+'Programmable Tstats - Tier 2'!R23+'Residential Energy Assessments'!R23+'Comm 95+% Furnace - NEW'!R23+'Comm 95+% Furnace - Replace'!R23+'Comm Custom'!R23,0) -> 38103 | S23: =ROUND(+'Res .95+% Res Furnace - NEW'!S23+'Res .95+% Res Furnace - Replace'!S23+'Programmable Tstats - Tier 1'!S23+'Programmable Tstats - Tier 2'!S23+'Residential Energy Assessments'!S23+'Comm 95+% Furnace - NEW'!S23+'Comm 95+% Furnace - Replace'!S23+'Comm Custom'!S23,0) -> 89 | U23: =ROUND(+'Res .95+% Res Furnace - NEW'!U23+'Res .95+% Res Furnace - Replace'!U23+'Programmable Tstats - Tier 1'!U23+'Programmable Tstats - Tier 2'!U23+'Residential Energy Assessments'!U23+'Comm 95+% Furnace - NEW'!U23+'Comm 95+% Furnace - Replace'!U23+'Comm Custom'!U23,0) -> 14419 | V23: =ROUND(+'Res .95+% Res Furnace - NEW'!V23+'Res .95+% Res Furnace - Replace'!V23+'Programmable Tstats - Tier 1'!V23+'Programmable Tstats - Tier 2'!V23+'Residential Energy Assessments'!V23+'Comm 95+% Furnace - NEW'!V23+'Comm 95+% Furnace - Replace'!V23+'Comm Custom'!V23,0) -> 52522 | X23: =ROUND(+'Res .95+% Res Furnace - NEW'!X23+'Res .95+% Res Furnace - Replace'!X23+'Programmable Tstats - Tier 1'!X23+'Programmable Tstats - Tier 2'!X23+'Residential Energy Assessments'!X23+'Comm 95+% Furnace - NEW'!X23+'Comm 95+% Furnace - Replace'!X23+'Comm Custom'!X23,0) -> 14571 | Y23: =ROUND(+'Res .95+% Res Furnace - NEW'!Y23+'Res .95+% Res Furnace - Replace'!Y23+'Programmable Tstats - Tier 1'!Y23+'Programmable Tstats - Tier 2'!Y23+'Residential Energy Assessments'!Y23+'Comm 95+% Furnace - NEW'!Y23+'Comm 95+% Furnace - Replace'!Y23+'Comm Custom'!Y23,0) -> 0 | Z23: =ROUND(+'Res .95+% Res Furnace - NEW'!Z23+'Res .95+% Res Furnace - Replace'!Z23+'Programmable Tstats - Tier 1'!Z23+'Programmable Tstats - Tier 2'!Z23+'Residential Energy Assessments'!Z23+'Comm 95+% Furnace - NEW'!Z23+'Comm 95+% Furnace - Replace'!Z23+'Comm Custom'!Z23,0) -> 0 | AA23: =ROUND(+'Res .95+% Res Furnace - NEW'!AA23+'Res .95+% Res Furnace - Replace'!AA23+'Programmable Tstats - Tier 1'!AA23+'Programmable Tstats - Tier 2'!AA23+'Residential Energy Assessments'!AA23+'Comm 95+% Furnace - NEW'!AA23+'Comm 95+% Furnace - Replace'!AA23+'Comm Custom'!AA23,0) -> 14571 | AB23: =ROUND(+'Res .95+% Res Furnace - NEW'!AB23+'Res .95+% Res Furnace - Replace'!AB23+'Programmable Tstats - Tier 1'!AB23+'Programmable Tstats - Tier 2'!AB23+'Residential Energy Assessments'!AB23+'Comm 95+% Furnace - NEW'!AB23+'Comm 95+% Furnace - Replace'!AB23+'Comm Custom'!AB23,0) -> 37951 | AE23: 2030 | AF23: 38103 | AG23: 14419 | AH23: 52522 | AJ23: 0 | AK23: 0 | AL23: 0 | AN23: 52522 | AQ23: 2030 | AR23: 38103 | AS23: 14419 | AU23: =ROUND(+'Res .95+% Res Furnace - NEW'!AU23+'Res .95+% Res Furnace - Replace'!AU23+'Programmable Tstats - Tier 1'!AU23+'Programmable Tstats - Tier 2'!AU23+'Residential Energy Assessments'!AU23+'Comm 95+% Furnace - NEW'!AU23+'Comm 95+% Furnace - Replace'!AU23+'Comm Custom'!AU23,0) -> 7780 | AW23: =ROUND(+'Res .95+% Res Furnace - NEW'!AW23+'Res .95+% Res Furnace - Replace'!AW23+'Programmable Tstats - Tier 1'!AW23+'Programmable Tstats - Tier 2'!AW23+'Residential Energy Assessments'!AW23+'Comm 95+% Furnace - NEW'!AW23+'Comm 95+% Furnace - Replace'!AW23+'Comm Custom'!AW23,0) -> 22624 | AZ23: 82926 | BB23: =ROUND(+'Res .95+% Res Furnace - NEW'!BB23+'Res .95+% Res Furnace - Replace'!BB23+'Programmable Tstats - Tier 1'!BB23+'Programmable Tstats - Tier 2'!BB23+'Residential Energy Assessments'!BB23+'Comm 95+% Furnace - NEW'!BB23+'Comm 95+% Furnace - Replace'!BB23+'Comm Custom'!BB23,0) -> 0 | BC23: =ROUND(+'Res .95+% Res Furnace - NEW'!BC23+'Res .95+% Res Furnace - Replace'!BC23+'Programmable Tstats - Tier 1'!BC23+'Programmable Tstats - Tier 2'!BC23+'Residential Energy Assessments'!BC23+'Comm 95+% Furnace - NEW'!BC23+'Comm 95+% Furnace - Replace'!BC23+'Comm Custom'!BC23,0) -> 0 | BD23: 0 | BE23: 82926 | BH23: 2030 | BI23: =ROUND(+'Res .95+% Res Furnace - NEW'!BI23+'Res .95+% Res Furnace - Replace'!BI23+'Programmable Tstats - Tier 1'!BI23+'Programmable Tstats - Tier 2'!BI23+'Residential Energy Assessments'!BI23+'Comm 95+% Furnace - NEW'!BI23+'Comm 95+% Furnace - Replace'!BI23+'Comm Custom'!BI23,0) -> 0 | BJ23: =ROUND(+'Res .95+% Res Furnace - NEW'!BJ23+'Res .95+% Res Furnace - Replace'!BJ23+'Programmable Tstats - Tier 1'!BJ23+'Programmable Tstats - Tier 2'!BJ23+'Residential Energy Assessments'!BJ23+'Comm 95+% Furnace - NEW'!BJ23+'Comm 95+% Furnace - Replace'!BJ23+'Comm Custom'!BJ23,0) -> 8907 | BL23: =ROUND(+'Res .95+% Res Furnace - NEW'!BL23+'Res .95+% Res Furnace - Replace'!BL23+'Programmable Tstats - Tier 1'!BL23+'Programmable Tstats - Tier 2'!BL23+'Residential Energy Assessments'!BL23+'Comm 95+% Furnace - NEW'!BL23+'Comm 95+% Furnace - Replace'!BL23+'Comm Custom'!BL23,0) -> 77403 | BN23: =ROUND(+'Res .95+% Res Furnace - NEW'!BN23+'Res .95+% Res Furnace - Replace'!BN23+'Programmable Tstats - Tier 1'!BN23+'Programmable Tstats - Tier 2'!BN23+'Residential Energy Assessments'!BN23+'Comm 95+% Furnace - NEW'!BN23+'Comm 95+% Furnace - Replace'!BN23+'Comm Custom'!BN23,0) -> 31243 | BP23: 108646 | BR23: =ROUND(+'Res .95+% Res Furnace - NEW'!BR23+'Res .95+% Res Furnace - Replace'!BR23+'Programmable Tstats - Tier 1'!BR23+'Programmable Tstats - Tier 2'!BR23+'Residential Energy Assessments'!BR23+'Comm 95+% Furnace - NEW'!BR23+'Comm 95+% Furnace - Replace'!BR23+'Comm Custom'!BR23,0) -> 0 | BT23: 108646 | BW23: 2030 | BX23: 38103 | BY23: 14419 | BZ23: 7780 | CA23: 60302 | CC23: 0 | CD23: 0 | CE23: 0 | CG23: 60302
J24: 10 | L24: 2031 | M24: =ROUND(+'Res .95+% Res Furnace - NEW'!M24+'Res .95+% Res Furnace - Replace'!M24+'Programmable Tstats - Tier 1'!M24+'Programmable Tstats - Tier 2'!M24+'Residential Energy Assessments'!M24+'Comm 95+% Furnace - NEW'!M24+'Comm 95+% Furnace - Replace'!M24+'Comm Custom'!M24,0) -> 7624 | O24: =ROUND(+'Res .95+% Res Furnace - NEW'!O24+'Res .95+% Res Furnace - Replace'!O24+'Programmable Tstats - Tier 1'!O24+'Programmable Tstats - Tier 2'!O24+'Residential Energy Assessments'!O24+'Comm 95+% Furnace - NEW'!O24+'Comm 95+% Furnace - Replace'!O24+'Comm Custom'!O24,0) -> 33598 | Q24: =ROUND(+'Res .95+% Res Furnace - NEW'!Q24+'Res .95+% Res Furnace - Replace'!Q24+'Programmable Tstats - Tier 1'!Q24+'Programmable Tstats - Tier 2'!Q24+'Residential Energy Assessments'!Q24+'Comm 95+% Furnace - NEW'!Q24+'Comm 95+% Furnace - Replace'!Q24+'Comm Custom'!Q24,0) -> 0 | R24: =ROUND(+'Res .95+% Res Furnace - NEW'!R24+'Res .95+% Res Furnace - Replace'!R24+'Programmable Tstats - Tier 1'!R24+'Programmable Tstats - Tier 2'!R24+'Residential Energy Assessments'!R24+'Comm 95+% Furnace - NEW'!R24+'Comm 95+% Furnace - Replace'!R24+'Comm Custom'!R24,0) -> 33598 | S24: =ROUND(+'Res .95+% Res Furnace - NEW'!S24+'Res .95+% Res Furnace - Replace'!S24+'Programmable Tstats - Tier 1'!S24+'Programmable Tstats - Tier 2'!S24+'Residential Energy Assessments'!S24+'Comm 95+% Furnace - NEW'!S24+'Comm 95+% Furnace - Replace'!S24+'Comm Custom'!S24,0) -> 76 | U24: =ROUND(+'Res .95+% Res Furnace - NEW'!U24+'Res .95+% Res Furnace - Replace'!U24+'Programmable Tstats - Tier 1'!U24+'Programmable Tstats - Tier 2'!U24+'Residential Energy Assessments'!U24+'Comm 95+% Furnace - NEW'!U24+'Comm 95+% Furnace - Replace'!U24+'Comm Custom'!U24,0) -> 12497 | V24: =ROUND(+'Res .95+% Res Furnace - NEW'!V24+'Res .95+% Res Furnace - Replace'!V24+'Programmable Tstats - Tier 1'!V24+'Programmable Tstats - Tier 2'!V24+'Residential Energy Assessments'!V24+'Comm 95+% Furnace - NEW'!V24+'Comm 95+% Furnace - Replace'!V24+'Comm Custom'!V24,0) -> 46095 | X24: =ROUND(+'Res .95+% Res Furnace - NEW'!X24+'Res .95+% Res Furnace - Replace'!X24+'Programmable Tstats - Tier 1'!X24+'Programmable Tstats - Tier 2'!X24+'Residential Energy Assessments'!X24+'Comm 95+% Furnace - NEW'!X24+'Comm 95+% Furnace - Replace'!X24+'Comm Custom'!X24,0) -> 12504 | Y24: =ROUND(+'Res .95+% Res Furnace - NEW'!Y24+'Res .95+% Res Furnace - Replace'!Y24+'Programmable Tstats - Tier 1'!Y24+'Programmable Tstats - Tier 2'!Y24+'Residential Energy Assessments'!Y24+'Comm 95+% Furnace - NEW'!Y24+'Comm 95+% Furnace - Replace'!Y24+'Comm Custom'!Y24,0) -> 0 | Z24: =ROUND(+'Res .95+% Res Furnace - NEW'!Z24+'Res .95+% Res Furnace - Replace'!Z24+'Programmable Tstats - Tier 1'!Z24+'Programmable Tstats - Tier 2'!Z24+'Residential Energy Assessments'!Z24+'Comm 95+% Furnace - NEW'!Z24+'Comm 95+% Furnace - Replace'!Z24+'Comm Custom'!Z24,0) -> 0 | AA24: =ROUND(+'Res .95+% Res Furnace - NEW'!AA24+'Res .95+% Res Furnace - Replace'!AA24+'Programmable Tstats - Tier 1'!AA24+'Programmable Tstats - Tier 2'!AA24+'Residential Energy Assessments'!AA24+'Comm 95+% Furnace - NEW'!AA24+'Comm 95+% Furnace - Replace'!AA24+'Comm Custom'!AA24,0) -> 12504 | AB24: =ROUND(+'Res .95+% Res Furnace - NEW'!AB24+'Res .95+% Res Furnace - Replace'!AB24+'Programmable Tstats - Tier 1'!AB24+'Programmable Tstats - Tier 2'!AB24+'Residential Energy Assessments'!AB24+'Comm 95+% Furnace - NEW'!AB24+'Comm 95+% Furnace - Replace'!AB24+'Comm Custom'!AB24,0) -> 33591 | AE24: 2031 | AF24: 33598 | AG24: 12497 | AH24: 46095 | AJ24: 0 | AK24: 0 | AL24: 0 | AN24: 46095 | AQ24: 2031 | AR24: 33598 | AS24: 12497 | AU24: =ROUND(+'Res .95+% Res Furnace - NEW'!AU24+'Res .95+% Res Furnace - Replace'!AU24+'Programmable Tstats - Tier 1'!AU24+'Programmable Tstats - Tier 2'!AU24+'Residential Energy Assessments'!AU24+'Comm 95+% Furnace - NEW'!AU24+'Comm 95+% Furnace - Replace'!AU24+'Comm Custom'!AU24,0) -> 7681 | AW24: =ROUND(+'Res .95+% Res Furnace - NEW'!AW24+'Res .95+% Res Furnace - Replace'!AW24+'Programmable Tstats - Tier 1'!AW24+'Programmable Tstats - Tier 2'!AW24+'Residential Energy Assessments'!AW24+'Comm 95+% Furnace - NEW'!AW24+'Comm 95+% Furnace - Replace'!AW24+'Comm Custom'!AW24,0) -> 19815 | AZ24: 73591 | BB24: =ROUND(+'Res .95+% Res Furnace - NEW'!BB24+'Res .95+% Res Furnace - Replace'!BB24+'Programmable Tstats - Tier 1'!BB24+'Programmable Tstats - Tier 2'!BB24+'Residential Energy Assessments'!BB24+'Comm 95+% Furnace - NEW'!BB24+'Comm 95+% Furnace - Replace'!BB24+'Comm Custom'!BB24,0) -> 0 | BC24: =ROUND(+'Res .95+% Res Furnace - NEW'!BC24+'Res .95+% Res Furnace - Replace'!BC24+'Programmable Tstats - Tier 1'!BC24+'Programmable Tstats - Tier 2'!BC24+'Residential Energy Assessments'!BC24+'Comm 95+% Furnace - NEW'!BC24+'Comm 95+% Furnace - Replace'!BC24+'Comm Custom'!BC24,0) -> 0 | BD24: 0 | BE24: 73591 | BH24: 2031 | BI24: =ROUND(+'Res .95+% Res Furnace - NEW'!BI24+'Res .95+% Res Furnace - Replace'!BI24+'Programmable Tstats - Tier 1'!BI24+'Programmable Tstats - Tier 2'!BI24+'Residential Energy Assessments'!BI24+'Comm 95+% Furnace - NEW'!BI24+'Comm 95+% Furnace - Replace'!BI24+'Comm Custom'!BI24,0) -> 0 | BJ24: =ROUND(+'Res .95+% Res Furnace - NEW'!BJ24+'Res .95+% Res Furnace - Replace'!BJ24+'Programmable Tstats - Tier 1'!BJ24+'Programmable Tstats - Tier 2'!BJ24+'Residential Energy Assessments'!BJ24+'Comm 95+% Furnace - NEW'!BJ24+'Comm 95+% Furnace - Replace'!BJ24+'Comm Custom'!BJ24,0) -> 7624 | BL24: =ROUND(+'Res .95+% Res Furnace - NEW'!BL24+'Res .95+% Res Furnace - Replace'!BL24+'Programmable Tstats - Tier 1'!BL24+'Programmable Tstats - Tier 2'!BL24+'Residential Energy Assessments'!BL24+'Comm 95+% Furnace - NEW'!BL24+'Comm 95+% Furnace - Replace'!BL24+'Comm Custom'!BL24,0) -> 67808 | BN24: =ROUND(+'Res .95+% Res Furnace - NEW'!BN24+'Res .95+% Res Furnace - Replace'!BN24+'Programmable Tstats - Tier 1'!BN24+'Programmable Tstats - Tier 2'!BN24+'Residential Energy Assessments'!BN24+'Comm 95+% Furnace - NEW'!BN24+'Comm 95+% Furnace - Replace'!BN24+'Comm Custom'!BN24,0) -> 31020 | BP24: 98828 | BR24: =ROUND(+'Res .95+% Res Furnace - NEW'!BR24+'Res .95+% Res Furnace - Replace'!BR24+'Programmable Tstats - Tier 1'!BR24+'Programmable Tstats - Tier 2'!BR24+'Residential Energy Assessments'!BR24+'Comm 95+% Furnace - NEW'!BR24+'Comm 95+% Furnace - Replace'!BR24+'Comm Custom'!BR24,0) -> 0 | BT24: 98828 | BW24: 2031 | BX24: 33598 | BY24: 12497 | BZ24: 7681 | CA24: 53776 | CC24: 0 | CD24: 0 | CE24: 0 | CG24: 53776
A25: 6) Variable O&M ($/Dk) = | E25: 21) Avg. Dk/Part. Saved = | J25: 11 | L25: 2032 | M25: =ROUND(+'Res .95+% Res Furnace - NEW'!M25+'Res .95+% Res Furnace - Replace'!M25+'Programmable Tstats - Tier 1'!M25+'Programmable Tstats - Tier 2'!M25+'Residential Energy Assessments'!M25+'Comm 95+% Furnace - NEW'!M25+'Comm 95+% Furnace - Replace'!M25+'Comm Custom'!M25,0) -> 7624 | O25: =ROUND(+'Res .95+% Res Furnace - NEW'!O25+'Res .95+% Res Furnace - Replace'!O25+'Programmable Tstats - Tier 1'!O25+'Programmable Tstats - Tier 2'!O25+'Residential Energy Assessments'!O25+'Comm 95+% Furnace - NEW'!O25+'Comm 95+% Furnace - Replace'!O25+'Comm Custom'!O25,0) -> 34605 | Q25: =ROUND(+'Res .95+% Res Furnace - NEW'!Q25+'Res .95+% Res Furnace - Replace'!Q25+'Programmable Tstats - Tier 1'!Q25+'Programmable Tstats - Tier 2'!Q25+'Residential Energy Assessments'!Q25+'Comm 95+% Furnace - NEW'!Q25+'Comm 95+% Furnace - Replace'!Q25+'Comm Custom'!Q25,0) -> 0 | R25: =ROUND(+'Res .95+% Res Furnace - NEW'!R25+'Res .95+% Res Furnace - Replace'!R25+'Programmable Tstats - Tier 1'!R25+'Programmable Tstats - Tier 2'!R25+'Residential Energy Assessments'!R25+'Comm 95+% Furnace - NEW'!R25+'Comm 95+% Furnace - Replace'!R25+'Comm Custom'!R25,0) -> 34605 | S25: =ROUND(+'Res .95+% Res Furnace - NEW'!S25+'Res .95+% Res Furnace - Replace'!S25+'Programmable Tstats - Tier 1'!S25+'Programmable Tstats - Tier 2'!S25+'Residential Energy Assessments'!S25+'Comm 95+% Furnace - NEW'!S25+'Comm 95+% Furnace - Replace'!S25+'Comm Custom'!S25,0) -> 76 | U25: =ROUND(+'Res .95+% Res Furnace - NEW'!U25+'Res .95+% Res Furnace - Replace'!U25+'Programmable Tstats - Tier 1'!U25+'Programmable Tstats - Tier 2'!U25+'Residential Energy Assessments'!U25+'Comm 95+% Furnace - NEW'!U25+'Comm 95+% Furnace - Replace'!U25+'Comm Custom'!U25,0) -> 12649 | V25: =ROUND(+'Res .95+% Res Furnace - NEW'!V25+'Res .95+% Res Furnace - Replace'!V25+'Programmable Tstats - Tier 1'!V25+'Programmable Tstats - Tier 2'!V25+'Residential Energy Assessments'!V25+'Comm 95+% Furnace - NEW'!V25+'Comm 95+% Furnace - Replace'!V25+'Comm Custom'!V25,0) -> 47254 | X25: =ROUND(+'Res .95+% Res Furnace - NEW'!X25+'Res .95+% Res Furnace - Replace'!X25+'Programmable Tstats - Tier 1'!X25+'Programmable Tstats - Tier 2'!X25+'Residential Energy Assessments'!X25+'Comm 95+% Furnace - NEW'!X25+'Comm 95+% Furnace - Replace'!X25+'Comm Custom'!X25,0) -> 12879 | Y25: =ROUND(+'Res .95+% Res Furnace - NEW'!Y25+'Res .95+% Res Furnace - Replace'!Y25+'Programmable Tstats - Tier 1'!Y25+'Programmable Tstats - Tier 2'!Y25+'Residential Energy Assessments'!Y25+'Comm 95+% Furnace - NEW'!Y25+'Comm 95+% Furnace - Replace'!Y25+'Comm Custom'!Y25,0) -> 0 | Z25: =ROUND(+'Res .95+% Res Furnace - NEW'!Z25+'Res .95+% Res Furnace - Replace'!Z25+'Programmable Tstats - Tier 1'!Z25+'Programmable Tstats - Tier 2'!Z25+'Residential Energy Assessments'!Z25+'Comm 95+% Furnace - NEW'!Z25+'Comm 95+% Furnace - Replace'!Z25+'Comm Custom'!Z25,0) -> 0 | AA25: =ROUND(+'Res .95+% Res Furnace - NEW'!AA25+'Res .95+% Res Furnace - Replace'!AA25+'Programmable Tstats - Tier 1'!AA25+'Programmable Tstats - Tier 2'!AA25+'Residential Energy Assessments'!AA25+'Comm 95+% Furnace - NEW'!AA25+'Comm 95+% Furnace - Replace'!AA25+'Comm Custom'!AA25,0) -> 12879 | AB25: =ROUND(+'Res .95+% Res Furnace - NEW'!AB25+'Res .95+% Res Furnace - Replace'!AB25+'Programmable Tstats - Tier 1'!AB25+'Programmable Tstats - Tier 2'!AB25+'Residential Energy Assessments'!AB25+'Comm 95+% Furnace - NEW'!AB25+'Comm 95+% Furnace - Replace'!AB25+'Comm Custom'!AB25,0) -> 34375 | AE25: 2032 | AF25: 34605 | AG25: 12649 | AH25: 47254 | AJ25: 0 | AK25: 0 | AL25: 0 | AN25: 47254 | AQ25: 2032 | AR25: 34605 | AS25: 12649 | AU25: =ROUND(+'Res .95+% Res Furnace - NEW'!AU25+'Res .95+% Res Furnace - Replace'!AU25+'Programmable Tstats - Tier 1'!AU25+'Programmable Tstats - Tier 2'!AU25+'Residential Energy Assessments'!AU25+'Comm 95+% Furnace - NEW'!AU25+'Comm 95+% Furnace - Replace'!AU25+'Comm Custom'!AU25,0) -> 7863 | AW25: =ROUND(+'Res .95+% Res Furnace - NEW'!AW25+'Res .95+% Res Furnace - Replace'!AW25+'Programmable Tstats - Tier 1'!AW25+'Programmable Tstats - Tier 2'!AW25+'Residential Energy Assessments'!AW25+'Comm 95+% Furnace - NEW'!AW25+'Comm 95+% Furnace - Replace'!AW25+'Comm Custom'!AW25,0) -> 20264 | AZ25: 75381 | BB25: =ROUND(+'Res .95+% Res Furnace - NEW'!BB25+'Res .95+% Res Furnace - Replace'!BB25+'Programmable Tstats - Tier 1'!BB25+'Programmable Tstats - Tier 2'!BB25+'Residential Energy Assessments'!BB25+'Comm 95+% Furnace - NEW'!BB25+'Comm 95+% Furnace - Replace'!BB25+'Comm Custom'!BB25,0) -> 0 | BC25: =ROUND(+'Res .95+% Res Furnace - NEW'!BC25+'Res .95+% Res Furnace - Replace'!BC25+'Programmable Tstats - Tier 1'!BC25+'Programmable Tstats - Tier 2'!BC25+'Residential Energy Assessments'!BC25+'Comm 95+% Furnace - NEW'!BC25+'Comm 95+% Furnace - Replace'!BC25+'Comm Custom'!BC25,0) -> 0 | BD25: 0 | BE25: 75381 | BH25: 2032 | BI25: =ROUND(+'Res .95+% Res Furnace - NEW'!BI25+'Res .95+% Res Furnace - Replace'!BI25+'Programmable Tstats - Tier 1'!BI25+'Programmable Tstats - Tier 2'!BI25+'Residential Energy Assessments'!BI25+'Comm 95+% Furnace - NEW'!BI25+'Comm 95+% Furnace - Replace'!BI25+'Comm Custom'!BI25,0) -> 0 | BJ25: =ROUND(+'Res .95+% Res Furnace - NEW'!BJ25+'Res .95+% Res Furnace - Replace'!BJ25+'Programmable Tstats - Tier 1'!BJ25+'Programmable Tstats - Tier 2'!BJ25+'Residential Energy Assessments'!BJ25+'Comm 95+% Furnace - NEW'!BJ25+'Comm 95+% Furnace - Replace'!BJ25+'Comm Custom'!BJ25,0) -> 7624 | BL25: =ROUND(+'Res .95+% Res Furnace - NEW'!BL25+'Res .95+% Res Furnace - Replace'!BL25+'Programmable Tstats - Tier 1'!BL25+'Programmable Tstats - Tier 2'!BL25+'Residential Energy Assessments'!BL25+'Comm 95+% Furnace - NEW'!BL25+'Comm 95+% Furnace - Replace'!BL25+'Comm Custom'!BL25,0) -> 69845 | BN25: =ROUND(+'Res .95+% Res Furnace - NEW'!BN25+'Res .95+% Res Furnace - Replace'!BN25+'Programmable Tstats - Tier 1'!BN25+'Programmable Tstats - Tier 2'!BN25+'Residential Energy Assessments'!BN25+'Comm 95+% Furnace - NEW'!BN25+'Comm 95+% Furnace - Replace'!BN25+'Comm Custom'!BN25,0) -> 31935 | BP25: 101780 | BR25: =ROUND(+'Res .95+% Res Furnace - NEW'!BR25+'Res .95+% Res Furnace - Replace'!BR25+'Programmable Tstats - Tier 1'!BR25+'Programmable Tstats - Tier 2'!BR25+'Residential Energy Assessments'!BR25+'Comm 95+% Furnace - NEW'!BR25+'Comm 95+% Furnace - Replace'!BR25+'Comm Custom'!BR25,0) -> 0 | BT25: 101780 | BW25: 2032 | BX25: 34605 | BY25: 12649 | BZ25: 7863 | CA25: 55117 | CC25: 0 | CD25: 0 | CE25: 0 | CG25: 55117
A26: Escalation Rate = | J26: 12 | L26: 2033 | M26: =ROUND(+'Res .95+% Res Furnace - NEW'!M26+'Res .95+% Res Furnace - Replace'!M26+'Programmable Tstats - Tier 1'!M26+'Programmable Tstats - Tier 2'!M26+'Residential Energy Assessments'!M26+'Comm 95+% Furnace - NEW'!M26+'Comm 95+% Furnace - Replace'!M26+'Comm Custom'!M26,0) -> 7624 | O26: =ROUND(+'Res .95+% Res Furnace - NEW'!O26+'Res .95+% Res Furnace - Replace'!O26+'Programmable Tstats - Tier 1'!O26+'Programmable Tstats - Tier 2'!O26+'Residential Energy Assessments'!O26+'Comm 95+% Furnace - NEW'!O26+'Comm 95+% Furnace - Replace'!O26+'Comm Custom'!O26,0) -> 35643 | Q26: =ROUND(+'Res .95+% Res Furnace - NEW'!Q26+'Res .95+% Res Furnace - Replace'!Q26+'Programmable Tstats - Tier 1'!Q26+'Programmable Tstats - Tier 2'!Q26+'Residential Energy Assessments'!Q26+'Comm 95+% Furnace - NEW'!Q26+'Comm 95+% Furnace - Replace'!Q26+'Comm Custom'!Q26,0) -> 0 | R26: =ROUND(+'Res .95+% Res Furnace - NEW'!R26+'Res .95+% Res Furnace - Replace'!R26+'Programmable Tstats - Tier 1'!R26+'Programmable Tstats - Tier 2'!R26+'Residential Energy Assessments'!R26+'Comm 95+% Furnace - NEW'!R26+'Comm 95+% Furnace - Replace'!R26+'Comm Custom'!R26,0) -> 35643 | S26: =ROUND(+'Res .95+% Res Furnace - NEW'!S26+'Res .95+% Res Furnace - Replace'!S26+'Programmable Tstats - Tier 1'!S26+'Programmable Tstats - Tier 2'!S26+'Residential Energy Assessments'!S26+'Comm 95+% Furnace - NEW'!S26+'Comm 95+% Furnace - Replace'!S26+'Comm Custom'!S26,0) -> 76 | U26: =ROUND(+'Res .95+% Res Furnace - NEW'!U26+'Res .95+% Res Furnace - Replace'!U26+'Programmable Tstats - Tier 1'!U26+'Programmable Tstats - Tier 2'!U26+'Residential Energy Assessments'!U26+'Comm 95+% Furnace - NEW'!U26+'Comm 95+% Furnace - Replace'!U26+'Comm Custom'!U26,0) -> 12725 | V26: =ROUND(+'Res .95+% Res Furnace - NEW'!V26+'Res .95+% Res Furnace - Replace'!V26+'Programmable Tstats - Tier 1'!V26+'Programmable Tstats - Tier 2'!V26+'Residential Energy Assessments'!V26+'Comm 95+% Furnace - NEW'!V26+'Comm 95+% Furnace - Replace'!V26+'Comm Custom'!V26,0) -> 48368 | X26: =ROUND(+'Res .95+% Res Furnace - NEW'!X26+'Res .95+% Res Furnace - Replace'!X26+'Programmable Tstats - Tier 1'!X26+'Programmable Tstats - Tier 2'!X26+'Residential Energy Assessments'!X26+'Comm 95+% Furnace - NEW'!X26+'Comm 95+% Furnace - Replace'!X26+'Comm Custom'!X26,0) -> 13269 | Y26: =ROUND(+'Res .95+% Res Furnace - NEW'!Y26+'Res .95+% Res Furnace - Replace'!Y26+'Programmable Tstats - Tier 1'!Y26+'Programmable Tstats - Tier 2'!Y26+'Residential Energy Assessments'!Y26+'Comm 95+% Furnace - NEW'!Y26+'Comm 95+% Furnace - Replace'!Y26+'Comm Custom'!Y26,0) -> 0 | Z26: =ROUND(+'Res .95+% Res Furnace - NEW'!Z26+'Res .95+% Res Furnace - Replace'!Z26+'Programmable Tstats - Tier 1'!Z26+'Programmable Tstats - Tier 2'!Z26+'Residential Energy Assessments'!Z26+'Comm 95+% Furnace - NEW'!Z26+'Comm 95+% Furnace - Replace'!Z26+'Comm Custom'!Z26,0) -> 0 | AA26: =ROUND(+'Res .95+% Res Furnace - NEW'!AA26+'Res .95+% Res Furnace - Replace'!AA26+'Programmable Tstats - Tier 1'!AA26+'Programmable Tstats - Tier 2'!AA26+'Residential Energy Assessments'!AA26+'Comm 95+% Furnace - NEW'!AA26+'Comm 95+% Furnace - Replace'!AA26+'Comm Custom'!AA26,0) -> 13269 | AB26: =ROUND(+'Res .95+% Res Furnace - NEW'!AB26+'Res .95+% Res Furnace - Replace'!AB26+'Programmable Tstats - Tier 1'!AB26+'Programmable Tstats - Tier 2'!AB26+'Residential Energy Assessments'!AB26+'Comm 95+% Furnace - NEW'!AB26+'Comm 95+% Furnace - Replace'!AB26+'Comm Custom'!AB26,0) -> 35099 | AE26: 2033 | AF26: 35643 | AG26: 12725 | AH26: 48368 | AJ26: 0 | AK26: 0 | AL26: 0 | AN26: 48368 | AQ26: 2033 | AR26: 35643 | AS26: 12725 | AU26: =ROUND(+'Res .95+% Res Furnace - NEW'!AU26+'Res .95+% Res Furnace - Replace'!AU26+'Programmable Tstats - Tier 1'!AU26+'Programmable Tstats - Tier 2'!AU26+'Residential Energy Assessments'!AU26+'Comm 95+% Furnace - NEW'!AU26+'Comm 95+% Furnace - Replace'!AU26+'Comm Custom'!AU26,0) -> 8047 | AW26: =ROUND(+'Res .95+% Res Furnace - NEW'!AW26+'Res .95+% Res Furnace - Replace'!AW26+'Programmable Tstats - Tier 1'!AW26+'Programmable Tstats - Tier 2'!AW26+'Residential Energy Assessments'!AW26+'Comm 95+% Furnace - NEW'!AW26+'Comm 95+% Furnace - Replace'!AW26+'Comm Custom'!AW26,0) -> 20730 | AZ26: 77145 | BB26: =ROUND(+'Res .95+% Res Furnace - NEW'!BB26+'Res .95+% Res Furnace - Replace'!BB26+'Programmable Tstats - Tier 1'!BB26+'Programmable Tstats - Tier 2'!BB26+'Residential Energy Assessments'!BB26+'Comm 95+% Furnace - NEW'!BB26+'Comm 95+% Furnace - Replace'!BB26+'Comm Custom'!BB26,0) -> 0 | BC26: =ROUND(+'Res .95+% Res Furnace - NEW'!BC26+'Res .95+% Res Furnace - Replace'!BC26+'Programmable Tstats - Tier 1'!BC26+'Programmable Tstats - Tier 2'!BC26+'Residential Energy Assessments'!BC26+'Comm 95+% Furnace - NEW'!BC26+'Comm 95+% Furnace - Replace'!BC26+'Comm Custom'!BC26,0) -> 0 | BD26: 0 | BE26: 77145 | BH26: 2033 | BI26: =ROUND(+'Res .95+% Res Furnace - NEW'!BI26+'Res .95+% Res Furnace - Replace'!BI26+'Programmable Tstats - Tier 1'!BI26+'Programmable Tstats - Tier 2'!BI26+'Residential Energy Assessments'!BI26+'Comm 95+% Furnace - NEW'!BI26+'Comm 95+% Furnace - Replace'!BI26+'Comm Custom'!BI26,0) -> 0 | BJ26: =ROUND(+'Res .95+% Res Furnace - NEW'!BJ26+'Res .95+% Res Furnace - Replace'!BJ26+'Programmable Tstats - Tier 1'!BJ26+'Programmable Tstats - Tier 2'!BJ26+'Residential Energy Assessments'!BJ26+'Comm 95+% Furnace - NEW'!BJ26+'Comm 95+% Furnace - Replace'!BJ26+'Comm Custom'!BJ26,0) -> 7624 | BL26: =ROUND(+'Res .95+% Res Furnace - NEW'!BL26+'Res .95+% Res Furnace - Replace'!BL26+'Programmable Tstats - Tier 1'!BL26+'Programmable Tstats - Tier 2'!BL26+'Residential Energy Assessments'!BL26+'Comm 95+% Furnace - NEW'!BL26+'Comm 95+% Furnace - Replace'!BL26+'Comm Custom'!BL26,0) -> 71940 | BN26: =ROUND(+'Res .95+% Res Furnace - NEW'!BN26+'Res .95+% Res Furnace - Replace'!BN26+'Programmable Tstats - Tier 1'!BN26+'Programmable Tstats - Tier 2'!BN26+'Residential Energy Assessments'!BN26+'Comm 95+% Furnace - NEW'!BN26+'Comm 95+% Furnace - Replace'!BN26+'Comm Custom'!BN26,0) -> 32849 | BP26: 104789 | BR26: =ROUND(+'Res .95+% Res Furnace - NEW'!BR26+'Res .95+% Res Furnace - Replace'!BR26+'Programmable Tstats - Tier 1'!BR26+'Programmable Tstats - Tier 2'!BR26+'Residential Energy Assessments'!BR26+'Comm 95+% Furnace - NEW'!BR26+'Comm 95+% Furnace - Replace'!BR26+'Comm Custom'!BR26,0) -> 0 | BT26: 104789 | BW26: 2033 | BX26: 35643 | BY26: 12725 | BZ26: 8047 | CA26: 56415 | CC26: 0 | CD26: 0 | CE26: 0 | CG26: 56415
E27: 22) Avg Non-Gas Fuel Units/Part. Saved = | J27: 13 | L27: 2034 | M27: =ROUND(+'Res .95+% Res Furnace - NEW'!M27+'Res .95+% Res Furnace - Replace'!M27+'Programmable Tstats - Tier 1'!M27+'Programmable Tstats - Tier 2'!M27+'Residential Energy Assessments'!M27+'Comm 95+% Furnace - NEW'!M27+'Comm 95+% Furnace - Replace'!M27+'Comm Custom'!M27,0) -> 7624 | O27: =ROUND(+'Res .95+% Res Furnace - NEW'!O27+'Res .95+% Res Furnace - Replace'!O27+'Programmable Tstats - Tier 1'!O27+'Programmable Tstats - Tier 2'!O27+'Residential Energy Assessments'!O27+'Comm 95+% Furnace - NEW'!O27+'Comm 95+% Furnace - Replace'!O27+'Comm Custom'!O27,0) -> 36710 | Q27: =ROUND(+'Res .95+% Res Furnace - NEW'!Q27+'Res .95+% Res Furnace - Replace'!Q27+'Programmable Tstats - Tier 1'!Q27+'Programmable Tstats - Tier 2'!Q27+'Residential Energy Assessments'!Q27+'Comm 95+% Furnace - NEW'!Q27+'Comm 95+% Furnace - Replace'!Q27+'Comm Custom'!Q27,0) -> 0 | R27: =ROUND(+'Res .95+% Res Furnace - NEW'!R27+'Res .95+% Res Furnace - Replace'!R27+'Programmable Tstats - Tier 1'!R27+'Programmable Tstats - Tier 2'!R27+'Residential Energy Assessments'!R27+'Comm 95+% Furnace - NEW'!R27+'Comm 95+% Furnace - Replace'!R27+'Comm Custom'!R27,0) -> 36710 | S27: =ROUND(+'Res .95+% Res Furnace - NEW'!S27+'Res .95+% Res Furnace - Replace'!S27+'Programmable Tstats - Tier 1'!S27+'Programmable Tstats - Tier 2'!S27+'Residential Energy Assessments'!S27+'Comm 95+% Furnace - NEW'!S27+'Comm 95+% Furnace - Replace'!S27+'Comm Custom'!S27,0) -> 76 | U27: =ROUND(+'Res .95+% Res Furnace - NEW'!U27+'Res .95+% Res Furnace - Replace'!U27+'Programmable Tstats - Tier 1'!U27+'Programmable Tstats - Tier 2'!U27+'Residential Energy Assessments'!U27+'Comm 95+% Furnace - NEW'!U27+'Comm 95+% Furnace - Replace'!U27+'Comm Custom'!U27,0) -> 12878 | V27: =ROUND(+'Res .95+% Res Furnace - NEW'!V27+'Res .95+% Res Furnace - Replace'!V27+'Programmable Tstats - Tier 1'!V27+'Programmable Tstats - Tier 2'!V27+'Residential Energy Assessments'!V27+'Comm 95+% Furnace - NEW'!V27+'Comm 95+% Furnace - Replace'!V27+'Comm Custom'!V27,0) -> 49588 | X27: =ROUND(+'Res .95+% Res Furnace - NEW'!X27+'Res .95+% Res Furnace - Replace'!X27+'Programmable Tstats - Tier 1'!X27+'Programmable Tstats - Tier 2'!X27+'Residential Energy Assessments'!X27+'Comm 95+% Furnace - NEW'!X27+'Comm 95+% Furnace - Replace'!X27+'Comm Custom'!X27,0) -> 13665 | Y27: =ROUND(+'Res .95+% Res Furnace - NEW'!Y27+'Res .95+% Res Furnace - Replace'!Y27+'Programmable Tstats - Tier 1'!Y27+'Programmable Tstats - Tier 2'!Y27+'Residential Energy Assessments'!Y27+'Comm 95+% Furnace - NEW'!Y27+'Comm 95+% Furnace - Replace'!Y27+'Comm Custom'!Y27,0) -> 0 | Z27: =ROUND(+'Res .95+% Res Furnace - NEW'!Z27+'Res .95+% Res Furnace - Replace'!Z27+'Programmable Tstats - Tier 1'!Z27+'Programmable Tstats - Tier 2'!Z27+'Residential Energy Assessments'!Z27+'Comm 95+% Furnace - NEW'!Z27+'Comm 95+% Furnace - Replace'!Z27+'Comm Custom'!Z27,0) -> 0 | AA27: =ROUND(+'Res .95+% Res Furnace - NEW'!AA27+'Res .95+% Res Furnace - Replace'!AA27+'Programmable Tstats - Tier 1'!AA27+'Programmable Tstats - Tier 2'!AA27+'Residential Energy Assessments'!AA27+'Comm 95+% Furnace - NEW'!AA27+'Comm 95+% Furnace - Replace'!AA27+'Comm Custom'!AA27,0) -> 13665 | AB27: =ROUND(+'Res .95+% Res Furnace - NEW'!AB27+'Res .95+% Res Furnace - Replace'!AB27+'Programmable Tstats - Tier 1'!AB27+'Programmable Tstats - Tier 2'!AB27+'Residential Energy Assessments'!AB27+'Comm 95+% Furnace - NEW'!AB27+'Comm 95+% Furnace - Replace'!AB27+'Comm Custom'!AB27,0) -> 35923 | AE27: 2034 | AF27: 36710 | AG27: 12878 | AH27: 49588 | AJ27: 0 | AK27: 0 | AL27: 0 | AN27: 49588 | AQ27: 2034 | AR27: 36710 | AS27: 12878 | AU27: =ROUND(+'Res .95+% Res Furnace - NEW'!AU27+'Res .95+% Res Furnace - Replace'!AU27+'Programmable Tstats - Tier 1'!AU27+'Programmable Tstats - Tier 2'!AU27+'Residential Energy Assessments'!AU27+'Comm 95+% Furnace - NEW'!AU27+'Comm 95+% Furnace - Replace'!AU27+'Comm Custom'!AU27,0) -> 8413 | AW27: =ROUND(+'Res .95+% Res Furnace - NEW'!AW27+'Res .95+% Res Furnace - Replace'!AW27+'Programmable Tstats - Tier 1'!AW27+'Programmable Tstats - Tier 2'!AW27+'Residential Energy Assessments'!AW27+'Comm 95+% Furnace - NEW'!AW27+'Comm 95+% Furnace - Replace'!AW27+'Comm Custom'!AW27,0) -> 21210 | AZ27: 79211 | BB27: =ROUND(+'Res .95+% Res Furnace - NEW'!BB27+'Res .95+% Res Furnace - Replace'!BB27+'Programmable Tstats - Tier 1'!BB27+'Programmable Tstats - Tier 2'!BB27+'Residential Energy Assessments'!BB27+'Comm 95+% Furnace - NEW'!BB27+'Comm 95+% Furnace - Replace'!BB27+'Comm Custom'!BB27,0) -> 0 | BC27: =ROUND(+'Res .95+% Res Furnace - NEW'!BC27+'Res .95+% Res Furnace - Replace'!BC27+'Programmable Tstats - Tier 1'!BC27+'Programmable Tstats - Tier 2'!BC27+'Residential Energy Assessments'!BC27+'Comm 95+% Furnace - NEW'!BC27+'Comm 95+% Furnace - Replace'!BC27+'Comm Custom'!BC27,0) -> 0 | BD27: 0 | BE27: 79211 | BH27: 2034 | BI27: =ROUND(+'Res .95+% Res Furnace - NEW'!BI27+'Res .95+% Res Furnace - Replace'!BI27+'Programmable Tstats - Tier 1'!BI27+'Programmable Tstats - Tier 2'!BI27+'Residential Energy Assessments'!BI27+'Comm 95+% Furnace - NEW'!BI27+'Comm 95+% Furnace - Replace'!BI27+'Comm Custom'!BI27,0) -> 0 | BJ27: =ROUND(+'Res .95+% Res Furnace - NEW'!BJ27+'Res .95+% Res Furnace - Replace'!BJ27+'Programmable Tstats - Tier 1'!BJ27+'Programmable Tstats - Tier 2'!BJ27+'Residential Energy Assessments'!BJ27+'Comm 95+% Furnace - NEW'!BJ27+'Comm 95+% Furnace - Replace'!BJ27+'Comm Custom'!BJ27,0) -> 7624 | BL27: =ROUND(+'Res .95+% Res Furnace - NEW'!BL27+'Res .95+% Res Furnace - Replace'!BL27+'Programmable Tstats - Tier 1'!BL27+'Programmable Tstats - Tier 2'!BL27+'Residential Energy Assessments'!BL27+'Comm 95+% Furnace - NEW'!BL27+'Comm 95+% Furnace - Replace'!BL27+'Comm Custom'!BL27,0) -> 74097 | BN27: =ROUND(+'Res .95+% Res Furnace - NEW'!BN27+'Res .95+% Res Furnace - Replace'!BN27+'Programmable Tstats - Tier 1'!BN27+'Programmable Tstats - Tier 2'!BN27+'Residential Energy Assessments'!BN27+'Comm 95+% Furnace - NEW'!BN27+'Comm 95+% Furnace - Replace'!BN27+'Comm Custom'!BN27,0) -> 33935 | BP27: 108032 | BR27: =ROUND(+'Res .95+% Res Furnace - NEW'!BR27+'Res .95+% Res Furnace - Replace'!BR27+'Programmable Tstats - Tier 1'!BR27+'Programmable Tstats - Tier 2'!BR27+'Residential Energy Assessments'!BR27+'Comm 95+% Furnace - NEW'!BR27+'Comm 95+% Furnace - Replace'!BR27+'Comm Custom'!BR27,0) -> 0 | BT27: 108032 | BW27: 2034 | BX27: 36710 | BY27: 12878 | BZ27: 8413 | CA27: 58001 | CC27: 0 | CD27: 0 | CE27: 0 | CG27: 58001
A28: 7) Non-Gas Fuel Cost ($/Fuel Unit) = | E28: 22a) Avg Additional Non-Gas Fuel Units/ Part. Used = | J28: 14 | L28: 2035 | M28: =ROUND(+'Res .95+% Res Furnace - NEW'!M28+'Res .95+% Res Furnace - Replace'!M28+'Programmable Tstats - Tier 1'!M28+'Programmable Tstats - Tier 2'!M28+'Residential Energy Assessments'!M28+'Comm 95+% Furnace - NEW'!M28+'Comm 95+% Furnace - Replace'!M28+'Comm Custom'!M28,0) -> 7624 | O28: =ROUND(+'Res .95+% Res Furnace - NEW'!O28+'Res .95+% Res Furnace - Replace'!O28+'Programmable Tstats - Tier 1'!O28+'Programmable Tstats - Tier 2'!O28+'Residential Energy Assessments'!O28+'Comm 95+% Furnace - NEW'!O28+'Comm 95+% Furnace - Replace'!O28+'Comm Custom'!O28,0) -> 37815 | Q28: =ROUND(+'Res .95+% Res Furnace - NEW'!Q28+'Res .95+% Res Furnace - Replace'!Q28+'Programmable Tstats - Tier 1'!Q28+'Programmable Tstats - Tier 2'!Q28+'Residential Energy Assessments'!Q28+'Comm 95+% Furnace - NEW'!Q28+'Comm 95+% Furnace - Replace'!Q28+'Comm Custom'!Q28,0) -> 0 | R28: =ROUND(+'Res .95+% Res Furnace - NEW'!R28+'Res .95+% Res Furnace - Replace'!R28+'Programmable Tstats - Tier 1'!R28+'Programmable Tstats - Tier 2'!R28+'Residential Energy Assessments'!R28+'Comm 95+% Furnace - NEW'!R28+'Comm 95+% Furnace - Replace'!R28+'Comm Custom'!R28,0) -> 37815 | S28: =ROUND(+'Res .95+% Res Furnace - NEW'!S28+'Res .95+% Res Furnace - Replace'!S28+'Programmable Tstats - Tier 1'!S28+'Programmable Tstats - Tier 2'!S28+'Residential Energy Assessments'!S28+'Comm 95+% Furnace - NEW'!S28+'Comm 95+% Furnace - Replace'!S28+'Comm Custom'!S28,0) -> 76 | U28: =ROUND(+'Res .95+% Res Furnace - NEW'!U28+'Res .95+% Res Furnace - Replace'!U28+'Programmable Tstats - Tier 1'!U28+'Programmable Tstats - Tier 2'!U28+'Residential Energy Assessments'!U28+'Comm 95+% Furnace - NEW'!U28+'Comm 95+% Furnace - Replace'!U28+'Comm Custom'!U28,0) -> 13030 | V28: =ROUND(+'Res .95+% Res Furnace - NEW'!V28+'Res .95+% Res Furnace - Replace'!V28+'Programmable Tstats - Tier 1'!V28+'Programmable Tstats - Tier 2'!V28+'Residential Energy Assessments'!V28+'Comm 95+% Furnace - NEW'!V28+'Comm 95+% Furnace - Replace'!V28+'Comm Custom'!V28,0) -> 50845 | X28: =ROUND(+'Res .95+% Res Furnace - NEW'!X28+'Res .95+% Res Furnace - Replace'!X28+'Programmable Tstats - Tier 1'!X28+'Programmable Tstats - Tier 2'!X28+'Residential Energy Assessments'!X28+'Comm 95+% Furnace - NEW'!X28+'Comm 95+% Furnace - Replace'!X28+'Comm Custom'!X28,0) -> 14076 | Y28: =ROUND(+'Res .95+% Res Furnace - NEW'!Y28+'Res .95+% Res Furnace - Replace'!Y28+'Programmable Tstats - Tier 1'!Y28+'Programmable Tstats - Tier 2'!Y28+'Residential Energy Assessments'!Y28+'Comm 95+% Furnace - NEW'!Y28+'Comm 95+% Furnace - Replace'!Y28+'Comm Custom'!Y28,0) -> 0 | Z28: =ROUND(+'Res .95+% Res Furnace - NEW'!Z28+'Res .95+% Res Furnace - Replace'!Z28+'Programmable Tstats - Tier 1'!Z28+'Programmable Tstats - Tier 2'!Z28+'Residential Energy Assessments'!Z28+'Comm 95+% Furnace - NEW'!Z28+'Comm 95+% Furnace - Replace'!Z28+'Comm Custom'!Z28,0) -> 0 | AA28: =ROUND(+'Res .95+% Res Furnace - NEW'!AA28+'Res .95+% Res Furnace - Replace'!AA28+'Programmable Tstats - Tier 1'!AA28+'Programmable Tstats - Tier 2'!AA28+'Residential Energy Assessments'!AA28+'Comm 95+% Furnace - NEW'!AA28+'Comm 95+% Furnace - Replace'!AA28+'Comm Custom'!AA28,0) -> 14076 | AB28: =ROUND(+'Res .95+% Res Furnace - NEW'!AB28+'Res .95+% Res Furnace - Replace'!AB28+'Programmable Tstats - Tier 1'!AB28+'Programmable Tstats - Tier 2'!AB28+'Residential Energy Assessments'!AB28+'Comm 95+% Furnace - NEW'!AB28+'Comm 95+% Furnace - Replace'!AB28+'Comm Custom'!AB28,0) -> 36769 | AE28: 2035 | AF28: 37815 | AG28: 13030 | AH28: 50845 | AJ28: 0 | AK28: 0 | AL28: 0 | AN28: 50845 | AQ28: 2035 | AR28: 37815 | AS28: 13030 | AU28: =ROUND(+'Res .95+% Res Furnace - NEW'!AU28+'Res .95+% Res Furnace - Replace'!AU28+'Programmable Tstats - Tier 1'!AU28+'Programmable Tstats - Tier 2'!AU28+'Residential Energy Assessments'!AU28+'Comm 95+% Furnace - NEW'!AU28+'Comm 95+% Furnace - Replace'!AU28+'Comm Custom'!AU28,0) -> 8595 | AW28: =ROUND(+'Res .95+% Res Furnace - NEW'!AW28+'Res .95+% Res Furnace - Replace'!AW28+'Programmable Tstats - Tier 1'!AW28+'Programmable Tstats - Tier 2'!AW28+'Residential Energy Assessments'!AW28+'Comm 95+% Furnace - NEW'!AW28+'Comm 95+% Furnace - Replace'!AW28+'Comm Custom'!AW28,0) -> 21697 | AZ28: 81137 | BB28: =ROUND(+'Res .95+% Res Furnace - NEW'!BB28+'Res .95+% Res Furnace - Replace'!BB28+'Programmable Tstats - Tier 1'!BB28+'Programmable Tstats - Tier 2'!BB28+'Residential Energy Assessments'!BB28+'Comm 95+% Furnace - NEW'!BB28+'Comm 95+% Furnace - Replace'!BB28+'Comm Custom'!BB28,0) -> 0 | BC28: =ROUND(+'Res .95+% Res Furnace - NEW'!BC28+'Res .95+% Res Furnace - Replace'!BC28+'Programmable Tstats - Tier 1'!BC28+'Programmable Tstats - Tier 2'!BC28+'Residential Energy Assessments'!BC28+'Comm 95+% Furnace - NEW'!BC28+'Comm 95+% Furnace - Replace'!BC28+'Comm Custom'!BC28,0) -> 0 | BD28: 0 | BE28: 81137 | BH28: 2035 | BI28: =ROUND(+'Res .95+% Res Furnace - NEW'!BI28+'Res .95+% Res Furnace - Replace'!BI28+'Programmable Tstats - Tier 1'!BI28+'Programmable Tstats - Tier 2'!BI28+'Residential Energy Assessments'!BI28+'Comm 95+% Furnace - NEW'!BI28+'Comm 95+% Furnace - Replace'!BI28+'Comm Custom'!BI28,0) -> 0 | BJ28: =ROUND(+'Res .95+% Res Furnace - NEW'!BJ28+'Res .95+% Res Furnace - Replace'!BJ28+'Programmable Tstats - Tier 1'!BJ28+'Programmable Tstats - Tier 2'!BJ28+'Residential Energy Assessments'!BJ28+'Comm 95+% Furnace - NEW'!BJ28+'Comm 95+% Furnace - Replace'!BJ28+'Comm Custom'!BJ28,0) -> 7624 | BL28: =ROUND(+'Res .95+% Res Furnace - NEW'!BL28+'Res .95+% Res Furnace - Replace'!BL28+'Programmable Tstats - Tier 1'!BL28+'Programmable Tstats - Tier 2'!BL28+'Residential Energy Assessments'!BL28+'Comm 95+% Furnace - NEW'!BL28+'Comm 95+% Furnace - Replace'!BL28+'Comm Custom'!BL28,0) -> 76315 | BN28: =ROUND(+'Res .95+% Res Furnace - NEW'!BN28+'Res .95+% Res Furnace - Replace'!BN28+'Programmable Tstats - Tier 1'!BN28+'Programmable Tstats - Tier 2'!BN28+'Residential Energy Assessments'!BN28+'Comm 95+% Furnace - NEW'!BN28+'Comm 95+% Furnace - Replace'!BN28+'Comm Custom'!BN28,0) -> 34850 | BP28: 111165 | BR28: =ROUND(+'Res .95+% Res Furnace - NEW'!BR28+'Res .95+% Res Furnace - Replace'!BR28+'Programmable Tstats - Tier 1'!BR28+'Programmable Tstats - Tier 2'!BR28+'Residential Energy Assessments'!BR28+'Comm 95+% Furnace - NEW'!BR28+'Comm 95+% Furnace - Replace'!BR28+'Comm Custom'!BR28,0) -> 0 | BT28: 111165 | BW28: 2035 | BX28: 37815 | BY28: 13030 | BZ28: 8595 | CA28: 59440 | CC28: 0 | CD28: 0 | CE28: 0 | CG28: 59440
A29: Escalation Rate = | J29: 15 | L29: 2036 | M29: =ROUND(+'Res .95+% Res Furnace - NEW'!M29+'Res .95+% Res Furnace - Replace'!M29+'Programmable Tstats - Tier 1'!M29+'Programmable Tstats - Tier 2'!M29+'Residential Energy Assessments'!M29+'Comm 95+% Furnace - NEW'!M29+'Comm 95+% Furnace - Replace'!M29+'Comm Custom'!M29,0) -> 7624 | O29: =ROUND(+'Res .95+% Res Furnace - NEW'!O29+'Res .95+% Res Furnace - Replace'!O29+'Programmable Tstats - Tier 1'!O29+'Programmable Tstats - Tier 2'!O29+'Residential Energy Assessments'!O29+'Comm 95+% Furnace - NEW'!O29+'Comm 95+% Furnace - Replace'!O29+'Comm Custom'!O29,0) -> 38950 | Q29: =ROUND(+'Res .95+% Res Furnace - NEW'!Q29+'Res .95+% Res Furnace - Replace'!Q29+'Programmable Tstats - Tier 1'!Q29+'Programmable Tstats - Tier 2'!Q29+'Residential Energy Assessments'!Q29+'Comm 95+% Furnace - NEW'!Q29+'Comm 95+% Furnace - Replace'!Q29+'Comm Custom'!Q29,0) -> 0 | R29: =ROUND(+'Res .95+% Res Furnace - NEW'!R29+'Res .95+% Res Furnace - Replace'!R29+'Programmable Tstats - Tier 1'!R29+'Programmable Tstats - Tier 2'!R29+'Residential Energy Assessments'!R29+'Comm 95+% Furnace - NEW'!R29+'Comm 95+% Furnace - Replace'!R29+'Comm Custom'!R29,0) -> 38950 | S29: =ROUND(+'Res .95+% Res Furnace - NEW'!S29+'Res .95+% Res Furnace - Replace'!S29+'Programmable Tstats - Tier 1'!S29+'Programmable Tstats - Tier 2'!S29+'Residential Energy Assessments'!S29+'Comm 95+% Furnace - NEW'!S29+'Comm 95+% Furnace - Replace'!S29+'Comm Custom'!S29,0) -> 76 | U29: =ROUND(+'Res .95+% Res Furnace - NEW'!U29+'Res .95+% Res Furnace - Replace'!U29+'Programmable Tstats - Tier 1'!U29+'Programmable Tstats - Tier 2'!U29+'Residential Energy Assessments'!U29+'Comm 95+% Furnace - NEW'!U29+'Comm 95+% Furnace - Replace'!U29+'Comm Custom'!U29,0) -> 13107 | V29: =ROUND(+'Res .95+% Res Furnace - NEW'!V29+'Res .95+% Res Furnace - Replace'!V29+'Programmable Tstats - Tier 1'!V29+'Programmable Tstats - Tier 2'!V29+'Residential Energy Assessments'!V29+'Comm 95+% Furnace - NEW'!V29+'Comm 95+% Furnace - Replace'!V29+'Comm Custom'!V29,0) -> 52057 | X29: =ROUND(+'Res .95+% Res Furnace - NEW'!X29+'Res .95+% Res Furnace - Replace'!X29+'Programmable Tstats - Tier 1'!X29+'Programmable Tstats - Tier 2'!X29+'Residential Energy Assessments'!X29+'Comm 95+% Furnace - NEW'!X29+'Comm 95+% Furnace - Replace'!X29+'Comm Custom'!X29,0) -> 14497 | Y29: =ROUND(+'Res .95+% Res Furnace - NEW'!Y29+'Res .95+% Res Furnace - Replace'!Y29+'Programmable Tstats - Tier 1'!Y29+'Programmable Tstats - Tier 2'!Y29+'Residential Energy Assessments'!Y29+'Comm 95+% Furnace - NEW'!Y29+'Comm 95+% Furnace - Replace'!Y29+'Comm Custom'!Y29,0) -> 0 | Z29: =ROUND(+'Res .95+% Res Furnace - NEW'!Z29+'Res .95+% Res Furnace - Replace'!Z29+'Programmable Tstats - Tier 1'!Z29+'Programmable Tstats - Tier 2'!Z29+'Residential Energy Assessments'!Z29+'Comm 95+% Furnace - NEW'!Z29+'Comm 95+% Furnace - Replace'!Z29+'Comm Custom'!Z29,0) -> 0 | AA29: =ROUND(+'Res .95+% Res Furnace - NEW'!AA29+'Res .95+% Res Furnace - Replace'!AA29+'Programmable Tstats - Tier 1'!AA29+'Programmable Tstats - Tier 2'!AA29+'Residential Energy Assessments'!AA29+'Comm 95+% Furnace - NEW'!AA29+'Comm 95+% Furnace - Replace'!AA29+'Comm Custom'!AA29,0) -> 14497 | AB29: =ROUND(+'Res .95+% Res Furnace - NEW'!AB29+'Res .95+% Res Furnace - Replace'!AB29+'Programmable Tstats - Tier 1'!AB29+'Programmable Tstats - Tier 2'!AB29+'Residential Energy Assessments'!AB29+'Comm 95+% Furnace - NEW'!AB29+'Comm 95+% Furnace - Replace'!AB29+'Comm Custom'!AB29,0) -> 37560 | AE29: 2036 | AF29: 38950 | AG29: 13107 | AH29: 52057 | AJ29: 0 | AK29: 0 | AL29: 0 | AN29: 52057 | AQ29: 2036 | AR29: 38950 | AS29: 13107 | AU29: =ROUND(+'Res .95+% Res Furnace - NEW'!AU29+'Res .95+% Res Furnace - Replace'!AU29+'Programmable Tstats - Tier 1'!AU29+'Programmable Tstats - Tier 2'!AU29+'Residential Energy Assessments'!AU29+'Comm 95+% Furnace - NEW'!AU29+'Comm 95+% Furnace - Replace'!AU29+'Comm Custom'!AU29,0) -> 8961 | AW29: =ROUND(+'Res .95+% Res Furnace - NEW'!AW29+'Res .95+% Res Furnace - Replace'!AW29+'Programmable Tstats - Tier 1'!AW29+'Programmable Tstats - Tier 2'!AW29+'Residential Energy Assessments'!AW29+'Comm 95+% Furnace - NEW'!AW29+'Comm 95+% Furnace - Replace'!AW29+'Comm Custom'!AW29,0) -> 22193 | AZ29: 83211 | BB29: =ROUND(+'Res .95+% Res Furnace - NEW'!BB29+'Res .95+% Res Furnace - Replace'!BB29+'Programmable Tstats - Tier 1'!BB29+'Programmable Tstats - Tier 2'!BB29+'Residential Energy Assessments'!BB29+'Comm 95+% Furnace - NEW'!BB29+'Comm 95+% Furnace - Replace'!BB29+'Comm Custom'!BB29,0) -> 0 | BC29: =ROUND(+'Res .95+% Res Furnace - NEW'!BC29+'Res .95+% Res Furnace - Replace'!BC29+'Programmable Tstats - Tier 1'!BC29+'Programmable Tstats - Tier 2'!BC29+'Residential Energy Assessments'!BC29+'Comm 95+% Furnace - NEW'!BC29+'Comm 95+% Furnace - Replace'!BC29+'Comm Custom'!BC29,0) -> 0 | BD29: 0 | BE29: 83211 | BH29: 2036 | BI29: =ROUND(+'Res .95+% Res Furnace - NEW'!BI29+'Res .95+% Res Furnace - Replace'!BI29+'Programmable Tstats - Tier 1'!BI29+'Programmable Tstats - Tier 2'!BI29+'Residential Energy Assessments'!BI29+'Comm 95+% Furnace - NEW'!BI29+'Comm 95+% Furnace - Replace'!BI29+'Comm Custom'!BI29,0) -> 0 | BJ29: =ROUND(+'Res .95+% Res Furnace - NEW'!BJ29+'Res .95+% Res Furnace - Replace'!BJ29+'Programmable Tstats - Tier 1'!BJ29+'Programmable Tstats - Tier 2'!BJ29+'Residential Energy Assessments'!BJ29+'Comm 95+% Furnace - NEW'!BJ29+'Comm 95+% Furnace - Replace'!BJ29+'Comm Custom'!BJ29,0) -> 7624 | BL29: =ROUND(+'Res .95+% Res Furnace - NEW'!BL29+'Res .95+% Res Furnace - Replace'!BL29+'Programmable Tstats - Tier 1'!BL29+'Programmable Tstats - Tier 2'!BL29+'Residential Energy Assessments'!BL29+'Comm 95+% Furnace - NEW'!BL29+'Comm 95+% Furnace - Replace'!BL29+'Comm Custom'!BL29,0) -> 78606 | BN29: =ROUND(+'Res .95+% Res Furnace - NEW'!BN29+'Res .95+% Res Furnace - Replace'!BN29+'Programmable Tstats - Tier 1'!BN29+'Programmable Tstats - Tier 2'!BN29+'Residential Energy Assessments'!BN29+'Comm 95+% Furnace - NEW'!BN29+'Comm 95+% Furnace - Replace'!BN29+'Comm Custom'!BN29,0) -> 35947 | BP29: 114553 | BR29: =ROUND(+'Res .95+% Res Furnace - NEW'!BR29+'Res .95+% Res Furnace - Replace'!BR29+'Programmable Tstats - Tier 1'!BR29+'Programmable Tstats - Tier 2'!BR29+'Residential Energy Assessments'!BR29+'Comm 95+% Furnace - NEW'!BR29+'Comm 95+% Furnace - Replace'!BR29+'Comm Custom'!BR29,0) -> 0 | BT29: 114553 | BW29: 2036 | BX29: 38950 | BY29: 13107 | BZ29: 8961 | CA29: 61018 | CC29: 0 | CD29: 0 | CE29: 0 | CG29: 61018
E30: 23) Number of Participants = | F30: =+'Res .95+% Res Furnace - NEW'!F30+'Res .95+% Res Furnace - Replace'!F30+'Programmable Tstats - Tier 1'!F30+'Programmable Tstats - Tier 2'!F30+'Residential Energy Assessments'!F30+'Comm 95+% Furnace - NEW'!F30+'Comm 95+% Furnace - Replace'!F30+'Comm Custom'!F30 -> 661 | J30: 16 | L30: 2037 | M30: =ROUND(+'Res .95+% Res Furnace - NEW'!M30+'Res .95+% Res Furnace - Replace'!M30+'Programmable Tstats - Tier 1'!M30+'Programmable Tstats - Tier 2'!M30+'Residential Energy Assessments'!M30+'Comm 95+% Furnace - NEW'!M30+'Comm 95+% Furnace - Replace'!M30+'Comm Custom'!M30,0) -> 7624 | O30: =ROUND(+'Res .95+% Res Furnace - NEW'!O30+'Res .95+% Res Furnace - Replace'!O30+'Programmable Tstats - Tier 1'!O30+'Programmable Tstats - Tier 2'!O30+'Residential Energy Assessments'!O30+'Comm 95+% Furnace - NEW'!O30+'Comm 95+% Furnace - Replace'!O30+'Comm Custom'!O30,0) -> 40118 | Q30: =ROUND(+'Res .95+% Res Furnace - NEW'!Q30+'Res .95+% Res Furnace - Replace'!Q30+'Programmable Tstats - Tier 1'!Q30+'Programmable Tstats - Tier 2'!Q30+'Residential Energy Assessments'!Q30+'Comm 95+% Furnace - NEW'!Q30+'Comm 95+% Furnace - Replace'!Q30+'Comm Custom'!Q30,0) -> 0 | R30: =ROUND(+'Res .95+% Res Furnace - NEW'!R30+'Res .95+% Res Furnace - Replace'!R30+'Programmable Tstats - Tier 1'!R30+'Programmable Tstats - Tier 2'!R30+'Residential Energy Assessments'!R30+'Comm 95+% Furnace - NEW'!R30+'Comm 95+% Furnace - Replace'!R30+'Comm Custom'!R30,0) -> 40118 | S30: =ROUND(+'Res .95+% Res Furnace - NEW'!S30+'Res .95+% Res Furnace - Replace'!S30+'Programmable Tstats - Tier 1'!S30+'Programmable Tstats - Tier 2'!S30+'Residential Energy Assessments'!S30+'Comm 95+% Furnace - NEW'!S30+'Comm 95+% Furnace - Replace'!S30+'Comm Custom'!S30,0) -> 76 | U30: =ROUND(+'Res .95+% Res Furnace - NEW'!U30+'Res .95+% Res Furnace - Replace'!U30+'Programmable Tstats - Tier 1'!U30+'Programmable Tstats - Tier 2'!U30+'Residential Energy Assessments'!U30+'Comm 95+% Furnace - NEW'!U30+'Comm 95+% Furnace - Replace'!U30+'Comm Custom'!U30,0) -> 13259 | V30: =ROUND(+'Res .95+% Res Furnace - NEW'!V30+'Res .95+% Res Furnace - Replace'!V30+'Programmable Tstats - Tier 1'!V30+'Programmable Tstats - Tier 2'!V30+'Residential Energy Assessments'!V30+'Comm 95+% Furnace - NEW'!V30+'Comm 95+% Furnace - Replace'!V30+'Comm Custom'!V30,0) -> 53377 | X30: =ROUND(+'Res .95+% Res Furnace - NEW'!X30+'Res .95+% Res Furnace - Replace'!X30+'Programmable Tstats - Tier 1'!X30+'Programmable Tstats - Tier 2'!X30+'Residential Energy Assessments'!X30+'Comm 95+% Furnace - NEW'!X30+'Comm 95+% Furnace - Replace'!X30+'Comm Custom'!X30,0) -> 14931 | Y30: =ROUND(+'Res .95+% Res Furnace - NEW'!Y30+'Res .95+% Res Furnace - Replace'!Y30+'Programmable Tstats - Tier 1'!Y30+'Programmable Tstats - Tier 2'!Y30+'Residential Energy Assessments'!Y30+'Comm 95+% Furnace - NEW'!Y30+'Comm 95+% Furnace - Replace'!Y30+'Comm Custom'!Y30,0) -> 0 | Z30: =ROUND(+'Res .95+% Res Furnace - NEW'!Z30+'Res .95+% Res Furnace - Replace'!Z30+'Programmable Tstats - Tier 1'!Z30+'Programmable Tstats - Tier 2'!Z30+'Residential Energy Assessments'!Z30+'Comm 95+% Furnace - NEW'!Z30+'Comm 95+% Furnace - Replace'!Z30+'Comm Custom'!Z30,0) -> 0 | AA30: =ROUND(+'Res .95+% Res Furnace - NEW'!AA30+'Res .95+% Res Furnace - Replace'!AA30+'Programmable Tstats - Tier 1'!AA30+'Programmable Tstats - Tier 2'!AA30+'Residential Energy Assessments'!AA30+'Comm 95+% Furnace - NEW'!AA30+'Comm 95+% Furnace - Replace'!AA30+'Comm Custom'!AA30,0) -> 14931 | AB30: =ROUND(+'Res .95+% Res Furnace - NEW'!AB30+'Res .95+% Res Furnace - Replace'!AB30+'Programmable Tstats - Tier 1'!AB30+'Programmable Tstats - Tier 2'!AB30+'Residential Energy Assessments'!AB30+'Comm 95+% Furnace - NEW'!AB30+'Comm 95+% Furnace - Replace'!AB30+'Comm Custom'!AB30,0) -> 38446 | AE30: 2037 | AF30: 40118 | AG30: 13259 | AH30: 53377 | AJ30: 0 | AK30: 0 | AL30: 0 | AN30: 53377 | AQ30: 2037 | AR30: 40118 | AS30: 13259 | AU30: =ROUND(+'Res .95+% Res Furnace - NEW'!AU30+'Res .95+% Res Furnace - Replace'!AU30+'Programmable Tstats - Tier 1'!AU30+'Programmable Tstats - Tier 2'!AU30+'Residential Energy Assessments'!AU30+'Comm 95+% Furnace - NEW'!AU30+'Comm 95+% Furnace - Replace'!AU30+'Comm Custom'!AU30,0) -> 9144 | AW30: =ROUND(+'Res .95+% Res Furnace - NEW'!AW30+'Res .95+% Res Furnace - Replace'!AW30+'Programmable Tstats - Tier 1'!AW30+'Programmable Tstats - Tier 2'!AW30+'Residential Energy Assessments'!AW30+'Comm 95+% Furnace - NEW'!AW30+'Comm 95+% Furnace - Replace'!AW30+'Comm Custom'!AW30,0) -> 22704 | AZ30: 85225 | BB30: =ROUND(+'Res .95+% Res Furnace - NEW'!BB30+'Res .95+% Res Furnace - Replace'!BB30+'Programmable Tstats - Tier 1'!BB30+'Programmable Tstats - Tier 2'!BB30+'Residential Energy Assessments'!BB30+'Comm 95+% Furnace - NEW'!BB30+'Comm 95+% Furnace - Replace'!BB30+'Comm Custom'!BB30,0) -> 0 | BC30: =ROUND(+'Res .95+% Res Furnace - NEW'!BC30+'Res .95+% Res Furnace - Replace'!BC30+'Programmable Tstats - Tier 1'!BC30+'Programmable Tstats - Tier 2'!BC30+'Residential Energy Assessments'!BC30+'Comm 95+% Furnace - NEW'!BC30+'Comm 95+% Furnace - Replace'!BC30+'Comm Custom'!BC30,0) -> 0 | BD30: 0 | BE30: 85225 | BH30: 2037 | BI30: =ROUND(+'Res .95+% Res Furnace - NEW'!BI30+'Res .95+% Res Furnace - Replace'!BI30+'Programmable Tstats - Tier 1'!BI30+'Programmable Tstats - Tier 2'!BI30+'Residential Energy Assessments'!BI30+'Comm 95+% Furnace - NEW'!BI30+'Comm 95+% Furnace - Replace'!BI30+'Comm Custom'!BI30,0) -> 0 | BJ30: =ROUND(+'Res .95+% Res Furnace - NEW'!BJ30+'Res .95+% Res Furnace - Replace'!BJ30+'Programmable Tstats - Tier 1'!BJ30+'Programmable Tstats - Tier 2'!BJ30+'Residential Energy Assessments'!BJ30+'Comm 95+% Furnace - NEW'!BJ30+'Comm 95+% Furnace - Replace'!BJ30+'Comm Custom'!BJ30,0) -> 7624 | BL30: =ROUND(+'Res .95+% Res Furnace - NEW'!BL30+'Res .95+% Res Furnace - Replace'!BL30+'Programmable Tstats - Tier 1'!BL30+'Programmable Tstats - Tier 2'!BL30+'Residential Energy Assessments'!BL30+'Comm 95+% Furnace - NEW'!BL30+'Comm 95+% Furnace - Replace'!BL30+'Comm Custom'!BL30,0) -> 80966 | BN30: =ROUND(+'Res .95+% Res Furnace - NEW'!BN30+'Res .95+% Res Furnace - Replace'!BN30+'Programmable Tstats - Tier 1'!BN30+'Programmable Tstats - Tier 2'!BN30+'Residential Energy Assessments'!BN30+'Comm 95+% Furnace - NEW'!BN30+'Comm 95+% Furnace - Replace'!BN30+'Comm Custom'!BN30,0) -> 37044 | BP30: 118010 | BR30: =ROUND(+'Res .95+% Res Furnace - NEW'!BR30+'Res .95+% Res Furnace - Replace'!BR30+'Programmable Tstats - Tier 1'!BR30+'Programmable Tstats - Tier 2'!BR30+'Residential Energy Assessments'!BR30+'Comm 95+% Furnace - NEW'!BR30+'Comm 95+% Furnace - Replace'!BR30+'Comm Custom'!BR30,0) -> 0 | BT30: 118010 | BW30: 2037 | BX30: 40118 | BY30: 13259 | BZ30: 9144 | CA30: 62521 | CC30: 0 | CD30: 0 | CE30: 0 | CG30: 62521
A31: 8) Non-Gas Fuel Loss Factor | J31: 17 | L31: 2038 | M31: =ROUND(+'Res .95+% Res Furnace - NEW'!M31+'Res .95+% Res Furnace - Replace'!M31+'Programmable Tstats - Tier 1'!M31+'Programmable Tstats - Tier 2'!M31+'Residential Energy Assessments'!M31+'Comm 95+% Furnace - NEW'!M31+'Comm 95+% Furnace - Replace'!M31+'Comm Custom'!M31,0) -> 7624 | O31: =ROUND(+'Res .95+% Res Furnace - NEW'!O31+'Res .95+% Res Furnace - Replace'!O31+'Programmable Tstats - Tier 1'!O31+'Programmable Tstats - Tier 2'!O31+'Residential Energy Assessments'!O31+'Comm 95+% Furnace - NEW'!O31+'Comm 95+% Furnace - Replace'!O31+'Comm Custom'!O31,0) -> 41321 | Q31: =ROUND(+'Res .95+% Res Furnace - NEW'!Q31+'Res .95+% Res Furnace - Replace'!Q31+'Programmable Tstats - Tier 1'!Q31+'Programmable Tstats - Tier 2'!Q31+'Residential Energy Assessments'!Q31+'Comm 95+% Furnace - NEW'!Q31+'Comm 95+% Furnace - Replace'!Q31+'Comm Custom'!Q31,0) -> 0 | R31: =ROUND(+'Res .95+% Res Furnace - NEW'!R31+'Res .95+% Res Furnace - Replace'!R31+'Programmable Tstats - Tier 1'!R31+'Programmable Tstats - Tier 2'!R31+'Residential Energy Assessments'!R31+'Comm 95+% Furnace - NEW'!R31+'Comm 95+% Furnace - Replace'!R31+'Comm Custom'!R31,0) -> 41321 | S31: =ROUND(+'Res .95+% Res Furnace - NEW'!S31+'Res .95+% Res Furnace - Replace'!S31+'Programmable Tstats - Tier 1'!S31+'Programmable Tstats - Tier 2'!S31+'Residential Energy Assessments'!S31+'Comm 95+% Furnace - NEW'!S31+'Comm 95+% Furnace - Replace'!S31+'Comm Custom'!S31,0) -> 76 | U31: =ROUND(+'Res .95+% Res Furnace - NEW'!U31+'Res .95+% Res Furnace - Replace'!U31+'Programmable Tstats - Tier 1'!U31+'Programmable Tstats - Tier 2'!U31+'Residential Energy Assessments'!U31+'Comm 95+% Furnace - NEW'!U31+'Comm 95+% Furnace - Replace'!U31+'Comm Custom'!U31,0) -> 13411 | V31: =ROUND(+'Res .95+% Res Furnace - NEW'!V31+'Res .95+% Res Furnace - Replace'!V31+'Programmable Tstats - Tier 1'!V31+'Programmable Tstats - Tier 2'!V31+'Residential Energy Assessments'!V31+'Comm 95+% Furnace - NEW'!V31+'Comm 95+% Furnace - Replace'!V31+'Comm Custom'!V31,0) -> 54732 | X31: =ROUND(+'Res .95+% Res Furnace - NEW'!X31+'Res .95+% Res Furnace - Replace'!X31+'Programmable Tstats - Tier 1'!X31+'Programmable Tstats - Tier 2'!X31+'Residential Energy Assessments'!X31+'Comm 95+% Furnace - NEW'!X31+'Comm 95+% Furnace - Replace'!X31+'Comm Custom'!X31,0) -> 15382 | Y31: =ROUND(+'Res .95+% Res Furnace - NEW'!Y31+'Res .95+% Res Furnace - Replace'!Y31+'Programmable Tstats - Tier 1'!Y31+'Programmable Tstats - Tier 2'!Y31+'Residential Energy Assessments'!Y31+'Comm 95+% Furnace - NEW'!Y31+'Comm 95+% Furnace - Replace'!Y31+'Comm Custom'!Y31,0) -> 0 | Z31: =ROUND(+'Res .95+% Res Furnace - NEW'!Z31+'Res .95+% Res Furnace - Replace'!Z31+'Programmable Tstats - Tier 1'!Z31+'Programmable Tstats - Tier 2'!Z31+'Residential Energy Assessments'!Z31+'Comm 95+% Furnace - NEW'!Z31+'Comm 95+% Furnace - Replace'!Z31+'Comm Custom'!Z31,0) -> 0 | AA31: =ROUND(+'Res .95+% Res Furnace - NEW'!AA31+'Res .95+% Res Furnace - Replace'!AA31+'Programmable Tstats - Tier 1'!AA31+'Programmable Tstats - Tier 2'!AA31+'Residential Energy Assessments'!AA31+'Comm 95+% Furnace - NEW'!AA31+'Comm 95+% Furnace - Replace'!AA31+'Comm Custom'!AA31,0) -> 15382 | AB31: =ROUND(+'Res .95+% Res Furnace - NEW'!AB31+'Res .95+% Res Furnace - Replace'!AB31+'Programmable Tstats - Tier 1'!AB31+'Programmable Tstats - Tier 2'!AB31+'Residential Energy Assessments'!AB31+'Comm 95+% Furnace - NEW'!AB31+'Comm 95+% Furnace - Replace'!AB31+'Comm Custom'!AB31,0) -> 39350 | AE31: 2038 | AF31: 41321 | AG31: 13411 | AH31: 54732 | AJ31: 0 | AK31: 0 | AL31: 0 | AN31: 54732 | AQ31: 2038 | AR31: 41321 | AS31: 13411 | AU31: =ROUND(+'Res .95+% Res Furnace - NEW'!AU31+'Res .95+% Res Furnace - Replace'!AU31+'Programmable Tstats - Tier 1'!AU31+'Programmable Tstats - Tier 2'!AU31+'Residential Energy Assessments'!AU31+'Comm 95+% Furnace - NEW'!AU31+'Comm 95+% Furnace - Replace'!AU31+'Comm Custom'!AU31,0) -> 9510 | AW31: =ROUND(+'Res .95+% Res Furnace - NEW'!AW31+'Res .95+% Res Furnace - Replace'!AW31+'Programmable Tstats - Tier 1'!AW31+'Programmable Tstats - Tier 2'!AW31+'Residential Energy Assessments'!AW31+'Comm 95+% Furnace - NEW'!AW31+'Comm 95+% Furnace - Replace'!AW31+'Comm Custom'!AW31,0) -> 23231 | AZ31: 87473 | BB31: =ROUND(+'Res .95+% Res Furnace - NEW'!BB31+'Res .95+% Res Furnace - Replace'!BB31+'Programmable Tstats - Tier 1'!BB31+'Programmable Tstats - Tier 2'!BB31+'Residential Energy Assessments'!BB31+'Comm 95+% Furnace - NEW'!BB31+'Comm 95+% Furnace - Replace'!BB31+'Comm Custom'!BB31,0) -> 0 | BC31: =ROUND(+'Res .95+% Res Furnace - NEW'!BC31+'Res .95+% Res Furnace - Replace'!BC31+'Programmable Tstats - Tier 1'!BC31+'Programmable Tstats - Tier 2'!BC31+'Residential Energy Assessments'!BC31+'Comm 95+% Furnace - NEW'!BC31+'Comm 95+% Furnace - Replace'!BC31+'Comm Custom'!BC31,0) -> 0 | BD31: 0 | BE31: 87473 | BH31: 2038 | BI31: =ROUND(+'Res .95+% Res Furnace - NEW'!BI31+'Res .95+% Res Furnace - Replace'!BI31+'Programmable Tstats - Tier 1'!BI31+'Programmable Tstats - Tier 2'!BI31+'Residential Energy Assessments'!BI31+'Comm 95+% Furnace - NEW'!BI31+'Comm 95+% Furnace - Replace'!BI31+'Comm Custom'!BI31,0) -> 0 | BJ31: =ROUND(+'Res .95+% Res Furnace - NEW'!BJ31+'Res .95+% Res Furnace - Replace'!BJ31+'Programmable Tstats - Tier 1'!BJ31+'Programmable Tstats - Tier 2'!BJ31+'Residential Energy Assessments'!BJ31+'Comm 95+% Furnace - NEW'!BJ31+'Comm 95+% Furnace - Replace'!BJ31+'Comm Custom'!BJ31,0) -> 7624 | BL31: =ROUND(+'Res .95+% Res Furnace - NEW'!BL31+'Res .95+% Res Furnace - Replace'!BL31+'Programmable Tstats - Tier 1'!BL31+'Programmable Tstats - Tier 2'!BL31+'Residential Energy Assessments'!BL31+'Comm 95+% Furnace - NEW'!BL31+'Comm 95+% Furnace - Replace'!BL31+'Comm Custom'!BL31,0) -> 83398 | BN31: =ROUND(+'Res .95+% Res Furnace - NEW'!BN31+'Res .95+% Res Furnace - Replace'!BN31+'Programmable Tstats - Tier 1'!BN31+'Programmable Tstats - Tier 2'!BN31+'Residential Energy Assessments'!BN31+'Comm 95+% Furnace - NEW'!BN31+'Comm 95+% Furnace - Replace'!BN31+'Comm Custom'!BN31,0) -> 38141 | BP31: 121539 | BR31: =ROUND(+'Res .95+% Res Furnace - NEW'!BR31+'Res .95+% Res Furnace - Replace'!BR31+'Programmable Tstats - Tier 1'!BR31+'Programmable Tstats - Tier 2'!BR31+'Residential Energy Assessments'!BR31+'Comm 95+% Furnace - NEW'!BR31+'Comm 95+% Furnace - Replace'!BR31+'Comm Custom'!BR31,0) -> 0 | BT31: 121539 | BW31: 2038 | BX31: 41321 | BY31: 13411 | BZ31: 9510 | CA31: 64242 | CC31: 0 | CD31: 0 | CE31: 0 | CG31: 64242
E32: 24) Total Annual Dk Saved = | F32: =+'Res .95+% Res Furnace - NEW'!F32+'Res .95+% Res Furnace - Replace'!F32+'Programmable Tstats - Tier 1'!F32+'Programmable Tstats - Tier 2'!F32+'Residential Energy Assessments'!F32+'Comm 95+% Furnace - NEW'!F32+'Comm 95+% Furnace - Replace'!F32+'Comm Custom'!F32 -> 8907 | J32: 18 | L32: 2039 | M32: =ROUND(+'Res .95+% Res Furnace - NEW'!M32+'Res .95+% Res Furnace - Replace'!M32+'Programmable Tstats - Tier 1'!M32+'Programmable Tstats - Tier 2'!M32+'Residential Energy Assessments'!M32+'Comm 95+% Furnace - NEW'!M32+'Comm 95+% Furnace - Replace'!M32+'Comm Custom'!M32,0) -> 7624 | O32: =ROUND(+'Res .95+% Res Furnace - NEW'!O32+'Res .95+% Res Furnace - Replace'!O32+'Programmable Tstats - Tier 1'!O32+'Programmable Tstats - Tier 2'!O32+'Residential Energy Assessments'!O32+'Comm 95+% Furnace - NEW'!O32+'Comm 95+% Furnace - Replace'!O32+'Comm Custom'!O32,0) -> 42557 | Q32: =ROUND(+'Res .95+% Res Furnace - NEW'!Q32+'Res .95+% Res Furnace - Replace'!Q32+'Programmable Tstats - Tier 1'!Q32+'Programmable Tstats - Tier 2'!Q32+'Residential Energy Assessments'!Q32+'Comm 95+% Furnace - NEW'!Q32+'Comm 95+% Furnace - Replace'!Q32+'Comm Custom'!Q32,0) -> 0 | R32: =ROUND(+'Res .95+% Res Furnace - NEW'!R32+'Res .95+% Res Furnace - Replace'!R32+'Programmable Tstats - Tier 1'!R32+'Programmable Tstats - Tier 2'!R32+'Residential Energy Assessments'!R32+'Comm 95+% Furnace - NEW'!R32+'Comm 95+% Furnace - Replace'!R32+'Comm Custom'!R32,0) -> 42557 | S32: =ROUND(+'Res .95+% Res Furnace - NEW'!S32+'Res .95+% Res Furnace - Replace'!S32+'Programmable Tstats - Tier 1'!S32+'Programmable Tstats - Tier 2'!S32+'Residential Energy Assessments'!S32+'Comm 95+% Furnace - NEW'!S32+'Comm 95+% Furnace - Replace'!S32+'Comm Custom'!S32,0) -> 76 | U32: =ROUND(+'Res .95+% Res Furnace - NEW'!U32+'Res .95+% Res Furnace - Replace'!U32+'Programmable Tstats - Tier 1'!U32+'Programmable Tstats - Tier 2'!U32+'Residential Energy Assessments'!U32+'Comm 95+% Furnace - NEW'!U32+'Comm 95+% Furnace - Replace'!U32+'Comm Custom'!U32,0) -> 13563 | V32: =ROUND(+'Res .95+% Res Furnace - NEW'!V32+'Res .95+% Res Furnace - Replace'!V32+'Programmable Tstats - Tier 1'!V32+'Programmable Tstats - Tier 2'!V32+'Residential Energy Assessments'!V32+'Comm 95+% Furnace - NEW'!V32+'Comm 95+% Furnace - Replace'!V32+'Comm Custom'!V32,0) -> 56120 | X32: =ROUND(+'Res .95+% Res Furnace - NEW'!X32+'Res .95+% Res Furnace - Replace'!X32+'Programmable Tstats - Tier 1'!X32+'Programmable Tstats - Tier 2'!X32+'Residential Energy Assessments'!X32+'Comm 95+% Furnace - NEW'!X32+'Comm 95+% Furnace - Replace'!X32+'Comm Custom'!X32,0) -> 15842 | Y32: =ROUND(+'Res .95+% Res Furnace - NEW'!Y32+'Res .95+% Res Furnace - Replace'!Y32+'Programmable Tstats - Tier 1'!Y32+'Programmable Tstats - Tier 2'!Y32+'Residential Energy Assessments'!Y32+'Comm 95+% Furnace - NEW'!Y32+'Comm 95+% Furnace - Replace'!Y32+'Comm Custom'!Y32,0) -> 0 | Z32: =ROUND(+'Res .95+% Res Furnace - NEW'!Z32+'Res .95+% Res Furnace - Replace'!Z32+'Programmable Tstats - Tier 1'!Z32+'Programmable Tstats - Tier 2'!Z32+'Residential Energy Assessments'!Z32+'Comm 95+% Furnace - NEW'!Z32+'Comm 95+% Furnace - Replace'!Z32+'Comm Custom'!Z32,0) -> 0 | AA32: =ROUND(+'Res .95+% Res Furnace - NEW'!AA32+'Res .95+% Res Furnace - Replace'!AA32+'Programmable Tstats - Tier 1'!AA32+'Programmable Tstats - Tier 2'!AA32+'Residential Energy Assessments'!AA32+'Comm 95+% Furnace - NEW'!AA32+'Comm 95+% Furnace - Replace'!AA32+'Comm Custom'!AA32,0) -> 15842 | AB32: =ROUND(+'Res .95+% Res Furnace - NEW'!AB32+'Res .95+% Res Furnace - Replace'!AB32+'Programmable Tstats - Tier 1'!AB32+'Programmable Tstats - Tier 2'!AB32+'Residential Energy Assessments'!AB32+'Comm 95+% Furnace - NEW'!AB32+'Comm 95+% Furnace - Replace'!AB32+'Comm Custom'!AB32,0) -> 40278 | AE32: 2039 | AF32: 42557 | AG32: 13563 | AH32: 56120 | AJ32: 0 | AK32: 0 | AL32: 0 | AN32: 56120 | AQ32: 2039 | AR32: 42557 | AS32: 13563 | AU32: =ROUND(+'Res .95+% Res Furnace - NEW'!AU32+'Res .95+% Res Furnace - Replace'!AU32+'Programmable Tstats - Tier 1'!AU32+'Programmable Tstats - Tier 2'!AU32+'Residential Energy Assessments'!AU32+'Comm 95+% Furnace - NEW'!AU32+'Comm 95+% Furnace - Replace'!AU32+'Comm Custom'!AU32,0) -> 9693 | AW32: =ROUND(+'Res .95+% Res Furnace - NEW'!AW32+'Res .95+% Res Furnace - Replace'!AW32+'Programmable Tstats - Tier 1'!AW32+'Programmable Tstats - Tier 2'!AW32+'Residential Energy Assessments'!AW32+'Comm 95+% Furnace - NEW'!AW32+'Comm 95+% Furnace - Replace'!AW32+'Comm Custom'!AW32,0) -> 23765 | AZ32: 89578 | BB32: =ROUND(+'Res .95+% Res Furnace - NEW'!BB32+'Res .95+% Res Furnace - Replace'!BB32+'Programmable Tstats - Tier 1'!BB32+'Programmable Tstats - Tier 2'!BB32+'Residential Energy Assessments'!BB32+'Comm 95+% Furnace - NEW'!BB32+'Comm 95+% Furnace - Replace'!BB32+'Comm Custom'!BB32,0) -> 0 | BC32: =ROUND(+'Res .95+% Res Furnace - NEW'!BC32+'Res .95+% Res Furnace - Replace'!BC32+'Programmable Tstats - Tier 1'!BC32+'Programmable Tstats - Tier 2'!BC32+'Residential Energy Assessments'!BC32+'Comm 95+% Furnace - NEW'!BC32+'Comm 95+% Furnace - Replace'!BC32+'Comm Custom'!BC32,0) -> 0 | BD32: 0 | BE32: 89578 | BH32: 2039 | BI32: =ROUND(+'Res .95+% Res Furnace - NEW'!BI32+'Res .95+% Res Furnace - Replace'!BI32+'Programmable Tstats - Tier 1'!BI32+'Programmable Tstats - Tier 2'!BI32+'Residential Energy Assessments'!BI32+'Comm 95+% Furnace - NEW'!BI32+'Comm 95+% Furnace - Replace'!BI32+'Comm Custom'!BI32,0) -> 0 | BJ32: =ROUND(+'Res .95+% Res Furnace - NEW'!BJ32+'Res .95+% Res Furnace - Replace'!BJ32+'Programmable Tstats - Tier 1'!BJ32+'Programmable Tstats - Tier 2'!BJ32+'Residential Energy Assessments'!BJ32+'Comm 95+% Furnace - NEW'!BJ32+'Comm 95+% Furnace - Replace'!BJ32+'Comm Custom'!BJ32,0) -> 7624 | BL32: =ROUND(+'Res .95+% Res Furnace - NEW'!BL32+'Res .95+% Res Furnace - Replace'!BL32+'Programmable Tstats - Tier 1'!BL32+'Programmable Tstats - Tier 2'!BL32+'Residential Energy Assessments'!BL32+'Comm 95+% Furnace - NEW'!BL32+'Comm 95+% Furnace - Replace'!BL32+'Comm Custom'!BL32,0) -> 85898 | BN32: =ROUND(+'Res .95+% Res Furnace - NEW'!BN32+'Res .95+% Res Furnace - Replace'!BN32+'Programmable Tstats - Tier 1'!BN32+'Programmable Tstats - Tier 2'!BN32+'Residential Energy Assessments'!BN32+'Comm 95+% Furnace - NEW'!BN32+'Comm 95+% Furnace - Replace'!BN32+'Comm Custom'!BN32,0) -> 39238 | BP32: 125136 | BR32: =ROUND(+'Res .95+% Res Furnace - NEW'!BR32+'Res .95+% Res Furnace - Replace'!BR32+'Programmable Tstats - Tier 1'!BR32+'Programmable Tstats - Tier 2'!BR32+'Residential Energy Assessments'!BR32+'Comm 95+% Furnace - NEW'!BR32+'Comm 95+% Furnace - Replace'!BR32+'Comm Custom'!BR32,0) -> 0 | BT32: 125136 | BW32: 2039 | BX32: 42557 | BY32: 13563 | BZ32: 9693 | CA32: 65813 | CC32: 0 | CD32: 0 | CE32: 0 | CG32: 65813
A33: 9) Gas Environmental Damage Factor = | J33: 19 | L33: 2040 | M33: =ROUND(+'Res .95+% Res Furnace - NEW'!M33+'Res .95+% Res Furnace - Replace'!M33+'Programmable Tstats - Tier 1'!M33+'Programmable Tstats - Tier 2'!M33+'Residential Energy Assessments'!M33+'Comm 95+% Furnace - NEW'!M33+'Comm 95+% Furnace - Replace'!M33+'Comm Custom'!M33,0) -> 7624 | O33: =ROUND(+'Res .95+% Res Furnace - NEW'!O33+'Res .95+% Res Furnace - Replace'!O33+'Programmable Tstats - Tier 1'!O33+'Programmable Tstats - Tier 2'!O33+'Residential Energy Assessments'!O33+'Comm 95+% Furnace - NEW'!O33+'Comm 95+% Furnace - Replace'!O33+'Comm Custom'!O33,0) -> 43839 | Q33: =ROUND(+'Res .95+% Res Furnace - NEW'!Q33+'Res .95+% Res Furnace - Replace'!Q33+'Programmable Tstats - Tier 1'!Q33+'Programmable Tstats - Tier 2'!Q33+'Residential Energy Assessments'!Q33+'Comm 95+% Furnace - NEW'!Q33+'Comm 95+% Furnace - Replace'!Q33+'Comm Custom'!Q33,0) -> 0 | R33: =ROUND(+'Res .95+% Res Furnace - NEW'!R33+'Res .95+% Res Furnace - Replace'!R33+'Programmable Tstats - Tier 1'!R33+'Programmable Tstats - Tier 2'!R33+'Residential Energy Assessments'!R33+'Comm 95+% Furnace - NEW'!R33+'Comm 95+% Furnace - Replace'!R33+'Comm Custom'!R33,0) -> 43839 | S33: =ROUND(+'Res .95+% Res Furnace - NEW'!S33+'Res .95+% Res Furnace - Replace'!S33+'Programmable Tstats - Tier 1'!S33+'Programmable Tstats - Tier 2'!S33+'Residential Energy Assessments'!S33+'Comm 95+% Furnace - NEW'!S33+'Comm 95+% Furnace - Replace'!S33+'Comm Custom'!S33,0) -> 76 | U33: =ROUND(+'Res .95+% Res Furnace - NEW'!U33+'Res .95+% Res Furnace - Replace'!U33+'Programmable Tstats - Tier 1'!U33+'Programmable Tstats - Tier 2'!U33+'Residential Energy Assessments'!U33+'Comm 95+% Furnace - NEW'!U33+'Comm 95+% Furnace - Replace'!U33+'Comm Custom'!U33,0) -> 13640 | V33: =ROUND(+'Res .95+% Res Furnace - NEW'!V33+'Res .95+% Res Furnace - Replace'!V33+'Programmable Tstats - Tier 1'!V33+'Programmable Tstats - Tier 2'!V33+'Residential Energy Assessments'!V33+'Comm 95+% Furnace - NEW'!V33+'Comm 95+% Furnace - Replace'!V33+'Comm Custom'!V33,0) -> 57479 | X33: =ROUND(+'Res .95+% Res Furnace - NEW'!X33+'Res .95+% Res Furnace - Replace'!X33+'Programmable Tstats - Tier 1'!X33+'Programmable Tstats - Tier 2'!X33+'Residential Energy Assessments'!X33+'Comm 95+% Furnace - NEW'!X33+'Comm 95+% Furnace - Replace'!X33+'Comm Custom'!X33,0) -> 16315 | Y33: =ROUND(+'Res .95+% Res Furnace - NEW'!Y33+'Res .95+% Res Furnace - Replace'!Y33+'Programmable Tstats - Tier 1'!Y33+'Programmable Tstats - Tier 2'!Y33+'Residential Energy Assessments'!Y33+'Comm 95+% Furnace - NEW'!Y33+'Comm 95+% Furnace - Replace'!Y33+'Comm Custom'!Y33,0) -> 0 | Z33: =ROUND(+'Res .95+% Res Furnace - NEW'!Z33+'Res .95+% Res Furnace - Replace'!Z33+'Programmable Tstats - Tier 1'!Z33+'Programmable Tstats - Tier 2'!Z33+'Residential Energy Assessments'!Z33+'Comm 95+% Furnace - NEW'!Z33+'Comm 95+% Furnace - Replace'!Z33+'Comm Custom'!Z33,0) -> 0 | AA33: =ROUND(+'Res .95+% Res Furnace - NEW'!AA33+'Res .95+% Res Furnace - Replace'!AA33+'Programmable Tstats - Tier 1'!AA33+'Programmable Tstats - Tier 2'!AA33+'Residential Energy Assessments'!AA33+'Comm 95+% Furnace - NEW'!AA33+'Comm 95+% Furnace - Replace'!AA33+'Comm Custom'!AA33,0) -> 16315 | AB33: =ROUND(+'Res .95+% Res Furnace - NEW'!AB33+'Res .95+% Res Furnace - Replace'!AB33+'Programmable Tstats - Tier 1'!AB33+'Programmable Tstats - Tier 2'!AB33+'Residential Energy Assessments'!AB33+'Comm 95+% Furnace - NEW'!AB33+'Comm 95+% Furnace - Replace'!AB33+'Comm Custom'!AB33,0) -> 41164 | AE33: 2040 | AF33: 43839 | AG33: 13640 | AH33: 57479 | AJ33: 0 | AK33: 0 | AL33: 0 | AN33: 57479 | AQ33: 2040 | AR33: 43839 | AS33: 13640 | AU33: =ROUND(+'Res .95+% Res Furnace - NEW'!AU33+'Res .95+% Res Furnace - Replace'!AU33+'Programmable Tstats - Tier 1'!AU33+'Programmable Tstats - Tier 2'!AU33+'Residential Energy Assessments'!AU33+'Comm 95+% Furnace - NEW'!AU33+'Comm 95+% Furnace - Replace'!AU33+'Comm Custom'!AU33,0) -> 10059 | AW33: =ROUND(+'Res .95+% Res Furnace - NEW'!AW33+'Res .95+% Res Furnace - Replace'!AW33+'Programmable Tstats - Tier 1'!AW33+'Programmable Tstats - Tier 2'!AW33+'Residential Energy Assessments'!AW33+'Comm 95+% Furnace - NEW'!AW33+'Comm 95+% Furnace - Replace'!AW33+'Comm Custom'!AW33,0) -> 24313 | AZ33: 91851 | BB33: =ROUND(+'Res .95+% Res Furnace - NEW'!BB33+'Res .95+% Res Furnace - Replace'!BB33+'Programmable Tstats - Tier 1'!BB33+'Programmable Tstats - Tier 2'!BB33+'Residential Energy Assessments'!BB33+'Comm 95+% Furnace - NEW'!BB33+'Comm 95+% Furnace - Replace'!BB33+'Comm Custom'!BB33,0) -> 0 | BC33: =ROUND(+'Res .95+% Res Furnace - NEW'!BC33+'Res .95+% Res Furnace - Replace'!BC33+'Programmable Tstats - Tier 1'!BC33+'Programmable Tstats - Tier 2'!BC33+'Residential Energy Assessments'!BC33+'Comm 95+% Furnace - NEW'!BC33+'Comm 95+% Furnace - Replace'!BC33+'Comm Custom'!BC33,0) -> 0 | BD33: 0 | BE33: 91851 | BH33: 2040 | BI33: =ROUND(+'Res .95+% Res Furnace - NEW'!BI33+'Res .95+% Res Furnace - Replace'!BI33+'Programmable Tstats - Tier 1'!BI33+'Programmable Tstats - Tier 2'!BI33+'Residential Energy Assessments'!BI33+'Comm 95+% Furnace - NEW'!BI33+'Comm 95+% Furnace - Replace'!BI33+'Comm Custom'!BI33,0) -> 0 | BJ33: =ROUND(+'Res .95+% Res Furnace - NEW'!BJ33+'Res .95+% Res Furnace - Replace'!BJ33+'Programmable Tstats - Tier 1'!BJ33+'Programmable Tstats - Tier 2'!BJ33+'Residential Energy Assessments'!BJ33+'Comm 95+% Furnace - NEW'!BJ33+'Comm 95+% Furnace - Replace'!BJ33+'Comm Custom'!BJ33,0) -> 7624 | BL33: =ROUND(+'Res .95+% Res Furnace - NEW'!BL33+'Res .95+% Res Furnace - Replace'!BL33+'Programmable Tstats - Tier 1'!BL33+'Programmable Tstats - Tier 2'!BL33+'Residential Energy Assessments'!BL33+'Comm 95+% Furnace - NEW'!BL33+'Comm 95+% Furnace - Replace'!BL33+'Comm Custom'!BL33,0) -> 88473 | BN33: =ROUND(+'Res .95+% Res Furnace - NEW'!BN33+'Res .95+% Res Furnace - Replace'!BN33+'Programmable Tstats - Tier 1'!BN33+'Programmable Tstats - Tier 2'!BN33+'Residential Energy Assessments'!BN33+'Comm 95+% Furnace - NEW'!BN33+'Comm 95+% Furnace - Replace'!BN33+'Comm Custom'!BN33,0) -> 40507 | BP33: 128980 | BR33: =ROUND(+'Res .95+% Res Furnace - NEW'!BR33+'Res .95+% Res Furnace - Replace'!BR33+'Programmable Tstats - Tier 1'!BR33+'Programmable Tstats - Tier 2'!BR33+'Residential Energy Assessments'!BR33+'Comm 95+% Furnace - NEW'!BR33+'Comm 95+% Furnace - Replace'!BR33+'Comm Custom'!BR33,0) -> 0 | BT33: 128980 | BW33: 2040 | BX33: 43839 | BY33: 13640 | BZ33: 10059 | CA33: 67538 | CC33: 0 | CD33: 0 | CE33: 0 | CG33: 67538
A34: Escalation Rate = | E34: 25) Incentive/Participant = | J34: 20 | L34: 2041 | M34: =ROUND(+'Res .95+% Res Furnace - NEW'!M34+'Res .95+% Res Furnace - Replace'!M34+'Programmable Tstats - Tier 1'!M34+'Programmable Tstats - Tier 2'!M34+'Residential Energy Assessments'!M34+'Comm 95+% Furnace - NEW'!M34+'Comm 95+% Furnace - Replace'!M34+'Comm Custom'!M34,0) -> 0 | O34: =ROUND(+'Res .95+% Res Furnace - NEW'!O34+'Res .95+% Res Furnace - Replace'!O34+'Programmable Tstats - Tier 1'!O34+'Programmable Tstats - Tier 2'!O34+'Residential Energy Assessments'!O34+'Comm 95+% Furnace - NEW'!O34+'Comm 95+% Furnace - Replace'!O34+'Comm Custom'!O34,0) -> 0 | Q34: =ROUND(+'Res .95+% Res Furnace - NEW'!Q34+'Res .95+% Res Furnace - Replace'!Q34+'Programmable Tstats - Tier 1'!Q34+'Programmable Tstats - Tier 2'!Q34+'Residential Energy Assessments'!Q34+'Comm 95+% Furnace - NEW'!Q34+'Comm 95+% Furnace - Replace'!Q34+'Comm Custom'!Q34,0) -> 0 | R34: =ROUND(+'Res .95+% Res Furnace - NEW'!R34+'Res .95+% Res Furnace - Replace'!R34+'Programmable Tstats - Tier 1'!R34+'Programmable Tstats - Tier 2'!R34+'Residential Energy Assessments'!R34+'Comm 95+% Furnace - NEW'!R34+'Comm 95+% Furnace - Replace'!R34+'Comm Custom'!R34,0) -> 0 | S34: =ROUND(+'Res .95+% Res Furnace - NEW'!S34+'Res .95+% Res Furnace - Replace'!S34+'Programmable Tstats - Tier 1'!S34+'Programmable Tstats - Tier 2'!S34+'Residential Energy Assessments'!S34+'Comm 95+% Furnace - NEW'!S34+'Comm 95+% Furnace - Replace'!S34+'Comm Custom'!S34,0) -> 0 | U34: =ROUND(+'Res .95+% Res Furnace - NEW'!U34+'Res .95+% Res Furnace - Replace'!U34+'Programmable Tstats - Tier 1'!U34+'Programmable Tstats - Tier 2'!U34+'Residential Energy Assessments'!U34+'Comm 95+% Furnace - NEW'!U34+'Comm 95+% Furnace - Replace'!U34+'Comm Custom'!U34,0) -> 0 | V34: =ROUND(+'Res .95+% Res Furnace - NEW'!V34+'Res .95+% Res Furnace - Replace'!V34+'Programmable Tstats - Tier 1'!V34+'Programmable Tstats - Tier 2'!V34+'Residential Energy Assessments'!V34+'Comm 95+% Furnace - NEW'!V34+'Comm 95+% Furnace - Replace'!V34+'Comm Custom'!V34,0) -> 0 | X34: =ROUND(+'Res .95+% Res Furnace - NEW'!X34+'Res .95+% Res Furnace - Replace'!X34+'Programmable Tstats - Tier 1'!X34+'Programmable Tstats - Tier 2'!X34+'Residential Energy Assessments'!X34+'Comm 95+% Furnace - NEW'!X34+'Comm 95+% Furnace - Replace'!X34+'Comm Custom'!X34,0) -> 0 | Y34: =ROUND(+'Res .95+% Res Furnace - NEW'!Y34+'Res .95+% Res Furnace - Replace'!Y34+'Programmable Tstats - Tier 1'!Y34+'Programmable Tstats - Tier 2'!Y34+'Residential Energy Assessments'!Y34+'Comm 95+% Furnace - NEW'!Y34+'Comm 95+% Furnace - Replace'!Y34+'Comm Custom'!Y34,0) -> 0 | Z34: =ROUND(+'Res .95+% Res Furnace - NEW'!Z34+'Res .95+% Res Furnace - Replace'!Z34+'Programmable Tstats - Tier 1'!Z34+'Programmable Tstats - Tier 2'!Z34+'Residential Energy Assessments'!Z34+'Comm 95+% Furnace - NEW'!Z34+'Comm 95+% Furnace - Replace'!Z34+'Comm Custom'!Z34,0) -> 0 | AA34: =ROUND(+'Res .95+% Res Furnace - NEW'!AA34+'Res .95+% Res Furnace - Replace'!AA34+'Programmable Tstats - Tier 1'!AA34+'Programmable Tstats - Tier 2'!AA34+'Residential Energy Assessments'!AA34+'Comm 95+% Furnace - NEW'!AA34+'Comm 95+% Furnace - Replace'!AA34+'Comm Custom'!AA34,0) -> 0 | AB34: =ROUND(+'Res .95+% Res Furnace - NEW'!AB34+'Res .95+% Res Furnace - Replace'!AB34+'Programmable Tstats - Tier 1'!AB34+'Programmable Tstats - Tier 2'!AB34+'Residential Energy Assessments'!AB34+'Comm 95+% Furnace - NEW'!AB34+'Comm 95+% Furnace - Replace'!AB34+'Comm Custom'!AB34,0) -> 0 | AE34: 2041 | AF34: 0 | AG34: 0 | AH34: 0 | AJ34: 0 | AK34: 0 | AL34: 0 | AN34: 0 | AQ34: 2041 | AR34: 0 | AS34: 0 | AU34: =ROUND(+'Res .95+% Res Furnace - NEW'!AU34+'Res .95+% Res Furnace - Replace'!AU34+'Programmable Tstats - Tier 1'!AU34+'Programmable Tstats - Tier 2'!AU34+'Residential Energy Assessments'!AU34+'Comm 95+% Furnace - NEW'!AU34+'Comm 95+% Furnace - Replace'!AU34+'Comm Custom'!AU34,0) -> 0 | AW34: =ROUND(+'Res .95+% Res Furnace - NEW'!AW34+'Res .95+% Res Furnace - Replace'!AW34+'Programmable Tstats - Tier 1'!AW34+'Programmable Tstats - Tier 2'!AW34+'Residential Energy Assessments'!AW34+'Comm 95+% Furnace - NEW'!AW34+'Comm 95+% Furnace - Replace'!AW34+'Comm Custom'!AW34,0) -> 0 | AZ34: 0 | BB34: =ROUND(+'Res .95+% Res Furnace - NEW'!BB34+'Res .95+% Res Furnace - Replace'!BB34+'Programmable Tstats - Tier 1'!BB34+'Programmable Tstats - Tier 2'!BB34+'Residential Energy Assessments'!BB34+'Comm 95+% Furnace - NEW'!BB34+'Comm 95+% Furnace - Replace'!BB34+'Comm Custom'!BB34,0) -> 0 | BC34: =ROUND(+'Res .95+% Res Furnace - NEW'!BC34+'Res .95+% Res Furnace - Replace'!BC34+'Programmable Tstats - Tier 1'!BC34+'Programmable Tstats - Tier 2'!BC34+'Residential Energy Assessments'!BC34+'Comm 95+% Furnace - NEW'!BC34+'Comm 95+% Furnace - Replace'!BC34+'Comm Custom'!BC34,0) -> 0 | BD34: 0 | BE34: 0 | BH34: 2041 | BI34: =ROUND(+'Res .95+% Res Furnace - NEW'!BI34+'Res .95+% Res Furnace - Replace'!BI34+'Programmable Tstats - Tier 1'!BI34+'Programmable Tstats - Tier 2'!BI34+'Residential Energy Assessments'!BI34+'Comm 95+% Furnace - NEW'!BI34+'Comm 95+% Furnace - Replace'!BI34+'Comm Custom'!BI34,0) -> 0 | BJ34: =ROUND(+'Res .95+% Res Furnace - NEW'!BJ34+'Res .95+% Res Furnace - Replace'!BJ34+'Programmable Tstats - Tier 1'!BJ34+'Programmable Tstats - Tier 2'!BJ34+'Residential Energy Assessments'!BJ34+'Comm 95+% Furnace - NEW'!BJ34+'Comm 95+% Furnace - Replace'!BJ34+'Comm Custom'!BJ34,0) -> 0 | BL34: =ROUND(+'Res .95+% Res Furnace - NEW'!BL34+'Res .95+% Res Furnace - Replace'!BL34+'Programmable Tstats - Tier 1'!BL34+'Programmable Tstats - Tier 2'!BL34+'Residential Energy Assessments'!BL34+'Comm 95+% Furnace - NEW'!BL34+'Comm 95+% Furnace - Replace'!BL34+'Comm Custom'!BL34,0) -> 0 | BN34: =ROUND(+'Res .95+% Res Furnace - NEW'!BN34+'Res .95+% Res Furnace - Replace'!BN34+'Programmable Tstats - Tier 1'!BN34+'Programmable Tstats - Tier 2'!BN34+'Residential Energy Assessments'!BN34+'Comm 95+% Furnace - NEW'!BN34+'Comm 95+% Furnace - Replace'!BN34+'Comm Custom'!BN34,0) -> 0 | BP34: 0 | BR34: =ROUND(+'Res .95+% Res Furnace - NEW'!BR34+'Res .95+% Res Furnace - Replace'!BR34+'Programmable Tstats - Tier 1'!BR34+'Programmable Tstats - Tier 2'!BR34+'Residential Energy Assessments'!BR34+'Comm 95+% Furnace - NEW'!BR34+'Comm 95+% Furnace - Replace'!BR34+'Comm Custom'!BR34,0) -> 0 | BT34: 0 | BW34: 2041 | BX34: 0 | BY34: 0 | BZ34: 0 | CA34: 0 | CC34: 0 | CD34: 0 | CE34: 0 | CG34: 0
J35: 21 | L35: 2042 | M35: =ROUND(+'Res .95+% Res Furnace - NEW'!M35+'Res .95+% Res Furnace - Replace'!M35+'Programmable Tstats - Tier 1'!M35+'Programmable Tstats - Tier 2'!M35+'Residential Energy Assessments'!M35+'Comm 95+% Furnace - NEW'!M35+'Comm 95+% Furnace - Replace'!M35+'Comm Custom'!M35,0) -> 0 | O35: =ROUND(+'Res .95+% Res Furnace - NEW'!O35+'Res .95+% Res Furnace - Replace'!O35+'Programmable Tstats - Tier 1'!O35+'Programmable Tstats - Tier 2'!O35+'Residential Energy Assessments'!O35+'Comm 95+% Furnace - NEW'!O35+'Comm 95+% Furnace - Replace'!O35+'Comm Custom'!O35,0) -> 0 | Q35: =ROUND(+'Res .95+% Res Furnace - NEW'!Q35+'Res .95+% Res Furnace - Replace'!Q35+'Programmable Tstats - Tier 1'!Q35+'Programmable Tstats - Tier 2'!Q35+'Residential Energy Assessments'!Q35+'Comm 95+% Furnace - NEW'!Q35+'Comm 95+% Furnace - Replace'!Q35+'Comm Custom'!Q35,0) -> 0 | R35: =ROUND(+'Res .95+% Res Furnace - NEW'!R35+'Res .95+% Res Furnace - Replace'!R35+'Programmable Tstats - Tier 1'!R35+'Programmable Tstats - Tier 2'!R35+'Residential Energy Assessments'!R35+'Comm 95+% Furnace - NEW'!R35+'Comm 95+% Furnace - Replace'!R35+'Comm Custom'!R35,0) -> 0 | S35: =ROUND(+'Res .95+% Res Furnace - NEW'!S35+'Res .95+% Res Furnace - Replace'!S35+'Programmable Tstats - Tier 1'!S35+'Programmable Tstats - Tier 2'!S35+'Residential Energy Assessments'!S35+'Comm 95+% Furnace - NEW'!S35+'Comm 95+% Furnace - Replace'!S35+'Comm Custom'!S35,0) -> 0 | U35: =ROUND(+'Res .95+% Res Furnace - NEW'!U35+'Res .95+% Res Furnace - Replace'!U35+'Programmable Tstats - Tier 1'!U35+'Programmable Tstats - Tier 2'!U35+'Residential Energy Assessments'!U35+'Comm 95+% Furnace - NEW'!U35+'Comm 95+% Furnace - Replace'!U35+'Comm Custom'!U35,0) -> 0 | V35: =ROUND(+'Res .95+% Res Furnace - NEW'!V35+'Res .95+% Res Furnace - Replace'!V35+'Programmable Tstats - Tier 1'!V35+'Programmable Tstats - Tier 2'!V35+'Residential Energy Assessments'!V35+'Comm 95+% Furnace - NEW'!V35+'Comm 95+% Furnace - Replace'!V35+'Comm Custom'!V35,0) -> 0 | X35: =ROUND(+'Res .95+% Res Furnace - NEW'!X35+'Res .95+% Res Furnace - Replace'!X35+'Programmable Tstats - Tier 1'!X35+'Programmable Tstats - Tier 2'!X35+'Residential Energy Assessments'!X35+'Comm 95+% Furnace - NEW'!X35+'Comm 95+% Furnace - Replace'!X35+'Comm Custom'!X35,0) -> 0 | Y35: =ROUND(+'Res .95+% Res Furnace - NEW'!Y35+'Res .95+% Res Furnace - Replace'!Y35+'Programmable Tstats - Tier 1'!Y35+'Programmable Tstats - Tier 2'!Y35+'Residential Energy Assessments'!Y35+'Comm 95+% Furnace - NEW'!Y35+'Comm 95+% Furnace - Replace'!Y35+'Comm Custom'!Y35,0) -> 0 | Z35: =ROUND(+'Res .95+% Res Furnace - NEW'!Z35+'Res .95+% Res Furnace - Replace'!Z35+'Programmable Tstats - Tier 1'!Z35+'Programmable Tstats - Tier 2'!Z35+'Residential Energy Assessments'!Z35+'Comm 95+% Furnace - NEW'!Z35+'Comm 95+% Furnace - Replace'!Z35+'Comm Custom'!Z35,0) -> 0 | AA35: =ROUND(+'Res .95+% Res Furnace - NEW'!AA35+'Res .95+% Res Furnace - Replace'!AA35+'Programmable Tstats - Tier 1'!AA35+'Programmable Tstats - Tier 2'!AA35+'Residential Energy Assessments'!AA35+'Comm 95+% Furnace - NEW'!AA35+'Comm 95+% Furnace - Replace'!AA35+'Comm Custom'!AA35,0) -> 0 | AB35: =ROUND(+'Res .95+% Res Furnace - NEW'!AB35+'Res .95+% Res Furnace - Replace'!AB35+'Programmable Tstats - Tier 1'!AB35+'Programmable Tstats - Tier 2'!AB35+'Residential Energy Assessments'!AB35+'Comm 95+% Furnace - NEW'!AB35+'Comm 95+% Furnace - Replace'!AB35+'Comm Custom'!AB35,0) -> 0 | AE35: 2042 | AF35: =+R35 -> 0 | AG35: =+U35 -> 0 | AH35: =+AG35+AF35 -> 0 | AJ35: =ROUND(Y35,0) -> 0 | AK35: =ROUND(Z35,0) -> 0 | AL35: =SUM(AJ35:AK35) -> 0 | AN35: =+AH35-AL35 -> 0 | AQ35: 2042 | AR35: =AF35 -> 0 | AS35: =+AG35 -> 0 | AU35: =ROUND(+'Res .95+% Res Furnace - NEW'!AU35+'Res .95+% Res Furnace - Replace'!AU35+'Programmable Tstats - Tier 1'!AU35+'Programmable Tstats - Tier 2'!AU35+'Residential Energy Assessments'!AU35+'Comm 95+% Furnace - NEW'!AU35+'Comm 95+% Furnace - Replace'!AU35+'Comm Custom'!AU35,0) -> 0 | AW35: =ROUND(+'Res .95+% Res Furnace - NEW'!AW35+'Res .95+% Res Furnace - Replace'!AW35+'Programmable Tstats - Tier 1'!AW35+'Programmable Tstats - Tier 2'!AW35+'Residential Energy Assessments'!AW35+'Comm 95+% Furnace - NEW'!AW35+'Comm 95+% Furnace - Replace'!AW35+'Comm Custom'!AW35,0) -> 0 | AZ35: =ROUND(AR35+AS35+AU35+AW35+AY35,0) -> 0 | BB35: =ROUND(+'Res .95+% Res Furnace - NEW'!BB35+'Res .95+% Res Furnace - Replace'!BB35+'Programmable Tstats - Tier 1'!BB35+'Programmable Tstats - Tier 2'!BB35+'Residential Energy Assessments'!BB35+'Comm 95+% Furnace - NEW'!BB35+'Comm 95+% Furnace - Replace'!BB35+'Comm Custom'!BB35,0) -> 0 | BC35: =ROUND(+'Res .95+% Res Furnace - NEW'!BC35+'Res .95+% Res Furnace - Replace'!BC35+'Programmable Tstats - Tier 1'!BC35+'Programmable Tstats - Tier 2'!BC35+'Residential Energy Assessments'!BC35+'Comm 95+% Furnace - NEW'!BC35+'Comm 95+% Furnace - Replace'!BC35+'Comm Custom'!BC35,0) -> 0 | BD35: =BB35+BC35 -> 0 | BE35: =AZ35-BD35 -> 0 | BH35: 2042 | BI35: =ROUND(+'Res .95+% Res Furnace - NEW'!BI35+'Res .95+% Res Furnace - Replace'!BI35+'Programmable Tstats - Tier 1'!BI35+'Programmable Tstats - Tier 2'!BI35+'Residential Energy Assessments'!BI35+'Comm 95+% Furnace - NEW'!BI35+'Comm 95+% Furnace - Replace'!BI35+'Comm Custom'!BI35,0) -> 0 | BJ35: =ROUND(+'Res .95+% Res Furnace - NEW'!BJ35+'Res .95+% Res Furnace - Replace'!BJ35+'Programmable Tstats - Tier 1'!BJ35+'Programmable Tstats - Tier 2'!BJ35+'Residential Energy Assessments'!BJ35+'Comm 95+% Furnace - NEW'!BJ35+'Comm 95+% Furnace - Replace'!BJ35+'Comm Custom'!BJ35,0) -> 0 | BL35: =ROUND(+'Res .95+% Res Furnace - NEW'!BL35+'Res .95+% Res Furnace - Replace'!BL35+'Programmable Tstats - Tier 1'!BL35+'Programmable Tstats - Tier 2'!BL35+'Residential Energy Assessments'!BL35+'Comm 95+% Furnace - NEW'!BL35+'Comm 95+% Furnace - Replace'!BL35+'Comm Custom'!BL35,0) -> 0 | BN35: =ROUND(+'Res .95+% Res Furnace - NEW'!BN35+'Res .95+% Res Furnace - Replace'!BN35+'Programmable Tstats - Tier 1'!BN35+'Programmable Tstats - Tier 2'!BN35+'Residential Energy Assessments'!BN35+'Comm 95+% Furnace - NEW'!BN35+'Comm 95+% Furnace - Replace'!BN35+'Comm Custom'!BN35,0) -> 0 | BP35: =BI35+BL35+BN35+BO35 -> 0 | BR35: =ROUND(+'Res .95+% Res Furnace - NEW'!BR35+'Res .95+% Res Furnace - Replace'!BR35+'Programmable Tstats - Tier 1'!BR35+'Programmable Tstats - Tier 2'!BR35+'Residential Energy Assessments'!BR35+'Comm 95+% Furnace - NEW'!BR35+'Comm 95+% Furnace - Replace'!BR35+'Comm Custom'!BR35,0) -> 0 | BT35: =BP35-BR35 -> 0 | BW35: 2042 | BX35: 0 | BY35: =U35 -> 0 | BZ35: =AU35 -> 0 | CA35: =SUM(BX35:BZ35) -> 0 | CC35: =BB35 -> 0 | CD35: =BC35 -> 0 | CE35: =SUM(CC35:CD35) -> 0 | CG35: =CA35-CE35 -> 0
A36: 10) Non Gas Fuel Environmental Damage Factor = | E36: 26) Distribution Delivery Charge | J36: 22 | L36: 2043 | M36: =ROUND(+'Res .95+% Res Furnace - NEW'!M36+'Res .95+% Res Furnace - Replace'!M36+'Programmable Tstats - Tier 1'!M36+'Programmable Tstats - Tier 2'!M36+'Residential Energy Assessments'!M36+'Comm 95+% Furnace - NEW'!M36+'Comm 95+% Furnace - Replace'!M36+'Comm Custom'!M36,0) -> 0 | O36: =ROUND(+'Res .95+% Res Furnace - NEW'!O36+'Res .95+% Res Furnace - Replace'!O36+'Programmable Tstats - Tier 1'!O36+'Programmable Tstats - Tier 2'!O36+'Residential Energy Assessments'!O36+'Comm 95+% Furnace - NEW'!O36+'Comm 95+% Furnace - Replace'!O36+'Comm Custom'!O36,0) -> 0 | Q36: =ROUND(+'Res .95+% Res Furnace - NEW'!Q36+'Res .95+% Res Furnace - Replace'!Q36+'Programmable Tstats - Tier 1'!Q36+'Programmable Tstats - Tier 2'!Q36+'Residential Energy Assessments'!Q36+'Comm 95+% Furnace - NEW'!Q36+'Comm 95+% Furnace - Replace'!Q36+'Comm Custom'!Q36,0) -> 0 | R36: =ROUND(+'Res .95+% Res Furnace - NEW'!R36+'Res .95+% Res Furnace - Replace'!R36+'Programmable Tstats - Tier 1'!R36+'Programmable Tstats - Tier 2'!R36+'Residential Energy Assessments'!R36+'Comm 95+% Furnace - NEW'!R36+'Comm 95+% Furnace - Replace'!R36+'Comm Custom'!R36,0) -> 0 | S36: =ROUND(+'Res .95+% Res Furnace - NEW'!S36+'Res .95+% Res Furnace - Replace'!S36+'Programmable Tstats - Tier 1'!S36+'Programmable Tstats - Tier 2'!S36+'Residential Energy Assessments'!S36+'Comm 95+% Furnace - NEW'!S36+'Comm 95+% Furnace - Replace'!S36+'Comm Custom'!S36,0) -> 0 | U36: =ROUND(+'Res .95+% Res Furnace - NEW'!U36+'Res .95+% Res Furnace - Replace'!U36+'Programmable Tstats - Tier 1'!U36+'Programmable Tstats - Tier 2'!U36+'Residential Energy Assessments'!U36+'Comm 95+% Furnace - NEW'!U36+'Comm 95+% Furnace - Replace'!U36+'Comm Custom'!U36,0) -> 0 | V36: =ROUND(+'Res .95+% Res Furnace - NEW'!V36+'Res .95+% Res Furnace - Replace'!V36+'Programmable Tstats - Tier 1'!V36+'Programmable Tstats - Tier 2'!V36+'Residential Energy Assessments'!V36+'Comm 95+% Furnace - NEW'!V36+'Comm 95+% Furnace - Replace'!V36+'Comm Custom'!V36,0) -> 0 | X36: =ROUND(+'Res .95+% Res Furnace - NEW'!X36+'Res .95+% Res Furnace - Replace'!X36+'Programmable Tstats - Tier 1'!X36+'Programmable Tstats - Tier 2'!X36+'Residential Energy Assessments'!X36+'Comm 95+% Furnace - NEW'!X36+'Comm 95+% Furnace - Replace'!X36+'Comm Custom'!X36,0) -> 0 | Y36: =ROUND(+'Res .95+% Res Furnace - NEW'!Y36+'Res .95+% Res Furnace - Replace'!Y36+'Programmable Tstats - Tier 1'!Y36+'Programmable Tstats - Tier 2'!Y36+'Residential Energy Assessments'!Y36+'Comm 95+% Furnace - NEW'!Y36+'Comm 95+% Furnace - Replace'!Y36+'Comm Custom'!Y36,0) -> 0 | Z36: =ROUND(+'Res .95+% Res Furnace - NEW'!Z36+'Res .95+% Res Furnace - Replace'!Z36+'Programmable Tstats - Tier 1'!Z36+'Programmable Tstats - Tier 2'!Z36+'Residential Energy Assessments'!Z36+'Comm 95+% Furnace - NEW'!Z36+'Comm 95+% Furnace - Replace'!Z36+'Comm Custom'!Z36,0) -> 0 | AA36: =ROUND(+'Res .95+% Res Furnace - NEW'!AA36+'Res .95+% Res Furnace - Replace'!AA36+'Programmable Tstats - Tier 1'!AA36+'Programmable Tstats - Tier 2'!AA36+'Residential Energy Assessments'!AA36+'Comm 95+% Furnace - NEW'!AA36+'Comm 95+% Furnace - Replace'!AA36+'Comm Custom'!AA36,0) -> 0 | AB36: =ROUND(+'Res .95+% Res Furnace - NEW'!AB36+'Res .95+% Res Furnace - Replace'!AB36+'Programmable Tstats - Tier 1'!AB36+'Programmable Tstats - Tier 2'!AB36+'Residential Energy Assessments'!AB36+'Comm 95+% Furnace - NEW'!AB36+'Comm 95+% Furnace - Replace'!AB36+'Comm Custom'!AB36,0) -> 0 | AE36: 2043 | AF36: 0 | AG36: 0 | AH36: 0 | AJ36: 0 | AK36: 0 | AL36: 0 | AN36: 0 | AQ36: 2043 | AR36: 0 | AS36: 0 | AU36: =ROUND(+'Res .95+% Res Furnace - NEW'!AU36+'Res .95+% Res Furnace - Replace'!AU36+'Programmable Tstats - Tier 1'!AU36+'Programmable Tstats - Tier 2'!AU36+'Residential Energy Assessments'!AU36+'Comm 95+% Furnace - NEW'!AU36+'Comm 95+% Furnace - Replace'!AU36+'Comm Custom'!AU36,0) -> 0 | AW36: =ROUND(+'Res .95+% Res Furnace - NEW'!AW36+'Res .95+% Res Furnace - Replace'!AW36+'Programmable Tstats - Tier 1'!AW36+'Programmable Tstats - Tier 2'!AW36+'Residential Energy Assessments'!AW36+'Comm 95+% Furnace - NEW'!AW36+'Comm 95+% Furnace - Replace'!AW36+'Comm Custom'!AW36,0) -> 0 | AZ36: 0 | BB36: =ROUND(+'Res .95+% Res Furnace - NEW'!BB36+'Res .95+% Res Furnace - Replace'!BB36+'Programmable Tstats - Tier 1'!BB36+'Programmable Tstats - Tier 2'!BB36+'Residential Energy Assessments'!BB36+'Comm 95+% Furnace - NEW'!BB36+'Comm 95+% Furnace - Replace'!BB36+'Comm Custom'!BB36,0) -> 0 | BC36: =ROUND(+'Res .95+% Res Furnace - NEW'!BC36+'Res .95+% Res Furnace - Replace'!BC36+'Programmable Tstats - Tier 1'!BC36+'Programmable Tstats - Tier 2'!BC36+'Residential Energy Assessments'!BC36+'Comm 95+% Furnace - NEW'!BC36+'Comm 95+% Furnace - Replace'!BC36+'Comm Custom'!BC36,0) -> 0 | BD36: 0 | BE36: 0 | BH36: 2043 | BI36: =ROUND(+'Res .95+% Res Furnace - NEW'!BI36+'Res .95+% Res Furnace - Replace'!BI36+'Programmable Tstats - Tier 1'!BI36+'Programmable Tstats - Tier 2'!BI36+'Residential Energy Assessments'!BI36+'Comm 95+% Furnace - NEW'!BI36+'Comm 95+% Furnace - Replace'!BI36+'Comm Custom'!BI36,0) -> 0 | BJ36: =ROUND(+'Res .95+% Res Furnace - NEW'!BJ36+'Res .95+% Res Furnace - Replace'!BJ36+'Programmable Tstats - Tier 1'!BJ36+'Programmable Tstats - Tier 2'!BJ36+'Residential Energy Assessments'!BJ36+'Comm 95+% Furnace - NEW'!BJ36+'Comm 95+% Furnace - Replace'!BJ36+'Comm Custom'!BJ36,0) -> 0 | BL36: =ROUND(+'Res .95+% Res Furnace - NEW'!BL36+'Res .95+% Res Furnace - Replace'!BL36+'Programmable Tstats - Tier 1'!BL36+'Programmable Tstats - Tier 2'!BL36+'Residential Energy Assessments'!BL36+'Comm 95+% Furnace - NEW'!BL36+'Comm 95+% Furnace - Replace'!BL36+'Comm Custom'!BL36,0) -> 0 | BN36: =ROUND(+'Res .95+% Res Furnace - NEW'!BN36+'Res .95+% Res Furnace - Replace'!BN36+'Programmable Tstats - Tier 1'!BN36+'Programmable Tstats - Tier 2'!BN36+'Residential Energy Assessments'!BN36+'Comm 95+% Furnace - NEW'!BN36+'Comm 95+% Furnace - Replace'!BN36+'Comm Custom'!BN36,0) -> 0 | BP36: 0 | BR36: =ROUND(+'Res .95+% Res Furnace - NEW'!BR36+'Res .95+% Res Furnace - Replace'!BR36+'Programmable Tstats - Tier 1'!BR36+'Programmable Tstats - Tier 2'!BR36+'Residential Energy Assessments'!BR36+'Comm 95+% Furnace - NEW'!BR36+'Comm 95+% Furnace - Replace'!BR36+'Comm Custom'!BR36,0) -> 0 | BT36: 0 | BW36: 2043 | BX36: 0 | BY36: 0 | BZ36: 0 | CA36: 0 | CC36: 0 | CD36: 0 | CE36: 0 | CG36: 0
A37: Escalation Rate =
E38: 27) Effective Income Tax Rate = | K38: Total = | M38: =SUM(M14:M36) -> 165310 | V38: =SUM(V14:V36) -> 988952 | AA38: =SUM(AA14:AA36) -> 413853 | AB38: =SUM(AB14:AB36) -> 575099 | AD38: Total = | AH38: =SUM(AH14:AH36) -> 988952 | AL38: =SUM(AL14:AL36) -> 142490 | AN38: =SUM(AN14:AN36) -> 846462 | AP38: Total = | AZ38: =SUM(AZ14:AZ36) -> 1569265 | BD38: =SUM(BD14:BD36) -> 275820 | BE38: =SUM(BE14:BE36) -> 1293445 | BG38: Total = | BJ38: =SUM(BJ14:BJ36) -> 165310 | BP38: =SUM(BP14:BP36) -> 2213319 | BR38: =SUM(BR14:BR36) -> 259424 | BT38: =SUM(BT14:BT36) -> 1953895 | BZ38: Total = | CA38: =SUM(CA14:CA36) -> 1144666 | CE38: =SUM(CE14:CE36) -> 275820 | CG38: =SUM(CG14:CG36) -> 868846
A39: 11) Participant Discount Rate = | C39: =+'Gas Input Table Summary'!$D$26 -> 0.1032 | E39: (Federal & State Taxes) | T39: NPV = | V39: =ROUND(V14+NPV($C$41,V15:V36),0) -> 536866 | AA39: =ROUND(AA14+NPV($C$41,AA15:AA36),0) -> 288683 | AB39: =ROUND(AB14+NPV($C$41,AB15:AB36),0) -> 248183 | AG39: NPV = | AH39: =ROUND(AH14+NPV($C$41,AH15:AH36),0) -> 536866 | AL39: =ROUND(AL14+NPV($C$41,AL15:AL36),0) -> 142490 | AN39: =+AH39-AL39 -> 394376 | AW39: NPV = | AZ39: =ROUND(AZ14+NPV($C$43,AZ15:AZ36),0) -> 1263411 | BD39: =ROUND(BD14+NPV($C$43,BD15:BD36),0) -> 275820 | BE39: =AZ39-BD39 -> 987591 | BN39: NPV = | BP39: =ROUND(BP14+NPV($C$39,BP15:BP36),0) -> 1026276 | BR39: =ROUND(BR14+NPV($C$39,BR15:BR36),0) -> 259424 | BT39: =ROUND(BT14+NPV($C$39,BT15:BT36),0) -> 766852 | BZ39: NPV = | CA39: =ROUND(CA14+NPV($C$41,CA15:CA36),0) -> 618608 | CE39: =ROUND(CE14+NPV($C$41,CE15:CE36),0) -> 275820 | CG39: =ROUND(CG14+NPV($C$41,CG15:CG36),0) -> 342788
A41: 12) Utility Discount Rate = | C41: =+'Gas Input Table Summary'!$D$27 -> 0.07216 | E41: Test Results | F41: NPV | G41: B/C | K41: Total NPV = | N41: =AB39 -> 248183 | AD41: Total NPV = | AG41: =AN39 -> 394376 | AP41: Total NPV = | AS41: =BE39 -> 987591 | BG41: Total NPV = | BJ41: =BT39 -> 766852 | BV41: Total NPV = | BY41: =CG39 -> 342788
E42: Ratepayer Impact Measure Test | F42: =N41 -> 248183 | G42: =N42 -> 1.86 | K42: Benefit/Cost Ratio = | N42: =ROUND(V39/AA39,2) -> 1.86 | AD42: Benefit/Cost Ratio = | AG42: =ROUND(AH39/AL39,2) -> 3.77 | AP42: Benefit/Cost Ratio = | AS42: =ROUND(AZ39/BD39,2) -> 4.58 | BG42: Benefit/Cost Ratio = | BJ42: =ROUND(BP39/BR39,20) -> 3.955979401 | BV42: Benefit/Cost Ratio = | BY42: =ROUND(CA39/CE39,2) -> 2.24
A43: 13) Societal Discount Rate = | C43: =+'Gas Input Table Summary'!$D$28 -> 0.0229 | E43: Utility Cost Test | F43: =AG41 -> 394376 | G43: =AG42 -> 3.77
E44: Societal Test | F44: =AS41 -> 987591 | G44: =AS42 -> 4.58 | J44: Worksheet Calculations | BV44: Worksheet Calculations
A45: 14) General Input Data Year = | C45: =+'Gas Input Table Summary'!$D$29 -> 2021 | E45: Participant Test | F45: =BJ41 -> 766852 | G45: =BJ42 -> 3.955979401 | J45: (A) | K45: = Average Dk/Participant Saved (21) x Number of Participants (23) for Project Life (20) | T45: (I) | U45: = (G) x (H) | AD45: Worksheet Calculations | AP45: Worksheet Calculations | BG45: Worksheet Calculations | BV45: (A) | BW45: = Table 1 (F)
E46: Total Resource Cost Test | F46: =BY41 -> 342788 | G46: =BY42 -> 2.24 | J46: (B) | K46: = Commodity Cost (3) escalated | T46: (J) | U46: = (F) + (I) | AD46: (A) | AE46: = Table 1 (F) | AP46: (A) | AQ46: = Table 1 (F) | AW46: (H) | AZ46: = Table 2 (F) | BG46: (A) | BH46: = Table 1 (N) | BL46: (G) | BM46: = (A) + (D) + (F) | BV46: (B) | BW46: = Table 1 (I)
A47: 15) Project Analysis Year 1 = | C47: =+'Total Program Inputs'!C6 -> 2021 | J47: (C) | K47: = (A) x (B) | T47: (K) | U47: = Distribution Delivery Charge (26) escalated. | AD47: (B) | AE47: = Table 1 (I) | AP47: (G) | AQ47: = Table 1 (I) | AW47: (I) | AZ47: = Direct Part. Costs (17) x No. of Part. (23) - Table 1 (N) | BG47: (B) | BH47: = Table 1 (A) | BL47: (H) | BM47: = Direct Participant Costs (17) x Number of Participants (23) | BV47: (C) | BW47: = Table 3 (D)
J48: (D) | K48: = Variable O&M Cost (6), escalated | T48: (L) | U48: = (A) x (K) x (1-Inverse of Tax Rate (27) | AD48: (C) | AE48: = Table 1 (J) | AP48: (C) | AQ48: = Non-Gas Fuel Cost (7), adjusted for losses (8), escalated.. | AW48: (J) | AZ48: = (H) + (I) | BG48: (C) | BH48: = Retail Rate (1) escalated. | BL48: (I) | BM48: = (G) - (H) | BV48: (D) | BW48: = (A) + (B) + (C)
J49: (E) | K49: = (A) x (D) | T49: (M) | U49: = Admin & Operating Costs (16a) | AD49: (D) | AE49: = Table 1 (M) | AP49: (D) | AQ49: = (C) x [Avg. Non-Gas Fuel Units/Part.Saved (22) x No. of Part. (23) | AW49: (K) | AZ49: = (G) - (J) | BG49: (D) | BH49: =(B) x (C) | BV49: (E) | BW49: = Table 3 (H)
J50: (F) | K50: = (C) + (E) | T50: (N) | U50: = Incentive Costs (16b) | AD50: (E) | AE50: = Table 1 (N) | AP50: (E) | AQ50: = Gas Environmental Damage Factor (9), escalated | BG50: (E) | BH50: = Non-Gas Fuel Retail Rate (2), escalated. | BV50: (F) | BW50: = Table 3 (I)
J51: (G) | K51: = (A) x Peak Reduction Factor (5) | T51: (O) | U51: = (L) + (M) + (N) | AD51: (F) | AE51: = (D) + (E) | AP51: (F) | AQ51: = Table 1 (A) x (E) | BG51: (F) | BH51: = (E) x [Avg. Non-Gas Fuel Units/Part.Saved (22) x No. of Part. (23) | BV51: (G) | BW51: = (E) + (F)
J52: (H) | K52: = Demand Cost (4) escalated. | T52: (P) | U52: = (J) - (O) | AD52: (G) | AE52: = (C) - (F) | AP52: (G) | AQ52: = (A) + (B) + (D) + (F) | BV52: (H) | BW52: = (D) - (G)
AB59: =+V57/AA57 -> 

Sheet Res .95+% Res Furnace - NEW
A1: NATURAL GAS CONSERVATION PROGRAMS/DEMAND-SIDE MANAGEMENT | K1: Table 1 | AD1: Table 2 | AP1: Table 3 | BG1: Table 4 | BV1: Table 5
A2: BEN/COST ANALYSIS FOR GAS CONSERVATION | K2: Ratepayer Impact Measure Test | AD2: Utility Cost Test | AP2: Societal Test | BG2: Participant Test | BV2: Total Resource Cost Test
A4: Company: | B4: Montana-Dakota Utilities Co. | K4: Company: | M4: =B4 -> Montana-Dakota Utilities Co. | AD4: Company: | AF4: =B4 -> Montana-Dakota Utilities Co. | AP4: Company: | AR4: =AF4 -> Montana-Dakota Utilities Co. | BH4: Company: | BI4: =AR4 -> Montana-Dakota Utilities Co. | BW4: Company: | BX4: =BI4 -> Montana-Dakota Utilities Co.
A5: Project: | B5: Residential 95+% AFUE Furnace - New | K5: Project: | M5: =$B$5 -> Residential 95+% AFUE Furnace - New | AD5: Project: | AF5: =$B$5 -> Residential 95+% AFUE Furnace - New | AP5: Project: | AR5: =$B$5 -> Residential 95+% AFUE Furnace - New | BH5: Project: | BI5: =$B$5 -> Residential 95+% AFUE Furnace - New | BW5: Project: | BX5: =$B$5 -> Residential 95+% AFUE Furnace - New
A6: Program Years: | B6: ='Total Program'!$B$6 -> 2021
N7: Benefits | X7: Costs | AF7: Benefits | AJ7: Costs | AR7: Benefits | BB7: Costs | BI7: Benefits | BR7: Costs | BX7: Benefits | CC7: Costs
A8: Input Data | F8: =+'Total Program Inputs'!C6 -> 2021 | AB8: Annual | AN8: Annual | AT8: Non-Gas | BE8: Annual | BT8: Annual | CG8: Annual
M9: Total | N9: Gas | O9: Gas | P9: Variable | Q9: Variable | R9: Total | S9: Peak Dk | T9: Demand | U9: Total | W9: Distribution | Y9: Program | AA9: Total | AB9: Benefits | AF9: Total | AG9: Total | AH9: Annual | AJ9: Program | AL9: Utility | AN9: Benefits | AR9: Total | AS9: Total | AT9: Energy | AU9: Non-Gas | AV9: Environmental | AW9: Environmental | AZ9: Annual | BB9: Utility | BC9: Participants' | BD9: Annual | BE9: Benefits | BJ9: Total | BL9: Gas | BM9: Non-Gas | BN9: Non-Gas | BP9: Total | BR9: Direct | BT9: Benefits | BX9: Total | BY9: Total | BZ9: Non-Gas | CA9: Total | CC9: Utility | CD9: Participants' | CG9: Benefits
A10: 1) Retail Rate ($/Dk) = | C10: =+'Gas Input Table Summary'!$D$7 -> 6.909 | E10: 16) Utility Project Costs | M10: Energy | N10: Commodity | O10: Commodity | P10: O & M | Q10: O & M | R10: Energy | S10: Demand | T10: Savings | U10: Demand | V10: Total | W10: Delivery | X10: Lost | Y10: Admin | Z10: Incentive | AA10: Program | AB10: Less | AF10: Energy | AG10: Demand | AH10: Total | AJ10: Admin | AK10: Incentive | AL10: Program | AN10: Less | AR10: Energy | AS10: Demand | AT10: Savings | AU10: Energy | AV10: Damage | AW10: Damage | AZ10: Total | BB10: Program | BC10: Costs Net | BD10: Total | BE10: Less | BI10: Incentives | BJ10: Energy | BK10: Retail | BL10: Bill | BM10: Fuel | BN10: Energy | BP10: Annual | BR10: Participant | BT10: Less | BX10: Energy | BY10: Demand | BZ10: Energy | CA10: Annual | CC10: Program | CD10: Costs Net | CE10: Total | CG10: Less
A11: Escalation Rate = | C11: =+'Gas Input Table Summary'!$D$8 -> 0.03 | E11: 16a) Administrative & Operating Costs = | F11: =+'Total Program Inputs'!M11 -> 3434 | J11: t | M11: Reduction | N11: Cost/Dk | O11: Savings | P11: Cost/Dk | Q11: Savings | R11: Savings | S11: Reduction | T11: Per Unit | U11: Savings | V11: Savings | W11: Charge | X11: Margin | Y11: Costs | Z11: Costs | AA11: Costs | AB11: Costs | AF11: Savings | AG11: Savings | AH11: Savings | AJ11: Costs | AK11: Costs | AL11: Costs | AN11: Costs | AR11: Savings | AS11: Savings | AT11: ($/Part.) | AU11: Savings | AV11: Savings/Dk | AW11: Savings | AZ11: Savings | BB11: Costs | BC11: of Rebate | BD11: Costs | BE11: Costs | BI11: Received | BJ11: Reduction | BK11: Rate | BL11: Savings | BM11: Retail Rate | BN11: Savings | BP11: Benefits | BR11: Costs | BT11: Costs | BX11: Savings | BY11: Savings | BZ11: Savings | CA11: Benefits | CC11: Costs | CD11: of Rebate | CE11: Costs | CG11: Costs
E12: 16b) Incentive Costs = | F12: =+'Total Program Inputs'!I11 -> 26400 | L12: Year | M12: (A) | N12: (B) | O12: (C) | P12: (D) | Q12: (E) | R12: (F) | S12: (G) | T12: (H) | U12: (I) | V12: (J) | W12: (K) | X12: (L) | Y12: (M) | Z12: (N) | AA12: (O) | AB12: (P) | AE12: Year | AF12: (A) | AG12: (B) | AH12: (C) | AJ12: (D) | AK12: (E) | AL12: (F) | AN12: (G) | AQ12: Year | AR12: (A) | AS12: (B) | AT12: (C) | AU12: (D) | AV12: (E) | AW12: (F) | AZ12: (G) | BB12: (H) | BC12: (I) | BD12: (J) | BE12: (K) | BH12: Year | BI12: (A) | BJ12: (B) | BK12: (C) | BL12: (D) | BM12: (E) | BN12: (F) | BP12: (G) | BR12: (H) | BT12: (I) | BW12: Year | BX12: (A) | BY12: (B) | BZ12: (C) | CA12: (D) | CC12: (E) | CD12: (F) | CE12: (G) | CG12: (H)
A13: 2) Non-Gas Fuel Retail Rate ($/Fuel Unit) = | C13: =+'Gas Input Table Summary'!$D$9 -> 0.12648 | E13: 16c) Total Utility Project Costs = | F13: =SUM(F11:F12) -> 29834
A14: Escalation Rate = | C14: =+'Gas Input Table Summary'!$D$10 -> 0.03 | J14: =$C$47-$C$45 -> 0 | L14: =$C$47 -> 2021 | M14: =ROUND(IF($C$47+$F$23>L14,F25*F30,0),0) -> 774 | N14: =ROUND($C$17*(1+$C$18)^J14,3) -> 3.279 | O14: =ROUND(M14*N14,0) -> 2538 | P14: =ROUND($C$25*(1+$C$26)^J14,3) -> 0 | Q14: =ROUND(M14*P14,0) -> 0 | R14: =O14+Q14 -> 2538 | S14: =ROUND(M14*$C$23,1) -> 7.7 | T14: =ROUND($C$20*(1+$C$21)^J14,0) -> 148 | U14: =ROUND(S14*T14,0) -> 1140 | V14: =ROUND(+U14+R14,0) -> 3678 | W14: =ROUND($H$36*(1+$C$11)^J14,3) -> 1.836 | X14: =ROUND((1-$H$38)*(W14*M14),0) -> 1123 | Y14: =ROUND($F$11,0) -> 3434 | Z14: =ROUND($F$12,0) -> 26400 | AA14: =SUM(X14:Z14) -> 30957 | AB14: =V14-AA14 -> -27279 | AE14: =$C$47 -> 2021 | AF14: =+R14 -> 2538 | AG14: =+U14 -> 1140 | AH14: =+AG14+AF14 -> 3678 | AJ14: =ROUND(Y14,0) -> 3434 | AK14: =ROUND(Z14,0) -> 26400 | AL14: =SUM(AJ14:AK14) -> 29834 | AN14: =+AH14-AL14 -> -26156 | AQ14: =$C$47 -> 2021 | AR14: =AF14 -> 2538 | AS14: =+AG14 -> 1140 | AT14: =ROUND(($C$28/(1-$C$31))*(1+$C$29)^J14,3) -> 0.031 | AU14: =ROUND(IF($C$47+$F$23>$AQ14,$F$30*$F$27,0)*AT14,0) -> 0 | AV14: =ROUND($C$33*(1+$C$34)^J14,3) -> 2.07 | AW14: =ROUND(AV14*M14,0) -> 1602 | AZ14: =ROUND(AR14+AS14+AU14+AW14+AY14,0) -> 5280 | BB14: =ROUND($F$13,0) -> 29834 | BC14: =ROUND((F15*F30)-Z14,0) -> 2640 | BD14: =BB14+BC14 -> 32474 | BE14: =AZ14-BD14 -> -27194 | BH14: =$C$47 -> 2021 | BI14: =+F12 -> 26400 | BJ14: =+M14 -> 774 | BK14: =ROUND($C$10*(1+$C$11)^J14,3) -> 6.909 | BL14: =ROUND(BJ14*BK14,0) -> 5348 | BM14: =ROUND($C$13*(1+$C$14)^J14,3) -> 0.126 | BN14: =ROUND(IF($C$47+$F$23>$BH14,$F$30*$F$27,0)*BM14,0) -> 0 | BP14: =BI14+BL14+BN14+BO14 -> 31748 | BR14: =ROUND(F15*F30,0) -> 29040 | BT14: =BP14-BR14 -> 2708 | BW14: =$C$47 -> 2021 | BX14: =$R14 -> 2538 | BY14: =U14 -> 1140 | BZ14: =AU14 -> 0 | CA14: =SUM(BX14:BZ14) -> 3678 | CC14: =BB14 -> 29834 | CD14: =BC14 -> 2640 | CE14: =SUM(CC14:CD14) -> 32474 | CG14: =CA14-CE14 -> -28796
A15: Non-Gas Fuel Units (ie. kWh,Gallons, etc) = | C15: =+'Gas Input Table Summary'!$D$11 -> Kwh | E15: 17) Direct Participant Costs ($/Part.) = | F15: =ROUND('Database Inputs'!K10,0) -> 165 | J15: =J14+1 -> 1 | L15: =L14+1 -> 2022 | M15: =ROUND(IF($C$47+$F$23>L15,$F$25*$F$30,0)+IF($C$48+$G$23>L15,$G$25*$G$30,0),0) -> 774 | N15: =ROUND($C$17*(1+$C$18)^J15,3) -> 3.377 | O15: =ROUND(M15*N15,0) -> 2614 | P15: 0 | Q15: =ROUND(M15*P15,0) -> 0 | R15: =O15+Q15 -> 2614 | S15: =ROUND(M15*$C$23,1) -> 7.7 | T15: =ROUND($C$20*(1+$C$21)^J15,0) -> 150 | U15: =ROUND(S15*T15,0) -> 1155 | V15: =ROUND(+U15+R15,0) -> 3769 | W15: =ROUND($H$36*(1+$C$11)^J15,3) -> 1.891 | X15: =ROUND((1-$H$38)*(W15*M15),0) -> 1156 | Y15: =ROUND($G$11,0) -> 0 | Z15: =ROUND($G$12,0) -> 0 | AA15: =SUM(X15:Z15) -> 1156 | AB15: =V15-AA15 -> 2613 | AE15: =AE14+1 -> 2022 | AF15: =+R15 -> 2614 | AG15: =+U15 -> 1155 | AH15: =+AG15+AF15 -> 3769 | AJ15: =ROUND(Y15,0) -> 0 | AK15: 0 | AL15: =SUM(AJ15:AK15) -> 0 | AN15: =+AH15-AL15 -> 3769 | AQ15: =AQ14+1 -> 2022 | AR15: 2614 | AS15: 1155 | AT15: =ROUND(($C$28/(1-$C$31))*(1+$C$29)^J15,3) -> 0.032 | AU15: =ROUND((IF($C$47+$F$23>$AQ15,$F$27*$F$30,0)+IF($C$48+$G$23>AQ15,$G$27*$G$30,0))*AT15,0) -> 0 | AV15: =ROUND($C$33*(1+$C$34)^J15,3) -> 2.118 | AW15: =ROUND(AV15*M15,0) -> 1639 | AZ15: =ROUND(AR15+AS15+AU15+AW15+AY15,0) -> 5408 | BB15: =ROUND($G$13,0) -> 0 | BC15: =ROUND(($G$15*$G$30)-$Z$15,0) -> 0 | BD15: =BB15+BC15 -> 0 | BE15: =AZ15-BD15 -> 5408 | BH15: =BH14+1 -> 2022 | BI15: =+G12 -> 0 | BJ15: 774 | BK15: =ROUND($C$10*(1+$C$11)^J15,3) -> 7.116 | BL15: =ROUND(BJ15*BK15,0) -> 5508 | BM15: =ROUND($C$13*(1+$C$14)^J15,3) -> 0.13 | BN15: =ROUND((IF($C$47+$F$23>BH15,$F$27*$F$30,0)+IF($C$48+$G$23>BH15,$G$27*$G$30,0))*BM15,0) -> 0 | BP15: =BI15+BL15+BN15+BO15 -> 5508 | BR15: =ROUND($G$15*$G$30,0) -> 0 | BT15: =BP15-BR15 -> 5508 | BW15: =BW14+1 -> 2022 | BX15: 2614 | BY15: =U15 -> 1155 | BZ15: =AU15 -> 0 | CA15: =SUM(BX15:BZ15) -> 3769 | CC15: =BB15 -> 0 | CD15: 0 | CE15: =SUM(CC15:CD15) -> 0 | CG15: =CA15-CE15 -> 3769
J16: 2 | L16: 2023 | M16: =ROUND(IF($C$47+$F$23>L16,$F$25*$F$30,0)+IF($C$48+$G$23>L16,$G$25*$G$30,0)+IF($C$49+$H$23>L16,$H$25*$H$30,0),0) -> 774 | N16: =ROUND($C$17*(1+$C$18)^J16,3) -> 3.479 | O16: =ROUND(M16*N16,0) -> 2693 | P16: 0 | Q16: 0 | R16: =O16+Q16 -> 2693 | S16: 7.7 | T16: 151 | U16: =ROUND(S16*T16,0) -> 1163 | V16: 3856 | W16: 1.948 | X16: =ROUND((1-$H$38)*(W16*M16),0) -> 1191 | Y16: =ROUND($H$11,0) -> 0 | Z16: =ROUND($H$12,0) -> 0 | AA16: 1191 | AB16: 2665 | AE16: 2023 | AF16: 2693 | AG16: 1163 | AH16: =+AG16+AF16 -> 3856 | AJ16: 0 | AK16: 0 | AL16: =SUM(AJ16:AK16) -> 0 | AN16: 3856 | AQ16: 2023 | AR16: 2693 | AS16: 1163 | AT16: 0.033 | AU16: =ROUND((IF($C$47+$F$23>$AQ16,$F$27*$F$30,0)+IF($C$48+$G$23>AQ16,$G$27*$G$30,0)+IF($C$49+$H$23>AQ16,$H$27*$H$30,0))*AT16,0) -> 0 | AV16: 2.166 | AW16: 1676 | AZ16: 5532 | BB16: =ROUND($H$13,0) -> 0 | BC16: =ROUND(($H$15*$H$30)-$Z$16,0) -> 0 | BD16: 0 | BE16: 5532 | BH16: 2023 | BI16: =ROUND(H12,0) -> 0 | BJ16: 774 | BK16: 7.33 | BL16: =ROUND(BJ16*BK16,0) -> 5673 | BM16: 0.134 | BN16: =ROUND((IF($C$47+$F$23>BH16,$F$27*$F$30,0)+IF($C$49+$H$23>BH16,$H$27*$H$30,0)+IF($C$48+$G$23>BH16,$G$27*$G$30,0))*BM16,0) -> 0 | BP16: =BI16+BL16+BN16+BO16 -> 5673 | BR16: =ROUND($H$15*$H$30,0) -> 0 | BT16: 5673 | BW16: 2023 | BX16: 2693 | BY16: 1163 | BZ16: 0 | CA16: 3856 | CC16: 0 | CD16: 0 | CE16: 0 | CG16: =CA16-CE16 -> 3856
A17: 3) Commodity Cost ($/Dk) = | C17: =+'Gas Input Table Summary'!$D$12 -> 3.279 | E17: 18) Participant Non-Energy Costs (Annual $/Part.) = | F17: =+'Gas Input Table Summary'!$D$35 -> 0 | J17: 3 | L17: 2024 | M17: =ROUND(IF($C$47+$F$23>L17,$F$25*$F$30,0)+IF($C$48+$G$23>L17,$G$25*$G$30,0)+IF($C$49+$H$23>L17,$H$25*$H$30,0),0) -> 774 | N17: 3.583 | O17: 2773 | P17: 0 | Q17: 0 | R17: 2773 | S17: 7.7 | T17: 153 | U17: 1178 | V17: 3951 | W17: =ROUND($H$36*(1+$C$11)^J17,3) -> 2.006 | X17: =ROUND((1-$H$38)*(W17*M17),0) -> 1227 | Y17: 0 | Z17: 0 | AA17: 1227 | AB17: 2724 | AE17: 2024 | AF17: 2773 | AG17: 1178 | AH17: 3951 | AJ17: 0 | AK17: 0 | AL17: 0 | AN17: 3951 | AQ17: 2024 | AR17: 2773 | AS17: 1178 | AT17: 0.034 | AU17: =ROUND((IF($C$47+$F$23>$AQ17,$F$27*$F$30,0)+IF($C$48+$G$23>AQ17,$G$27*$G$30,0)+IF($C$49+$H$23>AQ17,$H$27*$H$30,0))*AT17,0) -> 0 | AV17: 2.216 | AW17: 1715 | AZ17: 5666 | BB17: 0 | BC17: 0 | BD17: 0 | BE17: 5666 | BH17: 2024 | BI17: 0 | BJ17: 774 | BK17: 7.55 | BL17: 5844 | BM17: 0.138 | BN17: =ROUND((IF($C$47+$F$23>BH17,$F$27*$F$30,0)+IF($C$49+$H$23>BH17,$H$27*$H$30,0)+IF($C$48+$G$23>BH17,$G$27*$G$30,0))*BM17,0) -> 0 | BP17: 5844 | BR17: =+BC17 -> 0 | BT17: 5844 | BW17: 2024 | BX17: 2773 | BY17: 1178 | BZ17: 0 | CA17: 3951 | CC17: 0 | CD17: 0 | CE17: 0 | CG17: 3951
A18: Escalation Rate = | C18: =+'Gas Input Table Summary'!$D$13 -> 0.03 | E18: Escalation Rate = | F18: =+'Gas Input Table Summary'!$D$38 -> 0 | J18: 4 | L18: 2025 | M18: =ROUND(IF($C$47+$F$23>L18,$F$25*$F$30,0)+IF($C$48+$G$23>L18,$G$25*$G$30,0)+IF($C$49+$H$23>L18,$H$25*$H$30,0),0) -> 774 | N18: 3.691 | O18: 2857 | P18: 0 | Q18: 0 | R18: 2857 | S18: 7.7 | T18: 155 | U18: 1194 | V18: =ROUND(+U18+R18,0) -> 4051 | W18: 2.066 | X18: 1263 | Y18: 0 | Z18: 0 | AA18: 1263 | AB18: 2788 | AE18: 2025 | AF18: 2857 | AG18: 1194 | AH18: 4051 | AJ18: 0 | AK18: 0 | AL18: 0 | AN18: 4051 | AQ18: 2025 | AR18: 2857 | AS18: 1194 | AT18: 0.035 | AU18: 0 | AV18: 2.267 | AW18: 1755 | AZ18: 5806 | BB18: 0 | BC18: 0 | BD18: 0 | BE18: 5806 | BH18: 2025 | BI18: 0 | BJ18: 774 | BK18: 7.776 | BL18: 6019 | BM18: 0.142 | BN18: 0 | BP18: 6019 | BR18: 0 | BT18: 6019 | BW18: 2025 | BX18: 2857 | BY18: 1194 | BZ18: 0 | CA18: 4051 | CC18: 0 | CD18: 0 | CE18: 0 | CG18: 4051
J19: 5 | L19: 2026 | M19: 774 | N19: 3.801 | O19: 2942 | P19: 0 | Q19: 0 | R19: 2942 | S19: 7.7 | T19: 156 | U19: 1201 | V19: 4143 | W19: 2.128 | X19: 1301 | Y19: 0 | Z19: 0 | AA19: 1301 | AB19: 2842 | AE19: 2026 | AF19: 2942 | AG19: 1201 | AH19: 4143 | AJ19: 0 | AK19: 0 | AL19: 0 | AN19: 4143 | AQ19: 2026 | AR19: 2942 | AS19: 1201 | AT19: 0.036 | AU19: 0 | AV19: 2.319 | AW19: 1795 | AZ19: 5938 | BB19: 0 | BC19: 0 | BD19: 0 | BE19: 5938 | BH19: 2026 | BI19: 0 | BJ19: 774 | BK19: 8.009 | BL19: 6199 | BM19: 0.147 | BN19: 0 | BP19: 6199 | BR19: 0 | BT19: 6199 | BW19: 2026 | BX19: 2942 | BY19: 1201 | BZ19: 0 | CA19: 4143 | CC19: 0 | CD19: 0 | CE19: 0 | CG19: 4143
A20: 4) Demand Cost ($/Unit/Yr) = | C20: =+'Gas Input Table Summary'!$D$14 -> 148.48 | E20: 19) Participant Non-Energy Savings (Annual $/Part) = | F20: =+'Gas Input Table Summary'!$D$41 -> 0 | J20: 6 | L20: 2027 | M20: 774 | N20: 3.915 | O20: 3030 | P20: 0 | Q20: 0 | R20: 3030 | S20: 7.7 | T20: 158 | U20: 1217 | V20: 4247 | W20: =ROUND($H$36*(1+$C$11)^J20,3) -> 2.192 | X20: 1340 | Y20: 0 | Z20: 0 | AA20: 1340 | AB20: 2907 | AE20: 2027 | AF20: 3030 | AG20: 1217 | AH20: 4247 | AJ20: 0 | AK20: 0 | AL20: 0 | AN20: 4247 | AQ20: 2027 | AR20: 3030 | AS20: 1217 | AT20: 0.037 | AU20: =ROUND((IF($C$47+$F$23>$AQ20,$F$27*$F$30,0)+IF($C$48+$G$23>AQ20,$G$27*$G$30,0)+IF($C$49+$H$23>AQ20,$H$27*$H$30,0))*AT20,0) -> 0 | AV20: 2.373 | AW20: 1837 | AZ20: 6084 | BB20: 0 | BC20: 0 | BD20: 0 | BE20: 6084 | BH20: 2027 | BI20: 0 | BJ20: 774 | BK20: 8.25 | BL20: 6386 | BM20: 0.151 | BN20: =ROUND((IF($C$47+$F$23>BH20,$F$27*$F$30,0)+IF($C$49+$H$23>BH20,$H$27*$H$30,0)+IF($C$48+$G$23>BH20,$G$27*$G$30,0))*BM20,0) -> 0 | BP20: 6386 | BR20: 0 | BT20: 6386 | BW20: 2027 | BX20: 3030 | BY20: 1217 | BZ20: 0 | CA20: 4247 | CC20: 0 | CD20: 0 | CE20: 0 | CG20: 4247
A21: Escalation Rate = | C21: =+'Gas Input Table Summary'!$D$15 -> 0.01 | E21: Escalation Rate = | F21: =+'Gas Input Table Summary'!$D$44 -> 0 | J21: 7 | L21: 2028 | M21: 774 | N21: 4.033 | O21: 3122 | P21: 0 | Q21: 0 | R21: 3122 | S21: 7.7 | T21: 159 | U21: 1224 | V21: 4346 | W21: 2.258 | X21: 1381 | Y21: 0 | Z21: 0 | AA21: 1381 | AB21: 2965 | AE21: 2028 | AF21: 3122 | AG21: 1224 | AH21: 4346 | AJ21: 0 | AK21: 0 | AL21: 0 | AN21: 4346 | AQ21: 2028 | AR21: 3122 | AS21: 1224 | AT21: 0.038 | AU21: 0 | AV21: 2.427 | AW21: 1878 | AZ21: 6224 | BB21: 0 | BC21: 0 | BD21: 0 | BE21: 6224 | BH21: 2028 | BI21: 0 | BJ21: 774 | BK21: 8.497 | BL21: 6577 | BM21: 0.156 | BN21: 0 | BP21: 6577 | BR21: 0 | BT21: 6577 | BW21: 2028 | BX21: 3122 | BY21: 1224 | BZ21: 0 | CA21: 4346 | CC21: 0 | CD21: 0 | CE21: 0 | CG21: 4346
J22: 8 | L22: 2029 | M22: 774 | N22: 4.154 | O22: 3215 | P22: 0 | Q22: 0 | R22: 3215 | S22: 7.7 | T22: 161 | U22: 1240 | V22: 4455 | W22: 2.326 | X22: 1422 | Y22: 0 | Z22: 0 | AA22: 1422 | AB22: 3033 | AE22: 2029 | AF22: 3215 | AG22: 1240 | AH22: 4455 | AJ22: 0 | AK22: 0 | AL22: 0 | AN22: 4455 | AQ22: 2029 | AR22: 3215 | AS22: 1240 | AT22: 0.04 | AU22: 0 | AV22: 2.483 | AW22: 1922 | AZ22: 6377 | BB22: 0 | BC22: 0 | BD22: 0 | BE22: 6377 | BH22: 2029 | BI22: 0 | BJ22: 774 | BK22: 8.752 | BL22: 6774 | BM22: 0.16 | BN22: 0 | BP22: 6774 | BR22: 0 | BT22: 6774 | BW22: 2029 | BX22: 3215 | BY22: 1240 | BZ22: 0 | CA22: 4455 | CC22: 0 | CD22: 0 | CE22: 0 | CG22: 4455
A23: 5) Peak Reduction Factor = | C23: =+'Gas Input Table Summary'!$D$16 -> 0.01 | E23: 20) Project Life (Years) = | F23: =ROUND('Database Inputs'!D10,0) -> 20 | J23: 9 | L23: 2030 | M23: 774 | N23: 4.278 | O23: 3311 | P23: 0 | Q23: 0 | R23: 3311 | S23: 7.7 | T23: 162 | U23: 1247 | V23: 4558 | W23: 2.396 | X23: 1465 | Y23: 0 | Z23: 0 | AA23: 1465 | AB23: 3093 | AE23: 2030 | AF23: 3311 | AG23: 1247 | AH23: 4558 | AJ23: 0 | AK23: 0 | AL23: 0 | AN23: 4558 | AQ23: 2030 | AR23: 3311 | AS23: 1247 | AT23: 0.041 | AU23: 0 | AV23: 2.54 | AW23: 1966 | AZ23: 6524 | BB23: 0 | BC23: 0 | BD23: 0 | BE23: 6524 | BH23: 2030 | BI23: 0 | BJ23: 774 | BK23: 9.015 | BL23: 6978 | BM23: 0.165 | BN23: 0 | BP23: 6978 | BR23: 0 | BT23: 6978 | BW23: 2030 | BX23: 3311 | BY23: 1247 | BZ23: 0 | CA23: 4558 | CC23: 0 | CD23: 0 | CE23: 0 | CG23: 4558
J24: 10 | L24: 2031 | M24: 774 | N24: 4.407 | O24: 3411 | P24: 0 | Q24: 0 | R24: 3411 | S24: 7.7 | T24: 164 | U24: 1263 | V24: 4674 | W24: 2.467 | X24: 1508 | Y24: 0 | Z24: 0 | AA24: 1508 | AB24: 3166 | AE24: 2031 | AF24: 3411 | AG24: 1263 | AH24: 4674 | AJ24: 0 | AK24: 0 | AL24: 0 | AN24: 4674 | AQ24: 2031 | AR24: 3411 | AS24: 1263 | AT24: 0.042 | AU24: 0 | AV24: 2.599 | AW24: 2012 | AZ24: 6686 | BB24: 0 | BC24: 0 | BD24: 0 | BE24: 6686 | BH24: 2031 | BI24: 0 | BJ24: 774 | BK24: 9.285 | BL24: 7187 | BM24: 0.17 | BN24: 0 | BP24: 7187 | BR24: 0 | BT24: 7187 | BW24: 2031 | BX24: 3411 | BY24: 1263 | BZ24: 0 | CA24: =SUM(BX24:BZ24) -> 4674 | CC24: 0 | CD24: 0 | CE24: 0 | CG24: 4674
A25: 6) Variable O&M ($/Dk) = | C25: =+'Gas Input Table Summary'!$D$17 -> 0 | E25: 21) Avg. Dk/Part. Saved = | F25: =+ROUND(F32/F30,3) -> 4.398 | J25: 11 | L25: 2032 | M25: 774 | N25: 4.539 | O25: 3513 | P25: 0 | Q25: 0 | R25: 3513 | S25: 7.7 | T25: 166 | U25: 1278 | V25: 4791 | W25: 2.541 | X25: 1554 | Y25: 0 | Z25: 0 | AA25: 1554 | AB25: 3237 | AE25: 2032 | AF25: 3513 | AG25: 1278 | AH25: 4791 | AJ25: 0 | AK25: 0 | AL25: 0 | AN25: 4791 | AQ25: 2032 | AR25: 3513 | AS25: 1278 | AT25: 0.043 | AU25: 0 | AV25: 2.658 | AW25: =ROUND(AV25*M25,0) -> 2057 | AZ25: 6848 | BB25: 0 | BC25: 0 | BD25: 0 | BE25: 6848 | BH25: 2032 | BI25: 0 | BJ25: 774 | BK25: 9.564 | BL25: 7403 | BM25: 0.175 | BN25: 0 | BP25: 7403 | BR25: 0 | BT25: 7403 | BW25: 2032 | BX25: 3513 | BY25: 1278 | BZ25: 0 | CA25: 4791 | CC25: 0 | CD25: 0 | CE25: 0 | CG25: 4791
A26: Escalation Rate = | C26: =+'Gas Input Table Summary'!$D$18 -> 0 | J26: 12 | L26: 2033 | M26: 774 | N26: =ROUND($C$17*(1+$C$18)^J26,3) -> 4.675 | O26: 3618 | P26: 0 | Q26: 0 | R26: 3618 | S26: 7.7 | T26: 167 | U26: 1286 | V26: 4904 | W26: 2.618 | X26: 1601 | Y26: 0 | Z26: 0 | AA26: 1601 | AB26: 3303 | AE26: 2033 | AF26: 3618 | AG26: 1286 | AH26: 4904 | AJ26: 0 | AK26: 0 | AL26: 0 | AN26: 4904 | AQ26: 2033 | AR26: 3618 | AS26: 1286 | AT26: 0.044 | AU26: 0 | AV26: 2.719 | AW26: =ROUND(AV26*M26,0) -> 2105 | AZ26: 7009 | BB26: 0 | BC26: 0 | BD26: 0 | BE26: 7009 | BH26: 2033 | BI26: 0 | BJ26: 774 | BK26: 9.851 | BL26: 7625 | BM26: 0.18 | BN26: 0 | BP26: 7625 | BR26: 0 | BT26: 7625 | BW26: 2033 | BX26: 3618 | BY26: 1286 | BZ26: 0 | CA26: 4904 | CC26: 0 | CD26: 0 | CE26: 0 | CG26: 4904
E27: 22) Avg Non-Gas Fuel Units/Part. Saved = | F27: =+'Database Inputs'!H10 -> 0 | J27: 13 | L27: 2034 | M27: 774 | N27: 4.815 | O27: 3727 | P27: 0 | Q27: 0 | R27: 3727 | S27: 7.7 | T27: 169 | U27: =ROUND(S27*T27,0) -> 1301 | V27: 5028 | W27: =ROUND($H$36*(1+$C$11)^J27,3) -> 2.696 | X27: 1648 | Y27: 0 | Z27: 0 | AA27: 1648 | AB27: 3380 | AE27: 2034 | AF27: 3727 | AG27: 1301 | AH27: 5028 | AJ27: 0 | AK27: 0 | AL27: 0 | AN27: 5028 | AQ27: 2034 | AR27: 3727 | AS27: 1301 | AT27: 0.046 | AU27: 0 | AV27: 2.782 | AW27: 2153 | AZ27: 7181 | BB27: 0 | BC27: 0 | BD27: 0 | BE27: 7181 | BH27: 2034 | BI27: 0 | BJ27: 774 | BK27: 10.146 | BL27: 7853 | BM27: 0.186 | BN27: 0 | BP27: 7853 | BR27: 0 | BT27: 7853 | BW27: 2034 | BX27: 3727 | BY27: 1301 | BZ27: 0 | CA27: 5028 | CC27: 0 | CD27: 0 | CE27: 0 | CG27: 5028
A28: 7) Non-Gas Fuel Cost ($/Fuel Unit) = | C28: =+'Gas Input Table Summary'!$D$19 -> 0.02891 | E28: 22a) Avg Additional Non-Gas Fuel Units/ Part. Used = | F28: 0 | J28: 14 | L28: 2035 | M28: 774 | N28: 4.96 | O28: 3839 | P28: 0 | Q28: 0 | R28: 3839 | S28: 7.7 | T28: 171 | U28: 1317 | V28: 5156 | W28: 2.777 | X28: 1698 | Y28: 0 | Z28: 0 | AA28: 1698 | AB28: 3458 | AE28: 2035 | AF28: 3839 | AG28: 1317 | AH28: 5156 | AJ28: 0 | AK28: 0 | AL28: 0 | AN28: 5156 | AQ28: 2035 | AR28: 3839 | AS28: 1317 | AT28: 0.047 | AU28: 0 | AV28: 2.846 | AW28: 2203 | AZ28: 7359 | BB28: 0 | BC28: 0 | BD28: 0 | BE28: 7359 | BH28: 2035 | BI28: 0 | BJ28: 774 | BK28: 10.45 | BL28: 8088 | BM28: 0.191 | BN28: 0 | BP28: 8088 | BR28: 0 | BT28: 8088 | BW28: 2035 | BX28: 3839 | BY28: 1317 | BZ28: 0 | CA28: 5156 | CC28: 0 | CD28: 0 | CE28: 0 | CG28: 5156
A29: Escalation Rate = | C29: =+'Gas Input Table Summary'!$D$20 -> 0.03 | J29: 15 | L29: 2036 | M29: 774 | N29: 5.109 | O29: 3954 | P29: 0 | Q29: 0 | R29: 3954 | S29: 7.7 | T29: 172 | U29: 1324 | V29: 5278 | W29: 2.86 | X29: =ROUND((1-$H$38)*(W29*M29),0) -> 1749 | Y29: 0 | Z29: 0 | AA29: 1749 | AB29: 3529 | AE29: 2036 | AF29: 3954 | AG29: 1324 | AH29: 5278 | AJ29: 0 | AK29: 0 | AL29: 0 | AN29: 5278 | AQ29: 2036 | AR29: 3954 | AS29: 1324 | AT29: 0.049 | AU29: 0 | AV29: 2.911 | AW29: 2253 | AZ29: 7531 | BB29: 0 | BC29: 0 | BD29: 0 | BE29: 7531 | BH29: 2036 | BI29: 0 | BJ29: 774 | BK29: 10.764 | BL29: 8331 | BM29: 0.197 | BN29: 0 | BP29: 8331 | BR29: 0 | BT29: 8331 | BW29: 2036 | BX29: 3954 | BY29: 1324 | BZ29: 0 | CA29: 5278 | CC29: 0 | CD29: 0 | CE29: 0 | CG29: 5278
E30: 23) Number of Participants = | F30: =ROUND('Database Inputs'!C10,0) -> 176 | J30: 16 | L30: 2037 | M30: 774 | N30: 5.262 | O30: 4073 | P30: 0 | Q30: 0 | R30: 4073 | S30: 7.7 | T30: 174 | U30: 1340 | V30: =ROUND(+U30+R30,0) -> 5413 | W30: 2.946 | X30: =ROUND((1-$H$38)*(W30*M30),0) -> 1801 | Y30: 0 | Z30: 0 | AA30: 1801 | AB30: 3612 | AE30: 2037 | AF30: 4073 | AG30: 1340 | AH30: 5413 | AJ30: 0 | AK30: 0 | AL30: 0 | AN30: 5413 | AQ30: 2037 | AR30: 4073 | AS30: 1340 | AT30: 0.05 | AU30: 0 | AV30: 2.978 | AW30: 2305 | AZ30: 7718 | BB30: 0 | BC30: 0 | BD30: 0 | BE30: 7718 | BH30: 2037 | BI30: 0 | BJ30: 774 | BK30: 11.087 | BL30: 8581 | BM30: 0.203 | BN30: 0 | BP30: 8581 | BR30: 0 | BT30: 8581 | BW30: 2037 | BX30: 4073 | BY30: 1340 | BZ30: 0 | CA30: 5413 | CC30: 0 | CD30: 0 | CE30: 0 | CG30: 5413
A31: 8) Non-Gas Fuel Loss Factor | C31: =+'Gas Input Table Summary'!$D$21 -> 0.073 | J31: 17 | L31: 2038 | M31: =ROUND(IF($C$47+$F$23>L31,$F$25*$F$30,0)+IF($C$48+$G$23>L31,$G$25*$G$30,0)+IF($C$49+$H$23>L31,$H$25*$H$30,0),0) -> 774 | N31: 5.42 | O31: 4195 | P31: 0 | Q31: 0 | R31: 4195 | S31: 7.7 | T31: 176 | U31: 1355 | V31: =ROUND(+U31+R31,0) -> 5550 | W31: 3.035 | X31: 1856 | Y31: 0 | Z31: 0 | AA31: 1856 | AB31: 3694 | AE31: 2038 | AF31: 4195 | AG31: 1355 | AH31: 5550 | AJ31: 0 | AK31: 0 | AL31: 0 | AN31: 5550 | AQ31: 2038 | AR31: 4195 | AS31: 1355 | AT31: 0.052 | AU31: 0 | AV31: 3.047 | AW31: 2358 | AZ31: 7908 | BB31: 0 | BC31: 0 | BD31: 0 | BE31: 7908 | BH31: 2038 | BI31: 0 | BJ31: 774 | BK31: 11.42 | BL31: 8839 | BM31: 0.209 | BN31: 0 | BP31: 8839 | BR31: 0 | BT31: 8839 | BW31: 2038 | BX31: 4195 | BY31: 1355 | BZ31: 0 | CA31: 5550 | CC31: 0 | CD31: 0 | CE31: 0 | CG31: 5550
E32: 24) Total Annual Dk Saved = | F32: =+'Total Program Inputs'!G11 -> 774 | J32: 18 | L32: 2039 | M32: 774 | N32: 5.582 | O32: 4320 | P32: 0 | Q32: 0 | R32: 4320 | S32: 7.7 | T32: 178 | U32: 1371 | V32: 5691 | W32: 3.126 | X32: 1911 | Y32: 0 | Z32: 0 | AA32: 1911 | AB32: 3780 | AE32: 2039 | AF32: 4320 | AG32: 1371 | AH32: 5691 | AJ32: 0 | AK32: 0 | AL32: 0 | AN32: 5691 | AQ32: 2039 | AR32: 4320 | AS32: 1371 | AT32: 0.053 | AU32: 0 | AV32: 3.117 | AW32: 2413 | AZ32: 8104 | BB32: 0 | BC32: 0 | BD32: 0 | BE32: 8104 | BH32: 2039 | BI32: 0 | BJ32: 774 | BK32: 11.762 | BL32: 9104 | BM32: 0.215 | BN32: 0 | BP32: 9104 | BR32: 0 | BT32: 9104 | BW32: 2039 | BX32: 4320 | BY32: 1371 | BZ32: 0 | CA32: 5691 | CC32: 0 | CD32: 0 | CE32: 0 | CG32: 5691
A33: 9) Gas Environmental Damage Factor = | C33: =+'Gas Input Table Summary'!$D$22 -> 2.07 | J33: 19 | L33: 2040 | M33: 774 | N33: 5.75 | O33: 4451 | P33: 0 | Q33: 0 | R33: 4451 | S33: 7.7 | T33: 179 | U33: 1378 | V33: 5829 | W33: 3.219 | X33: 1968 | Y33: 0 | Z33: 0 | AA33: 1968 | AB33: 3861 | AE33: 2040 | AF33: 4451 | AG33: 1378 | AH33: 5829 | AJ33: 0 | AK33: 0 | AL33: 0 | AN33: 5829 | AQ33: 2040 | AR33: 4451 | AS33: 1378 | AT33: 0.055 | AU33: 0 | AV33: 3.189 | AW33: 2468 | AZ33: 8297 | BB33: 0 | BC33: 0 | BD33: 0 | BE33: 8297 | BH33: 2040 | BI33: 0 | BJ33: 774 | BK33: 12.115 | BL33: 9377 | BM33: 0.222 | BN33: 0 | BP33: 9377 | BR33: 0 | BT33: 9377 | BW33: 2040 | BX33: 4451 | BY33: 1378 | BZ33: 0 | CA33: 5829 | CC33: 0 | CD33: 0 | CE33: 0 | CG33: 5829
A34: Escalation Rate = | C34: =+'Gas Input Table Summary'!$D$23 -> 0.023 | E34: 25) Incentive/Participant = | F34: =ROUND('Database Inputs'!L10,0) -> 150 | J34: 20 | L34: 2041 | M34: =ROUND(IF($C$47+$F$23>L34,$F$25*$F$30,0)+IF($C$48+$G$23>L34,$G$25*$G$30,0)+IF($C$49+$H$23>L34,$H$25*$H$30,0),0) -> 0 | N34: 5.922 | O34: 0 | P34: 0 | Q34: 0 | R34: 0 | S34: 0 | T34: 181 | U34: 0 | V34: 0 | W34: 3.316 | X34: 0 | Y34: 0 | Z34: 0 | AA34: 0 | AB34: 0 | AE34: 2041 | AF34: =+R34 -> 0 | AG34: 0 | AH34: 0 | AJ34: 0 | AK34: 0 | AL34: 0 | AN34: 0 | AQ34: 2041 | AR34: 0 | AS34: 0 | AT34: 0.056 | AU34: 0 | AV34: 3.262 | AW34: 0 | AZ34: 0 | BB34: 0 | BC34: 0 | BD34: 0 | BE34: 0 | BH34: 2041 | BI34: 0 | BJ34: 0 | BK34: 12.478 | BL34: 0 | BM34: 0.228 | BN34: 0 | BP34: 0 | BR34: 0 | BT34: 0 | BW34: 2041 | BX34: 0 | BY34: 0 | BZ34: 0 | CA34: 0 | CC34: 0 | CD34: 0 | CE34: 0 | CG34: 0
J35: 21 | L35: 2042 | M35: =ROUND(IF($C$47+$F$23>L35,$F$25*$F$30,0)+IF($C$48+$G$23>L35,$G$25*$G$30,0)+IF($C$49+$H$23>L35,$H$25*$H$30,0),0) -> 0 | N35: =ROUND($C$17*(1+$C$18)^J35,3) -> 6.1 | O35: =ROUND(M35*N35,0) -> 0 | P35: =ROUND($C$25*(1+$C$26)^J35,3) -> 0 | Q35: =ROUND(M35*P35,0) -> 0 | R35: =O35+Q35 -> 0 | S35: =ROUND(M35*$C$23,1) -> 0 | T35: =ROUND($C$20*(1+$C$21)^J35,0) -> 183 | U35: =ROUND(S35*T35,0) -> 0 | V35: =ROUND(+U35+R35,0) -> 0 | W35: =ROUND($H$36*(1+$C$11)^J35,3) -> 3.416 | X35: =ROUND((1-$H$38)*(W35*M35),0) -> 0 | Y35: 0 | Z35: 0 | AA35: =SUM(X35:Z35) -> 0 | AB35: =V35-AA35 -> 0 | AE35: 2042 | AF35: =+R35 -> 0 | AG35: =+U35 -> 0 | AH35: =+AG35+AF35 -> 0 | AJ35: =ROUND(Y35,0) -> 0 | AK35: =ROUND(Z35,0) -> 0 | AL35: =SUM(AJ35:AK35) -> 0 | AN35: =+AH35-AL35 -> 0 | AQ35: 2042 | AR35: =AF35 -> 0 | AS35: =+AG35 -> 0 | AT35: =ROUND(($C$28/(1-$C$31))*(1+$C$29)^J35,3) -> 0.058 | AU35: =ROUND((IF($C$47+$F$23>$AQ35,$F$27*$F$30,0)+IF($C$48+$G$23>AQ35,$G$27*$G$30,0)+IF($C$49+$H$23>AQ35,$H$27*$H$30,0))*AT35,0) -> 0 | AV35: =ROUND($C$33*(1+$C$34)^J35,3) -> 3.337 | AW35: =ROUND(AV35*M35,0) -> 0 | AZ35: =ROUND(AR35+AS35+AU35+AW35+AY35,0) -> 0 | BB35: 0 | BC35: 0 | BD35: =BB35+BC35 -> 0 | BE35: =AZ35-BD35 -> 0 | BH35: 2042 | BI35: 0 | BJ35: =+M35 -> 0 | BK35: =ROUND($C$10*(1+$C$11)^J35,3) -> 12.853 | BL35: =ROUND(BJ35*BK35,0) -> 0 | BM35: =ROUND($C$13*(1+$C$14)^J35,3) -> 0.235 | BN35: =ROUND((IF($C$47+$F$23>BH35,$F$27*$F$30,0)+IF($C$49+$H$23>BH35,$H$27*$H$30,0)+IF($C$48+$G$23>BH35,$G$27*$G$30,0))*BM35,0) -> 0 | BP35: =BI35+BL35+BN35+BO35 -> 0 | BR35: =+BC35 -> 0 | BT35: =BP35-BR35 -> 0 | BW35: 2042 | BX35: 0 | BY35: =U35 -> 0 | BZ35: =AU35 -> 0 | CA35: =SUM(BX35:BZ35) -> 0 | CC35: =BB35 -> 0 | CD35: =BC35 -> 0 | CE35: =SUM(CC35:CD35) -> 0 | CG35: =CA35-CE35 -> 0
A36: 10) Non Gas Fuel Environmental Damage Factor = | C36: =+'Gas Input Table Summary'!$D$24 -> 0 | E36: 26) Distribution Delivery Charge | H36: =+'Gas Input Table Summary'!$D$58 -> 1.836 | J36: 22 | L36: 2043 | M36: =ROUND(IF($C$47+$F$23>L36,$F$25*$F$30,0)+IF($C$48+$G$23>L36,$G$25*$G$30,0)+IF($C$49+$H$23>L36,$H$25*$H$30,0),0) -> 0 | N36: 6.283 | O36: 0 | P36: 0 | Q36: 0 | R36: 0 | S36: 0 | T36: 185 | U36: 0 | V36: =ROUND(+U36+R36,0) -> 0 | W36: 3.518 | X36: 0 | Y36: 0 | Z36: 0 | AA36: 0 | AB36: 0 | AE36: 2043 | AF36: 0 | AG36: 0 | AH36: 0 | AJ36: 0 | AK36: 0 | AL36: 0 | AN36: 0 | AQ36: 2043 | AR36: =AF36 -> 0 | AS36: 0 | AT36: 0.06 | AU36: 0 | AV36: 3.414 | AW36: 0 | AZ36: 0 | BB36: 0 | BC36: 0 | BD36: 0 | BE36: 0 | BH36: 2043 | BI36: 0 | BJ36: 0 | BK36: 13.238 | BL36: 0 | BM36: 0.242 | BN36: 0 | BP36: 0 | BR36: 0 | BT36: =BP36-BR36 -> 0 | BW36: 2043 | BX36: 0 | BY36: 0 | BZ36: 0 | CA36: 0 | CC36: 0 | CD36: 0 | CE36: 0 | CG36: 0
A37: Escalation Rate = | C37: =+'Gas Input Table Summary'!$D$25 -> 0
E38: 27) Effective Income Tax Rate = | H38: =+'Gas Input Table Summary'!$D$59 -> 0.21 | K38: Total = | M38: =SUM(M14:M36) -> 15480 | V38: =SUM(V14:V36) -> 93368 | AA38: =SUM(AA14:AA36) -> 59997 | AB38: =SUM(AB14:AB36) -> 33371 | AD38: Total = | AH38: =SUM(AH14:AH36) -> 93368 | AL38: =SUM(AL14:AL36) -> 29834 | AN38: =SUM(AN14:AN36) -> 63534 | AP38: Total = | AZ38: =SUM(AZ14:AZ36) -> 133480 | BD38: =SUM(BD14:BD36) -> 32474 | BE38: =SUM(BE14:BE36) -> 101006 | BG38: Total = | BJ38: =SUM(BJ14:BJ36) -> 15480 | BP38: =SUM(BP14:BP36) -> 170094 | BR38: =SUM(BR14:BR36) -> 29040 | BT38: =SUM(BT14:BT36) -> 141054 | BZ38: Total = | CA38: =SUM(CA14:CA36) -> 93368 | CE38: =SUM(CE14:CE36) -> 32474 | CG38: =SUM(CG14:CG36) -> 60894
A39: 11) Participant Discount Rate = | C39: =+'Gas Input Table Summary'!$D$26 -> 0.1032 | E39: (Federal & State Taxes) | T39: NPV = | V39: =ROUND(V14+NPV($C$41,V15:V36),0) -> 49354 | AA39: =ROUND(AA14+NPV($C$41,AA15:AA36),0) -> 45584 | AB39: =ROUND(AB14+NPV($C$41,AB15:AB36),0) -> 3771 | AG39: NPV = | AH39: =ROUND(AH14+NPV($C$41,AH15:AH36),0) -> 49354 | AL39: =ROUND(AL14+NPV($C$41,AL15:AL36),0) -> 29834 | AN39: =+AH39-AL39 -> 19520 | AW39: NPV = | AZ39: =ROUND(AZ14+NPV($C$43,AZ15:AZ36),0) -> 106643 | BD39: =ROUND(BD14+NPV($C$43,BD15:BD36),0) -> 32474 | BE39: =AZ39-BD39 -> 74169 | BN39: NPV = | BP39: =ROUND(BP14+NPV($C$39,BP15:BP36),0) -> 86580 | BR39: =ROUND(BR14+NPV($C$39,BR15:BR36),0) -> 29040 | BT39: =ROUND(BT14+NPV($C$39,BT15:BT36),0) -> 57540 | BZ39: NPV = | CA39: =ROUND(CA14+NPV($C$41,CA15:CA36),0) -> 49354 | CE39: =ROUND(CE14+NPV($C$41,CE15:CE36),0) -> 32474 | CG39: =ROUND(CG14+NPV($C$41,CG15:CG36),0) -> 16880
A41: 12) Utility Discount Rate = | C41: =+'Gas Input Table Summary'!$D$27 -> 0.07216 | E41: Test Results | F41: NPV | G41: B/C | K41: Total NPV = | N41: =AB39 -> 3771 | AD41: Total NPV = | AG41: =AN39 -> 19520 | AP41: Total NPV = | AS41: =BE39 -> 74169 | BG41: Total NPV = | BJ41: =BT39 -> 57540 | BV41: Total NPV = | BY41: =CG39 -> 16880
E42: Ratepayer Impact Measure Test | F42: =N41 -> 3771 | G42: =N42 -> 1.08 | K42: Benefit/Cost Ratio = | N42: =ROUND(V39/AA39,2) -> 1.08 | AD42: Benefit/Cost Ratio = | AG42: =ROUND(AH39/AL39,2) -> 1.65 | AP42: Benefit/Cost Ratio = | AS42: =ROUND(AZ39/BD39,2) -> 3.28 | BG42: Benefit/Cost Ratio = | BJ42: =ROUND(BP39/BR39,2) -> 2.98 | BV42: Benefit/Cost Ratio = | BY42: =ROUND(CA39/CE39,2) -> 1.52
A43: 13) Societal Discount Rate = | C43: =+'Gas Input Table Summary'!$D$28 -> 0.0229 | E43: Utility Cost Test | F43: =AG41 -> 19520 | G43: =AG42 -> 1.65
E44: Societal Test | F44: =AS41 -> 74169 | G44: =AS42 -> 3.28 | J44: Worksheet Calculations | BV44: Worksheet Calculations
A45: 14) General Input Data Year = | C45: =+'Gas Input Table Summary'!$D$29 -> 2021 | E45: Participant Test | F45: =BJ41 -> 57540 | G45: =BJ42 -> 2.98 | J45: (A) | K45: = Average Dk/Participant Saved (21) x Number of Participants (23) for Project Life (20) | T45: (I) | U45: = (G) x (H) | AD45: Worksheet Calculations | AP45: Worksheet Calculations | BG45: Worksheet Calculations | BV45: (A) | BW45: = Table 1 (F)
E46: Total Resource Cost Test | F46: =BY41 -> 16880 | G46: =BY42 -> 1.52 | J46: (B) | K46: = Commodity Cost (3) escalated | T46: (J) | U46: = (F) + (I) | AD46: (A) | AE46: = Table 1 (F) | AP46: (A) | AQ46: = Table 1 (F) | AW46: (H) | AZ46: = Table 2 (F) | BG46: (A) | BH46: = Table 1 (N) | BL46: (G) | BM46: = (A) + (D) + (F) | BV46: (B) | BW46: = Table 1 (I)
A47: 15) Project Analysis Year 1 = | C47: =+'Total Program Inputs'!C6 -> 2021 | J47: (C) | K47: = (A) x (B) | T47: (K) | U47: = Distribution Delivery Charge (26) escalated. | AD47: (B) | AE47: = Table 1 (I) | AP47: (G) | AQ47: = Table 1 (I) | AW47: (I) | AZ47: = Direct Part. Costs (17) x No. of Part. (23) - Table 1 (N) | BG47: (B) | BH47: = Table 1 (A) | BL47: (H) | BM47: = Direct Participant Costs (17) x Number of Participants (23) | BV47: (C) | BW47: = Table 3 (D)
J48: (D) | K48: = Variable O&M Cost (6), escalated | T48: (L) | U48: = (A) x (K) x (1-Inverse of Tax Rate (27) | AD48: (C) | AE48: = Table 1 (J) | AP48: (C) | AQ48: = Non-Gas Fuel Cost (7), adjusted for losses (8), escalated.. | AW48: (J) | AZ48: = (H) + (I) | BG48: (C) | BH48: = Retail Rate (1) escalated. | BL48: (I) | BM48: = (G) - (H) | BV48: (D) | BW48: = (A) + (B) + (C)
J49: (E) | K49: = (A) x (D) | T49: (M) | U49: = Admin & Operating Costs (16a) | AD49: (D) | AE49: = Table 1 (M) | AP49: (D) | AQ49: = (C) x [Avg. Non-Gas Fuel Units/Part.Saved (22) x No. of Part. (23) | AW49: (K) | AZ49: = (G) - (J) | BG49: (D) | BH49: =(B) x (C) | BV49: (E) | BW49: = Table 3 (H)
J50: (F) | K50: = (C) + (E) | T50: (N) | U50: = Incentive Costs (16b) | AD50: (E) | AE50: = Table 1 (N) | AP50: (E) | AQ50: = Gas Environmental Damage Factor (9), escalated | BG50: (E) | BH50: = Non-Gas Fuel Retail Rate (2), escalated. | BV50: (F) | BW50: = Table 3 (I)
J51: (G) | K51: = (A) x Peak Reduction Factor (5) | T51: (O) | U51: = (L) + (M) + (N) | AD51: (F) | AE51: = (D) + (E) | AP51: (F) | AQ51: = Table 1 (A) x (E) | BG51: (F) | BH51: = (E) x [Avg. Non-Gas Fuel Units/Part.Saved (22) x No. of Part. (23) | BV51: (G) | BW51: = (E) + (F)
J52: (H) | K52: = Demand Cost (4) escalated. | T52: (P) | U52: = (J) - (O) | AD52: (G) | AE52: = (C) - (F) | AP52: (G) | AQ52: = (A) + (B) + (D) + (F) | BV52: (H) | BW52: = (D) - (G)

Sheet Res .95+% Res Furnace - Replace
A1: NATURAL GAS CONSERVATION PROGRAMS/DEMAND-SIDE MANAGEMENT | K1: Table 1 | AD1: Table 2 | AP1: Table 3 | BG1: Table 4 | BV1: Table 5
A2: BEN/COST ANALYSIS FOR GAS CONSERVATION | K2: Ratepayer Impact Measure Test | AD2: Utility Cost Test | AP2: Societal Test | BG2: Participant Test | BV2: Total Resource Cost Test
A4: Company: | B4: Montana-Dakota Utilities Co. | K4: Company: | M4: =B4 -> Montana-Dakota Utilities Co. | AD4: Company: | AF4: =B4 -> Montana-Dakota Utilities Co. | AP4: Company: | AR4: =AF4 -> Montana-Dakota Utilities Co. | BH4: Company: | BI4: =AR4 -> Montana-Dakota Utilities Co. | BW4: Company: | BX4: =BI4 -> Montana-Dakota Utilities Co.
A5: Project: | B5: Residential 95+% AFUE Furnace - Replacement | K5: Project: | M5: =$B$5 -> Residential 95+% AFUE Furnace - Replacement | AD5: Project: | AF5: =$B$5 -> Residential 95+% AFUE Furnace - Replacement | AP5: Project: | AR5: =$B$5 -> Residential 95+% AFUE Furnace - Replacement | BH5: Project: | BI5: =$B$5 -> Residential 95+% AFUE Furnace - Replacement | BW5: Project: | BX5: =$B$5 -> Residential 95+% AFUE Furnace - Replacement
A6: Program Years: | B6: ='Total Program'!$B$6 -> 2021
N7: Benefits | X7: Costs | AF7: Benefits | AJ7: Costs | AR7: Benefits | BB7: Costs | BI7: Benefits | BR7: Costs | BX7: Benefits | CC7: Costs
A8: Input Data | F8: =+'Total Program Inputs'!C6 -> 2021 | AB8: Annual | AN8: Annual | AT8: Non-Gas | BE8: Annual | BT8: Annual | CG8: Annual
M9: Total | N9: Gas | O9: Gas | P9: Variable | Q9: Variable | R9: Total | S9: Peak Dk | T9: Demand | U9: Total | W9: Distribution | Y9: Program | AA9: Total | AB9: Benefits | AF9: Total | AG9: Total | AH9: Annual | AJ9: Program | AL9: Utility | AN9: Benefits | AR9: Total | AS9: Total | AT9: Energy | AU9: Non-Gas | AV9: Environmental | AW9: Environmental | AZ9: Annual | BB9: Utility | BC9: Participants' | BD9: Annual | BE9: Benefits | BJ9: Total | BL9: Gas | BM9: Non-Gas | BN9: Non-Gas | BP9: Total | BR9: Direct | BT9: Benefits | BX9: Total | BY9: Total | BZ9: Non-Gas | CA9: Total | CC9: Utility | CD9: Participants' | CG9: Benefits
A10: 1) Retail Rate ($/Dk) = | C10: =+'Gas Input Table Summary'!$D$7 -> 6.909 | E10: 16) Utility Project Costs | M10: Energy | N10: Commodity | O10: Commodity | P10: O & M | Q10: O & M | R10: Energy | S10: Demand | T10: Savings | U10: Demand | V10: Total | W10: Delivery | X10: Lost | Y10: Admin | Z10: Incentive | AA10: Program | AB10: Less | AF10: Energy | AG10: Demand | AH10: Total | AJ10: Admin | AK10: Incentive | AL10: Program | AN10: Less | AR10: Energy | AS10: Demand | AT10: Savings | AU10: Energy | AV10: Damage | AW10: Damage | AZ10: Total | BB10: Program | BC10: Costs Net | BD10: Total | BE10: Less | BI10: Incentives | BJ10: Energy | BK10: Retail | BL10: Bill | BM10: Fuel | BN10: Energy | BP10: Annual | BR10: Participant | BT10: Less | BX10: Energy | BY10: Demand | BZ10: Energy | CA10: Annual | CC10: Program | CD10: Costs Net | CE10: Total | CG10: Less
A11: Escalation Rate = | C11: =+'Gas Input Table Summary'!$D$8 -> 0.03 | E11: 16a) Administrative & Operating Costs = | F11: =+'Total Program Inputs'!M12 -> 9283 | J11: t | M11: Reduction | N11: Cost/Dk | O11: Savings | P11: Cost/Dk | Q11: Savings | R11: Savings | S11: Reduction | T11: Per Unit | U11: Savings | V11: Savings | W11: Charge | X11: Margin | Y11: Costs | Z11: Costs | AA11: Costs | AB11: Costs | AF11: Savings | AG11: Savings | AH11: Savings | AJ11: Costs | AK11: Costs | AL11: Costs | AN11: Costs | AR11: Savings | AS11: Savings | AT11: ($/Part.) | AU11: Savings | AV11: Savings/Dk | AW11: Savings | AZ11: Savings | BB11: Costs | BC11: of Rebate | BD11: Costs | BE11: Costs | BI11: Received | BJ11: Reduction | BK11: Rate | BL11: Savings | BM11: Retail Rate | BN11: Savings | BP11: Benefits | BR11: Costs | BT11: Costs | BX11: Savings | BY11: Savings | BZ11: Savings | CA11: Benefits | CC11: Costs | CD11: of Rebate | CE11: Costs | CG11: Costs
E12: 16b) Incentive Costs = | F12: =+'Total Program Inputs'!I12 -> 71400 | L12: Year | M12: (A) | N12: (B) | O12: (C) | P12: (D) | Q12: (E) | R12: (F) | S12: (G) | T12: (H) | U12: (I) | V12: (J) | W12: (K) | X12: (L) | Y12: (M) | Z12: (N) | AA12: (O) | AB12: (P) | AE12: Year | AF12: (A) | AG12: (B) | AH12: (C) | AJ12: (D) | AK12: (E) | AL12: (F) | AN12: (G) | AQ12: Year | AR12: (A) | AS12: (B) | AT12: (C) | AU12: (D) | AV12: (E) | AW12: (F) | AZ12: (G) | BB12: (H) | BC12: (I) | BD12: (J) | BE12: (K) | BH12: Year | BI12: (A) | BJ12: (B) | BK12: (C) | BL12: (D) | BM12: (E) | BN12: (F) | BP12: (G) | BR12: (H) | BT12: (I) | BW12: Year | BX12: (A) | BY12: (B) | BZ12: (C) | CA12: (D) | CC12: (E) | CD12: (F) | CE12: (G) | CG12: (H)
A13: 2) Non-Gas Fuel Retail Rate ($/Fuel Unit) = | C13: =+'Gas Input Table Summary'!$D$9 -> 0.12648 | E13: 16c) Total Utility Project Costs = | F13: =SUM(F11:F12) -> 80683
A14: Escalation Rate = | C14: =+'Gas Input Table Summary'!$D$10 -> 0.03 | J14: =$C$47-$C$45 -> 0 | L14: =$C$47 -> 2021 | M14: =ROUND(IF($C$47+$F$23>L14,F25*F30,0),0) -> 4401 | N14: =ROUND($C$17*(1+$C$18)^J14,3) -> 3.279 | O14: =ROUND(M14*N14,0) -> 14431 | P14: =ROUND($C$25*(1+$C$26)^J14,3) -> 0 | Q14: =ROUND(M14*P14,0) -> 0 | R14: =O14+Q14 -> 14431 | S14: =ROUND(M14*$C$23,1) -> 44 | T14: =ROUND($C$20*(1+$C$21)^J14,0) -> 148 | U14: =ROUND(S14*T14,0) -> 6512 | V14: =ROUND(+U14+R14,0) -> 20943 | W14: =ROUND($H$36*(1+$C$11)^J14,3) -> 1.836 | X14: =ROUND((1-$H$38)*(W14*M14),0) -> 6383 | Y14: =ROUND($F$11,0) -> 9283 | Z14: =ROUND($F$12,0) -> 71400 | AA14: =SUM(X14:Z14) -> 87066 | AB14: =V14-AA14 -> -66123 | AE14: =$C$47 -> 2021 | AF14: =+R14 -> 14431 | AG14: =+U14 -> 6512 | AH14: =+AG14+AF14 -> 20943 | AJ14: =ROUND(Y14,0) -> 9283 | AK14: =ROUND(Z14,0) -> 71400 | AL14: =SUM(AJ14:AK14) -> 80683 | AN14: =+AH14-AL14 -> -59740 | AQ14: =$C$47 -> 2021 | AR14: =AF14 -> 14431 | AS14: =+AG14 -> 6512 | AT14: =ROUND(($C$28/(1-$C$31))*(1+$C$29)^J14,3) -> 0.031 | AU14: =ROUND(IF($C$47+$F$23>$AQ14,$F$30*$F$27,0)*AT14,0) -> 5312 | AV14: =ROUND($C$33*(1+$C$34)^J14,3) -> 2.07 | AW14: =ROUND(AV14*M14,0) -> 9110 | AZ14: =ROUND(AR14+AS14+AU14+AW14+AY14,0) -> 35365 | BB14: =ROUND($F$13,0) -> 80683 | BC14: =ROUND((F15*F30)-Z14,0) -> 103768 | BD14: =BB14+BC14 -> 184451 | BE14: =AZ14-BD14 -> -149086 | BH14: =$C$47 -> 2021 | BI14: =+F12 -> 71400 | BJ14: =+M14 -> 4401 | BK14: =ROUND($C$10*(1+$C$11)^J14,3) -> 6.909 | BL14: =ROUND(BJ14*BK14,0) -> 30407 | BM14: =ROUND($C$13*(1+$C$14)^J14,3) -> 0.126 | BN14: =ROUND(IF($C$47+$F$23>$BH14,$F$30*$F$27,0)*BM14,0) -> 21591 | BP14: =BI14+BL14+BN14+BO14 -> 123398 | BR14: =ROUND(F15*F30,0) -> 175168 | BT14: =BP14-BR14 -> -51770 | BW14: =$C$47 -> 2021 | BX14: =$R14 -> 14431 | BY14: =U14 -> 6512 | BZ14: =AU14 -> 5312 | CA14: =SUM(BX14:BZ14) -> 26255 | CC14: =BB14 -> 80683 | CD14: =BC14 -> 103768 | CE14: =SUM(CC14:CD14) -> 184451 | CG14: =CA14-CE14 -> -158196
A15: Non-Gas Fuel Units (ie. kWh,Gallons, etc) = | C15: =+'Gas Input Table Summary'!$D$11 -> Kwh | E15: 17) Direct Participant Costs ($/Part.) = | F15: =ROUND('Database Inputs'!K11,0) -> 736 | J15: =J14+1 -> 1 | L15: =L14+1 -> 2022 | M15: =ROUND(IF($C$47+$F$23>L15,$F$25*$F$30,0)+IF($C$48+$G$23>L15,$G$25*$G$30,0),0) -> 4401 | N15: 3.377 | O15: 14862 | P15: 0 | Q15: =ROUND(M15*P15,0) -> 0 | R15: =O15+Q15 -> 14862 | S15: =ROUND(M15*$C$23,1) -> 44 | T15: =ROUND($C$20*(1+$C$21)^J15,0) -> 150 | U15: =ROUND(S15*T15,0) -> 6600 | V15: =ROUND(+U15+R15,0) -> 21462 | W15: =ROUND($H$36*(1+$C$11)^J15,3) -> 1.891 | X15: =ROUND((1-$H$38)*(W15*M15),0) -> 6575 | Y15: =ROUND($G$11,0) -> 0 | Z15: =ROUND($G$12,0) -> 0 | AA15: =SUM(X15:Z15) -> 6575 | AB15: =V15-AA15 -> 14887 | AE15: =AE14+1 -> 2022 | AF15: 14862 | AG15: 6600 | AH15: =+AG15+AF15 -> 21462 | AJ15: =ROUND(Y15,0) -> 0 | AK15: 0 | AL15: 0 | AN15: 21462 | AQ15: =AQ14+1 -> 2022 | AR15: 14862 | AS15: 6600 | AT15: =ROUND(($C$28/(1-$C$31))*(1+$C$29)^J15,3) -> 0.032 | AU15: =ROUND((IF($C$47+$F$23>$AQ15,$F$27*$F$30,0)+IF($C$48+$G$23>AQ15,$G$27*$G$30,0))*AT15,0) -> 5484 | AV15: =ROUND($C$33*(1+$C$34)^J15,3) -> 2.118 | AW15: =ROUND(AV15*M15,0) -> 9321 | AZ15: =ROUND(AR15+AS15+AU15+AW15+AY15,0) -> 36267 | BB15: =ROUND($G$13,0) -> 0 | BC15: =ROUND(($G$15*$G$30)-$Z$15,0) -> 0 | BD15: =BB15+BC15 -> 0 | BE15: 36267 | BH15: =BH14+1 -> 2022 | BI15: =+G12 -> 0 | BJ15: 4401 | BK15: =ROUND($C$10*(1+$C$11)^J15,3) -> 7.116 | BL15: =ROUND(BJ15*BK15,0) -> 31318 | BM15: =ROUND($C$13*(1+$C$14)^J15,3) -> 0.13 | BN15: =ROUND((IF($C$47+$F$23>BH15,$F$27*$F$30,0)+IF($C$48+$G$23>BH15,$G$27*$G$30,0))*BM15,0) -> 22277 | BP15: 53595 | BR15: =ROUND($G$15*$G$30,0) -> 0 | BT15: =BP15-BR15 -> 53595 | BW15: =BW14+1 -> 2022 | BX15: 14862 | BY15: =U15 -> 6600 | BZ15: =AU15 -> 5484 | CA15: =SUM(BX15:BZ15) -> 26946 | CC15: =BB15 -> 0 | CD15: 0 | CE15: =SUM(CC15:CD15) -> 0 | CG15: =CA15-CE15 -> 26946
J16: 2 | L16: 2023 | M16: =ROUND(IF($C$47+$F$23>L16,$F$25*$F$30,0)+IF($C$48+$G$23>L16,$G$25*$G$30,0)+IF($C$49+$H$23>L16,$H$25*$H$30,0),0) -> 4401 | N16: 3.479 | O16: 15311 | P16: 0 | Q16: 0 | R16: 15311 | S16: 44 | T16: 151 | U16: =ROUND(S16*T16,0) -> 6644 | V16: =ROUND(+U16+R16,0) -> 21955 | W16: 1.948 | X16: 6773 | Y16: =ROUND($H$11,0) -> 0 | Z16: =ROUND($H$12,0) -> 0 | AA16: =SUM(X16:Z16) -> 6773 | AB16: =V16-AA16 -> 15182 | AE16: 2023 | AF16: 15311 | AG16: 6644 | AH16: =+AG16+AF16 -> 21955 | AJ16: 0 | AK16: 0 | AL16: =SUM(AJ16:AK16) -> 0 | AN16: =+AH16-AL16 -> 21955 | AQ16: 2023 | AR16: 15311 | AS16: 6644 | AT16: 0.033 | AU16: =ROUND((IF($C$47+$F$23>$AQ16,$F$27*$F$30,0)+IF($C$48+$G$23>AQ16,$G$27*$G$30,0)+IF($C$49+$H$23>AQ16,$H$27*$H$30,0))*AT16,0) -> 5655 | AV16: 2.166 | AW16: 9533 | AZ16: =ROUND(AR16+AS16+AU16+AW16+AY16,0) -> 37143 | BB16: =ROUND($H$13,0) -> 0 | BC16: =ROUND(($H$15*$H$30)-$Z$16,0) -> 0 | BD16: =BB16+BC16 -> 0 | BE16: 37143 | BH16: 2023 | BI16: =ROUND(H12,0) -> 0 | BJ16: 4401 | BK16: 7.33 | BL16: =ROUND(BJ16*BK16,0) -> 32259 | BM16: 0.134 | BN16: =ROUND((IF($C$47+$F$23>BH16,$F$27*$F$30,0)+IF($C$49+$H$23>BH16,$H$27*$H$30,0)+IF($C$48+$G$23>BH16,$G$27*$G$30,0))*BM16,0) -> 22962 | BP16: =BI16+BL16+BN16+BO16 -> 55221 | BR16: =ROUND($H$15*$H$30,0) -> 0 | BT16: =BP16-BR16 -> 55221 | BW16: 2023 | BX16: 15311 | BY16: 6644 | BZ16: 5655 | CA16: =SUM(BX16:BZ16) -> 27610 | CC16: 0 | CD16: 0 | CE16: =SUM(CC16:CD16) -> 0 | CG16: =CA16-CE16 -> 27610
A17: 3) Commodity Cost ($/Dk) = | C17: =+'Gas Input Table Summary'!$D$12 -> 3.279 | E17: 18) Participant Non-Energy Costs (Annual $/Part.) = | F17: =+'Gas Input Table Summary'!$D$35 -> 0 | J17: 3 | L17: 2024 | M17: =ROUND(IF($C$47+$F$23>L17,$F$25*$F$30,0)+IF($C$48+$G$23>L17,$G$25*$G$30,0)+IF($C$49+$H$23>L17,$H$25*$H$30,0),0) -> 4401 | N17: 3.583 | O17: 15769 | P17: 0 | Q17: 0 | R17: 15769 | S17: 44 | T17: 153 | U17: 6732 | V17: 22501 | W17: 2.006 | X17: 6974 | Y17: 0 | Z17: 0 | AA17: 6974 | AB17: =V17-AA17 -> 15527 | AE17: 2024 | AF17: 15769 | AG17: 6732 | AH17: 22501 | AJ17: 0 | AK17: 0 | AL17: 0 | AN17: 22501 | AQ17: 2024 | AR17: 15769 | AS17: 6732 | AT17: 0.034 | AU17: =ROUND((IF($C$47+$F$23>$AQ17,$F$27*$F$30,0)+IF($C$48+$G$23>AQ17,$G$27*$G$30,0)+IF($C$49+$H$23>AQ17,$H$27*$H$30,0))*AT17,0) -> 5826 | AV17: 2.216 | AW17: 9753 | AZ17: 38080 | BB17: 0 | BC17: 0 | BD17: 0 | BE17: 38080 | BH17: 2024 | BI17: 0 | BJ17: 4401 | BK17: 7.55 | BL17: 33228 | BM17: 0.138 | BN17: =ROUND((IF($C$47+$F$23>BH17,$F$27*$F$30,0)+IF($C$49+$H$23>BH17,$H$27*$H$30,0)+IF($C$48+$G$23>BH17,$G$27*$G$30,0))*BM17,0) -> 23648 | BP17: 56876 | BR17: =+BC17 -> 0 | BT17: 56876 | BW17: 2024 | BX17: 15769 | BY17: 6732 | BZ17: 5826 | CA17: 28327 | CC17: 0 | CD17: 0 | CE17: 0 | CG17: 28327
A18: Escalation Rate = | C18: =+'Gas Input Table Summary'!$D$13 -> 0.03 | E18: Escalation Rate = | F18: =+'Gas Input Table Summary'!$D$38 -> 0 | J18: 4 | L18: 2025 | M18: 4401 | N18: 3.691 | O18: 16244 | P18: 0 | Q18: 0 | R18: 16244 | S18: 44 | T18: 155 | U18: 6820 | V18: 23064 | W18: 2.066 | X18: 7183 | Y18: 0 | Z18: 0 | AA18: 7183 | AB18: 15881 | AE18: 2025 | AF18: 16244 | AG18: 6820 | AH18: 23064 | AJ18: 0 | AK18: 0 | AL18: 0 | AN18: 23064 | AQ18: 2025 | AR18: 16244 | AS18: 6820 | AT18: 0.035 | AU18: 5998 | AV18: 2.267 | AW18: 9977 | AZ18: 39039 | BB18: 0 | BC18: 0 | BD18: 0 | BE18: 39039 | BH18: 2025 | BI18: 0 | BJ18: 4401 | BK18: 7.776 | BL18: 34222 | BM18: 0.142 | BN18: 24333 | BP18: 58555 | BR18: 0 | BT18: 58555 | BW18: 2025 | BX18: 16244 | BY18: 6820 | BZ18: 5998 | CA18: 29062 | CC18: 0 | CD18: 0 | CE18: 0 | CG18: 29062
J19: 5 | L19: 2026 | M19: 4401 | N19: 3.801 | O19: 16728 | P19: 0 | Q19: 0 | R19: 16728 | S19: 44 | T19: 156 | U19: 6864 | V19: 23592 | W19: 2.128 | X19: 7399 | Y19: 0 | Z19: 0 | AA19: 7399 | AB19: 16193 | AE19: 2026 | AF19: 16728 | AG19: 6864 | AH19: 23592 | AJ19: 0 | AK19: 0 | AL19: 0 | AN19: 23592 | AQ19: 2026 | AR19: 16728 | AS19: 6864 | AT19: 0.036 | AU19: 6169 | AV19: 2.319 | AW19: 10206 | AZ19: 39967 | BB19: 0 | BC19: 0 | BD19: 0 | BE19: 39967 | BH19: 2026 | BI19: 0 | BJ19: 4401 | BK19: 8.009 | BL19: 35248 | BM19: 0.147 | BN19: 25190 | BP19: 60438 | BR19: 0 | BT19: 60438 | BW19: 2026 | BX19: 16728 | BY19: 6864 | BZ19: 6169 | CA19: 29761 | CC19: 0 | CD19: 0 | CE19: 0 | CG19: 29761
A20: 4) Demand Cost ($/Unit/Yr) = | C20: =+'Gas Input Table Summary'!$D$14 -> 148.48 | E20: 19) Participant Non-Energy Savings (Annual $/Part) = | F20: =+'Gas Input Table Summary'!$D$41 -> 0 | J20: 6 | L20: 2027 | M20: 4401 | N20: 3.915 | O20: 17230 | P20: 0 | Q20: 0 | R20: 17230 | S20: 44 | T20: 158 | U20: 6952 | V20: 24182 | W20: 2.192 | X20: 7621 | Y20: 0 | Z20: 0 | AA20: 7621 | AB20: 16561 | AE20: 2027 | AF20: 17230 | AG20: 6952 | AH20: 24182 | AJ20: 0 | AK20: 0 | AL20: 0 | AN20: 24182 | AQ20: 2027 | AR20: 17230 | AS20: 6952 | AT20: 0.037 | AU20: 6340 | AV20: 2.373 | AW20: 10444 | AZ20: 40966 | BB20: 0 | BC20: 0 | BD20: 0 | BE20: 40966 | BH20: 2027 | BI20: 0 | BJ20: 4401 | BK20: 8.25 | BL20: 36308 | BM20: 0.151 | BN20: 25875 | BP20: 62183 | BR20: 0 | BT20: 62183 | BW20: 2027 | BX20: 17230 | BY20: 6952 | BZ20: 6340 | CA20: 30522 | CC20: 0 | CD20: 0 | CE20: 0 | CG20: 30522
A21: Escalation Rate = | C21: =+'Gas Input Table Summary'!$D$15 -> 0.01 | E21: Escalation Rate = | F21: =+'Gas Input Table Summary'!$D$44 -> 0 | J21: 7 | L21: 2028 | M21: 4401 | N21: 4.033 | O21: 17749 | P21: 0 | Q21: 0 | R21: 17749 | S21: 44 | T21: 159 | U21: 6996 | V21: 24745 | W21: 2.258 | X21: 7851 | Y21: 0 | Z21: 0 | AA21: 7851 | AB21: 16894 | AE21: 2028 | AF21: 17749 | AG21: 6996 | AH21: 24745 | AJ21: 0 | AK21: 0 | AL21: 0 | AN21: 24745 | AQ21: 2028 | AR21: 17749 | AS21: 6996 | AT21: 0.038 | AU21: 6512 | AV21: 2.427 | AW21: 10681 | AZ21: 41938 | BB21: 0 | BC21: 0 | BD21: 0 | BE21: 41938 | BH21: 2028 | BI21: 0 | BJ21: 4401 | BK21: 8.497 | BL21: 37395 | BM21: 0.156 | BN21: 26732 | BP21: 64127 | BR21: 0 | BT21: 64127 | BW21: 2028 | BX21: 17749 | BY21: 6996 | BZ21: 6512 | CA21: 31257 | CC21: 0 | CD21: 0 | CE21: 0 | CG21: 31257
J22: 8 | L22: 2029 | M22: 4401 | N22: 4.154 | O22: 18282 | P22: 0 | Q22: 0 | R22: 18282 | S22: 44 | T22: 161 | U22: 7084 | V22: 25366 | W22: 2.326 | X22: 8087 | Y22: 0 | Z22: 0 | AA22: 8087 | AB22: 17279 | AE22: 2029 | AF22: 18282 | AG22: 7084 | AH22: 25366 | AJ22: 0 | AK22: 0 | AL22: 0 | AN22: 25366 | AQ22: 2029 | AR22: 18282 | AS22: 7084 | AT22: 0.04 | AU22: 6854 | AV22: 2.483 | AW22: 10928 | AZ22: 43148 | BB22: 0 | BC22: 0 | BD22: 0 | BE22: 43148 | BH22: 2029 | BI22: 0 | BJ22: 4401 | BK22: 8.752 | BL22: 38518 | BM22: 0.16 | BN22: 27418 | BP22: 65936 | BR22: 0 | BT22: 65936 | BW22: 2029 | BX22: 18282 | BY22: 7084 | BZ22: 6854 | CA22: 32220 | CC22: 0 | CD22: 0 | CE22: 0 | CG22: 32220
A23: 5) Peak Reduction Factor = | C23: =+'Gas Input Table Summary'!$D$16 -> 0.01 | E23: 20) Project Life (Years) = | F23: =ROUND('Database Inputs'!D11,0) -> 20 | J23: 9 | L23: 2030 | M23: 4401 | N23: 4.278 | O23: 18827 | P23: 0 | Q23: 0 | R23: 18827 | S23: 44 | T23: 162 | U23: 7128 | V23: 25955 | W23: 2.396 | X23: 8330 | Y23: 0 | Z23: 0 | AA23: 8330 | AB23: 17625 | AE23: 2030 | AF23: 18827 | AG23: 7128 | AH23: 25955 | AJ23: 0 | AK23: 0 | AL23: 0 | AN23: 25955 | AQ23: 2030 | AR23: 18827 | AS23: 7128 | AT23: 0.041 | AU23: 7026 | AV23: 2.54 | AW23: 11179 | AZ23: 44160 | BB23: 0 | BC23: 0 | BD23: 0 | BE23: 44160 | BH23: 2030 | BI23: 0 | BJ23: 4401 | BK23: 9.015 | BL23: 39675 | BM23: 0.165 | BN23: 28274 | BP23: 67949 | BR23: 0 | BT23: 67949 | BW23: 2030 | BX23: 18827 | BY23: 7128 | BZ23: 7026 | CA23: 32981 | CC23: 0 | CD23: 0 | CE23: 0 | CG23: 32981
J24: 10 | L24: 2031 | M24: 4401 | N24: 4.407 | O24: 19395 | P24: 0 | Q24: 0 | R24: 19395 | S24: 44 | T24: 164 | U24: 7216 | V24: 26611 | W24: 2.467 | X24: 8577 | Y24: 0 | Z24: 0 | AA24: 8577 | AB24: 18034 | AE24: 2031 | AF24: 19395 | AG24: 7216 | AH24: 26611 | AJ24: 0 | AK24: 0 | AL24: 0 | AN24: 26611 | AQ24: 2031 | AR24: 19395 | AS24: 7216 | AT24: 0.042 | AU24: 7197 | AV24: 2.599 | AW24: 11438 | AZ24: 45246 | BB24: 0 | BC24: 0 | BD24: 0 | BE24: 45246 | BH24: 2031 | BI24: 0 | BJ24: 4401 | BK24: 9.285 | BL24: 40863 | BM24: 0.17 | BN24: 29131 | BP24: 69994 | BR24: 0 | BT24: 69994 | BW24: 2031 | BX24: 19395 | BY24: 7216 | BZ24: 7197 | CA24: 33808 | CC24: 0 | CD24: 0 | CE24: 0 | CG24: 33808
A25: 6) Variable O&M ($/Dk) = | C25: =+'Gas Input Table Summary'!$D$17 -> 0 | E25: 21) Avg. Dk/Part. Saved = | F25: =+ROUND(F32/F30,3) -> 18.492 | J25: 11 | L25: 2032 | M25: 4401 | N25: 4.539 | O25: 19976 | P25: 0 | Q25: 0 | R25: 19976 | S25: 44 | T25: 166 | U25: 7304 | V25: 27280 | W25: 2.541 | X25: 8835 | Y25: 0 | Z25: 0 | AA25: 8835 | AB25: 18445 | AE25: 2032 | AF25: 19976 | AG25: 7304 | AH25: 27280 | AJ25: 0 | AK25: 0 | AL25: 0 | AN25: 27280 | AQ25: 2032 | AR25: 19976 | AS25: 7304 | AT25: 0.043 | AU25: 7368 | AV25: 2.658 | AW25: 11698 | AZ25: 46346 | BB25: 0 | BC25: 0 | BD25: 0 | BE25: 46346 | BH25: 2032 | BI25: 0 | BJ25: 4401 | BK25: 9.564 | BL25: 42091 | BM25: 0.175 | BN25: 29988 | BP25: 72079 | BR25: 0 | BT25: 72079 | BW25: 2032 | BX25: 19976 | BY25: 7304 | BZ25: 7368 | CA25: 34648 | CC25: 0 | CD25: 0 | CE25: 0 | CG25: 34648
A26: Escalation Rate = | C26: =+'Gas Input Table Summary'!$D$18 -> 0 | J26: 12 | L26: 2033 | M26: 4401 | N26: 4.675 | O26: 20575 | P26: 0 | Q26: 0 | R26: 20575 | S26: 44 | T26: 167 | U26: 7348 | V26: 27923 | W26: 2.618 | X26: 9102 | Y26: 0 | Z26: 0 | AA26: 9102 | AB26: 18821 | AE26: 2033 | AF26: 20575 | AG26: 7348 | AH26: 27923 | AJ26: 0 | AK26: 0 | AL26: 0 | AN26: 27923 | AQ26: 2033 | AR26: 20575 | AS26: 7348 | AT26: 0.044 | AU26: 7540 | AV26: 2.719 | AW26: 11966 | AZ26: 47429 | BB26: 0 | BC26: 0 | BD26: 0 | BE26: 47429 | BH26: 2033 | BI26: 0 | BJ26: 4401 | BK26: 9.851 | BL26: 43354 | BM26: 0.18 | BN26: 30845 | BP26: 74199 | BR26: 0 | BT26: 74199 | BW26: 2033 | BX26: 20575 | BY26: 7348 | BZ26: 7540 | CA26: 35463 | CC26: 0 | CD26: 0 | CE26: 0 | CG26: 35463
E27: 22) Avg Non-Gas Fuel Units/Part. Saved = | F27: =+'Database Inputs'!H11 -> 720 | J27: 13 | L27: 2034 | M27: 4401 | N27: 4.815 | O27: 21191 | P27: 0 | Q27: 0 | R27: 21191 | S27: 44 | T27: 169 | U27: 7436 | V27: 28627 | W27: 2.696 | X27: 9373 | Y27: 0 | Z27: 0 | AA27: 9373 | AB27: 19254 | AE27: 2034 | AF27: 21191 | AG27: 7436 | AH27: 28627 | AJ27: 0 | AK27: 0 | AL27: 0 | AN27: 28627 | AQ27: 2034 | AR27: 21191 | AS27: 7436 | AT27: 0.046 | AU27: 7883 | AV27: 2.782 | AW27: 12244 | AZ27: 48754 | BB27: 0 | BC27: 0 | BD27: 0 | BE27: 48754 | BH27: 2034 | BI27: 0 | BJ27: 4401 | BK27: 10.146 | BL27: 44653 | BM27: 0.186 | BN27: 31873 | BP27: 76526 | BR27: 0 | BT27: 76526 | BW27: 2034 | BX27: 21191 | BY27: 7436 | BZ27: 7883 | CA27: 36510 | CC27: 0 | CD27: 0 | CE27: 0 | CG27: 36510
A28: 7) Non-Gas Fuel Cost ($/Fuel Unit) = | C28: =+'Gas Input Table Summary'!$D$19 -> 0.02891 | E28: 22a) Avg Additional Non-Gas Fuel Units/ Part. Used = | F28: 0 | J28: 14 | L28: 2035 | M28: 4401 | N28: 4.96 | O28: 21829 | P28: 0 | Q28: 0 | R28: 21829 | S28: 44 | T28: 171 | U28: 7524 | V28: 29353 | W28: 2.777 | X28: 9655 | Y28: 0 | Z28: 0 | AA28: 9655 | AB28: 19698 | AE28: 2035 | AF28: 21829 | AG28: 7524 | AH28: 29353 | AJ28: 0 | AK28: 0 | AL28: 0 | AN28: 29353 | AQ28: 2035 | AR28: 21829 | AS28: 7524 | AT28: 0.047 | AU28: 8054 | AV28: 2.846 | AW28: 12525 | AZ28: 49932 | BB28: 0 | BC28: 0 | BD28: 0 | BE28: 49932 | BH28: 2035 | BI28: 0 | BJ28: 4401 | BK28: 10.45 | BL28: 45990 | BM28: 0.191 | BN28: 32730 | BP28: 78720 | BR28: 0 | BT28: 78720 | BW28: 2035 | BX28: 21829 | BY28: 7524 | BZ28: 8054 | CA28: 37407 | CC28: 0 | CD28: 0 | CE28: 0 | CG28: 37407
A29: Escalation Rate = | C29: =+'Gas Input Table Summary'!$D$20 -> 0.03 | J29: 15 | L29: 2036 | M29: 4401 | N29: 5.109 | O29: 22485 | P29: 0 | Q29: 0 | R29: 22485 | S29: 44 | T29: 172 | U29: 7568 | V29: 30053 | W29: 2.86 | X29: 9944 | Y29: 0 | Z29: 0 | AA29: 9944 | AB29: 20109 | AE29: 2036 | AF29: 22485 | AG29: 7568 | AH29: 30053 | AJ29: 0 | AK29: 0 | AL29: 0 | AN29: 30053 | AQ29: 2036 | AR29: 22485 | AS29: 7568 | AT29: 0.049 | AU29: 8397 | AV29: 2.911 | AW29: 12811 | AZ29: 51261 | BB29: 0 | BC29: 0 | BD29: 0 | BE29: 51261 | BH29: 2036 | BI29: 0 | BJ29: 4401 | BK29: 10.764 | BL29: 47372 | BM29: 0.197 | BN29: 33758 | BP29: 81130 | BR29: 0 | BT29: 81130 | BW29: 2036 | BX29: 22485 | BY29: 7568 | BZ29: 8397 | CA29: 38450 | CC29: 0 | CD29: 0 | CE29: 0 | CG29: 38450
E30: 23) Number of Participants = | F30: =ROUND('Database Inputs'!C11,0) -> 238 | J30: 16 | L30: 2037 | M30: 4401 | N30: 5.262 | O30: 23158 | P30: 0 | Q30: 0 | R30: 23158 | S30: 44 | T30: 174 | U30: 7656 | V30: 30814 | W30: 2.946 | X30: 10243 | Y30: 0 | Z30: 0 | AA30: 10243 | AB30: 20571 | AE30: 2037 | AF30: 23158 | AG30: 7656 | AH30: 30814 | AJ30: 0 | AK30: 0 | AL30: 0 | AN30: 30814 | AQ30: 2037 | AR30: 23158 | AS30: 7656 | AT30: 0.05 | AU30: 8568 | AV30: 2.978 | AW30: 13106 | AZ30: 52488 | BB30: 0 | BC30: 0 | BD30: 0 | BE30: 52488 | BH30: 2037 | BI30: 0 | BJ30: 4401 | BK30: 11.087 | BL30: 48794 | BM30: 0.203 | BN30: 34786 | BP30: 83580 | BR30: 0 | BT30: 83580 | BW30: 2037 | BX30: 23158 | BY30: 7656 | BZ30: 8568 | CA30: 39382 | CC30: 0 | CD30: 0 | CE30: 0 | CG30: 39382
A31: 8) Non-Gas Fuel Loss Factor | C31: =+'Gas Input Table Summary'!$D$21 -> 0.073 | J31: 17 | L31: 2038 | M31: 4401 | N31: 5.42 | O31: 23853 | P31: 0 | Q31: 0 | R31: 23853 | S31: 44 | T31: 176 | U31: 7744 | V31: 31597 | W31: 3.035 | X31: 10552 | Y31: 0 | Z31: 0 | AA31: 10552 | AB31: 21045 | AE31: 2038 | AF31: 23853 | AG31: 7744 | AH31: 31597 | AJ31: 0 | AK31: 0 | AL31: 0 | AN31: 31597 | AQ31: 2038 | AR31: 23853 | AS31: 7744 | AT31: 0.052 | AU31: 8911 | AV31: 3.047 | AW31: 13410 | AZ31: 53918 | BB31: 0 | BC31: 0 | BD31: 0 | BE31: 53918 | BH31: 2038 | BI31: 0 | BJ31: 4401 | BK31: 11.42 | BL31: 50259 | BM31: 0.209 | BN31: 35814 | BP31: 86073 | BR31: 0 | BT31: 86073 | BW31: 2038 | BX31: 23853 | BY31: 7744 | BZ31: 8911 | CA31: 40508 | CC31: 0 | CD31: 0 | CE31: 0 | CG31: 40508
E32: 24) Total Annual Dk Saved = | F32: =+'Total Program Inputs'!G12 -> 4401 | J32: 18 | L32: 2039 | M32: 4401 | N32: 5.582 | O32: 24566 | P32: 0 | Q32: 0 | R32: 24566 | S32: 44 | T32: 178 | U32: 7832 | V32: 32398 | W32: 3.126 | X32: 10868 | Y32: 0 | Z32: 0 | AA32: 10868 | AB32: 21530 | AE32: 2039 | AF32: 24566 | AG32: 7832 | AH32: 32398 | AJ32: 0 | AK32: 0 | AL32: 0 | AN32: 32398 | AQ32: 2039 | AR32: 24566 | AS32: 7832 | AT32: 0.053 | AU32: 9082 | AV32: 3.117 | AW32: 13718 | AZ32: 55198 | BB32: 0 | BC32: 0 | BD32: 0 | BE32: 55198 | BH32: 2039 | BI32: 0 | BJ32: 4401 | BK32: 11.762 | BL32: 51765 | BM32: 0.215 | BN32: 36842 | BP32: 88607 | BR32: 0 | BT32: 88607 | BW32: 2039 | BX32: 24566 | BY32: 7832 | BZ32: 9082 | CA32: 41480 | CC32: 0 | CD32: 0 | CE32: 0 | CG32: 41480
A33: 9) Gas Environmental Damage Factor = | C33: =+'Gas Input Table Summary'!$D$22 -> 2.07 | J33: 19 | L33: 2040 | M33: 4401 | N33: 5.75 | O33: 25306 | P33: 0 | Q33: 0 | R33: 25306 | S33: 44 | T33: 179 | U33: 7876 | V33: 33182 | W33: 3.219 | X33: 11192 | Y33: 0 | Z33: 0 | AA33: 11192 | AB33: 21990 | AE33: 2040 | AF33: 25306 | AG33: 7876 | AH33: 33182 | AJ33: 0 | AK33: 0 | AL33: 0 | AN33: 33182 | AQ33: 2040 | AR33: 25306 | AS33: 7876 | AT33: 0.055 | AU33: 9425 | AV33: 3.189 | AW33: 14035 | AZ33: 56642 | BB33: 0 | BC33: 0 | BD33: 0 | BE33: 56642 | BH33: 2040 | BI33: 0 | BJ33: 4401 | BK33: 12.115 | BL33: 53318 | BM33: 0.222 | BN33: 38042 | BP33: 91360 | BR33: 0 | BT33: 91360 | BW33: 2040 | BX33: 25306 | BY33: 7876 | BZ33: 9425 | CA33: 42607 | CC33: 0 | CD33: 0 | CE33: 0 | CG33: 42607
A34: Escalation Rate = | C34: =+'Gas Input Table Summary'!$D$23 -> 0.023 | E34: 25) Incentive/Participant = | F34: =ROUND('Database Inputs'!L11,0) -> 300 | J34: 20 | L34: 2041 | M34: 0 | N34: 5.922 | O34: 0 | P34: 0 | Q34: 0 | R34: 0 | S34: 0 | T34: 181 | U34: 0 | V34: 0 | W34: 3.316 | X34: 0 | Y34: 0 | Z34: 0 | AA34: 0 | AB34: 0 | AE34: 2041 | AF34: 0 | AG34: 0 | AH34: 0 | AJ34: 0 | AK34: 0 | AL34: 0 | AN34: 0 | AQ34: 2041 | AR34: 0 | AS34: 0 | AT34: 0.056 | AU34: 0 | AV34: 3.262 | AW34: 0 | AZ34: 0 | BB34: 0 | BC34: 0 | BD34: 0 | BE34: 0 | BH34: 2041 | BI34: 0 | BJ34: 0 | BK34: 12.478 | BL34: 0 | BM34: 0.228 | BN34: 0 | BP34: 0 | BR34: 0 | BT34: 0 | BW34: 2041 | BX34: 0 | BY34: 0 | BZ34: 0 | CA34: 0 | CC34: 0 | CD34: 0 | CE34: 0 | CG34: 0
J35: 21 | L35: 2042 | M35: =ROUND(IF($C$47+$F$23>L35,$F$25*$F$30,0)+IF($C$48+$G$23>L35,$G$25*$G$30,0)+IF($C$49+$H$23>L35,$H$25*$H$30,0),0) -> 0 | N35: =ROUND($C$17*(1+$C$18)^J35,3) -> 6.1 | O35: =ROUND(M35*N35,0) -> 0 | P35: =ROUND($C$25*(1+$C$26)^J35,3) -> 0 | Q35: =ROUND(M35*P35,0) -> 0 | R35: =O35+Q35 -> 0 | S35: =ROUND(M35*$C$23,1) -> 0 | T35: =ROUND($C$20*(1+$C$21)^J35,0) -> 183 | U35: =ROUND(S35*T35,0) -> 0 | V35: =ROUND(+U35+R35,0) -> 0 | W35: =ROUND($H$36*(1+$C$11)^J35,3) -> 3.416 | X35: =ROUND((1-$H$38)*(W35*M35),0) -> 0 | Y35: 0 | Z35: 0 | AA35: =SUM(X35:Z35) -> 0 | AB35: =V35-AA35 -> 0 | AE35: 2042 | AF35: =+R35 -> 0 | AG35: =+U35 -> 0 | AH35: =+AG35+AF35 -> 0 | AJ35: =ROUND(Y35,0) -> 0 | AK35: =ROUND(Z35,0) -> 0 | AL35: =SUM(AJ35:AK35) -> 0 | AN35: =+AH35-AL35 -> 0 | AQ35: 2042 | AR35: =AF35 -> 0 | AS35: =+AG35 -> 0 | AT35: =ROUND(($C$28/(1-$C$31))*(1+$C$29)^J35,3) -> 0.058 | AU35: =ROUND((IF($C$47+$F$23>$AQ35,$F$27*$F$30,0)+IF($C$48+$G$23>AQ35,$G$27*$G$30,0)+IF($C$49+$H$23>AQ35,$H$27*$H$30,0))*AT35,0) -> 0 | AV35: =ROUND($C$33*(1+$C$34)^J35,3) -> 3.337 | AW35: =ROUND(AV35*M35,0) -> 0 | AZ35: =ROUND(AR35+AS35+AU35+AW35+AY35,0) -> 0 | BB35: 0 | BC35: 0 | BD35: =BB35+BC35 -> 0 | BE35: =AZ35-BD35 -> 0 | BH35: 2042 | BI35: 0 | BJ35: =+M35 -> 0 | BK35: =ROUND($C$10*(1+$C$11)^J35,3) -> 12.853 | BL35: =ROUND(BJ35*BK35,0) -> 0 | BM35: =ROUND($C$13*(1+$C$14)^J35,3) -> 0.235 | BN35: =ROUND((IF($C$47+$F$23>BH35,$F$27*$F$30,0)+IF($C$49+$H$23>BH35,$H$27*$H$30,0)+IF($C$48+$G$23>BH35,$G$27*$G$30,0))*BM35,0) -> 0 | BP35: =BI35+BL35+BN35+BO35 -> 0 | BR35: =+BC35 -> 0 | BT35: =BP35-BR35 -> 0 | BW35: 2042 | BX35: 0 | BY35: =U35 -> 0 | BZ35: =AU35 -> 0 | CA35: =SUM(BX35:BZ35) -> 0 | CC35: =BB35 -> 0 | CD35: =BC35 -> 0 | CE35: =SUM(CC35:CD35) -> 0 | CG35: =CA35-CE35 -> 0
A36: 10) Non Gas Fuel Environmental Damage Factor = | C36: =+'Gas Input Table Summary'!$D$24 -> 0 | E36: 26) Distribution Delivery Charge | H36: =+'Gas Input Table Summary'!D58 -> 1.836 | J36: 22 | L36: 2043 | M36: 0 | N36: 6.283 | O36: 0 | P36: 0 | Q36: 0 | R36: 0 | S36: 0 | T36: 185 | U36: 0 | V36: 0 | W36: 3.518 | X36: 0 | Y36: 0 | Z36: 0 | AA36: 0 | AB36: 0 | AE36: 2043 | AF36: 0 | AG36: 0 | AH36: 0 | AJ36: 0 | AK36: 0 | AL36: 0 | AN36: 0 | AQ36: 2043 | AR36: 0 | AS36: 0 | AT36: 0.06 | AU36: 0 | AV36: 3.414 | AW36: 0 | AZ36: 0 | BB36: 0 | BC36: 0 | BD36: 0 | BE36: 0 | BH36: 2043 | BI36: 0 | BJ36: 0 | BK36: 13.238 | BL36: 0 | BM36: 0.242 | BN36: 0 | BP36: 0 | BR36: 0 | BT36: 0 | BW36: 2043 | BX36: 0 | BY36: 0 | BZ36: 0 | CA36: 0 | CC36: 0 | CD36: 0 | CE36: 0 | CG36: 0
A37: Escalation Rate = | C37: =+'Gas Input Table Summary'!$D$25 -> 0
E38: 27) Effective Income Tax Rate = | H38: =+'Gas Input Table Summary'!D59 -> 0.21 | K38: Total = | M38: =SUM(M14:M36) -> 88020 | V38: =SUM(V14:V36) -> 531603 | AA38: =SUM(AA14:AA36) -> 252200 | AB38: =SUM(AB14:AB36) -> 279403 | AD38: Total = | AH38: =SUM(AH14:AH36) -> 531603 | AL38: =SUM(AL14:AL36) -> 80683 | AN38: =SUM(AN14:AN36) -> 450920 | AP38: Total = | AZ38: =SUM(AZ14:AZ36) -> 903287 | BD38: =SUM(BD14:BD36) -> 184451 | BE38: =SUM(BE14:BE36) -> 718836 | BG38: Total = | BJ38: =SUM(BJ14:BJ36) -> 88020 | BP38: =SUM(BP14:BP36) -> 1470546 | BR38: =SUM(BR14:BR36) -> 175168 | BT38: =SUM(BT14:BT36) -> 1295378 | BZ38: Total = | CA38: =SUM(CA14:CA36) -> 675204 | CE38: =SUM(CE14:CE36) -> 184451 | CG38: =SUM(CG14:CG36) -> 490753
A39: 11) Participant Discount Rate = | C39: =+'Gas Input Table Summary'!$D$26 -> 0.1032 | E39: (Federal & State Taxes) | T39: NPV = | V39: =ROUND(V14+NPV($C$41,V15:V36),0) -> 281015 | AA39: =ROUND(AA14+NPV($C$41,AA15:AA36),0) -> 170241 | AB39: =ROUND(AB14+NPV($C$41,AB15:AB36),0) -> 110773 | AG39: NPV = | AH39: =ROUND(AH14+NPV($C$41,AH15:AH36),0) -> 281015 | AL39: =ROUND(AL14+NPV($C$41,AL15:AL36),0) -> 80683 | AN39: =+AH39-AL39 -> 200332 | AW39: NPV = | AZ39: =ROUND(AZ14+NPV($C$43,AZ15:AZ36),0) -> 721149 | BD39: =ROUND(BD14+NPV($C$43,BD15:BD36),0) -> 184451 | BE39: =AZ39-BD39 -> 536698 | BN39: NPV = | BP39: =ROUND(BP14+NPV($C$39,BP15:BP36),0) -> 657286 | BR39: =ROUND(BR14+NPV($C$39,BR15:BR36),0) -> 175168 | BT39: =ROUND(BT14+NPV($C$39,BT15:BT36),0) -> 482118 | BZ39: NPV = | CA39: =ROUND(CA14+NPV($C$41,CA15:CA36),0) -> 355920 | CE39: =ROUND(CE14+NPV($C$41,CE15:CE36),0) -> 184451 | CG39: =ROUND(CG14+NPV($C$41,CG15:CG36),0) -> 171469
A41: 12) Utility Discount Rate = | C41: =+'Gas Input Table Summary'!$D$27 -> 0.07216 | E41: Test Results | F41: NPV | G41: B/C | K41: Total NPV = | N41: =AB39 -> 110773 | AD41: Total NPV = | AG41: =AN39 -> 200332 | AP41: Total NPV = | AS41: =BE39 -> 536698 | BG41: Total NPV = | BJ41: =BT39 -> 482118 | BV41: Total NPV = | BY41: =CG39 -> 171469
E42: Ratepayer Impact Measure Test | F42: =N41 -> 110773 | G42: =N42 -> 1.65 | K42: Benefit/Cost Ratio = | N42: =ROUND(V39/AA39,2) -> 1.65 | AD42: Benefit/Cost Ratio = | AG42: =ROUND(AH39/AL39,2) -> 3.48 | AP42: Benefit/Cost Ratio = | AS42: =ROUND(AZ39/BD39,2) -> 3.91 | BG42: Benefit/Cost Ratio = | BJ42: =ROUND(BP39/BR39,2) -> 3.75 | BV42: Benefit/Cost Ratio = | BY42: =ROUND(CA39/CE39,2) -> 1.93
A43: 13) Societal Discount Rate = | C43: =+'Gas Input Table Summary'!$D$28 -> 0.0229 | E43: Utility Cost Test | F43: =AG41 -> 200332 | G43: =AG42 -> 3.48
E44: Societal Test | F44: =AS41 -> 536698 | G44: =AS42 -> 3.91 | J44: Worksheet Calculations | BV44: Worksheet Calculations
A45: 14) General Input Data Year = | C45: =+'Gas Input Table Summary'!$D$29 -> 2021 | E45: Participant Test | F45: =BJ41 -> 482118 | G45: =BJ42 -> 3.75 | J45: (A) | K45: = Average Dk/Participant Saved (21) x Number of Participants (23) for Project Life (20) | T45: (I) | U45: = (G) x (H) | AD45: Worksheet Calculations | AP45: Worksheet Calculations | BG45: Worksheet Calculations | BV45: (A) | BW45: = Table 1 (F)
E46: Total Resource Cost Test | F46: =BY41 -> 171469 | G46: =BY42 -> 1.93 | J46: (B) | K46: = Commodity Cost (3) escalated | T46: (J) | U46: = (F) + (I) | AD46: (A) | AE46: = Table 1 (F) | AP46: (A) | AQ46: = Table 1 (F) | AW46: (H) | AZ46: = Table 2 (F) | BG46: (A) | BH46: = Table 1 (N) | BL46: (G) | BM46: = (A) + (D) + (F) | BV46: (B) | BW46: = Table 1 (I)
A47: 15) Project Analysis Year 1 = | C47: =+'Total Program Inputs'!C6 -> 2021 | J47: (C) | K47: = (A) x (B) | T47: (K) | U47: = Distribution Delivery Charge (26) escalated. | AD47: (B) | AE47: = Table 1 (I) | AP47: (G) | AQ47: = Table 1 (I) | AW47: (I) | AZ47: = Direct Part. Costs (17) x No. of Part. (23) - Table 1 (N) | BG47: (B) | BH47: = Table 1 (A) | BL47: (H) | BM47: = Direct Participant Costs (17) x Number of Participants (23) | BV47: (C) | BW47: = Table 3 (D)
J48: (D) | K48: = Variable O&M Cost (6), escalated | T48: (L) | U48: = (A) x (K) x (1-Inverse of Tax Rate (27) | AD48: (C) | AE48: = Table 1 (J) | AP48: (C) | AQ48: = Non-Gas Fuel Cost (7), adjusted for losses (8), escalated.. | AW48: (J) | AZ48: = (H) + (I) | BG48: (C) | BH48: = Retail Rate (1) escalated. | BL48: (I) | BM48: = (G) - (H) | BV48: (D) | BW48: = (A) + (B) + (C)
J49: (E) | K49: = (A) x (D) | T49: (M) | U49: = Admin & Operating Costs (16a) | AD49: (D) | AE49: = Table 1 (M) | AP49: (D) | AQ49: = (C) x [Avg. Non-Gas Fuel Units/Part.Saved (22) x No. of Part. (23) | AW49: (K) | AZ49: = (G) - (J) | BG49: (D) | BH49: =(B) x (C) | BV49: (E) | BW49: = Table 3 (H)
J50: (F) | K50: = (C) + (E) | T50: (N) | U50: = Incentive Costs (16b) | AD50: (E) | AE50: = Table 1 (N) | AP50: (E) | AQ50: = Gas Environmental Damage Factor (9), escalated | BG50: (E) | BH50: = Non-Gas Fuel Retail Rate (2), escalated. | BV50: (F) | BW50: = Table 3 (I)
J51: (G) | K51: = (A) x Peak Reduction Factor (5) | T51: (O) | U51: = (L) + (M) + (N) | AD51: (F) | AE51: = (D) + (E) | AP51: (F) | AQ51: = Table 1 (A) x (E) | BG51: (F) | BH51: = (E) x [Avg. Non-Gas Fuel Units/Part.Saved (22) x No. of Part. (23) | BV51: (G) | BW51: = (E) + (F)
J52: (H) | K52: = Demand Cost (4) escalated. | T52: (P) | U52: = (J) - (O) | AD52: (G) | AE52: = (C) - (F) | AP52: (G) | AQ52: = (A) + (B) + (D) + (F) | BV52: (H) | BW52: = (D) - (G)

Sheet Programmable Tstats - Tier 1
A1: NATURAL GAS CONSERVATION PROGRAMS/DEMAND-SIDE MANAGEMENT | K1: Table 1 | AD1: Table 2 | AP1: Table 3 | BG1: Table 4 | BV1: Table 5
A2: BEN/COST ANALYSIS FOR GAS CONSERVATION | K2: Ratepayer Impact Measure Test | AD2: Utility Cost Test | AP2: Societal Test | BG2: Participant Test | BV2: Total Resource Cost Test
A4: Company: | B4: Montana-Dakota Utilities Co. | K4: Company: | M4: =B4 -> Montana-Dakota Utilities Co. | AD4: Company: | AF4: =B4 -> Montana-Dakota Utilities Co. | AP4: Company: | AR4: =AF4 -> Montana-Dakota Utilities Co. | BH4: Company: | BI4: =AR4 -> Montana-Dakota Utilities Co. | BW4: Company: | BX4: =BI4 -> Montana-Dakota Utilities Co.
A5: Project: | B5: ='Database Inputs'!A12 -> Programmable Thermostats - Tier 1 | K5: Project: | M5: =$B$5 -> Programmable Thermostats - Tier 1 | AD5: Project: | AF5: =$B$5 -> Programmable Thermostats - Tier 1 | AP5: Project: | AR5: =$B$5 -> Programmable Thermostats - Tier 1 | BH5: Project: | BI5: =$B$5 -> Programmable Thermostats - Tier 1 | BW5: Project: | BX5: =$B$5 -> Programmable Thermostats - Tier 1
A6: Program Years: | B6: ='Total Program'!$B$6 -> 2021
N7: Benefits | X7: Costs | AF7: Benefits | AJ7: Costs | AR7: Benefits | BB7: Costs | BI7: Benefits | BR7: Costs | BX7: Benefits | CC7: Costs
A8: Input Data | F8: =+'Total Program Inputs'!C6 -> 2021 | AB8: Annual | AN8: Annual | AT8: Non-Gas | BE8: Annual | BT8: Annual | CG8: Annual
M9: Total | N9: Gas | O9: Gas | P9: Variable | Q9: Variable | R9: Total | S9: Peak Dk | T9: Demand | U9: Total | W9: Distribution | Y9: Program | AA9: Total | AB9: Benefits | AF9: Total | AG9: Total | AH9: Annual | AJ9: Program | AL9: Utility | AN9: Benefits | AR9: Total | AS9: Total | AT9: Energy | AU9: Non-Gas | AV9: Environmental | AW9: Environmental | AZ9: Annual | BB9: Utility | BC9: Participants' | BD9: Annual | BE9: Benefits | BJ9: Total | BL9: Gas | BM9: Non-Gas | BN9: Non-Gas | BP9: Total | BR9: Direct | BT9: Benefits | BX9: Total | BY9: Total | BZ9: Non-Gas | CA9: Total | CC9: Utility | CD9: Participants' | CG9: Benefits
A10: 1) Retail Rate ($/Dk) = | C10: =+'Gas Input Table Summary'!$D$7 -> 6.909 | E10: 16) Utility Project Costs | M10: Energy | N10: Commodity | O10: Commodity | P10: O & M | Q10: O & M | R10: Energy | S10: Demand | T10: Savings | U10: Demand | V10: Total | W10: Delivery | X10: Lost | Y10: Admin | Z10: Incentive | AA10: Program | AB10: Less | AF10: Energy | AG10: Demand | AH10: Total | AJ10: Admin | AK10: Incentive | AL10: Program | AN10: Less | AR10: Energy | AS10: Demand | AT10: Savings | AU10: Energy | AV10: Damage | AW10: Damage | AZ10: Total | BB10: Program | BC10: Costs Net | BD10: Total | BE10: Less | BI10: Incentives | BJ10: Energy | BK10: Retail | BL10: Bill | BM10: Fuel | BN10: Energy | BP10: Annual | BR10: Participant | BT10: Less | BX10: Energy | BY10: Demand | BZ10: Energy | CA10: Annual | CC10: Program | CD10: Costs Net | CE10: Total | CG10: Less
A11: Escalation Rate = | C11: =+'Gas Input Table Summary'!$D$8 -> 0.03 | E11: 16a) Administrative & Operating Costs = | F11: =+'Total Program Inputs'!M13 -> 113 | J11: t | M11: Reduction | N11: Cost/Dk | O11: Savings | P11: Cost/Dk | Q11: Savings | R11: Savings | S11: Reduction | T11: Per Unit | U11: Savings | V11: Savings | W11: Charge | X11: Margin | Y11: Costs | Z11: Costs | AA11: Costs | AB11: Costs | AF11: Savings | AG11: Savings | AH11: Savings | AJ11: Costs | AK11: Costs | AL11: Costs | AN11: Costs | AR11: Savings | AS11: Savings | AT11: ($/Part.) | AU11: Savings | AV11: Savings/Dk | AW11: Savings | AZ11: Savings | BB11: Costs | BC11: of Rebate | BD11: Costs | BE11: Costs | BI11: Received | BJ11: Reduction | BK11: Rate | BL11: Savings | BM11: Retail Rate | BN11: Savings | BP11: Benefits | BR11: Costs | BT11: Costs | BX11: Savings | BY11: Savings | BZ11: Savings | CA11: Benefits | CC11: Costs | CD11: of Rebate | CE11: Costs | CG11: Costs
E12: 16b) Incentive Costs = | F12: =+'Total Program Inputs'!I13 -> 870 | L12: Year | M12: (A) | N12: (B) | O12: (C) | P12: (D) | Q12: (E) | R12: (F) | S12: (G) | T12: (H) | U12: (I) | V12: (J) | W12: (K) | X12: (L) | Y12: (M) | Z12: (N) | AA12: (O) | AB12: (P) | AE12: Year | AF12: (A) | AG12: (B) | AH12: (C) | AJ12: (D) | AK12: (E) | AL12: (F) | AN12: (G) | AQ12: Year | AR12: (A) | AS12: (B) | AT12: (C) | AU12: (D) | AV12: (E) | AW12: (F) | AZ12: (G) | BB12: (H) | BC12: (I) | BD12: (J) | BE12: (K) | BH12: Year | BI12: (A) | BJ12: (B) | BK12: (C) | BL12: (D) | BM12: (E) | BN12: (F) | BP12: (G) | BR12: (H) | BT12: (I) | BW12: Year | BX12: (A) | BY12: (B) | BZ12: (C) | CA12: (D) | CC12: (E) | CD12: (F) | CE12: (G) | CG12: (H)
A13: 2) Non-Gas Fuel Retail Rate ($/Fuel Unit) = | C13: =+'Gas Input Table Summary'!$D$9 -> 0.12648 | E13: 16c) Total Utility Project Costs = | F13: =SUM(F11:F12) -> 983
A14: Escalation Rate = | C14: =+'Gas Input Table Summary'!$D$10 -> 0.03 | J14: =$C$47-$C$45 -> 0 | L14: =$C$47 -> 2021 | M14: =ROUND(IF($C$47+$F$23>L14,F25*F30,0),0) -> 133 | N14: =ROUND($C$17*(1+$C$18)^J14,3) -> 3.279 | O14: =ROUND(M14*N14,0) -> 436 | P14: =ROUND($C$25*(1+$C$26)^J14,3) -> 0 | Q14: =ROUND(M14*P14,0) -> 0 | R14: =O14+Q14 -> 436 | S14: =ROUND(M14*$C$23,1) -> 1.3 | T14: =ROUND($C$20*(1+$C$21)^J14,0) -> 148 | U14: =ROUND(S14*T14,0) -> 192 | V14: =ROUND(+U14+R14,0) -> 628 | W14: =ROUND($H$36*(1+$C$11)^J14,3) -> 1.836 | X14: =ROUND((1-$H$38)*(W14*M14),0) -> 193 | Y14: =ROUND($F$11,0) -> 113 | Z14: =ROUND($F$12,0) -> 870 | AA14: =SUM(X14:Z14) -> 1176 | AB14: =V14-AA14 -> -548 | AE14: =$C$47 -> 2021 | AF14: =+R14 -> 436 | AG14: =+U14 -> 192 | AH14: =+AG14+AF14 -> 628 | AJ14: =ROUND(Y14,0) -> 113 | AK14: =ROUND(Z14,0) -> 870 | AL14: =SUM(AJ14:AK14) -> 983 | AN14: =+AH14-AL14 -> -355 | AQ14: =$C$47 -> 2021 | AR14: =AF14 -> 436 | AS14: =+AG14 -> 192 | AT14: =ROUND(($C$28/(1-$C$31))*(1+$C$29)^J14,3) -> 0.031 | AU14: =ROUND(IF($C$47+$F$23>$AQ14,$F$30*$F$27,0)*AT14,0) -> 0 | AV14: =ROUND($C$33*(1+$C$34)^J14,3) -> 2.07 | AW14: =ROUND(AV14*M14,0) -> 275 | AZ14: =ROUND(AR14+AS14+AU14+AW14+AY14,0) -> 903 | BB14: =ROUND($F$13,0) -> 983 | BC14: =ROUND((F15*F30)-Z14,0) -> 870 | BD14: =BB14+BC14 -> 1853 | BE14: =AZ14-BD14 -> -950 | BH14: =$C$47 -> 2021 | BI14: =+F12 -> 870 | BJ14: =+M14 -> 133 | BK14: =ROUND($C$10*(1+$C$11)^J14,3) -> 6.909 | BL14: =ROUND(BJ14*BK14,0) -> 919 | BM14: =ROUND($C$13*(1+$C$14)^J14,3) -> 0.126 | BN14: =ROUND(IF($C$47+$F$23>$BH14,$F$30*$F$27,0)*BM14,0) -> 0 | BP14: =BI14+BL14+BN14+BO14 -> 1789 | BR14: =ROUND(F15*F30,0) -> 1740 | BT14: =BP14-BR14 -> 49 | BW14: =$C$47 -> 2021 | BX14: =$R14 -> 436 | BY14: =U14 -> 192 | BZ14: =AU14 -> 0 | CA14: =SUM(BX14:BZ14) -> 628 | CC14: =BB14 -> 983 | CD14: =BC14 -> 870 | CE14: =SUM(CC14:CD14) -> 1853 | CG14: =CA14-CE14 -> -1225
A15: Non-Gas Fuel Units (ie. kWh,Gallons, etc) = | C15: =+'Gas Input Table Summary'!$D$11 -> Kwh | E15: 17) Direct Participant Costs ($/Part.) = | F15: =ROUND('Database Inputs'!K12,0) -> 30 | J15: =J14+1 -> 1 | L15: =L14+1 -> 2022 | M15: =ROUND(IF($C$47+$F$23>L15,$F$25*$F$30,0)+IF($C$48+$G$23>L15,$G$25*$G$30,0),0) -> 133 | N15: 3.377 | O15: 449 | P15: 0 | Q15: =ROUND(M15*P15,0) -> 0 | R15: 449 | S15: 1.3 | T15: 150 | U15: =ROUND(S15*T15,0) -> 195 | V15: =ROUND(+U15+R15,0) -> 644 | W15: =ROUND($H$36*(1+$C$11)^J15,3) -> 1.891 | X15: =ROUND((1-$H$38)*(W15*M15),0) -> 199 | Y15: =ROUND($G$11,0) -> 0 | Z15: =ROUND($G$12,0) -> 0 | AA15: =SUM(X15:Z15) -> 199 | AB15: 445 | AE15: =AE14+1 -> 2022 | AF15: 449 | AG15: 195 | AH15: =+AG15+AF15 -> 644 | AJ15: =ROUND(Y15,0) -> 0 | AK15: 0 | AL15: 0 | AN15: =+AH15-AL15 -> 644 | AQ15: =AQ14+1 -> 2022 | AR15: 449 | AS15: 195 | AT15: 0.032 | AU15: =ROUND((IF($C$47+$F$23>$AQ15,$F$27*$F$30,0)+IF($C$48+$G$23>AQ15,$G$27*$G$30,0))*AT15,0) -> 0 | AV15: 2.118 | AW15: 282 | AZ15: =ROUND(AR15+AS15+AU15+AW15+AY15,0) -> 926 | BB15: =ROUND($G$13,0) -> 0 | BC15: =ROUND(($G$15*$G$30)-$Z$15,0) -> 0 | BD15: =BB15+BC15 -> 0 | BE15: =AZ15-BD15 -> 926 | BH15: =BH14+1 -> 2022 | BI15: =+G12 -> 0 | BJ15: 133 | BK15: 7.116 | BL15: =ROUND(BJ15*BK15,0) -> 946 | BM15: 0.13 | BN15: =ROUND((IF($C$47+$F$23>BH15,$F$27*$F$30,0)+IF($C$48+$G$23>BH15,$G$27*$G$30,0))*BM15,0) -> 0 | BP15: 946 | BR15: =ROUND($G$15*$G$30,0) -> 0 | BT15: =BP15-BR15 -> 946 | BW15: =BW14+1 -> 2022 | BX15: 449 | BY15: =U15 -> 195 | BZ15: =AU15 -> 0 | CA15: =SUM(BX15:BZ15) -> 644 | CC15: =BB15 -> 0 | CD15: 0 | CE15: =SUM(CC15:CD15) -> 0 | CG15: =CA15-CE15 -> 644
J16: 2 | L16: 2023 | M16: =ROUND(IF($C$47+$F$23>L16,$F$25*$F$30,0)+IF($C$48+$G$23>L16,$G$25*$G$30,0)+IF($C$49+$H$23>L16,$H$25*$H$30,0),0) -> 133 | N16: 3.479 | O16: 463 | P16: 0 | Q16: 0 | R16: 463 | S16: 1.3 | T16: =ROUND($C$20*(1+$C$21)^J16,0) -> 151 | U16: =ROUND(S16*T16,0) -> 196 | V16: =ROUND(+U16+R16,0) -> 659 | W16: =ROUND($H$36*(1+$C$11)^J16,3) -> 1.948 | X16: =ROUND((1-$H$38)*(W16*M16),0) -> 205 | Y16: =ROUND($H$11,0) -> 0 | Z16: =ROUND($H$12,0) -> 0 | AA16: =SUM(X16:Z16) -> 205 | AB16: =V16-AA16 -> 454 | AE16: 2023 | AF16: 463 | AG16: 196 | AH16: =+AG16+AF16 -> 659 | AJ16: 0 | AK16: 0 | AL16: =SUM(AJ16:AK16) -> 0 | AN16: =+AH16-AL16 -> 659 | AQ16: 2023 | AR16: 463 | AS16: 196 | AT16: =ROUND(($C$28/(1-$C$31))*(1+$C$29)^J16,3) -> 0.033 | AU16: =ROUND((IF($C$47+$F$23>$AQ16,$F$27*$F$30,0)+IF($C$48+$G$23>AQ16,$G$27*$G$30,0)+IF($C$49+$H$23>AQ16,$H$27*$H$30,0))*AT16,0) -> 0 | AV16: =ROUND($C$33*(1+$C$34)^J16,3) -> 2.166 | AW16: =ROUND(AV16*M16,0) -> 288 | AZ16: =ROUND(AR16+AS16+AU16+AW16+AY16,0) -> 947 | BB16: =ROUND($H$13,0) -> 0 | BC16: =ROUND(($H$15*$H$30)-$Z$16,0) -> 0 | BD16: =BB16+BC16 -> 0 | BE16: 947 | BH16: 2023 | BI16: =ROUND(H12,0) -> 0 | BJ16: 133 | BK16: =ROUND($C$10*(1+$C$11)^J16,3) -> 7.33 | BL16: =ROUND(BJ16*BK16,0) -> 975 | BM16: =ROUND($C$13*(1+$C$14)^J16,3) -> 0.134 | BN16: =ROUND((IF($C$47+$F$23>BH16,$F$27*$F$30,0)+IF($C$49+$H$23>BH16,$H$27*$H$30,0)+IF($C$48+$G$23>BH16,$G$27*$G$30,0))*BM16,0) -> 0 | BP16: =BI16+BL16+BN16+BO16 -> 975 | BR16: =ROUND($H$15*$H$30,0) -> 0 | BT16: =BP16-BR16 -> 975 | BW16: 2023 | BX16: 463 | BY16: 196 | BZ16: 0 | CA16: 659 | CC16: 0 | CD16: 0 | CE16: =SUM(CC16:CD16) -> 0 | CG16: =CA16-CE16 -> 659
A17: 3) Commodity Cost ($/Dk) = | C17: =+'Gas Input Table Summary'!$D$12 -> 3.279 | E17: 18) Participant Non-Energy Costs (Annual $/Part.) = | F17: =+'Gas Input Table Summary'!$D$35 -> 0 | J17: 3 | L17: 2024 | M17: =ROUND(IF($C$47+$F$23>L17,$F$25*$F$30,0)+IF($C$48+$G$23>L17,$G$25*$G$30,0)+IF($C$49+$H$23>L17,$H$25*$H$30,0),0) -> 133 | N17: =ROUND($C$17*(1+$C$18)^J17,3) -> 3.583 | O17: 477 | P17: 0 | Q17: 0 | R17: 477 | S17: 1.3 | T17: 153 | U17: =ROUND(S17*T17,0) -> 199 | V17: 676 | W17: 2.006 | X17: 211 | Y17: 0 | Z17: 0 | AA17: 211 | AB17: 465 | AE17: 2024 | AF17: 477 | AG17: 199 | AH17: 676 | AJ17: 0 | AK17: 0 | AL17: 0 | AN17: 676 | AQ17: 2024 | AR17: 477 | AS17: 199 | AT17: 0.034 | AU17: =ROUND((IF($C$47+$F$23>$AQ17,$F$27*$F$30,0)+IF($C$48+$G$23>AQ17,$G$27*$G$30,0)+IF($C$49+$H$23>AQ17,$H$27*$H$30,0))*AT17,0) -> 0 | AV17: 2.216 | AW17: 295 | AZ17: 971 | BB17: 0 | BC17: 0 | BD17: 0 | BE17: 971 | BH17: 2024 | BI17: 0 | BJ17: 133 | BK17: 7.55 | BL17: =ROUND(BJ17*BK17,0) -> 1004 | BM17: 0.138 | BN17: =ROUND((IF($C$47+$F$23>BH17,$F$27*$F$30,0)+IF($C$49+$H$23>BH17,$H$27*$H$30,0)+IF($C$48+$G$23>BH17,$G$27*$G$30,0))*BM17,0) -> 0 | BP17: 1004 | BR17: =+BC17 -> 0 | BT17: 1004 | BW17: 2024 | BX17: 477 | BY17: 199 | BZ17: 0 | CA17: 676 | CC17: 0 | CD17: 0 | CE17: 0 | CG17: =CA17-CE17 -> 676
A18: Escalation Rate = | C18: =+'Gas Input Table Summary'!$D$13 -> 0.03 | E18: Escalation Rate = | F18: =+'Gas Input Table Summary'!$D$38 -> 0 | J18: 4 | L18: 2025 | M18: 133 | N18: 3.691 | O18: 491 | P18: 0 | Q18: 0 | R18: 491 | S18: 1.3 | T18: 155 | U18: 202 | V18: 693 | W18: 2.066 | X18: 217 | Y18: 0 | Z18: 0 | AA18: 217 | AB18: 476 | AE18: 2025 | AF18: 491 | AG18: 202 | AH18: 693 | AJ18: 0 | AK18: 0 | AL18: 0 | AN18: 693 | AQ18: 2025 | AR18: 491 | AS18: 202 | AT18: 0.035 | AU18: =ROUND((IF($C$47+$F$23>$AQ18,$F$27*$F$30,0)+IF($C$48+$G$23>AQ18,$G$27*$G$30,0)+IF($C$49+$H$23>AQ18,$H$27*$H$30,0))*AT18,0) -> 0 | AV18: 2.267 | AW18: 302 | AZ18: 995 | BB18: 0 | BC18: 0 | BD18: 0 | BE18: 995 | BH18: 2025 | BI18: 0 | BJ18: 133 | BK18: 7.776 | BL18: 1034 | BM18: 0.142 | BN18: 0 | BP18: 1034 | BR18: 0 | BT18: 1034 | BW18: 2025 | BX18: 491 | BY18: 202 | BZ18: 0 | CA18: 693 | CC18: 0 | CD18: 0 | CE18: 0 | CG18: 693
J19: 5 | L19: 2026 | M19: 133 | N19: =ROUND($C$17*(1+$C$18)^J19,3) -> 3.801 | O19: =ROUND(M19*N19,0) -> 506 | P19: 0 | Q19: 0 | R19: =O19+Q19 -> 506 | S19: =ROUND(M19*$C$23,1) -> 1.3 | T19: 156 | U19: 203 | V19: 709 | W19: 2.128 | X19: 224 | Y19: 0 | Z19: 0 | AA19: 224 | AB19: 485 | AE19: 2026 | AF19: 506 | AG19: 203 | AH19: 709 | AJ19: 0 | AK19: 0 | AL19: 0 | AN19: 709 | AQ19: 2026 | AR19: 506 | AS19: 203 | AT19: 0.036 | AU19: 0 | AV19: =ROUND($C$33*(1+$C$34)^J19,3) -> 2.319 | AW19: 308 | AZ19: 1017 | BB19: 0 | BC19: 0 | BD19: 0 | BE19: 1017 | BH19: 2026 | BI19: 0 | BJ19: 133 | BK19: 8.009 | BL19: 1065 | BM19: 0.147 | BN19: 0 | BP19: 1065 | BR19: 0 | BT19: 1065 | BW19: 2026 | BX19: 506 | BY19: 203 | BZ19: 0 | CA19: 709 | CC19: 0 | CD19: 0 | CE19: 0 | CG19: 709
A20: 4) Demand Cost ($/Unit/Yr) = | C20: =+'Gas Input Table Summary'!$D$14 -> 148.48 | E20: 19) Participant Non-Energy Savings (Annual $/Part) = | F20: =+'Gas Input Table Summary'!$D$41 -> 0 | J20: 6 | L20: 2027 | M20: 133 | N20: 3.915 | O20: 521 | P20: 0 | Q20: 0 | R20: 521 | S20: 1.3 | T20: 158 | U20: 205 | V20: 726 | W20: 2.192 | X20: 230 | Y20: 0 | Z20: 0 | AA20: 230 | AB20: 496 | AE20: 2027 | AF20: 521 | AG20: 205 | AH20: 726 | AJ20: 0 | AK20: 0 | AL20: 0 | AN20: 726 | AQ20: 2027 | AR20: 521 | AS20: 205 | AT20: 0.037 | AU20: 0 | AV20: 2.373 | AW20: 316 | AZ20: 1042 | BB20: 0 | BC20: 0 | BD20: 0 | BE20: 1042 | BH20: 2027 | BI20: 0 | BJ20: 133 | BK20: 8.25 | BL20: 1097 | BM20: 0.151 | BN20: 0 | BP20: 1097 | BR20: 0 | BT20: 1097 | BW20: 2027 | BX20: 521 | BY20: 205 | BZ20: 0 | CA20: =SUM(BX20:BZ20) -> 726 | CC20: 0 | CD20: 0 | CE20: 0 | CG20: 726
A21: Escalation Rate = | C21: =+'Gas Input Table Summary'!$D$15 -> 0.01 | E21: Escalation Rate = | F21: =+'Gas Input Table Summary'!$D$44 -> 0 | J21: 7 | L21: 2028 | M21: 133 | N21: 4.033 | O21: 536 | P21: 0 | Q21: 0 | R21: 536 | S21: 1.3 | T21: 159 | U21: 207 | V21: 743 | W21: 2.258 | X21: 237 | Y21: 0 | Z21: 0 | AA21: 237 | AB21: 506 | AE21: 2028 | AF21: 536 | AG21: 207 | AH21: 743 | AJ21: 0 | AK21: 0 | AL21: 0 | AN21: 743 | AQ21: 2028 | AR21: 536 | AS21: 207 | AT21: 0.038 | AU21: 0 | AV21: 2.427 | AW21: 323 | AZ21: 1066 | BB21: 0 | BC21: 0 | BD21: 0 | BE21: 1066 | BH21: 2028 | BI21: 0 | BJ21: 133 | BK21: 8.497 | BL21: 1130 | BM21: 0.156 | BN21: 0 | BP21: 1130 | BR21: 0 | BT21: 1130 | BW21: 2028 | BX21: 536 | BY21: 207 | BZ21: 0 | CA21: 743 | CC21: 0 | CD21: 0 | CE21: 0 | CG21: 743
J22: 8 | L22: 2029 | M22: 133 | N22: 4.154 | O22: 552 | P22: 0 | Q22: 0 | R22: 552 | S22: 1.3 | T22: 161 | U22: 209 | V22: 761 | W22: 2.326 | X22: 244 | Y22: 0 | Z22: 0 | AA22: 244 | AB22: 517 | AE22: 2029 | AF22: 552 | AG22: 209 | AH22: 761 | AJ22: 0 | AK22: 0 | AL22: 0 | AN22: 761 | AQ22: 2029 | AR22: 552 | AS22: 209 | AT22: 0.04 | AU22: 0 | AV22: 2.483 | AW22: 330 | AZ22: 1091 | BB22: 0 | BC22: 0 | BD22: 0 | BE22: 1091 | BH22: 2029 | BI22: 0 | BJ22: 133 | BK22: 8.752 | BL22: 1164 | BM22: 0.16 | BN22: 0 | BP22: 1164 | BR22: 0 | BT22: 1164 | BW22: 2029 | BX22: 552 | BY22: 209 | BZ22: 0 | CA22: 761 | CC22: 0 | CD22: 0 | CE22: 0 | CG22: 761
A23: 5) Peak Reduction Factor = | C23: =+'Gas Input Table Summary'!$D$16 -> 0.01 | E23: 20) Project Life (Years) = | F23: =ROUND('Database Inputs'!D12,0) -> 10 | J23: 9 | L23: 2030 | M23: 133 | N23: 4.278 | O23: 569 | P23: 0 | Q23: 0 | R23: 569 | S23: 1.3 | T23: 162 | U23: 211 | V23: 780 | W23: 2.396 | X23: 252 | Y23: 0 | Z23: 0 | AA23: 252 | AB23: 528 | AE23: 2030 | AF23: 569 | AG23: 211 | AH23: 780 | AJ23: 0 | AK23: 0 | AL23: 0 | AN23: 780 | AQ23: 2030 | AR23: 569 | AS23: 211 | AT23: 0.041 | AU23: 0 | AV23: 2.54 | AW23: 338 | AZ23: 1118 | BB23: 0 | BC23: 0 | BD23: 0 | BE23: 1118 | BH23: 2030 | BI23: 0 | BJ23: 133 | BK23: 9.015 | BL23: 1199 | BM23: 0.165 | BN23: 0 | BP23: 1199 | BR23: 0 | BT23: 1199 | BW23: 2030 | BX23: 569 | BY23: 211 | BZ23: 0 | CA23: 780 | CC23: 0 | CD23: 0 | CE23: 0 | CG23: 780
J24: 10 | L24: 2031 | M24: =ROUND(IF($C$47+$F$23>L24,$F$25*$F$30,0)+IF($C$48+$G$23>L24,$G$25*$G$30,0)+IF($C$49+$H$23>L24,$H$25*$H$30,0),0) -> 0 | N24: 4.407 | O24: 0 | P24: 0 | Q24: 0 | R24: 0 | S24: 0 | T24: 164 | U24: 0 | V24: 0 | W24: 2.467 | X24: 0 | Y24: 0 | Z24: 0 | AA24: 0 | AB24: 0 | AE24: 2031 | AF24: 0 | AG24: 0 | AH24: 0 | AJ24: 0 | AK24: 0 | AL24: 0 | AN24: 0 | AQ24: 2031 | AR24: 0 | AS24: 0 | AT24: 0.042 | AU24: 0 | AV24: 2.599 | AW24: 0 | AZ24: 0 | BB24: 0 | BC24: 0 | BD24: 0 | BE24: 0 | BH24: 2031 | BI24: 0 | BJ24: 0 | BK24: 9.285 | BL24: 0 | BM24: 0.17 | BN24: 0 | BP24: 0 | BR24: 0 | BT24: 0 | BW24: 2031 | BX24: 0 | BY24: 0 | BZ24: 0 | CA24: 0 | CC24: 0 | CD24: 0 | CE24: 0 | CG24: 0
A25: 6) Variable O&M ($/Dk) = | C25: =+'Gas Input Table Summary'!$D$17 -> 0 | E25: 21) Avg. Dk/Part. Saved = | F25: =+ROUND(F32/F30,3) -> 2.293 | J25: 11 | L25: 2032 | M25: =ROUND(IF($C$47+$F$23>L25,$F$25*$F$30,0)+IF($C$48+$G$23>L25,$G$25*$G$30,0)+IF($C$49+$H$23>L25,$H$25*$H$30,0),0) -> 0 | N25: =ROUND($C$17*(1+$C$18)^J25,3) -> 4.539 | O25: =ROUND(M25*N25,0) -> 0 | P25: 0 | Q25: 0 | R25: 0 | S25: =ROUND(M25*$C$23,1) -> 0 | T25: =ROUND($C$20*(1+$C$21)^J25,0) -> 166 | U25: 0 | V25: 0 | W25: 2.541 | X25: 0 | Y25: 0 | Z25: 0 | AA25: 0 | AB25: 0 | AE25: 2032 | AF25: 0 | AG25: 0 | AH25: 0 | AJ25: 0 | AK25: 0 | AL25: 0 | AN25: 0 | AQ25: 2032 | AR25: 0 | AS25: 0 | AT25: 0.043 | AU25: 0 | AV25: 2.658 | AW25: 0 | AZ25: 0 | BB25: 0 | BC25: 0 | BD25: 0 | BE25: 0 | BH25: 2032 | BI25: 0 | BJ25: 0 | BK25: 9.564 | BL25: 0 | BM25: 0.175 | BN25: 0 | BP25: 0 | BR25: 0 | BT25: 0 | BW25: 2032 | BX25: 0 | BY25: 0 | BZ25: 0 | CA25: 0 | CC25: 0 | CD25: 0 | CE25: 0 | CG25: 0
A26: Escalation Rate = | C26: =+'Gas Input Table Summary'!$D$18 -> 0 | J26: 12 | L26: 2033 | M26: 0 | N26: 4.675 | O26: 0 | P26: 0 | Q26: 0 | R26: 0 | S26: 0 | T26: 167 | U26: 0 | V26: 0 | W26: 2.618 | X26: 0 | Y26: 0 | Z26: 0 | AA26: 0 | AB26: 0 | AE26: 2033 | AF26: 0 | AG26: 0 | AH26: 0 | AJ26: 0 | AK26: 0 | AL26: 0 | AN26: 0 | AQ26: 2033 | AR26: 0 | AS26: 0 | AT26: 0.044 | AU26: 0 | AV26: 2.719 | AW26: 0 | AZ26: 0 | BB26: 0 | BC26: 0 | BD26: 0 | BE26: 0 | BH26: 2033 | BI26: 0 | BJ26: 0 | BK26: 9.851 | BL26: 0 | BM26: 0.18 | BN26: 0 | BP26: 0 | BR26: 0 | BT26: 0 | BW26: 2033 | BX26: 0 | BY26: 0 | BZ26: 0 | CA26: 0 | CC26: 0 | CD26: 0 | CE26: 0 | CG26: 0
E27: 22) Avg Non-Gas Fuel Units/Part. Saved = | F27: =+'Database Inputs'!H12 -> 0 | J27: 13 | L27: 2034 | M27: 0 | N27: =ROUND($C$17*(1+$C$18)^J27,3) -> 4.815 | O27: 0 | P27: 0 | Q27: 0 | R27: 0 | S27: 0 | T27: 169 | U27: 0 | V27: 0 | W27: 2.696 | X27: 0 | Y27: 0 | Z27: 0 | AA27: 0 | AB27: 0 | AE27: 2034 | AF27: 0 | AG27: 0 | AH27: 0 | AJ27: 0 | AK27: 0 | AL27: 0 | AN27: 0 | AQ27: 2034 | AR27: 0 | AS27: 0 | AT27: 0.046 | AU27: 0 | AV27: 2.782 | AW27: 0 | AZ27: 0 | BB27: 0 | BC27: 0 | BD27: 0 | BE27: 0 | BH27: 2034 | BI27: 0 | BJ27: 0 | BK27: 10.146 | BL27: 0 | BM27: 0.186 | BN27: 0 | BP27: 0 | BR27: 0 | BT27: 0 | BW27: 2034 | BX27: 0 | BY27: 0 | BZ27: 0 | CA27: 0 | CC27: 0 | CD27: 0 | CE27: 0 | CG27: 0
A28: 7) Non-Gas Fuel Cost ($/Fuel Unit) = | C28: =+'Gas Input Table Summary'!$D$19 -> 0.02891 | E28: 22a) Avg Additional Non-Gas Fuel Units/ Part. Used = | F28: 0 | J28: 14 | L28: 2035 | M28: 0 | N28: 4.96 | O28: 0 | P28: 0 | Q28: 0 | R28: 0 | S28: 0 | T28: 171 | U28: 0 | V28: 0 | W28: 2.777 | X28: 0 | Y28: 0 | Z28: 0 | AA28: 0 | AB28: 0 | AE28: 2035 | AF28: 0 | AG28: 0 | AH28: 0 | AJ28: 0 | AK28: 0 | AL28: 0 | AN28: 0 | AQ28: 2035 | AR28: 0 | AS28: 0 | AT28: 0.047 | AU28: 0 | AV28: 2.846 | AW28: 0 | AZ28: 0 | BB28: 0 | BC28: 0 | BD28: 0 | BE28: 0 | BH28: 2035 | BI28: 0 | BJ28: 0 | BK28: 10.45 | BL28: 0 | BM28: 0.191 | BN28: 0 | BP28: 0 | BR28: 0 | BT28: 0 | BW28: 2035 | BX28: 0 | BY28: 0 | BZ28: 0 | CA28: 0 | CC28: 0 | CD28: 0 | CE28: 0 | CG28: 0
A29: Escalation Rate = | C29: =+'Gas Input Table Summary'!$D$20 -> 0.03 | J29: 15 | L29: 2036 | M29: 0 | N29: 5.109 | O29: 0 | P29: 0 | Q29: 0 | R29: 0 | S29: 0 | T29: 172 | U29: 0 | V29: 0 | W29: 2.86 | X29: 0 | Y29: 0 | Z29: 0 | AA29: 0 | AB29: 0 | AE29: 2036 | AF29: 0 | AG29: 0 | AH29: 0 | AJ29: 0 | AK29: 0 | AL29: 0 | AN29: 0 | AQ29: 2036 | AR29: 0 | AS29: 0 | AT29: 0.049 | AU29: 0 | AV29: 2.911 | AW29: 0 | AZ29: 0 | BB29: 0 | BC29: 0 | BD29: 0 | BE29: 0 | BH29: 2036 | BI29: 0 | BJ29: 0 | BK29: 10.764 | BL29: 0 | BM29: 0.197 | BN29: 0 | BP29: 0 | BR29: 0 | BT29: 0 | BW29: 2036 | BX29: 0 | BY29: 0 | BZ29: 0 | CA29: 0 | CC29: 0 | CD29: 0 | CE29: 0 | CG29: 0
E30: 23) Number of Participants = | F30: =ROUND('Database Inputs'!C12,0) -> 58 | J30: 16 | L30: 2037 | M30: 0 | N30: 5.262 | O30: 0 | P30: 0 | Q30: 0 | R30: 0 | S30: 0 | T30: 174 | U30: 0 | V30: 0 | W30: 2.946 | X30: 0 | Y30: 0 | Z30: 0 | AA30: 0 | AB30: 0 | AE30: 2037 | AF30: 0 | AG30: 0 | AH30: 0 | AJ30: 0 | AK30: 0 | AL30: 0 | AN30: 0 | AQ30: 2037 | AR30: 0 | AS30: 0 | AT30: 0.05 | AU30: 0 | AV30: 2.978 | AW30: 0 | AZ30: 0 | BB30: 0 | BC30: 0 | BD30: 0 | BE30: 0 | BH30: 2037 | BI30: 0 | BJ30: 0 | BK30: 11.087 | BL30: 0 | BM30: 0.203 | BN30: 0 | BP30: 0 | BR30: 0 | BT30: 0 | BW30: 2037 | BX30: 0 | BY30: 0 | BZ30: 0 | CA30: 0 | CC30: 0 | CD30: 0 | CE30: 0 | CG30: 0
A31: 8) Non-Gas Fuel Loss Factor | C31: =+'Gas Input Table Summary'!$D$21 -> 0.073 | J31: 17 | L31: 2038 | M31: 0 | N31: 5.42 | O31: 0 | P31: 0 | Q31: 0 | R31: 0 | S31: 0 | T31: 176 | U31: 0 | V31: 0 | W31: 3.035 | X31: 0 | Y31: 0 | Z31: 0 | AA31: 0 | AB31: 0 | AE31: 2038 | AF31: 0 | AG31: 0 | AH31: 0 | AJ31: 0 | AK31: 0 | AL31: 0 | AN31: 0 | AQ31: 2038 | AR31: 0 | AS31: 0 | AT31: 0.052 | AU31: 0 | AV31: 3.047 | AW31: 0 | AZ31: 0 | BB31: 0 | BC31: 0 | BD31: 0 | BE31: 0 | BH31: 2038 | BI31: 0 | BJ31: 0 | BK31: 11.42 | BL31: 0 | BM31: 0.209 | BN31: 0 | BP31: 0 | BR31: 0 | BT31: 0 | BW31: 2038 | BX31: 0 | BY31: 0 | BZ31: 0 | CA31: 0 | CC31: 0 | CD31: 0 | CE31: 0 | CG31: 0
E32: 24) Total Annual Dk Saved = | F32: =+'Total Program Inputs'!G13 -> 133 | J32: 18 | L32: 2039 | M32: 0 | N32: 5.582 | O32: 0 | P32: 0 | Q32: 0 | R32: 0 | S32: 0 | T32: 178 | U32: 0 | V32: 0 | W32: 3.126 | X32: 0 | Y32: 0 | Z32: 0 | AA32: 0 | AB32: 0 | AE32: 2039 | AF32: 0 | AG32: 0 | AH32: 0 | AJ32: 0 | AK32: 0 | AL32: 0 | AN32: 0 | AQ32: 2039 | AR32: 0 | AS32: 0 | AT32: 0.053 | AU32: 0 | AV32: 3.117 | AW32: 0 | AZ32: 0 | BB32: 0 | BC32: 0 | BD32: 0 | BE32: 0 | BH32: 2039 | BI32: 0 | BJ32: 0 | BK32: 11.762 | BL32: 0 | BM32: 0.215 | BN32: 0 | BP32: 0 | BR32: 0 | BT32: 0 | BW32: 2039 | BX32: 0 | BY32: 0 | BZ32: 0 | CA32: 0 | CC32: 0 | CD32: 0 | CE32: 0 | CG32: 0
A33: 9) Gas Environmental Damage Factor = | C33: =+'Gas Input Table Summary'!$D$22 -> 2.07 | J33: 19 | L33: 2040 | M33: 0 | N33: 5.75 | O33: 0 | P33: 0 | Q33: 0 | R33: 0 | S33: 0 | T33: 179 | U33: 0 | V33: 0 | W33: 3.219 | X33: 0 | Y33: 0 | Z33: 0 | AA33: 0 | AB33: 0 | AE33: 2040 | AF33: 0 | AG33: 0 | AH33: 0 | AJ33: 0 | AK33: 0 | AL33: 0 | AN33: 0 | AQ33: 2040 | AR33: 0 | AS33: 0 | AT33: 0.055 | AU33: 0 | AV33: 3.189 | AW33: 0 | AZ33: 0 | BB33: 0 | BC33: 0 | BD33: 0 | BE33: 0 | BH33: 2040 | BI33: 0 | BJ33: 0 | BK33: 12.115 | BL33: 0 | BM33: 0.222 | BN33: 0 | BP33: 0 | BR33: 0 | BT33: 0 | BW33: 2040 | BX33: 0 | BY33: 0 | BZ33: 0 | CA33: 0 | CC33: 0 | CD33: 0 | CE33: 0 | CG33: 0
A34: Escalation Rate = | C34: =+'Gas Input Table Summary'!$D$23 -> 0.023 | E34: 25) Incentive/Participant = | F34: ='Database Inputs'!L12 -> 15 | J34: 20 | L34: 2041 | M34: 0 | N34: 5.922 | O34: 0 | P34: 0 | Q34: 0 | R34: 0 | S34: 0 | T34: 181 | U34: 0 | V34: 0 | W34: 3.316 | X34: 0 | Y34: 0 | Z34: 0 | AA34: 0 | AB34: 0 | AE34: 2041 | AF34: 0 | AG34: 0 | AH34: 0 | AJ34: 0 | AK34: 0 | AL34: 0 | AN34: 0 | AQ34: 2041 | AR34: 0 | AS34: 0 | AT34: 0.056 | AU34: 0 | AV34: 3.262 | AW34: 0 | AZ34: 0 | BB34: 0 | BC34: 0 | BD34: 0 | BE34: 0 | BH34: 2041 | BI34: 0 | BJ34: 0 | BK34: 12.478 | BL34: 0 | BM34: 0.228 | BN34: 0 | BP34: 0 | BR34: 0 | BT34: 0 | BW34: 2041 | BX34: 0 | BY34: 0 | BZ34: 0 | CA34: 0 | CC34: 0 | CD34: 0 | CE34: 0 | CG34: 0
J35: 21 | L35: 2042 | M35: =ROUND(IF($C$47+$F$23>L35,$F$25*$F$30,0)+IF($C$48+$G$23>L35,$G$25*$G$30,0)+IF($C$49+$H$23>L35,$H$25*$H$30,0),0) -> 0 | N35: =ROUND($C$17*(1+$C$18)^J35,3) -> 6.1 | O35: =ROUND(M35*N35,0) -> 0 | P35: =ROUND($C$25*(1+$C$26)^J35,3) -> 0 | Q35: =ROUND(M35*P35,0) -> 0 | R35: =O35+Q35 -> 0 | S35: =ROUND(M35*$C$23,1) -> 0 | T35: =ROUND($C$20*(1+$C$21)^J35,0) -> 183 | U35: =ROUND(S35*T35,0) -> 0 | V35: =ROUND(+U35+R35,0) -> 0 | W35: =ROUND($H$36*(1+$C$11)^J35,3) -> 3.416 | X35: =ROUND((1-$H$38)*(W35*M35),0) -> 0 | Y35: 0 | Z35: 0 | AA35: =SUM(X35:Z35) -> 0 | AB35: =V35-AA35 -> 0 | AE35: 2042 | AF35: =+R35 -> 0 | AG35: =+U35 -> 0 | AH35: =+AG35+AF35 -> 0 | AJ35: =ROUND(Y35,0) -> 0 | AK35: =ROUND(Z35,0) -> 0 | AL35: =SUM(AJ35:AK35) -> 0 | AN35: =+AH35-AL35 -> 0 | AQ35: 2042 | AR35: =AF35 -> 0 | AS35: =+AG35 -> 0 | AT35: =ROUND(($C$28/(1-$C$31))*(1+$C$29)^J35,3) -> 0.058 | AU35: =ROUND((IF($C$47+$F$23>$AQ35,$F$27*$F$30,0)+IF($C$48+$G$23>AQ35,$G$27*$G$30,0)+IF($C$49+$H$23>AQ35,$H$27*$H$30,0))*AT35,0) -> 0 | AV35: =ROUND($C$33*(1+$C$34)^J35,3) -> 3.337 | AW35: =ROUND(AV35*M35,0) -> 0 | AZ35: =ROUND(AR35+AS35+AU35+AW35+AY35,0) -> 0 | BB35: 0 | BC35: 0 | BD35: =BB35+BC35 -> 0 | BE35: =AZ35-BD35 -> 0 | BH35: 2042 | BI35: 0 | BJ35: =+M35 -> 0 | BK35: =ROUND($C$10*(1+$C$11)^J35,3) -> 12.853 | BL35: =ROUND(BJ35*BK35,0) -> 0 | BM35: =ROUND($C$13*(1+$C$14)^J35,3) -> 0.235 | BN35: =ROUND((IF($C$47+$F$23>BH35,$F$27*$F$30,0)+IF($C$49+$H$23>BH35,$H$27*$H$30,0)+IF($C$48+$G$23>BH35,$G$27*$G$30,0))*BM35,0) -> 0 | BP35: =BI35+BL35+BN35+BO35 -> 0 | BR35: =+BC35 -> 0 | BT35: =BP35-BR35 -> 0 | BW35: 2042 | BX35: 0 | BY35: =U35 -> 0 | BZ35: =AU35 -> 0 | CA35: =SUM(BX35:BZ35) -> 0 | CC35: =BB35 -> 0 | CD35: =BC35 -> 0 | CE35: =SUM(CC35:CD35) -> 0 | CG35: =CA35-CE35 -> 0
A36: 10) Non Gas Fuel Environmental Damage Factor = | C36: =+'Gas Input Table Summary'!$D$24 -> 0 | E36: 26) Distribution Delivery Charge | H36: =+'Gas Input Table Summary'!D58 -> 1.836 | J36: 22 | L36: 2043 | M36: 0 | N36: 6.283 | O36: 0 | P36: 0 | Q36: 0 | R36: 0 | S36: 0 | T36: 185 | U36: 0 | V36: 0 | W36: 3.518 | X36: 0 | Y36: 0 | Z36: 0 | AA36: 0 | AB36: 0 | AE36: 2043 | AF36: 0 | AG36: 0 | AH36: 0 | AJ36: 0 | AK36: 0 | AL36: 0 | AN36: 0 | AQ36: 2043 | AR36: 0 | AS36: 0 | AT36: 0.06 | AU36: 0 | AV36: 3.414 | AW36: 0 | AZ36: 0 | BB36: 0 | BC36: 0 | BD36: 0 | BE36: 0 | BH36: 2043 | BI36: 0 | BJ36: 0 | BK36: 13.238 | BL36: 0 | BM36: 0.242 | BN36: 0 | BP36: 0 | BR36: 0 | BT36: 0 | BW36: 2043 | BX36: 0 | BY36: 0 | BZ36: 0 | CA36: 0 | CC36: 0 | CD36: 0 | CE36: 0 | CG36: 0
A37: Escalation Rate = | C37: =+'Gas Input Table Summary'!$D$25 -> 0
E38: 27) Effective Income Tax Rate = | H38: =+'Gas Input Table Summary'!D59 -> 0.21 | K38: Total = | M38: =SUM(M14:M36) -> 1330 | V38: =SUM(V14:V36) -> 7019 | AA38: =SUM(AA14:AA36) -> 3195 | AB38: =SUM(AB14:AB36) -> 3824 | AD38: Total = | AH38: =SUM(AH14:AH36) -> 7019 | AL38: =SUM(AL14:AL36) -> 983 | AN38: =SUM(AN14:AN36) -> 6036 | AP38: Total = | AZ38: =SUM(AZ14:AZ36) -> 10076 | BD38: =SUM(BD14:BD36) -> 1853 | BE38: =SUM(BE14:BE36) -> 8223 | BG38: Total = | BJ38: =SUM(BJ14:BJ36) -> 1330 | BP38: =SUM(BP14:BP36) -> 11403 | BR38: =SUM(BR14:BR36) -> 1740 | BT38: =SUM(BT14:BT36) -> 9663 | BZ38: Total = | CA38: =SUM(CA14:CA36) -> 7019 | CE38: =SUM(CE14:CE36) -> 1853 | CG38: =SUM(CG14:CG36) -> 5166
A39: 11) Participant Discount Rate = | C39: =+'Gas Input Table Summary'!$D$26 -> 0.1032 | E39: (Federal & State Taxes) | T39: NPV = | V39: =ROUND(V14+NPV($C$41,V15:V36),0) -> 5162 | AA39: =ROUND(AA14+NPV($C$41,AA15:AA36),0) -> 2605 | AB39: =ROUND(AB14+NPV($C$41,AB15:AB36),0) -> 2557 | AG39: NPV = | AH39: =ROUND(AH14+NPV($C$41,AH15:AH36),0) -> 5162 | AL39: =ROUND(AL14+NPV($C$41,AL15:AL36),0) -> 983 | AN39: =+AH39-AL39 -> 4179 | AW39: NPV = | AZ39: =ROUND(AZ14+NPV($C$43,AZ15:AZ36),0) -> 9079 | BD39: =ROUND(BD14+NPV($C$43,BD15:BD36),0) -> 1853 | BE39: =AZ39-BD39 -> 7226 | BN39: NPV = | BP39: =ROUND(BP14+NPV($C$39,BP15:BP36),0) -> 7748 | BR39: =ROUND(BR14+NPV($C$39,BR15:BR36),0) -> 1740 | BT39: =ROUND(BT14+NPV($C$39,BT15:BT36),0) -> 6008 | BZ39: NPV = | CA39: =ROUND(CA14+NPV($C$41,CA15:CA36),0) -> 5162 | CE39: =ROUND(CE14+NPV($C$41,CE15:CE36),0) -> 1853 | CG39: =ROUND(CG14+NPV($C$41,CG15:CG36),0) -> 3309
A41: 12) Utility Discount Rate = | C41: =+'Gas Input Table Summary'!$D$27 -> 0.07216 | E41: Test Results | F41: NPV | G41: B/C | K41: Total NPV = | N41: =AB39 -> 2557 | AD41: Total NPV = | AG41: =AN39 -> 4179 | AP41: Total NPV = | AS41: =BE39 -> 7226 | BG41: Total NPV = | BJ41: =BT39 -> 6008 | BV41: Total NPV = | BY41: =CG39 -> 3309
E42: Ratepayer Impact Measure Test | F42: =N41 -> 2557 | G42: =N42 -> 1.98 | K42: Benefit/Cost Ratio = | N42: =ROUND(V39/AA39,2) -> 1.98 | AD42: Benefit/Cost Ratio = | AG42: =ROUND(AH39/AL39,2) -> 5.25 | AP42: Benefit/Cost Ratio = | AS42: =ROUND(AZ39/BD39,2) -> 4.9 | BG42: Benefit/Cost Ratio = | BJ42: =ROUND(BP39/BR39,2) -> 4.45 | BV42: Benefit/Cost Ratio = | BY42: =ROUND(CA39/CE39,2) -> 2.79
A43: 13) Societal Discount Rate = | C43: =+'Gas Input Table Summary'!$D$28 -> 0.0229 | E43: Utility Cost Test | F43: =AG41 -> 4179 | G43: =AG42 -> 5.25
E44: Societal Test | F44: =AS41 -> 7226 | G44: =AS42 -> 4.9 | J44: Worksheet Calculations | BV44: Worksheet Calculations
A45: 14) General Input Data Year = | C45: =+'Gas Input Table Summary'!$D$29 -> 2021 | E45: Participant Test | F45: =BJ41 -> 6008 | G45: =BJ42 -> 4.45 | J45: (A) | K45: = Average Dk/Participant Saved (21) x Number of Participants (23) for Project Life (20) | T45: (I) | U45: = (G) x (H) | AD45: Worksheet Calculations | AP45: Worksheet Calculations | BG45: Worksheet Calculations | BV45: (A) | BW45: = Table 1 (F)
E46: Total Resource Cost Test | F46: =BY41 -> 3309 | G46: =BY42 -> 2.79 | J46: (B) | K46: = Commodity Cost (3) escalated | T46: (J) | U46: = (F) + (I) | AD46: (A) | AE46: = Table 1 (F) | AP46: (A) | AQ46: = Table 1 (F) | AW46: (H) | AZ46: = Table 2 (F) | BG46: (A) | BH46: = Table 1 (N) | BL46: (G) | BM46: = (A) + (D) + (F) | BV46: (B) | BW46: = Table 1 (I)
A47: 15) Project Analysis Year 1 = | C47: =+'Total Program Inputs'!C6 -> 2021 | J47: (C) | K47: = (A) x (B) | T47: (K) | U47: = Distribution Delivery Charge (26) escalated. | AD47: (B) | AE47: = Table 1 (I) | AP47: (G) | AQ47: = Table 1 (I) | AW47: (I) | AZ47: = Direct Part. Costs (17) x No. of Part. (23) - Table 1 (N) | BG47: (B) | BH47: = Table 1 (A) | BL47: (H) | BM47: = Direct Participant Costs (17) x Number of Participants (23) | BV47: (C) | BW47: = Table 3 (D)
J48: (D) | K48: = Variable O&M Cost (6), escalated | T48: (L) | U48: = (A) x (K) x (1-Inverse of Tax Rate (27) | AD48: (C) | AE48: = Table 1 (J) | AP48: (C) | AQ48: = Non-Gas Fuel Cost (7), adjusted for losses (8), escalated.. | AW48: (J) | AZ48: = (H) + (I) | BG48: (C) | BH48: = Retail Rate (1) escalated. | BL48: (I) | BM48: = (G) - (H) | BV48: (D) | BW48: = (A) + (B) + (C)
J49: (E) | K49: = (A) x (D) | T49: (M) | U49: = Admin & Operating Costs (16a) | AD49: (D) | AE49: = Table 1 (M) | AP49: (D) | AQ49: = (C) x [Avg. Non-Gas Fuel Units/Part.Saved (22) x No. of Part. (23) | AW49: (K) | AZ49: = (G) - (J) | BG49: (D) | BH49: =(B) x (C) | BV49: (E) | BW49: = Table 3 (H)
J50: (F) | K50: = (C) + (E) | T50: (N) | U50: = Incentive Costs (16b) | AD50: (E) | AE50: = Table 1 (N) | AP50: (E) | AQ50: = Gas Environmental Damage Factor (9), escalated | BG50: (E) | BH50: = Non-Gas Fuel Retail Rate (2), escalated. | BV50: (F) | BW50: = Table 3 (I)
J51: (G) | K51: = (A) x Peak Reduction Factor (5) | T51: (O) | U51: = (L) + (M) + (N) | AD51: (F) | AE51: = (D) + (E) | AP51: (F) | AQ51: = Table 1 (A) x (E) | BG51: (F) | BH51: = (E) x [Avg. Non-Gas Fuel Units/Part.Saved (22) x No. of Part. (23) | BV51: (G) | BW51: = (E) + (F)
J52: (H) | K52: = Demand Cost (4) escalated. | T52: (P) | U52: = (J) - (O) | AD52: (G) | AE52: = (C) - (F) | AP52: (G) | AQ52: = (A) + (B) + (D) + (F) | BV52: (H) | BW52: = (D) - (G)

Sheet Programmable Tstats - Tier 2
A1: NATURAL GAS CONSERVATION PROGRAMS/DEMAND-SIDE MANAGEMENT | K1: Table 1 | AD1: Table 2 | AP1: Table 3 | BG1: Table 4 | BV1: Table 5
A2: BEN/COST ANALYSIS FOR GAS CONSERVATION | K2: Ratepayer Impact Measure Test | AD2: Utility Cost Test | AP2: Societal Test | BG2: Participant Test | BV2: Total Resource Cost Test
A4: Company: | B4: Montana-Dakota Utilities Co. | K4: Company: | M4: =B4 -> Montana-Dakota Utilities Co. | AD4: Company: | AF4: =B4 -> Montana-Dakota Utilities Co. | AP4: Company: | AR4: =AF4 -> Montana-Dakota Utilities Co. | BH4: Company: | BI4: =AR4 -> Montana-Dakota Utilities Co. | BW4: Company: | BX4: =BI4 -> Montana-Dakota Utilities Co.
A5: Project: | B5: ='Database Inputs'!A13 -> Programmable Thermostats - Tier 2 | K5: Project: | M5: =$B$5 -> Programmable Thermostats - Tier 2 | AD5: Project: | AF5: =$B$5 -> Programmable Thermostats - Tier 2 | AP5: Project: | AR5: =$B$5 -> Programmable Thermostats - Tier 2 | BH5: Project: | BI5: =$B$5 -> Programmable Thermostats - Tier 2 | BW5: Project: | BX5: =$B$5 -> Programmable Thermostats - Tier 2
A6: Program Years: | B6: ='Total Program'!$B$6 -> 2021
N7: Benefits | X7: Costs | AF7: Benefits | AJ7: Costs | AR7: Benefits | BB7: Costs | BI7: Benefits | BR7: Costs | BX7: Benefits | CC7: Costs
A8: Input Data | F8: =+'Total Program Inputs'!C6 -> 2021 | AB8: Annual | AN8: Annual | AT8: Non-Gas | BE8: Annual | BT8: Annual | CG8: Annual
M9: Total | N9: Gas | O9: Gas | P9: Variable | Q9: Variable | R9: Total | S9: Peak Dk | T9: Demand | U9: Total | W9: Distribution | Y9: Program | AA9: Total | AB9: Benefits | AF9: Total | AG9: Total | AH9: Annual | AJ9: Program | AL9: Utility | AN9: Benefits | AR9: Total | AS9: Total | AT9: Energy | AU9: Non-Gas | AV9: Environmental | AW9: Environmental | AZ9: Annual | BB9: Utility | BC9: Participants' | BD9: Annual | BE9: Benefits | BJ9: Total | BL9: Gas | BM9: Non-Gas | BN9: Non-Gas | BP9: Total | BR9: Direct | BT9: Benefits | BX9: Total | BY9: Total | BZ9: Non-Gas | CA9: Total | CC9: Utility | CD9: Participants' | CG9: Benefits
A10: 1) Retail Rate ($/Dk) = | C10: =+'Gas Input Table Summary'!$D$7 -> 6.909 | E10: 16) Utility Project Costs | M10: Energy | N10: Commodity | O10: Commodity | P10: O & M | Q10: O & M | R10: Energy | S10: Demand | T10: Savings | U10: Demand | V10: Total | W10: Delivery | X10: Lost | Y10: Admin | Z10: Incentive | AA10: Program | AB10: Less | AF10: Energy | AG10: Demand | AH10: Total | AJ10: Admin | AK10: Incentive | AL10: Program | AN10: Less | AR10: Energy | AS10: Demand | AT10: Savings | AU10: Energy | AV10: Damage | AW10: Damage | AZ10: Total | BB10: Program | BC10: Costs Net | BD10: Total | BE10: Less | BI10: Incentives | BJ10: Energy | BK10: Retail | BL10: Bill | BM10: Fuel | BN10: Energy | BP10: Annual | BR10: Participant | BT10: Less | BX10: Energy | BY10: Demand | BZ10: Energy | CA10: Annual | CC10: Program | CD10: Costs Net | CE10: Total | CG10: Less
A11: Escalation Rate = | C11: =+'Gas Input Table Summary'!$D$8 -> 0.03 | E11: 16a) Administrative & Operating Costs = | F11: =+'Total Program Inputs'!M14 -> 1310 | J11: t | M11: Reduction | N11: Cost/Dk | O11: Savings | P11: Cost/Dk | Q11: Savings | R11: Savings | S11: Reduction | T11: Per Unit | U11: Savings | V11: Savings | W11: Charge | X11: Margin | Y11: Costs | Z11: Costs | AA11: Costs | AB11: Costs | AF11: Savings | AG11: Savings | AH11: Savings | AJ11: Costs | AK11: Costs | AL11: Costs | AN11: Costs | AR11: Savings | AS11: Savings | AT11: ($/Part.) | AU11: Savings | AV11: Savings/Dk | AW11: Savings | AZ11: Savings | BB11: Costs | BC11: of Rebate | BD11: Costs | BE11: Costs | BI11: Received | BJ11: Reduction | BK11: Rate | BL11: Savings | BM11: Retail Rate | BN11: Savings | BP11: Benefits | BR11: Costs | BT11: Costs | BX11: Savings | BY11: Savings | BZ11: Savings | CA11: Benefits | CC11: Costs | CD11: of Rebate | CE11: Costs | CG11: Costs
E12: 16b) Incentive Costs = | F12: =+'Total Program Inputs'!I14 -> 10080 | L12: Year | M12: (A) | N12: (B) | O12: (C) | P12: (D) | Q12: (E) | R12: (F) | S12: (G) | T12: (H) | U12: (I) | V12: (J) | W12: (K) | X12: (L) | Y12: (M) | Z12: (N) | AA12: (O) | AB12: (P) | AE12: Year | AF12: (A) | AG12: (B) | AH12: (C) | AJ12: (D) | AK12: (E) | AL12: (F) | AN12: (G) | AQ12: Year | AR12: (A) | AS12: (B) | AT12: (C) | AU12: (D) | AV12: (E) | AW12: (F) | AZ12: (G) | BB12: (H) | BC12: (I) | BD12: (J) | BE12: (K) | BH12: Year | BI12: (A) | BJ12: (B) | BK12: (C) | BL12: (D) | BM12: (E) | BN12: (F) | BP12: (G) | BR12: (H) | BT12: (I) | BW12: Year | BX12: (A) | BY12: (B) | BZ12: (C) | CA12: (D) | CC12: (E) | CD12: (F) | CE12: (G) | CG12: (H)
A13: 2) Non-Gas Fuel Retail Rate ($/Fuel Unit) = | C13: =+'Gas Input Table Summary'!$D$9 -> 0.12648 | E13: 16c) Total Utility Project Costs = | F13: =SUM(F11:F12) -> 11390
A14: Escalation Rate = | C14: =+'Gas Input Table Summary'!$D$10 -> 0.03 | J14: =$C$47-$C$45 -> 0 | L14: =$C$47 -> 2021 | M14: =ROUND(IF($C$47+$F$23>L14,F25*F30,0),0) -> 1150 | N14: =ROUND($C$17*(1+$C$18)^J14,3) -> 3.279 | O14: =ROUND(M14*N14,0) -> 3771 | P14: =ROUND($C$25*(1+$C$26)^J14,3) -> 0 | Q14: =ROUND(M14*P14,0) -> 0 | R14: =O14+Q14 -> 3771 | S14: =ROUND(M14*$C$23,1) -> 11.5 | T14: =ROUND($C$20*(1+$C$21)^J14,0) -> 148 | U14: =ROUND(S14*T14,0) -> 1702 | V14: =ROUND(+U14+R14,0) -> 5473 | W14: =ROUND($H$36*(1+$C$11)^J14,3) -> 1.836 | X14: =ROUND((1-$H$38)*(W14*M14),0) -> 1668 | Y14: =ROUND($F$11,0) -> 1310 | Z14: =ROUND($F$12,0) -> 10080 | AA14: =SUM(X14:Z14) -> 13058 | AB14: =V14-AA14 -> -7585 | AE14: =$C$47 -> 2021 | AF14: =+R14 -> 3771 | AG14: =+U14 -> 1702 | AH14: =+AG14+AF14 -> 5473 | AJ14: =ROUND(Y14,0) -> 1310 | AK14: =ROUND(Z14,0) -> 10080 | AL14: =SUM(AJ14:AK14) -> 11390 | AN14: =+AH14-AL14 -> -5917 | AQ14: =$C$47 -> 2021 | AR14: =AF14 -> 3771 | AS14: =+AG14 -> 1702 | AT14: =ROUND(($C$28/(1-$C$31))*(1+$C$29)^J14,3) -> 0.031 | AU14: =ROUND(IF($C$47+$F$23>$AQ14,$F$30*$F$27,0)*AT14,0) -> 214 | AV14: =ROUND($C$33*(1+$C$34)^J14,3) -> 2.07 | AW14: =ROUND(AV14*M14,0) -> 2381 | AZ14: =ROUND(AR14+AS14+AU14+AW14+AY14,0) -> 8068 | BB14: =ROUND($F$13,0) -> 11390 | BC14: =ROUND((F15*F30)-Z14,0) -> 15960 | BD14: =BB14+BC14 -> 27350 | BE14: =AZ14-BD14 -> -19282 | BH14: =$C$47 -> 2021 | BI14: =+F12 -> 10080 | BJ14: =+M14 -> 1150 | BK14: =ROUND($C$10*(1+$C$11)^J14,3) -> 6.909 | BL14: =ROUND(BJ14*BK14,0) -> 7945 | BM14: =ROUND($C$13*(1+$C$14)^J14,3) -> 0.126 | BN14: =ROUND(IF($C$47+$F$23>$BH14,$F$30*$F$27,0)*BM14,0) -> 868 | BP14: =BI14+BL14+BN14+BO14 -> 18893 | BR14: =ROUND(F15*F30,0) -> 26040 | BT14: =BP14-BR14 -> -7147 | BW14: =$C$47 -> 2021 | BX14: =$R14 -> 3771 | BY14: =U14 -> 1702 | BZ14: =AU14 -> 214 | CA14: =SUM(BX14:BZ14) -> 5687 | CC14: =BB14 -> 11390 | CD14: =BC14 -> 15960 | CE14: =SUM(CC14:CD14) -> 27350 | CG14: =CA14-CE14 -> -21663
A15: Non-Gas Fuel Units (ie. kWh,Gallons, etc) = | C15: =+'Gas Input Table Summary'!$D$11 -> Kwh | E15: 17) Direct Participant Costs ($/Part.) = | F15: =ROUND('Database Inputs'!K13,0) -> 155 | J15: =J14+1 -> 1 | L15: =L14+1 -> 2022 | M15: =ROUND(IF($C$47+$F$23>L15,$F$25*$F$30,0)+IF($C$48+$G$23>L15,$G$25*$G$30,0),0) -> 1150 | N15: 3.377 | O15: 3884 | P15: 0 | Q15: =ROUND(M15*P15,0) -> 0 | R15: 3884 | S15: 11.5 | T15: 150 | U15: =ROUND(S15*T15,0) -> 1725 | V15: =ROUND(+U15+R15,0) -> 5609 | W15: 1.891 | X15: 1718 | Y15: =ROUND($G$11,0) -> 0 | Z15: =ROUND($G$12,0) -> 0 | AA15: 1718 | AB15: 3891 | AE15: =AE14+1 -> 2022 | AF15: =+R15 -> 3884 | AG15: =+U15 -> 1725 | AH15: =+AG15+AF15 -> 5609 | AJ15: =ROUND(Y15,0) -> 0 | AK15: 0 | AL15: 0 | AN15: =+AH15-AL15 -> 5609 | AQ15: =AQ14+1 -> 2022 | AR15: 3884 | AS15: 1725 | AT15: 0.032 | AU15: =ROUND((IF($C$47+$F$23>$AQ15,$F$27*$F$30,0)+IF($C$48+$G$23>AQ15,$G$27*$G$30,0))*AT15,0) -> 220 | AV15: 2.118 | AW15: 2436 | AZ15: =ROUND(AR15+AS15+AU15+AW15+AY15,0) -> 8265 | BB15: =ROUND($G$13,0) -> 0 | BC15: =ROUND(($G$15*$G$30)-$Z$15,0) -> 0 | BD15: =BB15+BC15 -> 0 | BE15: 8265 | BH15: =BH14+1 -> 2022 | BI15: =+G12 -> 0 | BJ15: 1150 | BK15: 7.116 | BL15: =ROUND(BJ15*BK15,0) -> 8183 | BM15: 0.13 | BN15: =ROUND((IF($C$47+$F$23>BH15,$F$27*$F$30,0)+IF($C$48+$G$23>BH15,$G$27*$G$30,0))*BM15,0) -> 895 | BP15: 9078 | BR15: =ROUND($G$15*$G$30,0) -> 0 | BT15: =BP15-BR15 -> 9078 | BW15: =BW14+1 -> 2022 | BX15: 3884 | BY15: =U15 -> 1725 | BZ15: =AU15 -> 220 | CA15: =SUM(BX15:BZ15) -> 5829 | CC15: =BB15 -> 0 | CD15: 0 | CE15: =SUM(CC15:CD15) -> 0 | CG15: =CA15-CE15 -> 5829
J16: 2 | L16: 2023 | M16: =ROUND(IF($C$47+$F$23>L16,$F$25*$F$30,0)+IF($C$48+$G$23>L16,$G$25*$G$30,0)+IF($C$49+$H$23>L16,$H$25*$H$30,0),0) -> 1150 | N16: =ROUND($C$17*(1+$C$18)^J16,3) -> 3.479 | O16: =ROUND(M16*N16,0) -> 4001 | P16: =ROUND($C$25*(1+$C$26)^J16,3) -> 0 | Q16: 0 | R16: =O16+Q16 -> 4001 | S16: =ROUND(M16*$C$23,1) -> 11.5 | T16: =ROUND($C$20*(1+$C$21)^J16,0) -> 151 | U16: =ROUND(S16*T16,0) -> 1737 | V16: =ROUND(+U16+R16,0) -> 5738 | W16: =ROUND($H$36*(1+$C$11)^J16,3) -> 1.948 | X16: =ROUND((1-$H$38)*(W16*M16),0) -> 1770 | Y16: =ROUND($H$11,0) -> 0 | Z16: =ROUND($H$12,0) -> 0 | AA16: 1770 | AB16: =V16-AA16 -> 3968 | AE16: 2023 | AF16: 4001 | AG16: 1737 | AH16: =+AG16+AF16 -> 5738 | AJ16: 0 | AK16: 0 | AL16: 0 | AN16: 5738 | AQ16: 2023 | AR16: 4001 | AS16: 1737 | AT16: =ROUND(($C$28/(1-$C$31))*(1+$C$29)^J16,3) -> 0.033 | AU16: =ROUND((IF($C$47+$F$23>$AQ16,$F$27*$F$30,0)+IF($C$48+$G$23>AQ16,$G$27*$G$30,0)+IF($C$49+$H$23>AQ16,$H$27*$H$30,0))*AT16,0) -> 227 | AV16: 2.166 | AW16: 2491 | AZ16: 8456 | BB16: =ROUND($H$13,0) -> 0 | BC16: =ROUND(($H$15*$H$30)-$Z$16,0) -> 0 | BD16: 0 | BE16: 8456 | BH16: 2023 | BI16: =ROUND(H12,0) -> 0 | BJ16: 1150 | BK16: 7.33 | BL16: =ROUND(BJ16*BK16,0) -> 8430 | BM16: 0.134 | BN16: =ROUND((IF($C$47+$F$23>BH16,$F$27*$F$30,0)+IF($C$49+$H$23>BH16,$H$27*$H$30,0)+IF($C$48+$G$23>BH16,$G$27*$G$30,0))*BM16,0) -> 923 | BP16: 9353 | BR16: =ROUND($H$15*$H$30,0) -> 0 | BT16: 9353 | BW16: 2023 | BX16: 4001 | BY16: 1737 | BZ16: 227 | CA16: 5965 | CC16: 0 | CD16: 0 | CE16: 0 | CG16: =CA16-CE16 -> 5965
A17: 3) Commodity Cost ($/Dk) = | C17: =+'Gas Input Table Summary'!$D$12 -> 3.279 | E17: 18) Participant Non-Energy Costs (Annual $/Part.) = | F17: =+'Gas Input Table Summary'!D35 -> 0 | J17: 3 | L17: 2024 | M17: =ROUND(IF($C$47+$F$23>L17,$F$25*$F$30,0)+IF($C$48+$G$23>L17,$G$25*$G$30,0)+IF($C$49+$H$23>L17,$H$25*$H$30,0),0) -> 1150 | N17: 3.583 | O17: 4120 | P17: 0 | Q17: 0 | R17: 4120 | S17: 11.5 | T17: 153 | U17: =ROUND(S17*T17,0) -> 1760 | V17: 5880 | W17: 2.006 | X17: 1822 | Y17: 0 | Z17: 0 | AA17: 1822 | AB17: 4058 | AE17: 2024 | AF17: 4120 | AG17: 1760 | AH17: 5880 | AJ17: 0 | AK17: 0 | AL17: 0 | AN17: 5880 | AQ17: 2024 | AR17: 4120 | AS17: 1760 | AT17: =ROUND(($C$28/(1-$C$31))*(1+$C$29)^J17,3) -> 0.034 | AU17: =ROUND((IF($C$47+$F$23>$AQ17,$F$27*$F$30,0)+IF($C$48+$G$23>AQ17,$G$27*$G$30,0)+IF($C$49+$H$23>AQ17,$H$27*$H$30,0))*AT17,0) -> 234 | AV17: 2.216 | AW17: 2548 | AZ17: 8662 | BB17: 0 | BC17: 0 | BD17: 0 | BE17: 8662 | BH17: 2024 | BI17: 0 | BJ17: 1150 | BK17: 7.55 | BL17: 8683 | BM17: 0.138 | BN17: =ROUND((IF($C$47+$F$23>BH17,$F$27*$F$30,0)+IF($C$49+$H$23>BH17,$H$27*$H$30,0)+IF($C$48+$G$23>BH17,$G$27*$G$30,0))*BM17,0) -> 951 | BP17: 9634 | BR17: =+BC17 -> 0 | BT17: 9634 | BW17: 2024 | BX17: 4120 | BY17: 1760 | BZ17: 234 | CA17: 6114 | CC17: 0 | CD17: 0 | CE17: 0 | CG17: 6114
A18: Escalation Rate = | C18: =+'Gas Input Table Summary'!$D$13 -> 0.03 | E18: Escalation Rate = | F18: =+'Gas Input Table Summary'!D38 -> 0 | J18: 4 | L18: 2025 | M18: 1150 | N18: 3.691 | O18: 4245 | P18: 0 | Q18: 0 | R18: 4245 | S18: 11.5 | T18: 155 | U18: 1783 | V18: 6028 | W18: 2.066 | X18: 1877 | Y18: 0 | Z18: 0 | AA18: 1877 | AB18: 4151 | AE18: 2025 | AF18: 4245 | AG18: 1783 | AH18: 6028 | AJ18: 0 | AK18: 0 | AL18: 0 | AN18: 6028 | AQ18: 2025 | AR18: 4245 | AS18: 1783 | AT18: 0.035 | AU18: 241 | AV18: 2.267 | AW18: 2607 | AZ18: 8876 | BB18: 0 | BC18: 0 | BD18: 0 | BE18: 8876 | BH18: 2025 | BI18: 0 | BJ18: 1150 | BK18: 7.776 | BL18: 8942 | BM18: 0.142 | BN18: 978 | BP18: 9920 | BR18: 0 | BT18: 9920 | BW18: 2025 | BX18: 4245 | BY18: 1783 | BZ18: 241 | CA18: 6269 | CC18: 0 | CD18: 0 | CE18: 0 | CG18: 6269
J19: 5 | L19: 2026 | M19: =ROUND(IF($C$47+$F$23>L19,$F$25*$F$30,0)+IF($C$48+$G$23>L19,$G$25*$G$30,0)+IF($C$49+$H$23>L19,$H$25*$H$30,0),0) -> 1150 | N19: 3.801 | O19: 4371 | P19: 0 | Q19: 0 | R19: 4371 | S19: 11.5 | T19: 156 | U19: 1794 | V19: 6165 | W19: 2.128 | X19: 1933 | Y19: 0 | Z19: 0 | AA19: 1933 | AB19: 4232 | AE19: 2026 | AF19: 4371 | AG19: 1794 | AH19: 6165 | AJ19: 0 | AK19: 0 | AL19: 0 | AN19: 6165 | AQ19: 2026 | AR19: 4371 | AS19: 1794 | AT19: 0.036 | AU19: 248 | AV19: 2.319 | AW19: 2667 | AZ19: 9080 | BB19: 0 | BC19: 0 | BD19: 0 | BE19: 9080 | BH19: 2026 | BI19: 0 | BJ19: 1150 | BK19: 8.009 | BL19: 9210 | BM19: 0.147 | BN19: 1013 | BP19: 10223 | BR19: 0 | BT19: 10223 | BW19: 2026 | BX19: 4371 | BY19: 1794 | BZ19: 248 | CA19: 6413 | CC19: 0 | CD19: 0 | CE19: 0 | CG19: 6413
A20: 4) Demand Cost ($/Unit/Yr) = | C20: =+'Gas Input Table Summary'!$D$14 -> 148.48 | E20: 19) Participant Non-Energy Savings (Annual $/Part) = | F20: =+'Gas Input Table Summary'!D41 -> 0 | J20: 6 | L20: 2027 | M20: 1150 | N20: 3.915 | O20: 4502 | P20: 0 | Q20: 0 | R20: 4502 | S20: 11.5 | T20: 158 | U20: 1817 | V20: 6319 | W20: 2.192 | X20: 1991 | Y20: 0 | Z20: 0 | AA20: 1991 | AB20: 4328 | AE20: 2027 | AF20: 4502 | AG20: 1817 | AH20: 6319 | AJ20: 0 | AK20: 0 | AL20: 0 | AN20: 6319 | AQ20: 2027 | AR20: 4502 | AS20: 1817 | AT20: 0.037 | AU20: 255 | AV20: 2.373 | AW20: 2729 | AZ20: 9303 | BB20: 0 | BC20: 0 | BD20: 0 | BE20: 9303 | BH20: 2027 | BI20: 0 | BJ20: 1150 | BK20: 8.25 | BL20: 9488 | BM20: 0.151 | BN20: 1040 | BP20: 10528 | BR20: 0 | BT20: 10528 | BW20: 2027 | BX20: 4502 | BY20: 1817 | BZ20: 255 | CA20: 6574 | CC20: 0 | CD20: 0 | CE20: 0 | CG20: 6574
A21: Escalation Rate = | C21: =+'Gas Input Table Summary'!$D$15 -> 0.01 | E21: Escalation Rate = | F21: =+'Gas Input Table Summary'!D44 -> 0 | J21: 7 | L21: 2028 | M21: 1150 | N21: 4.033 | O21: 4638 | P21: 0 | Q21: 0 | R21: 4638 | S21: 11.5 | T21: 159 | U21: 1829 | V21: 6467 | W21: 2.258 | X21: 2051 | Y21: 0 | Z21: 0 | AA21: 2051 | AB21: 4416 | AE21: 2028 | AF21: 4638 | AG21: 1829 | AH21: 6467 | AJ21: 0 | AK21: 0 | AL21: 0 | AN21: 6467 | AQ21: 2028 | AR21: 4638 | AS21: 1829 | AT21: 0.038 | AU21: 262 | AV21: 2.427 | AW21: 2791 | AZ21: 9520 | BB21: 0 | BC21: 0 | BD21: 0 | BE21: 9520 | BH21: 2028 | BI21: 0 | BJ21: 1150 | BK21: 8.497 | BL21: 9772 | BM21: 0.156 | BN21: 1075 | BP21: 10847 | BR21: 0 | BT21: 10847 | BW21: 2028 | BX21: 4638 | BY21: 1829 | BZ21: 262 | CA21: 6729 | CC21: 0 | CD21: 0 | CE21: 0 | CG21: 6729
J22: 8 | L22: 2029 | M22: 1150 | N22: 4.154 | O22: 4777 | P22: 0 | Q22: 0 | R22: 4777 | S22: 11.5 | T22: 161 | U22: 1852 | V22: 6629 | W22: 2.326 | X22: 2113 | Y22: 0 | Z22: 0 | AA22: 2113 | AB22: 4516 | AE22: 2029 | AF22: 4777 | AG22: 1852 | AH22: 6629 | AJ22: 0 | AK22: 0 | AL22: 0 | AN22: 6629 | AQ22: 2029 | AR22: 4777 | AS22: 1852 | AT22: 0.04 | AU22: 276 | AV22: 2.483 | AW22: 2855 | AZ22: 9760 | BB22: 0 | BC22: 0 | BD22: 0 | BE22: 9760 | BH22: 2029 | BI22: 0 | BJ22: 1150 | BK22: 8.752 | BL22: 10065 | BM22: 0.16 | BN22: 1102 | BP22: 11167 | BR22: 0 | BT22: 11167 | BW22: 2029 | BX22: 4777 | BY22: 1852 | BZ22: 276 | CA22: 6905 | CC22: 0 | CD22: 0 | CE22: 0 | CG22: 6905
A23: 5) Peak Reduction Factor = | C23: =+'Gas Input Table Summary'!$D$16 -> 0.01 | E23: 20) Project Life (Years) = | F23: =ROUND('Database Inputs'!D13,0) -> 10 | J23: 9 | L23: 2030 | M23: 1150 | N23: 4.278 | O23: 4920 | P23: 0 | Q23: 0 | R23: 4920 | S23: 11.5 | T23: 162 | U23: 1863 | V23: 6783 | W23: 2.396 | X23: 2177 | Y23: 0 | Z23: 0 | AA23: 2177 | AB23: 4606 | AE23: 2030 | AF23: 4920 | AG23: 1863 | AH23: 6783 | AJ23: 0 | AK23: 0 | AL23: 0 | AN23: 6783 | AQ23: 2030 | AR23: 4920 | AS23: 1863 | AT23: 0.041 | AU23: 282 | AV23: 2.54 | AW23: 2921 | AZ23: 9986 | BB23: 0 | BC23: 0 | BD23: 0 | BE23: 9986 | BH23: 2030 | BI23: 0 | BJ23: 1150 | BK23: 9.015 | BL23: 10367 | BM23: 0.165 | BN23: 1137 | BP23: 11504 | BR23: 0 | BT23: 11504 | BW23: 2030 | BX23: 4920 | BY23: 1863 | BZ23: 282 | CA23: 7065 | CC23: 0 | CD23: 0 | CE23: 0 | CG23: 7065
